Workbook

Sheet Willkommen
D60: Version: | E60: ='Daten Einstellg_Ziele'!C5 -> 1.53b

Sheet Cockpit
D6: Zielabweichung Status Quo/Projektion
B22: Projektion Basisszenario
B36: Erhaltungskonzept: | C36: =Anlageziele!E5 -> Real | K36: Ertragskonzept: | L36: =Anlageziele!M5 -> Zielausschüttung als Betrag
B37: Investitionsgrad: | G37: ='Daten Cockpit '!D24 -> 86.8 | H37: % | K37: Verwaltungskostenquoten 1/2 in: | M37: ='Zahlen Basis'!F53*100 -> 61.8 | N37: % | O37: ='Zahlen Basis'!F54*100 -> 53.6 | P37: %
B38: Zielzuwachs im Jahr | C38: Ziel EUR | E38: Proj. EUR | G38: Abweichung | K38: Ertragsziel im Jahr | L38: Ziel EUR | M38: Proj. EUR | O38: Abweichung
B39: ='Zahlen Basis'!F4 -> 2019 | C39: ='Daten Cockpit '!C17 -> 151,519 | E39: ='Daten Cockpit '!C18 -> 51,750 | G39: ='Daten Cockpit '!C20 -> -65.8 | H39: % | K39: =B39 -> 2019 | L39: ='Daten Cockpit '!C30 -> 64,822 | M39: ='Daten Cockpit '!C31 -> 58,500 | O39: ='Daten Cockpit '!C33 -> -9.8 | P39: %
B40: ='Zahlen Basis'!J4 -> 2023 | C40: ='Daten Cockpit '!D17 -> 164,009 | E40: ='Daten Cockpit '!D18 -> 54,950 | G40: ='Daten Cockpit '!D20 -> -66.5 | H40: % | K40: =B40 -> 2023 | L40: ='Daten Cockpit '!D30 -> 67,148 | M40: ='Daten Cockpit '!D31 -> 61,595 | O40: ='Daten Cockpit '!D33 -> -8.3 | P40: %
B54: Risikoziele im Jahr 2018 | C54: Ziel EUR | E54: Proj. EUR | G54: Abweichung | K54: Nachhaltigkeitsziel in | L54: Ziel EUR | M54: Proj. EUR | O54: Abweichung
B55: Max. Verlust Investitionsverm. | C55: ='Daten Cockpit '!C39 -> -380,000 | E55: ='Daten Cockpit '!C40 -> -723,450 | G55: ='Daten Cockpit '!C42 -> -90.4 | H55: % | K55: Nachhaltigkeit allg. | L55: ='Daten Cockpit '!$C$48 -> 5,818,187 | M55: ='Daten Cockpit '!C49 -> 6,757,582 | O55: ='Daten Cockpit '!$C$51 -> 16.1 | P55: %
B56: Max. Verlust Grundstock | C56: ='Daten Cockpit '!D39 -> 0 | E56: ='Daten Cockpit '!D40 -> 0 | G56: ='Daten Cockpit '!D42 -> 0.0 | H56: % | K56: =Anlageziele!L22 -> Best in Class | L56: ='Daten Cockpit '!$E$48 -> 775,758 | M56: ='Daten Cockpit '!E49 -> 5,278,391 | O56: ='Daten Cockpit '!$E$51 -> 580.4 | P56: %
K57: Impact Investing | L57: ='Daten Cockpit '!$D$48 -> 775,758 | M57: ='Daten Cockpit '!D49 -> 0 | O57: ='Daten Cockpit '!$D$51 -> -100.0 | P57: %
B60: Analyse Status Quo Vermögenserhaltung
K62: Analyse: | L62: Grundstock | M62: Investitionsvermögen
L63: (SOLL) | M63: (IST)
K64: Grundstock nominal | L64: ='Daten VE'!D51 -> 6,000,000 | N64: EUR
K65: Inflationsausgleich | L65: ='Daten VE'!D52 -> 1,575,928 | N65: EUR
K66: Gesamt | L66: =L64+L65 -> 7,575,928 | M66: ='Daten VE'!E53 -> 7,600,000 | N66: EUR
K67: Zielerreichung: | L67: 100% | M67: =M66/L66 -> 100.32%
B80: Basisszenario - Vermögensentwicklung nach Anlageklassen
B100: Worst Case Szenario
B120: Szenario Umschichtung

Sheet Einstellungen
C5: Name der Stiftung: | D5: Paradigma-Stiftung | K5: Anrede | L5: Vorname Nachname bzw. Bezeichnung | P5: 2
C6: Gründungsjahr (JJJJ) | D6: 2001 | J6: Ersteller/in: | K6: Bitte auswählen | P6: 2
C7: Planungsbeginn (JJJJ) | D7: 2019 | J7: Verantwortliches Gremienmitglied: | K7: Bitte auswählen | P7: 2
J8: Berater/in | K8: Bitte auswählen | R8: 1
C9: Darstellung Vermögen (EUR/TEUR) | D9: EUR | E9: EUR | J9: Geschäftsführungsorgan | K9: Vorstand | P9: 1
C10: Projektion Jahre | D10: 5 | E10: TEUR
C11: Zielkorridor | D11: 2.0 | E11: % | J11: Mitglieder des Geschäftsführungsorgans
J12: Funktion; Vorname Nachname | K12: Vorsitzende/r | L12: Alfred Abel
J13: Funktion; Vorname Nachname | K13: Finanzen | L13: Bertram Bauer
J14: Funktion; Vorname Nachname | K14: Mitglied | L14: Charlotte Cäsar
C15: Anlagerichtlinie vorhanden? | D15: Nein | J15: Funktion; Vorname Nachname | K15: Mitglied | L15: Dieter Döring
J16: Funktion; Vorname Nachname | K16: Bitte auswählen
C17: Restriktionen | P17: 1 | R17: 1
J18: Aufsichtsorgan | K18: Keines | R18: 1
C19: Maximalquote Aktien | E19: auf | F19: Bitte ausw. | J19: Mitwirkung Aufsichtsorgan | K19: Bitte auswählen | R19: 1
C20: Maximalquote Renten | E20: auf | F20: Bitte ausw.
C21: Maximalquote Immobilien
C22: Mindestbonität Renten | J22: Annahmen Inflation (Veränderung p.a. in %): | P22: 1
C23: Maximalquote pro Einzelwert (Aktien/Renten)
C24: Maximalquote pro Institut (Guthaben) | J24: =D7 -> 2019 | K24: 2.0%
J25: =J24+1 -> 2020 | K25: 2.0%
C26: Rücklagen | J26: =J25+1 -> 2021 | K26: 2.0%
J27: 2022 | K27: 2.0%
C28: Bestand Kapitalrücklage | D28: 20,000 | E28: EUR | J28: 2023 | K28: 2.0%
C29: Bestand Freie Rücklage | D29: 10,000 | E29: EUR
C30: Bildung der freien Rücklage aus Erträgen | D30: 33.0 | E30: % p.a. | J30: Verwaltungkosten
P31: 1
J32: Verwaltungskosten inflationieren? | K32: Ja
J33: Begrenzung:
J34: Aufgriffsgrenze 1 (Stiftungsaufsicht): | K34: 33.0 | L34: %
J35: Aufgriffsgrenze 2 (Finanzamt): | K35: 25.0 | L35: %
B37: --- Ende der Eingaben ---

Sheet Anlageziele
C5: Vermögenserhaltungskonzept: | E5: Real | J5: Ausschüttungspolitik | M5: Zielausschüttung als Betrag | R5: Real | S5: 1 | U5: 1
R6: Nominal | U6: 1
D7: Bei realer Vermögenserhaltung: | K7: =IF(M5="Zielausschüttung als Betrag","Betrag für Zweckverwirklichung:",IF(M5='Daten Einstellg_Ziele'!D22,"Prozent bezogen auf Grundstock","Nur relevant bei Zielausschüttung")) -> Betrag für Zweckverwirklichung: | M7: 10,000.00 | N7: =IF($M$5="Überschuss","",IF($M$5='Daten Einstellg_Ziele'!$D$22,"%","EUR")) -> EUR
D8: Maß für die Geldentwerung: | E8: Verbraucherpreise (VPI) | K8: =IF(M5="Überschuss","","entspricht (gerundet):") -> entspricht (gerundet): | M8: =IF(M5='Daten Einstellg_Ziele'!D22,'Daten VE'!D51*Anlageziele!M7%,IF(Anlageziele!M5='Daten Einstellg_Ziele'!D21,Anlageziele!M7/'Daten VE'!D51%,"")) -> 0.17 | N8: =IF($M$5="Überschuss","",IF($M$5='Daten Einstellg_Ziele'!$D$22,"EUR","%")) -> %
D9: Zeitraum der Erfolgsmessung: | E9: 1 | F9: Jahr/e
D11: Bei Verbrauchsstiftung:
D12: Verbrauchskonzept | E12: Stiftung auf Zeit | R12: Substanz | U12: 1
D13: =IF(E12="Kapitaleinsatz p.a.","Kapitaleinsatz p.a.","Bestandsdauer ab Gründung") -> Bestandsdauer ab Gründung | E13: 20 | F13: =IF(E12="Kapitaleinsatz p.a.","EUR","Jahre") -> Jahre | R13: Verbrauch
R15: Verbraucherpreise (VPI) | S15: 1
C19: Maximalverlust Grundstock: | E19: 0.0% | K19: Zieljahr | L19: 2021 | R19: TRUE
E20: =IF(Vermerh.!B6<>0,Vermerh.!B6*Anlageziele!E19*-1,"") -> 0 € | K20: Zielquote Nachhaltigkeit allgemein | M20: 75.0% | R20: TRUE
C21: Maximalverlust Investmentvermögen: | E21: 5.0% | K21: Davon Zielquote Impact Investing | M21: 10.0% | R21: TRUE
E22: =IF(Vermentw.!K14<>0,Vermentw.!K14*Anlageziele!E21*-1,"") -> -380,000 € | K22: Davon Zielquote | L22: Best in Class | M22: 10.0%
B26: --- Ende der Eingaben ---

Sheet Daten Einstellg_Ziele (hidden)
A1: Datenblatt Stammdaten/Anlageziele
B3: STAMMDATEN
B5: Version: | C5: 1.53b
B7: EUR_TEUR | C7: Anrede | D7: Geschäftsführungsorgan | E7: Aufsichtsorgan | F7: Mitwirkung Aufsicht | G7: Gremienfunktion
B8: EUR | C8: Bitte auswählen | D8: Bitte auswählen | E8: Keines | F8: Bitte auswählen | G8: Bitte auswählen
B9: TEUR | C9: Herr | D9: Vorstand | E9: Stiftungsrat | F9: Einverständnis (vorher) | G9: Vorsitzende/r
C10: Frau | D10: Geschäftsführung | E10: Aufsichtsrat | F10: Genehmigung (nachher) | G10: Finanzen
D11: Generalsekretär/in | E11: Kuratorium | F11: Information | G11: Protokoll/Schriftf.
D12: Kuratorium | E12: Beirat | F12: Anordnung | G12: Mitglied
D13: Stiftungsrat | E13: Sonstiges:
D14: Beirat
D15: Sonstiges:
B16: ANLAGEZIELE
B18: Vermögenserhaltungskonzept | C18: Verbrauchskonzept | D18: Ausgaben_Stiftungszweck | E18: Ja_Nein | F18: Ausschüttungspolitik | G18: Zielausschüttung | H18: Projektionszeitraum
B19: Bitte auswählen | C19: Kapitaleinsatz p.a. | D19: Bitte auswählen | E19: Bitte ausw. | F19: Bitte auswählen | G19: Bitte ausw. | H19: Bitte ausw.
B20: Real | C20: Stiftung auf Zeit | D20: Überschuss | E20: Ja | F20: Überschuss | G20: quotenmäßig | H20: =Einstellungen!D7 -> 2019
B21: Nominal | D21: Zielausschüttung als Betrag | E21: Nein | F21: Zielausschüttung | G21: summenmäßig | H21: =H20+1 -> 2020
B22: Substanz | D22: Zielausschüttung als Quote | H22: =H21+1 -> 2021
B23: Verbrauch | H23: 2022
H24: 2023
B25: Maß_Geldentwertung | C25: Bezugsvermögen
B26: Verbraucherpreise (VPI) | C26: Bitte ausw.
B27: Sonstiges | C27: Gesamtvermögen
C28: Wertpapiervermögen

Sheet Daten Cockpit (hidden)
A1: Daten Cockpit
B3: Projektion
B5: Basis | C5: ='Zahlen Basis'!J27+100% -> 93.67%
B6: Worst Case | C6: ='Zahlen Worst Case'!J27+100% -> 81.55%
B8: Nachhaltigkeitsziel
B9: Bitte auswählen
B10: Ausschluss
B11: Best in Class
B12: Engagement
B14: Vermögenserhaltung | C14: =Anlageziele!E5 -> Real | F14: Tacho Vermögenserhaltung
C15: ='Zahlen Basis'!F4 -> 2019 | D15: ='Zahlen Basis'!J4 -> 2023 | F15: Ausgangswert | G15: ='Daten VE'!H47 -> 0.3% | H15: =D20/100 -> -66.5% | L15: Wert | M15: Ausschlag | N15: Zoomfaktor
B16: Zielwert: | C16: ='Daten VE'!I45 -> 7,727,447 | D16: ='Daten VE'!M45 -> 8,364,437 | J16: Segmente | L16: 0% | M16: 50% | N16: 1.5
B17: Zielzuwachs zu Vorj.: | C17: =IF(C16-'Daten VE'!H45>0,C16-'Daten VE'!H45,1) -> 151,519 | D17: =IF(D16-'Daten VE'!L45>0,D16-'Daten VE'!L45,1) -> 164,009 | F17: Anzeige | G17: Zeiger SQ | H17: Zeiger Proj. | J17: Einteilung | K17: Farbe | L17: -30% | M17: 0%
B18: Zuwachs Projektion | C18: ='Zahlen Basis'!F6-'Zahlen Basis'!E6 -> 51,750 | D18: ='Zahlen Basis'!J6-'Zahlen Basis'!I6 -> 54,950 | F18: Ausschlag links | G18: =IF(G15>30%,100%,IF(G15<-30%,0%,50%+G15*$N$16)) -> 50.5% | H18: =IF(H15>30%,100%,IF(H15<-30%,0%,50%+H15*$N$16)) -> 0.0% | J18: =(100-J19)/2 -> 45.0 | K18: rot | L18: 30% | M18: 100%
B19: Zielabweichung | C19: =C18-C17 -> -99,769 | D19: =D18-D17 -> -109,059 | F19: Zeiger | G19: 0.0% | H19: 0.0% | J19: =(Einstellungen!$D$11+Einstellungen!$D$11*$N$16)*2 -> 10.0 | K19: grün
B20: Zielabweichung % | C20: =C19/C17*100 -> -65.8 | D20: =D19/D17*100 -> -66.5 | F20: Ausschlag rechts | G20: =1-G18 -> 49.5% | H20: =1-H18 -> 100.0% | J20: =(100-J19)/2 -> 45.0 | K20: gelb
F21: Bodensegment | G21: 50.0% | H21: 50.0% | J21: 50.0 | K21: unsichtbar
B22: Investitionsgrad
C23: EUR | D23: Prozent
B24: Investiert: | C24: =Vermentw.!K14-Vermentw.!K11 -> 6,600,000 | D24: =C24/C26*100 -> 86.8 | E24: %
B25: Kontoguthaben | C25: =Vermentw.!K11 -> 1,000,000 | D25: =C25/C26*100 -> 13.2 | E25: %
B26: Summe | C26: =SUM(C24:C25) -> 7,600,000 | D26: =SUM(D24:D25) -> 100.0 | E26: %
B28: Erträge | F28: Tacho Erträge
C29: ='Daten Projektion'!I102 -> 2019 | D29: ='Daten Projektion'!M102 -> 2023 | F29: Ausgangswert | G29: =C33/100 -> -9.8% | H29: =D33/100 -> -8.3%
B30: Ertragsziel: | C30: ='Daten Projektion'!I103 -> 64,822 | D30: ='Daten Projektion'!M103 -> 67,148 | J30: Segmente
B31: Projektion: | C31: ='Daten Projektion'!I104 -> 58,500 | D31: ='Daten Projektion'!M104 -> 61,595 | F31: Anzeige | G31: Zeiger SQ | H31: Zeiger Proj. | J31: Einteilung | K31: Farbe
B32: Abweichung EUR: | C32: =C31-C30 -> -6,322 | D32: =D31-D30 -> -5,553 | F32: Ausschlag links | G32: =IF(G29>30%,100%,IF(G29<-30%,0%,50%+G29*$N$16)) -> 35.4% | H32: =IF(H29>30%,100%,IF(H29<-30%,0%,50%+H29*$N$16)) -> 37.6% | J32: =(100-J33)/2 -> 45.0 | K32: rot
B33: Zielabweichung % | C33: =C32/C30*100 -> -9.8 | D33: =D32/D30*100 -> -8.3 | F33: Zeiger | G33: 0.0% | H33: 0.0% | J33: =(Einstellungen!$D$11+Einstellungen!$D$11*$N$16)*2 -> 10.0 | K33: grün
F34: Ausschlag rechts | G34: =1-G32 -> 64.6% | H34: =1-H32 -> 62.4% | J34: =(100-J33)/2 -> 45.0 | K34: gelb
F35: Bodensegment | G35: 50.0% | H35: 50.0% | J35: 50.0 | K35: unsichtbar
B37: Risiko | F37: Tacho Risiko
C38: InvestVerm. | D38: Grundstock | F38: Ausgangswert | G38: =C42/100 -> -90.4% | H38: =D42/100 -> 0.0%
B39: Risikoziel | C39: =Vermentw.!K14*Anlageziele!E21*-1 -> -380,000 | D39: ='Daten VE'!D51*Anlageziele!E19*-1 -> 0 | J39: Segmente
B40: Projektion | C40: =MIN(M42:Q42,1) -> -723,450 | D40: =IF(Vermentw.!K14-'Daten VE'!D51>C40,0,'Daten VE'!D51+(Vermentw.!K14-'Daten VE'!D51)-'Daten Cockpit '!C40) -> 0 | F40: Anzeige | G40: Investverm. | H40: Grundstock | J40: Einteilung | K40: Farbe | M40: Maximalverlust Projektion Worst Case
B41: Abweichung EUR | C41: =(C40-C39) -> -343,450 | D41: =(D40-D39) -> 0 | F41: Ausschlag links | G41: =IF(G38>30%,100%,IF(G38<-30%,0%,50%+G38*$N$16)) -> 0.0% | H41: =IF(H38>30%,100%,IF(H38<-30%,0%,50%+H38*$N$16)) -> 50.0% | J41: =(100-J42)/2 -> 45.0 | K41: rot | M41: ='Daten Projektion'!I142 -> 2019 | N41: ='Daten Projektion'!J142 -> 2020 | O41: ='Daten Projektion'!K142 -> 2021 | P41: ='Daten Projektion'!L142 -> 2022 | Q41: ='Daten Projektion'!M142 -> 2023
B42: Zielabweichung % | C42: =IF(C39=0,C41/1*-100,C41/C39*-100) -> -90.4 | D42: =IF(D39=0,D41/1*-100,D41/D39*-100) -> 0.0 | F42: Zeiger | G42: 0.0% | H42: 0.0% | J42: =(Einstellungen!$D$11+Einstellungen!$D$11*$N$16)*2 -> 10.0 | K42: grün | M42: ='Daten Projektion'!I140-'Daten Projektion'!H140 -> 51,750 | N42: ='Daten Projektion'!J140-'Daten Projektion'!I140 -> -723,450 | O42: ='Daten Projektion'!K140-'Daten Projektion'!J140 -> 43,883 | P42: ='Daten Projektion'!L140-'Daten Projektion'!K140 -> 44,479 | Q42: ='Daten Projektion'!M140-'Daten Projektion'!L140 -> 45,089
F43: Ausschlag rechts | G43: =1-G41 -> 100.0% | H43: =1-H41 -> 50.0% | J43: =(100-J42)/2 -> 45.0 | K43: gelb
F44: Bodensegment | G44: 50.0% | H44: 50.0% | J44: 50.0 | K44: unsichtbar
B46: Nachhaltigkeit | F46: Tacho Nachhaltigkeit
B47: =Anlageziele!L19 -> 2021 | C47: Allgemein | D47: Impact Inv. | E47: =Anlageziele!L22 -> Best in Class | F47: Ausgangswert | G47: =C51/100 -> 16.1% | H47: =D51/100 -> -100.0%
B48: Nachhaltigkeitsziel | C48: =SUMIF('Daten Projektion'!$I$164:$M$164,Anlageziele!$L$19,'Daten Projektion'!I175:M175) -> 5,818,187 | D48: =SUMIF('Daten Projektion'!$I$164:$M$164,Anlageziele!$L$19,'Daten Projektion'!I174:M174) -> 775,758 | E48: =SUMIF('Daten Projektion'!$I$164:$M$164,Anlageziele!$L$19,'Daten Projektion'!$I$173:$M$173) -> 775,758 | J48: Segmente
B49: Projektion | C49: =SUMIF('Daten Projektion'!$I$164:$M$164,Anlageziele!$L$19,'Daten Projektion'!I170:M170) -> 6,757,582 | D49: =SUMIF('Daten Projektion'!$I$164:$M$164,Anlageziele!$L$19,'Daten Projektion'!I169:M169) -> 0 | E49: =SUMIF('Daten Projektion'!$I$164:$M$164,Anlageziele!$L$19,'Daten Projektion'!I172:M172) -> 5,278,391 | F49: Anzeige | G49: Zeiger ESG | H49: Zeiger Imp. | J49: Einteilung | K49: Farbe
B50: Abweichung EUR | C50: =C49-C48 -> 939,396 | D50: =D49-D48 -> -775,758 | E50: 4,502,632 | F50: Ausschlag links | G50: =IF(G47>30%,100%,IF(G47<-30%,0%,50%+G47*$N$16)) -> 74.2% | H50: =IF(H47>30%,100%,IF(H47<-30%,0%,50%+H47*$N$16)) -> 0.0% | J50: =(100-J51)/2 -> 45.0 | K50: rot
B51: Zielabweichung % | C51: =C50/C48*100 -> 16.1 | D51: =D50/D48*100 -> -100.0 | E51: 580.4 | F51: Zeiger | G51: 0.0% | H51: 0.0% | J51: =(Einstellungen!$D$11+Einstellungen!$D$11*$N$16)*2 -> 10.0 | K51: grün
F52: Ausschlag rechts | G52: =1-G50 -> 25.8% | H52: =1-H50 -> 100.0% | J52: =(100-J51)/2 -> 45.0 | K52: gelb
B53: Cockpit-Grafik Nachhaltigkeit | D53: =Anlageziele!L19 -> 2021 | F53: Bodensegment | G53: 50.0% | H53: 50.0% | J53: 50.0 | K53: unsichtbar
C55: Ziel | D55: Projektion
B56: "Blind eye" | C56: =C62-D62 -> -1,939,396 | D56: =(D62-SUM(D57:D61))*-1 -> -1,000,000
B57: ='Daten Projektion'!G166 -> Zweckkonform | C57: =C62-SUM(C59:C61) -> 4,266,670 | D57: =SUMIF('Daten Projektion'!$I$164:$M$164,Anlageziele!L$19,'Daten Projektion'!I166:M166) -> 515,151
B58: Ausschluss | C58: =IF(B58=Anlageziele!$L$22,SUMIF('Daten Projektion'!$I$164:$M$164,Anlageziele!$L$19,'Daten Projektion'!$I$173:$M$173),0) -> 0 | D58: =SUMIF('Daten Projektion'!$I$164:$M$164,Anlageziele!L$19,'Daten Projektion'!I165:M165) -> 253,769
B59: ='Daten Projektion'!G167 -> Best in Class | C59: =IF(B59=Anlageziele!$L$22,SUMIF('Daten Projektion'!$I$164:$M$164,Anlageziele!$L$19,'Daten Projektion'!$I$173:$M$173),0) -> 775,758 | D59: =SUMIF('Daten Projektion'!$I$164:$M$164,Anlageziele!L$19,'Daten Projektion'!I167:M167) -> 5,278,391
B60: ='Daten Projektion'!G168 -> Engagement | C60: =IF(B60=Anlageziele!$L$22,SUMIF('Daten Projektion'!$I$164:$M$164,Anlageziele!$L$19,'Daten Projektion'!$I$173:$M$173),0) -> 0 | D60: =SUMIF('Daten Projektion'!$I$164:$M$164,Anlageziele!L$19,'Daten Projektion'!I168:M168) -> 710,273
B61: ='Daten Projektion'!G169 -> Impact Investing | C61: =SUMIF('Daten Projektion'!$I$164:$M$164,Anlageziele!$L$19,'Daten Projektion'!I174:M174) -> 775,758 | D61: =SUMIF('Daten Projektion'!$I$164:$M$164,Anlageziele!L$19,'Daten Projektion'!I169:M169) -> 0
B62: Summe | C62: =SUMIF('Daten Projektion'!$I$164:$M$164,Anlageziele!$L$19,'Daten Projektion'!$I$175:$M$175) -> 5,818,187 | D62: =SUMIF('Daten Projektion'!$I$164:$M$164,Anlageziele!L$19,'Daten Projektion'!I18:M18) -> 7,757,582

Sheet Vermentw.
B4: Nr. | C4: Vermögensgegenstand (Bezeichnung) | D4: Wert EUR | E4: Anlageklasse | F4: Instrument | G4: UV | H4: Nachhaltigkeit
B5: 1 | C5: Vermögensverwaltung A-Bank Aktien | D5: 650,000 | E5: Aktien | F5: VV-Mandat | H5: Engagement | J5: Vermögen nach Anlageklassen:
B6: =B5+1 -> 2 | C6: Vermögensverwaltung A-Bank Renten | D6: 5,200,000 | E6: Renten | F6: VV-Mandat | H6: Best in Class | J6: Immobilien | K6: =SUMIF($E$5:$E$16,"immobilien",$D$5:$D$16) -> 500,000 | L6: =IF(Einstellungen!$D$9="TEUR","TEUR","EUR") -> EUR | M6: =K6/$K$14 -> 6.6%
B7: =B6+1 -> 3 | C7: Stiftungsfonds Xy | D7: 250,000 | E7: Renten | F7: Fonds | H7: Ausschluss | J7: Beteiligungen | K7: =SUMIF($E$5:$E$16,"Beteiligungen",$D$5:$D$16) -> 0 | L7: =IF(Einstellungen!$D$9="TEUR","TEUR","EUR") -> EUR | M7: 0.0%
B8: 4 | C8: Immobilie | D8: 500,000 | E8: Immobilien | F8: Direktanlage | H8: Zweckkonform | J8: Aktien | K8: =SUMIF($E$5:$E$16,"Aktien",$D$5:$D$16) -> 650,000 | L8: =IF(Einstellungen!$D$9="TEUR","TEUR","EUR") -> EUR | M8: 8.6%
B9: 5 | C9: Bankguthaben B-Bank | D9: 1,000,000 | E9: Kontoguthaben | F9: Direktanlage | H9: Keine | J9: Renten | K9: =SUMIF($E$5:$E$16,"Renten",$D$5:$D$16) -> 5,450,000 | L9: =IF(Einstellungen!$D$9="TEUR","TEUR","EUR") -> EUR | M9: 71.7%
B10: 6 | E10: Bitte auswählen | F10: Bitte auswählen | H10: Bitte ausw. | J10: Spar- u. Termineinlagen | K10: =SUMIF($E$5:$E$16,"Spar- u. Termineinlagen",$D$5:$D$16) -> 0 | L10: =IF(Einstellungen!$D$9="TEUR","TEUR","EUR") -> EUR | M10: 0.0%
B11: 7 | E11: Bitte auswählen | F11: Bitte auswählen | H11: Bitte ausw. | J11: Kontoguthaben | K11: =SUMIF($E$5:$E$16,"Kontoguthaben",$D$5:$D$16) -> 1,000,000 | L11: EUR | M11: 13.2%
B12: 8 | E12: Bitte auswählen | F12: Bitte auswählen | H12: Bitte ausw. | J12: Sonstiges Vermögen | K12: =SUMIF($E$5:$E$16,"Sonstiges Vermögen",$D$5:$D$16) -> 0 | L12: =IF(Einstellungen!$D$9="TEUR","TEUR","EUR") -> EUR | M12: 0.0%
B13: 9 | E13: Bitte auswählen | F13: Bitte auswählen | H13: Bitte ausw. | J13: Verbindlichkeiten | K13: =SUMIF($E$5:$E$16,"Verbindlichkeiten",$D$5:$D$16)*-1 -> 0 | L13: =IF(Einstellungen!$D$9="TEUR","TEUR","EUR") -> EUR | M13: 0.0%
B14: 10 | E14: Bitte auswählen | F14: Bitte auswählen | H14: Bitte ausw. | J14: Gesamt | K14: =SUM(K6:K13) -> 7,600,000 | L14: =IF(Einstellungen!$D$9="TEUR","TEUR","EUR") -> EUR | M14: 100.0%
B15: 11 | E15: Bitte auswählen | F15: Bitte auswählen | H15: Bitte ausw.
B16: 12 | E16: Bitte auswählen | F16: Bitte auswählen | H16: Bitte ausw.
B17: --- Ende der Eingaben ---

Sheet Daten Vermögen (hidden)
A1: Datenblatt Investitionsvermögen
B4: Anlageklassen | C4: Anlageinstrument | D4: Nr. | E4: Umschichtungsverbot | F4: Nachhaltigkeit | H4: =Vermentw.!B4 -> Nr. | I4: =Vermentw.!C4 -> Vermögensgegenstand (Bezeichnung) | J4: =Vermentw.!D4 -> Wert EUR | K4: =Vermentw.!H4 -> Nachhaltigkeit
B5: Bitte auswählen | C5: Bitte auswählen | D5: =Vermentw.!B5 -> 1 | E5: FALSE | F5: Bitte ausw. | H5: =Vermentw.!B5 -> 1 | I5: =Vermentw.!C5 -> Vermögensverwaltung A-Bank Aktien | J5: =Vermentw.!D5 -> 650,000 | K5: =Vermentw.!H5 -> Engagement
B6: Immobilien | C6: Direktanlage | D6: =Vermentw.!B6 -> 2 | E6: FALSE | F6: Keine | H6: =Vermentw.!B6 -> 2 | I6: =Vermentw.!C6 -> Vermögensverwaltung A-Bank Renten | J6: =Vermentw.!D6 -> 5,200,000 | K6: =Vermentw.!H6 -> Best in Class
B7: Beteiligungen | C7: VV-Mandat | D7: =Vermentw.!B7 -> 3 | E7: FALSE | F7: Zweckkonform | H7: =Vermentw.!B7 -> 3 | I7: =Vermentw.!C7 -> Stiftungsfonds Xy | J7: =Vermentw.!D7 -> 250,000 | K7: =Vermentw.!H7 -> Ausschluss
B8: Aktien | C8: Fonds | D8: =Vermentw.!B8 -> 4 | E8: TRUE | F8: Ausschluss | H8: =Vermentw.!B8 -> 4 | I8: =Vermentw.!C8 -> Immobilie | J8: =Vermentw.!D8 -> 500,000 | K8: =Vermentw.!H8 -> Zweckkonform
B9: Renten | D9: =Vermentw.!B9 -> 5 | E9: FALSE | F9: Best in Class | H9: =Vermentw.!B9 -> 5 | I9: =Vermentw.!C9 -> Bankguthaben B-Bank | J9: =Vermentw.!D9 -> 1,000,000 | K9: =Vermentw.!H9 -> Keine
B10: Spar- u. Termineinlagen | D10: =Vermentw.!B10 -> 6 | E10: FALSE | F10: Engagement | H10: =Vermentw.!B10 -> 6 | I10: =Vermentw.!C10 -> 0 | J10: =Vermentw.!D10 -> 0 | K10: =Vermentw.!H10 -> Bitte ausw.
B11: Kontoguthaben | D11: =Vermentw.!B11 -> 7 | E11: FALSE | F11: Impact Investing | H11: =Vermentw.!B11 -> 7 | I11: =Vermentw.!C11 -> 0 | J11: =Vermentw.!D11 -> 0 | K11: =Vermentw.!H11 -> Bitte ausw.
B12: Sonstiges Vermögen | D12: =Vermentw.!B12 -> 8 | E12: FALSE | H12: =Vermentw.!B12 -> 8 | I12: =Vermentw.!C12 -> 0 | J12: =Vermentw.!D12 -> 0 | K12: =Vermentw.!H12 -> Bitte ausw.
B13: Verbindlichkeiten | D13: =Vermentw.!B13 -> 9 | E13: FALSE | H13: =Vermentw.!B13 -> 9 | I13: =Vermentw.!C13 -> 0 | J13: =Vermentw.!D13 -> 0 | K13: =Vermentw.!H13 -> Bitte ausw.
D14: =Vermentw.!B14 -> 10 | E14: FALSE | H14: =Vermentw.!B14 -> 10 | I14: =Vermentw.!C14 -> 0 | J14: =Vermentw.!D14 -> 0 | K14: =Vermentw.!H14 -> Bitte ausw.
D15: =Vermentw.!B15 -> 11 | E15: FALSE | H15: =Vermentw.!B15 -> 11 | I15: =Vermentw.!C15 -> 0 | J15: =Vermentw.!D15 -> 0 | K15: =Vermentw.!H15 -> Bitte ausw.
D16: =Vermentw.!B16 -> 12 | E16: FALSE | H16: =Vermentw.!B16 -> 12 | I16: =Vermentw.!C16 -> 0 | J16: =Vermentw.!D16 -> 0 | K16: =Vermentw.!H16 -> Bitte ausw.
I17: Summe | J17: =SUM(J5:J16) -> 7,600,000
I19: Summen nach Nachhaltigkeitskriterien
I20: Keine | J20: =K20/$K$26 -> 13.2% | K20: =SUMIF($K$5:$K$16,I20,$J$5:$J$16) -> 1,000,000
I21: Zweckkonform | J21: =K21/$K$26 -> 6.6% | K21: 500,000
I22: Ausschluss | J22: 3.3% | K22: 250,000
I23: Best in Class | J23: 68.4% | K23: 5,200,000
I24: Engagement | J24: 8.6% | K24: 650,000
I25: Impact Investing | J25: 0.0% | K25: 0
I26: Summe | J26: 100.0% | K26: =SUM(K20:K25) -> 7,600,000

Sheet Vermerh.
B5: Betrag | C5: Währung | D5: Gründungsjahr
B6: 5,500,000 | C6: EUR | D6: =Einstellungen!D6 -> 2001
B7: Vermögenserhaltung: | C7: =Anlageziele!E5 -> Real | D7: DM
B10: Betrag | C10: Währung | D10: Jahr
B11: 500,000 | C11: EUR | D11: 2009
B12: 0 | C12: EUR | D12: 2003
B13: 0 | C13: EUR | D13: 2005
B14: 0 | C14: EUR | D14: 2007
B15: 0 | C15: EUR | D15: 2008
B19: Betrag | C19: Währung | D19: Jahr
B20: 0 | C20: EUR | D20: 2002
B21: 0 | C21: EUR | D21: 2004
B22: 0 | C22: EUR | D22: 2006
B23: 0 | C23: EUR | D23: 2002
B24: 0 | C24: EUR | D24: 2002
B28: Betrag | C28: Wärung | D28: Jahr
B29: 0 | C29: EUR | D29: 2009
B30: 0 | C30: EUR | D30: 2010
B31: 0 | C31: EUR | D31: 2011
B32: 0 | C32: EUR | D32: 2000
B33: 0 | C33: EUR | D33: 2000
B35: --- Ende der Eingaben ---

Sheet Daten VE (hidden)
A1: Daten Vermögenserhaltung
D3: Inflationsraten in Deutschland von 1992 bis 2018
D4: (Veränderung des Verbraucherpreisindex gegenüber Vorjahr)
B5: Währung | C5: Jahre für Auswahlfeld | D5: Jahr | E5: VPI | F5: Ausstattung | G5: Zustiftung | H5: Zuschreibung | I5: Abschreibung | J5: Nominalwert | K5: Realwert | L5: Verbrauch | M5: Grundstock nom.: | N5: =SUM(N6:N32) -> 6,000,000 | Q5: VPI lfd. Jahr
B6: EUR | C6: Bitte auswählen | D6: 1992 | E6: 5.1% | F6: =IF($D6=Vermerh.!$D$6,$N$6,0) -> 0 | G6: =IF(D6=Vermerh.!$D$11,$N$11,0)+IF(D6=Vermerh.!$D$12,$N$12,0)+IF(D6=Vermerh.!$D$13,$N$13,0)+IF(D6=Vermerh.!$D$14,$N$14,0)+IF(D6=Vermerh.!$D$15,$N$15,0) -> 0 | H6: =IF(D6=Vermerh.!$D$20,$N$19,0)+IF(D6=Vermerh.!$D$21,$N$20,0)+IF(D6=Vermerh.!$D$22,$N$21,0)+IF(D6=Vermerh.!$D$23,$N$22,0)+IF(D6=Vermerh.!$D$24,$N$23,0) -> 0 | I6: =IF(D6=Vermerh.!$D$29,$N$28,0)+IF(D6=Vermerh.!$D$30,$N$29,0)+IF(D6=Vermerh.!$D$31,$N$30,0)+IF(D6=Vermerh.!$D$32,$N$31,0)+IF(D6=Vermerh.!$D$33,$N$32,0) -> 0 | J6: =SUM(F6:I6) -> 0 | K6: =SUM(F6:I6) -> 0 | L6: =IF(D6=Einstellungen!$D$6,'Daten VE'!K6,IF(D6>Einstellungen!$D$6,'Daten VE'!L5+L5*E6-IF(Anlageziele!$E$12='Daten Einstellg_Ziele'!$C$19,Anlageziele!$E$13,Vermerh.!$B$6/Anlageziele!$E$13),0)) -> 0 | M6: Ausstattung: | N6: =IF(Vermerh.!C6="EUR",Vermerh.!B6,Vermerh.!B6/1.95583) -> 5,500,000 | Q6: Jan | R6: 1.6
B7: DM | C7: =Einstellungen!D6 -> 2001 | D7: 1993 | E7: 4.5% | F7: =IF($D7=Vermerh.!$D$6,$N$6,0) -> 0 | G7: =IF(D7=Vermerh.!$D$11,$N$11,0)+IF(D7=Vermerh.!$D$12,$N$12,0)+IF(D7=Vermerh.!$D$13,$N$13,0)+IF(D7=Vermerh.!$D$14,$N$14,0)+IF(D7=Vermerh.!$D$15,$N$15,0) -> 0 | H7: =IF(D7=Vermerh.!$D$20,$N$19,0)+IF(D7=Vermerh.!$D$21,$N$20,0)+IF(D7=Vermerh.!$D$22,$N$21,0)+IF(D7=Vermerh.!$D$23,$N$22,0)+IF(D7=Vermerh.!$D$24,$N$23,0) -> 0 | I7: =IF(D7=Vermerh.!$D$29,$N$28,0)+IF(D7=Vermerh.!$D$30,$N$29,0)+IF(D7=Vermerh.!$D$31,$N$30,0)+IF(D7=Vermerh.!$D$32,$N$31,0)+IF(D7=Vermerh.!$D$33,$N$32,0) -> 0 | J7: =J6+SUM(F7:I7) -> 0 | K7: =K6+K6*E7+SUM(F7:I7) -> 0 | L7: =IF(D7=Einstellungen!$D$6,'Daten VE'!K7,IF(D7>Einstellungen!$D$6,'Daten VE'!L6+L6*E7-IF(Anlageziele!$E$12='Daten Einstellg_Ziele'!$C$19,Anlageziele!$E$13,Vermerh.!$B$6/Anlageziele!$E$13),0)) -> 0 | Q7: Feb | R7: 1.4
C8: =IF(C7="","",IF(C7=Einstellungen!$D$7-1,"",'Daten VE'!C7+1)) -> 2002 | D8: 1994 | E8: 2.6% | F8: =IF($D8=Vermerh.!$D$6,$N$6,0) -> 0 | G8: =IF(D8=Vermerh.!$D$11,$N$11,0)+IF(D8=Vermerh.!$D$12,$N$12,0)+IF(D8=Vermerh.!$D$13,$N$13,0)+IF(D8=Vermerh.!$D$14,$N$14,0)+IF(D8=Vermerh.!$D$15,$N$15,0) -> 0 | H8: =IF(D8=Vermerh.!$D$20,$N$19,0)+IF(D8=Vermerh.!$D$21,$N$20,0)+IF(D8=Vermerh.!$D$22,$N$21,0)+IF(D8=Vermerh.!$D$23,$N$22,0)+IF(D8=Vermerh.!$D$24,$N$23,0) -> 0 | I8: =IF(D8=Vermerh.!$D$29,$N$28,0)+IF(D8=Vermerh.!$D$30,$N$29,0)+IF(D8=Vermerh.!$D$31,$N$30,0)+IF(D8=Vermerh.!$D$32,$N$31,0)+IF(D8=Vermerh.!$D$33,$N$32,0) -> 0 | J8: =J7+SUM(F8:I8) -> 0 | K8: =K7+K7*E8+SUM(F8:I8) -> 0 | L8: =IF(D8=Einstellungen!$D$6,'Daten VE'!K8,IF(D8>Einstellungen!$D$6,'Daten VE'!L7+L7*E8-IF(Anlageziele!$E$12='Daten Einstellg_Ziele'!$C$19,Anlageziele!$E$13,Vermerh.!$B$6/Anlageziele!$E$13),0)) -> 0 | Q8: Mär | R8: 1.6
C9: =IF(C8="","",IF(C8=Einstellungen!$D$7-1,"",'Daten VE'!C8+1)) -> 2003 | D9: 1995 | E9: 1.8% | F9: =IF($D9=Vermerh.!$D$6,$N$6,0) -> 0 | G9: =IF(D9=Vermerh.!$D$11,$N$11,0)+IF(D9=Vermerh.!$D$12,$N$12,0)+IF(D9=Vermerh.!$D$13,$N$13,0)+IF(D9=Vermerh.!$D$14,$N$14,0)+IF(D9=Vermerh.!$D$15,$N$15,0) -> 0 | H9: =IF(D9=Vermerh.!$D$20,$N$19,0)+IF(D9=Vermerh.!$D$21,$N$20,0)+IF(D9=Vermerh.!$D$22,$N$21,0)+IF(D9=Vermerh.!$D$23,$N$22,0)+IF(D9=Vermerh.!$D$24,$N$23,0) -> 0 | I9: =IF(D9=Vermerh.!$D$29,$N$28,0)+IF(D9=Vermerh.!$D$30,$N$29,0)+IF(D9=Vermerh.!$D$31,$N$30,0)+IF(D9=Vermerh.!$D$32,$N$31,0)+IF(D9=Vermerh.!$D$33,$N$32,0) -> 0 | J9: 0 | K9: 0 | L9: =IF(D9=Einstellungen!$D$6,'Daten VE'!K9,IF(D9>Einstellungen!$D$6,'Daten VE'!L8+L8*E9-IF(Anlageziele!$E$12='Daten Einstellg_Ziele'!$C$19,Anlageziele!$E$13,Vermerh.!$B$6/Anlageziele!$E$13),0)) -> 0 | Q9: Apr | R9: 1.6
C10: =IF(C9="","",IF(C9=Einstellungen!$D$7-1,"",'Daten VE'!C9+1)) -> 2004 | D10: 1996 | E10: 1.4% | F10: =IF($D10=Vermerh.!$D$6,$N$6,0) -> 0 | G10: =IF(D10=Vermerh.!$D$11,$N$11,0)+IF(D10=Vermerh.!$D$12,$N$12,0)+IF(D10=Vermerh.!$D$13,$N$13,0)+IF(D10=Vermerh.!$D$14,$N$14,0)+IF(D10=Vermerh.!$D$15,$N$15,0) -> 0 | H10: =IF(D10=Vermerh.!$D$20,$N$19,0)+IF(D10=Vermerh.!$D$21,$N$20,0)+IF(D10=Vermerh.!$D$22,$N$21,0)+IF(D10=Vermerh.!$D$23,$N$22,0)+IF(D10=Vermerh.!$D$24,$N$23,0) -> 0 | I10: =IF(D10=Vermerh.!$D$29,$N$28,0)+IF(D10=Vermerh.!$D$30,$N$29,0)+IF(D10=Vermerh.!$D$31,$N$30,0)+IF(D10=Vermerh.!$D$32,$N$31,0)+IF(D10=Vermerh.!$D$33,$N$32,0) -> 0 | J10: 0 | K10: 0 | L10: =IF(D10=Einstellungen!$D$6,'Daten VE'!K10,IF(D10>Einstellungen!$D$6,'Daten VE'!L9+L9*E10-IF(Anlageziele!$E$12='Daten Einstellg_Ziele'!$C$19,Anlageziele!$E$13,Vermerh.!$B$6/Anlageziele!$E$13),0)) -> 0 | Q10: Mai | R10: 2.2
C11: =IF(C10="","",IF(C10=Einstellungen!$D$7-1,"",'Daten VE'!C10+1)) -> 2005 | D11: 1997 | E11: 2.0% | F11: =IF($D11=Vermerh.!$D$6,$N$6,0) -> 0 | G11: =IF(D11=Vermerh.!$D$11,$N$11,0)+IF(D11=Vermerh.!$D$12,$N$12,0)+IF(D11=Vermerh.!$D$13,$N$13,0)+IF(D11=Vermerh.!$D$14,$N$14,0)+IF(D11=Vermerh.!$D$15,$N$15,0) -> 0 | H11: =IF(D11=Vermerh.!$D$20,$N$19,0)+IF(D11=Vermerh.!$D$21,$N$20,0)+IF(D11=Vermerh.!$D$22,$N$21,0)+IF(D11=Vermerh.!$D$23,$N$22,0)+IF(D11=Vermerh.!$D$24,$N$23,0) -> 0 | I11: =IF(D11=Vermerh.!$D$29,$N$28,0)+IF(D11=Vermerh.!$D$30,$N$29,0)+IF(D11=Vermerh.!$D$31,$N$30,0)+IF(D11=Vermerh.!$D$32,$N$31,0)+IF(D11=Vermerh.!$D$33,$N$32,0) -> 0 | J11: 0 | K11: 0 | L11: =IF(D11=Einstellungen!$D$6,'Daten VE'!K11,IF(D11>Einstellungen!$D$6,'Daten VE'!L10+L10*E11-IF(Anlageziele!$E$12='Daten Einstellg_Ziele'!$C$19,Anlageziele!$E$13,Vermerh.!$B$6/Anlageziele!$E$13),0)) -> 0 | M11: Zustiftungen: | N11: =IF(Tabelle1[[#This Row],[Währung]]="EUR",Tabelle1[[#This Row],[Betrag]],Tabelle1[[#This Row],[Betrag]]/1.95583) -> 500,000 | Q11: Jun | R11: 2.1
C12: =IF(C11="","",IF(C11=Einstellungen!$D$7-1,"",'Daten VE'!C11+1)) -> 2006 | D12: 1998 | E12: 1.0% | F12: =IF($D12=Vermerh.!$D$6,$N$6,0) -> 0 | G12: =IF(D12=Vermerh.!$D$11,$N$11,0)+IF(D12=Vermerh.!$D$12,$N$12,0)+IF(D12=Vermerh.!$D$13,$N$13,0)+IF(D12=Vermerh.!$D$14,$N$14,0)+IF(D12=Vermerh.!$D$15,$N$15,0) -> 0 | H12: =IF(D12=Vermerh.!$D$20,$N$19,0)+IF(D12=Vermerh.!$D$21,$N$20,0)+IF(D12=Vermerh.!$D$22,$N$21,0)+IF(D12=Vermerh.!$D$23,$N$22,0)+IF(D12=Vermerh.!$D$24,$N$23,0) -> 0 | I12: =IF(D12=Vermerh.!$D$29,$N$28,0)+IF(D12=Vermerh.!$D$30,$N$29,0)+IF(D12=Vermerh.!$D$31,$N$30,0)+IF(D12=Vermerh.!$D$32,$N$31,0)+IF(D12=Vermerh.!$D$33,$N$32,0) -> 0 | J12: 0 | K12: 0 | L12: =IF(D12=Einstellungen!$D$6,'Daten VE'!K12,IF(D12>Einstellungen!$D$6,'Daten VE'!L11+L11*E12-IF(Anlageziele!$E$12='Daten Einstellg_Ziele'!$C$19,Anlageziele!$E$13,Vermerh.!$B$6/Anlageziele!$E$13),0)) -> 0 | N12: =IF(Tabelle1[[#This Row],[Währung]]="EUR",Tabelle1[[#This Row],[Betrag]],Tabelle1[[#This Row],[Betrag]]/1.95583) -> 0 | Q12: Jul | R12: 2.0
C13: =IF(C12="","",IF(C12=Einstellungen!$D$7-1,"",'Daten VE'!C12+1)) -> 2007 | D13: 1999 | E13: 0.6% | F13: =IF($D13=Vermerh.!$D$6,$N$6,0) -> 0 | G13: =IF(D13=Vermerh.!$D$11,$N$11,0)+IF(D13=Vermerh.!$D$12,$N$12,0)+IF(D13=Vermerh.!$D$13,$N$13,0)+IF(D13=Vermerh.!$D$14,$N$14,0)+IF(D13=Vermerh.!$D$15,$N$15,0) -> 0 | H13: =IF(D13=Vermerh.!$D$20,$N$19,0)+IF(D13=Vermerh.!$D$21,$N$20,0)+IF(D13=Vermerh.!$D$22,$N$21,0)+IF(D13=Vermerh.!$D$23,$N$22,0)+IF(D13=Vermerh.!$D$24,$N$23,0) -> 0 | I13: =IF(D13=Vermerh.!$D$29,$N$28,0)+IF(D13=Vermerh.!$D$30,$N$29,0)+IF(D13=Vermerh.!$D$31,$N$30,0)+IF(D13=Vermerh.!$D$32,$N$31,0)+IF(D13=Vermerh.!$D$33,$N$32,0) -> 0 | J13: 0 | K13: 0 | L13: =IF(D13=Einstellungen!$D$6,'Daten VE'!K13,IF(D13>Einstellungen!$D$6,'Daten VE'!L12+L12*E13-IF(Anlageziele!$E$12='Daten Einstellg_Ziele'!$C$19,Anlageziele!$E$13,Vermerh.!$B$6/Anlageziele!$E$13),0)) -> 0 | N13: =IF(Tabelle1[[#This Row],[Währung]]="EUR",Tabelle1[[#This Row],[Betrag]],Tabelle1[[#This Row],[Betrag]]/1.95583) -> 0 | Q13: Aug | R13: 2.0
C14: =IF(C13="","",IF(C13=Einstellungen!$D$7-1,"",'Daten VE'!C13+1)) -> 2008 | D14: 2000 | E14: 1.4% | F14: =IF($D14=Vermerh.!$D$6,$N$6,0) -> 0 | G14: =IF(D14=Vermerh.!$D$11,$N$11,0)+IF(D14=Vermerh.!$D$12,$N$12,0)+IF(D14=Vermerh.!$D$13,$N$13,0)+IF(D14=Vermerh.!$D$14,$N$14,0)+IF(D14=Vermerh.!$D$15,$N$15,0) -> 0 | H14: =IF(D14=Vermerh.!$D$20,$N$19,0)+IF(D14=Vermerh.!$D$21,$N$20,0)+IF(D14=Vermerh.!$D$22,$N$21,0)+IF(D14=Vermerh.!$D$23,$N$22,0)+IF(D14=Vermerh.!$D$24,$N$23,0) -> 0 | I14: =IF(D14=Vermerh.!$D$29,$N$28,0)+IF(D14=Vermerh.!$D$30,$N$29,0)+IF(D14=Vermerh.!$D$31,$N$30,0)+IF(D14=Vermerh.!$D$32,$N$31,0)+IF(D14=Vermerh.!$D$33,$N$32,0) -> 0 | J14: 0 | K14: 0 | L14: =IF(D14=Einstellungen!$D$6,'Daten VE'!K14,IF(D14>Einstellungen!$D$6,'Daten VE'!L13+L13*E14-IF(Anlageziele!$E$12='Daten Einstellg_Ziele'!$C$19,Anlageziele!$E$13,Vermerh.!$B$6/Anlageziele!$E$13),0)) -> 0 | N14: =IF(Tabelle1[[#This Row],[Währung]]="EUR",Tabelle1[[#This Row],[Betrag]],Tabelle1[[#This Row],[Betrag]]/1.95583) -> 0 | Q14: Sep | R14: 2.3
C15: =IF(C14="","",IF(C14=Einstellungen!$D$7-1,"",'Daten VE'!C14+1)) -> 2009 | D15: 2001 | E15: 2.0% | F15: =IF($D15=Vermerh.!$D$6,$N$6,0) -> 5,500,000 | G15: =IF(D15=Vermerh.!$D$11,$N$11,0)+IF(D15=Vermerh.!$D$12,$N$12,0)+IF(D15=Vermerh.!$D$13,$N$13,0)+IF(D15=Vermerh.!$D$14,$N$14,0)+IF(D15=Vermerh.!$D$15,$N$15,0) -> 0 | H15: =IF(D15=Vermerh.!$D$20,$N$19,0)+IF(D15=Vermerh.!$D$21,$N$20,0)+IF(D15=Vermerh.!$D$22,$N$21,0)+IF(D15=Vermerh.!$D$23,$N$22,0)+IF(D15=Vermerh.!$D$24,$N$23,0) -> 0 | I15: =IF(D15=Vermerh.!$D$29,$N$28,0)+IF(D15=Vermerh.!$D$30,$N$29,0)+IF(D15=Vermerh.!$D$31,$N$30,0)+IF(D15=Vermerh.!$D$32,$N$31,0)+IF(D15=Vermerh.!$D$33,$N$32,0) -> 0 | J15: 5,500,000 | K15: 5,500,000 | L15: =IF(D15=Einstellungen!$D$6,'Daten VE'!K15,IF(D15>Einstellungen!$D$6,'Daten VE'!L14+L14*E15-IF(Anlageziele!$E$12='Daten Einstellg_Ziele'!$C$19,Anlageziele!$E$13,Vermerh.!$B$6/Anlageziele!$E$13),0)) -> 5,500,000 | N15: =IF(Tabelle1[[#This Row],[Währung]]="EUR",Tabelle1[[#This Row],[Betrag]],Tabelle1[[#This Row],[Betrag]]/1.95583) -> 0 | Q15: Okt | R15: 2.5
C16: =IF(C15="","",IF(C15=Einstellungen!$D$7-1,"",'Daten VE'!C15+1)) -> 2010 | D16: 2002 | E16: 1.4% | F16: =IF($D16=Vermerh.!$D$6,$N$6,0) -> 0 | G16: =IF(D16=Vermerh.!$D$11,$N$11,0)+IF(D16=Vermerh.!$D$12,$N$12,0)+IF(D16=Vermerh.!$D$13,$N$13,0)+IF(D16=Vermerh.!$D$14,$N$14,0)+IF(D16=Vermerh.!$D$15,$N$15,0) -> 0 | H16: =IF(D16=Vermerh.!$D$20,$N$19,0)+IF(D16=Vermerh.!$D$21,$N$20,0)+IF(D16=Vermerh.!$D$22,$N$21,0)+IF(D16=Vermerh.!$D$23,$N$22,0)+IF(D16=Vermerh.!$D$24,$N$23,0) -> 0 | I16: =IF(D16=Vermerh.!$D$29,$N$28,0)+IF(D16=Vermerh.!$D$30,$N$29,0)+IF(D16=Vermerh.!$D$31,$N$30,0)+IF(D16=Vermerh.!$D$32,$N$31,0)+IF(D16=Vermerh.!$D$33,$N$32,0) -> 0 | J16: 5,500,000 | K16: 5,577,000 | L16: =IF(D16=Einstellungen!$D$6,'Daten VE'!K16,IF(D16>Einstellungen!$D$6,'Daten VE'!L15+L15*E16-IF(Anlageziele!$E$12='Daten Einstellg_Ziele'!$C$19,Anlageziele!$E$13,Vermerh.!$B$6/Anlageziele!$E$13),0)) -> 5,302,000 | Q16: Nov | R16: 2.3
C17: =IF(C16="","",IF(C16=Einstellungen!$D$7-1,"",'Daten VE'!C16+1)) -> 2011 | D17: 2003 | E17: 1.1% | F17: =IF($D17=Vermerh.!$D$6,$N$6,0) -> 0 | G17: =IF(D17=Vermerh.!$D$11,$N$11,0)+IF(D17=Vermerh.!$D$12,$N$12,0)+IF(D17=Vermerh.!$D$13,$N$13,0)+IF(D17=Vermerh.!$D$14,$N$14,0)+IF(D17=Vermerh.!$D$15,$N$15,0) -> 0 | H17: =IF(D17=Vermerh.!$D$20,$N$19,0)+IF(D17=Vermerh.!$D$21,$N$20,0)+IF(D17=Vermerh.!$D$22,$N$21,0)+IF(D17=Vermerh.!$D$23,$N$22,0)+IF(D17=Vermerh.!$D$24,$N$23,0) -> 0 | I17: =IF(D17=Vermerh.!$D$29,$N$28,0)+IF(D17=Vermerh.!$D$30,$N$29,0)+IF(D17=Vermerh.!$D$31,$N$30,0)+IF(D17=Vermerh.!$D$32,$N$31,0)+IF(D17=Vermerh.!$D$33,$N$32,0) -> 0 | J17: 5,500,000 | K17: 5,638,347 | L17: =IF(D17=Einstellungen!$D$6,'Daten VE'!K17,IF(D17>Einstellungen!$D$6,'Daten VE'!L16+L16*E17-IF(Anlageziele!$E$12='Daten Einstellg_Ziele'!$C$19,Anlageziele!$E$13,Vermerh.!$B$6/Anlageziele!$E$13),0)) -> 5,085,322 | Q17: Dez | R17: 1.7
C18: =IF(C17="","",IF(C17=Einstellungen!$D$7-1,"",'Daten VE'!C17+1)) -> 2012 | D18: 2004 | E18: 1.6% | F18: =IF($D18=Vermerh.!$D$6,$N$6,0) -> 0 | G18: =IF(D18=Vermerh.!$D$11,$N$11,0)+IF(D18=Vermerh.!$D$12,$N$12,0)+IF(D18=Vermerh.!$D$13,$N$13,0)+IF(D18=Vermerh.!$D$14,$N$14,0)+IF(D18=Vermerh.!$D$15,$N$15,0) -> 0 | H18: =IF(D18=Vermerh.!$D$20,$N$19,0)+IF(D18=Vermerh.!$D$21,$N$20,0)+IF(D18=Vermerh.!$D$22,$N$21,0)+IF(D18=Vermerh.!$D$23,$N$22,0)+IF(D18=Vermerh.!$D$24,$N$23,0) -> 0 | I18: =IF(D18=Vermerh.!$D$29,$N$28,0)+IF(D18=Vermerh.!$D$30,$N$29,0)+IF(D18=Vermerh.!$D$31,$N$30,0)+IF(D18=Vermerh.!$D$32,$N$31,0)+IF(D18=Vermerh.!$D$33,$N$32,0) -> 0 | J18: 5,500,000 | K18: 5,728,561 | L18: =IF(D18=Einstellungen!$D$6,'Daten VE'!K18,IF(D18>Einstellungen!$D$6,'Daten VE'!L17+L17*E18-IF(Anlageziele!$E$12='Daten Einstellg_Ziele'!$C$19,Anlageziele!$E$13,Vermerh.!$B$6/Anlageziele!$E$13),0)) -> 4,891,687 | Q18: Schnitt | R18: =SUM(R6:R17)/COUNTIF(R6:R17,"<>0") -> 1.9
C19: =IF(C18="","",IF(C18=Einstellungen!$D$7-1,"",'Daten VE'!C18+1)) -> 2013 | D19: 2005 | E19: 1.6% | F19: =IF($D19=Vermerh.!$D$6,$N$6,0) -> 0 | G19: =IF(D19=Vermerh.!$D$11,$N$11,0)+IF(D19=Vermerh.!$D$12,$N$12,0)+IF(D19=Vermerh.!$D$13,$N$13,0)+IF(D19=Vermerh.!$D$14,$N$14,0)+IF(D19=Vermerh.!$D$15,$N$15,0) -> 0 | H19: =IF(D19=Vermerh.!$D$20,$N$19,0)+IF(D19=Vermerh.!$D$21,$N$20,0)+IF(D19=Vermerh.!$D$22,$N$21,0)+IF(D19=Vermerh.!$D$23,$N$22,0)+IF(D19=Vermerh.!$D$24,$N$23,0) -> 0 | I19: =IF(D19=Vermerh.!$D$29,$N$28,0)+IF(D19=Vermerh.!$D$30,$N$29,0)+IF(D19=Vermerh.!$D$31,$N$30,0)+IF(D19=Vermerh.!$D$32,$N$31,0)+IF(D19=Vermerh.!$D$33,$N$32,0) -> 0 | J19: 5,500,000 | K19: 5,820,218 | L19: =IF(D19=Einstellungen!$D$6,'Daten VE'!K19,IF(D19>Einstellungen!$D$6,'Daten VE'!L18+L18*E19-IF(Anlageziele!$E$12='Daten Einstellg_Ziele'!$C$19,Anlageziele!$E$13,Vermerh.!$B$6/Anlageziele!$E$13),0)) -> 4,694,954 | M19: Zuschreibungen: | N19: =IF(Vermerh.!C20="EUR",Vermerh.!B20,Vermerh.!B20/1.95583) -> 0
C20: =IF(C19="","",IF(C19=Einstellungen!$D$7-1,"",'Daten VE'!C19+1)) -> 2014 | D20: 2006 | E20: 1.5% | F20: =IF($D20=Vermerh.!$D$6,$N$6,0) -> 0 | G20: =IF(D20=Vermerh.!$D$11,$N$11,0)+IF(D20=Vermerh.!$D$12,$N$12,0)+IF(D20=Vermerh.!$D$13,$N$13,0)+IF(D20=Vermerh.!$D$14,$N$14,0)+IF(D20=Vermerh.!$D$15,$N$15,0) -> 0 | H20: =IF(D20=Vermerh.!$D$20,$N$19,0)+IF(D20=Vermerh.!$D$21,$N$20,0)+IF(D20=Vermerh.!$D$22,$N$21,0)+IF(D20=Vermerh.!$D$23,$N$22,0)+IF(D20=Vermerh.!$D$24,$N$23,0) -> 0 | I20: =IF(D20=Vermerh.!$D$29,$N$28,0)+IF(D20=Vermerh.!$D$30,$N$29,0)+IF(D20=Vermerh.!$D$31,$N$30,0)+IF(D20=Vermerh.!$D$32,$N$31,0)+IF(D20=Vermerh.!$D$33,$N$32,0) -> 0 | J20: 5,500,000 | K20: 5,907,521 | L20: =IF(D20=Einstellungen!$D$6,'Daten VE'!K20,IF(D20>Einstellungen!$D$6,'Daten VE'!L19+L19*E20-IF(Anlageziele!$E$12='Daten Einstellg_Ziele'!$C$19,Anlageziele!$E$13,Vermerh.!$B$6/Anlageziele!$E$13),0)) -> 4,490,378 | N20: =IF(Vermerh.!C21="EUR",Vermerh.!B21,Vermerh.!B21/1.95583) -> 0
C21: =IF(C20="","",IF(C20=Einstellungen!$D$7-1,"",'Daten VE'!C20+1)) -> 2015 | D21: 2007 | E21: 2.3% | F21: =IF($D21=Vermerh.!$D$6,$N$6,0) -> 0 | G21: =IF(D21=Vermerh.!$D$11,$N$11,0)+IF(D21=Vermerh.!$D$12,$N$12,0)+IF(D21=Vermerh.!$D$13,$N$13,0)+IF(D21=Vermerh.!$D$14,$N$14,0)+IF(D21=Vermerh.!$D$15,$N$15,0) -> 0 | H21: =IF(D21=Vermerh.!$D$20,$N$19,0)+IF(D21=Vermerh.!$D$21,$N$20,0)+IF(D21=Vermerh.!$D$22,$N$21,0)+IF(D21=Vermerh.!$D$23,$N$22,0)+IF(D21=Vermerh.!$D$24,$N$23,0) -> 0 | I21: =IF(D21=Vermerh.!$D$29,$N$28,0)+IF(D21=Vermerh.!$D$30,$N$29,0)+IF(D21=Vermerh.!$D$31,$N$30,0)+IF(D21=Vermerh.!$D$32,$N$31,0)+IF(D21=Vermerh.!$D$33,$N$32,0) -> 0 | J21: 5,500,000 | K21: 6,043,394 | L21: =IF(D21=Einstellungen!$D$6,'Daten VE'!K21,IF(D21>Einstellungen!$D$6,'Daten VE'!L20+L20*E21-IF(Anlageziele!$E$12='Daten Einstellg_Ziele'!$C$19,Anlageziele!$E$13,Vermerh.!$B$6/Anlageziele!$E$13),0)) -> 4,318,657 | N21: =IF(Vermerh.!C22="EUR",Vermerh.!B22,Vermerh.!B22/1.95583) -> 0
C22: =IF(C21="","",IF(C21=Einstellungen!$D$7-1,"",'Daten VE'!C21+1)) -> 2016 | D22: 2008 | E22: 2.6% | F22: =IF($D22=Vermerh.!$D$6,$N$6,0) -> 0 | G22: =IF(D22=Vermerh.!$D$11,$N$11,0)+IF(D22=Vermerh.!$D$12,$N$12,0)+IF(D22=Vermerh.!$D$13,$N$13,0)+IF(D22=Vermerh.!$D$14,$N$14,0)+IF(D22=Vermerh.!$D$15,$N$15,0) -> 0 | H22: =IF(D22=Vermerh.!$D$20,$N$19,0)+IF(D22=Vermerh.!$D$21,$N$20,0)+IF(D22=Vermerh.!$D$22,$N$21,0)+IF(D22=Vermerh.!$D$23,$N$22,0)+IF(D22=Vermerh.!$D$24,$N$23,0) -> 0 | I22: =IF(D22=Vermerh.!$D$29,$N$28,0)+IF(D22=Vermerh.!$D$30,$N$29,0)+IF(D22=Vermerh.!$D$31,$N$30,0)+IF(D22=Vermerh.!$D$32,$N$31,0)+IF(D22=Vermerh.!$D$33,$N$32,0) -> 0 | J22: 5,500,000 | K22: 6,200,522 | L22: =IF(D22=Einstellungen!$D$6,'Daten VE'!K22,IF(D22>Einstellungen!$D$6,'Daten VE'!L21+L21*E22-IF(Anlageziele!$E$12='Daten Einstellg_Ziele'!$C$19,Anlageziele!$E$13,Vermerh.!$B$6/Anlageziele!$E$13),0)) -> 4,155,942 | N22: =IF(Vermerh.!C23="EUR",Vermerh.!B23,Vermerh.!B23/1.95583) -> 0
C23: =IF(C22="","",IF(C22=Einstellungen!$D$7-1,"",'Daten VE'!C22+1)) -> 2017 | D23: 2009 | E23: 0.3% | F23: =IF($D23=Vermerh.!$D$6,$N$6,0) -> 0 | G23: =IF(D23=Vermerh.!$D$11,$N$11,0)+IF(D23=Vermerh.!$D$12,$N$12,0)+IF(D23=Vermerh.!$D$13,$N$13,0)+IF(D23=Vermerh.!$D$14,$N$14,0)+IF(D23=Vermerh.!$D$15,$N$15,0) -> 500,000 | H23: =IF(D23=Vermerh.!$D$20,$N$19,0)+IF(D23=Vermerh.!$D$21,$N$20,0)+IF(D23=Vermerh.!$D$22,$N$21,0)+IF(D23=Vermerh.!$D$23,$N$22,0)+IF(D23=Vermerh.!$D$24,$N$23,0) -> 0 | I23: =IF(D23=Vermerh.!$D$29,$N$28,0)+IF(D23=Vermerh.!$D$30,$N$29,0)+IF(D23=Vermerh.!$D$31,$N$30,0)+IF(D23=Vermerh.!$D$32,$N$31,0)+IF(D23=Vermerh.!$D$33,$N$32,0) -> 0 | J23: 6,000,000 | K23: 6,719,124 | L23: =IF(D23=Einstellungen!$D$6,'Daten VE'!K23,IF(D23>Einstellungen!$D$6,'Daten VE'!L22+L22*E23-IF(Anlageziele!$E$12='Daten Einstellg_Ziele'!$C$19,Anlageziele!$E$13,Vermerh.!$B$6/Anlageziele!$E$13),0)) -> 3,893,410 | N23: =IF(Vermerh.!C24="EUR",Vermerh.!B24,Vermerh.!B24/1.95583) -> 0
C24: =IF(C23="","",IF(C23=Einstellungen!$D$7-1,"",'Daten VE'!C23+1)) -> 2018 | D24: 2010 | E24: 1.1% | F24: =IF($D24=Vermerh.!$D$6,$N$6,0) -> 0 | G24: =IF(D24=Vermerh.!$D$11,$N$11,0)+IF(D24=Vermerh.!$D$12,$N$12,0)+IF(D24=Vermerh.!$D$13,$N$13,0)+IF(D24=Vermerh.!$D$14,$N$14,0)+IF(D24=Vermerh.!$D$15,$N$15,0) -> 0 | H24: =IF(D24=Vermerh.!$D$20,$N$19,0)+IF(D24=Vermerh.!$D$21,$N$20,0)+IF(D24=Vermerh.!$D$22,$N$21,0)+IF(D24=Vermerh.!$D$23,$N$22,0)+IF(D24=Vermerh.!$D$24,$N$23,0) -> 0 | I24: =IF(D24=Vermerh.!$D$29,$N$28,0)+IF(D24=Vermerh.!$D$30,$N$29,0)+IF(D24=Vermerh.!$D$31,$N$30,0)+IF(D24=Vermerh.!$D$32,$N$31,0)+IF(D24=Vermerh.!$D$33,$N$32,0) -> 0 | J24: 6,000,000 | K24: 6,793,034 | L24: =IF(D24=Einstellungen!$D$6,'Daten VE'!K24,IF(D24>Einstellungen!$D$6,'Daten VE'!L23+L23*E24-IF(Anlageziele!$E$12='Daten Einstellg_Ziele'!$C$19,Anlageziele!$E$13,Vermerh.!$B$6/Anlageziele!$E$13),0)) -> 3,661,238
C25: =IF(C24="","",IF(C24=Einstellungen!$D$7-1,"",'Daten VE'!C24+1)) ->  | D25: 2011 | E25: 2.1% | F25: =IF($D25=Vermerh.!$D$6,$N$6,0) -> 0 | G25: =IF(D25=Vermerh.!$D$11,$N$11,0)+IF(D25=Vermerh.!$D$12,$N$12,0)+IF(D25=Vermerh.!$D$13,$N$13,0)+IF(D25=Vermerh.!$D$14,$N$14,0)+IF(D25=Vermerh.!$D$15,$N$15,0) -> 0 | H25: =IF(D25=Vermerh.!$D$20,$N$19,0)+IF(D25=Vermerh.!$D$21,$N$20,0)+IF(D25=Vermerh.!$D$22,$N$21,0)+IF(D25=Vermerh.!$D$23,$N$22,0)+IF(D25=Vermerh.!$D$24,$N$23,0) -> 0 | I25: =IF(D25=Vermerh.!$D$29,$N$28,0)+IF(D25=Vermerh.!$D$30,$N$29,0)+IF(D25=Vermerh.!$D$31,$N$30,0)+IF(D25=Vermerh.!$D$32,$N$31,0)+IF(D25=Vermerh.!$D$33,$N$32,0) -> 0 | J25: 6,000,000 | K25: 6,935,688 | L25: =IF(D25=Einstellungen!$D$6,'Daten VE'!K25,IF(D25>Einstellungen!$D$6,'Daten VE'!L24+L24*E25-IF(Anlageziele!$E$12='Daten Einstellg_Ziele'!$C$19,Anlageziele!$E$13,Vermerh.!$B$6/Anlageziele!$E$13),0)) -> 3,463,124
C26: =IF(C25="","",IF(C25=Einstellungen!$D$7-1,"",'Daten VE'!C25+1)) ->  | D26: 2012 | E26: 2.0% | F26: =IF($D26=Vermerh.!$D$6,$N$6,0) -> 0 | G26: =IF(D26=Vermerh.!$D$11,$N$11,0)+IF(D26=Vermerh.!$D$12,$N$12,0)+IF(D26=Vermerh.!$D$13,$N$13,0)+IF(D26=Vermerh.!$D$14,$N$14,0)+IF(D26=Vermerh.!$D$15,$N$15,0) -> 0 | H26: =IF(D26=Vermerh.!$D$20,$N$19,0)+IF(D26=Vermerh.!$D$21,$N$20,0)+IF(D26=Vermerh.!$D$22,$N$21,0)+IF(D26=Vermerh.!$D$23,$N$22,0)+IF(D26=Vermerh.!$D$24,$N$23,0) -> 0 | I26: =IF(D26=Vermerh.!$D$29,$N$28,0)+IF(D26=Vermerh.!$D$30,$N$29,0)+IF(D26=Vermerh.!$D$31,$N$30,0)+IF(D26=Vermerh.!$D$32,$N$31,0)+IF(D26=Vermerh.!$D$33,$N$32,0) -> 0 | J26: 6,000,000 | K26: 7,074,401 | L26: =IF(D26=Einstellungen!$D$6,'Daten VE'!K26,IF(D26>Einstellungen!$D$6,'Daten VE'!L25+L25*E26-IF(Anlageziele!$E$12='Daten Einstellg_Ziele'!$C$19,Anlageziele!$E$13,Vermerh.!$B$6/Anlageziele!$E$13),0)) -> 3,257,386
C27: =IF(C26="","",IF(C26=Einstellungen!$D$7-1,"",'Daten VE'!C26+1)) ->  | D27: 2013 | E27: 1.5% | F27: =IF($D27=Vermerh.!$D$6,$N$6,0) -> 0 | G27: =IF(D27=Vermerh.!$D$11,$N$11,0)+IF(D27=Vermerh.!$D$12,$N$12,0)+IF(D27=Vermerh.!$D$13,$N$13,0)+IF(D27=Vermerh.!$D$14,$N$14,0)+IF(D27=Vermerh.!$D$15,$N$15,0) -> 0 | H27: =IF(D27=Vermerh.!$D$20,$N$19,0)+IF(D27=Vermerh.!$D$21,$N$20,0)+IF(D27=Vermerh.!$D$22,$N$21,0)+IF(D27=Vermerh.!$D$23,$N$22,0)+IF(D27=Vermerh.!$D$24,$N$23,0) -> 0 | I27: =IF(D27=Vermerh.!$D$29,$N$28,0)+IF(D27=Vermerh.!$D$30,$N$29,0)+IF(D27=Vermerh.!$D$31,$N$30,0)+IF(D27=Vermerh.!$D$32,$N$31,0)+IF(D27=Vermerh.!$D$33,$N$32,0) -> 0 | J27: 6,000,000 | K27: 7,180,517 | L27: =IF(D27=Einstellungen!$D$6,'Daten VE'!K27,IF(D27>Einstellungen!$D$6,'Daten VE'!L26+L26*E27-IF(Anlageziele!$E$12='Daten Einstellg_Ziele'!$C$19,Anlageziele!$E$13,Vermerh.!$B$6/Anlageziele!$E$13),0)) -> 3,031,247
C28: =IF(C27="","",IF(C27=Einstellungen!$D$7-1,"",'Daten VE'!C27+1)) ->  | D28: 2014 | E28: 0.9% | F28: =IF($D28=Vermerh.!$D$6,$N$6,0) -> 0 | G28: =IF(D28=Vermerh.!$D$11,$N$11,0)+IF(D28=Vermerh.!$D$12,$N$12,0)+IF(D28=Vermerh.!$D$13,$N$13,0)+IF(D28=Vermerh.!$D$14,$N$14,0)+IF(D28=Vermerh.!$D$15,$N$15,0) -> 0 | H28: =IF(D28=Vermerh.!$D$20,$N$19,0)+IF(D28=Vermerh.!$D$21,$N$20,0)+IF(D28=Vermerh.!$D$22,$N$21,0)+IF(D28=Vermerh.!$D$23,$N$22,0)+IF(D28=Vermerh.!$D$24,$N$23,0) -> 0 | I28: =IF(D28=Vermerh.!$D$29,$N$28,0)+IF(D28=Vermerh.!$D$30,$N$29,0)+IF(D28=Vermerh.!$D$31,$N$30,0)+IF(D28=Vermerh.!$D$32,$N$31,0)+IF(D28=Vermerh.!$D$33,$N$32,0) -> 0 | J28: 6,000,000 | K28: 7,245,142 | L28: =IF(D28=Einstellungen!$D$6,'Daten VE'!K28,IF(D28>Einstellungen!$D$6,'Daten VE'!L27+L27*E28-IF(Anlageziele!$E$12='Daten Einstellg_Ziele'!$C$19,Anlageziele!$E$13,Vermerh.!$B$6/Anlageziele!$E$13),0)) -> 2,783,528 | M28: Abschreibungen: | N28: =IF(Vermerh.!C29="EUR",Vermerh.!B29,Vermerh.!B29/1.95583)*-1 -> 0
C29: =IF(C28="","",IF(C28=Einstellungen!$D$7-1,"",'Daten VE'!C28+1)) ->  | D29: 2015 | E29: 0.3% | F29: =IF($D29=Vermerh.!$D$6,$N$6,0) -> 0 | G29: =IF(D29=Vermerh.!$D$11,$N$11,0)+IF(D29=Vermerh.!$D$12,$N$12,0)+IF(D29=Vermerh.!$D$13,$N$13,0)+IF(D29=Vermerh.!$D$14,$N$14,0)+IF(D29=Vermerh.!$D$15,$N$15,0) -> 0 | H29: =IF(D29=Vermerh.!$D$20,$N$19,0)+IF(D29=Vermerh.!$D$21,$N$20,0)+IF(D29=Vermerh.!$D$22,$N$21,0)+IF(D29=Vermerh.!$D$23,$N$22,0)+IF(D29=Vermerh.!$D$24,$N$23,0) -> 0 | I29: =IF(D29=Vermerh.!$D$29,$N$28,0)+IF(D29=Vermerh.!$D$30,$N$29,0)+IF(D29=Vermerh.!$D$31,$N$30,0)+IF(D29=Vermerh.!$D$32,$N$31,0)+IF(D29=Vermerh.!$D$33,$N$32,0) -> 0 | J29: 6,000,000 | K29: 7,266,877 | L29: =IF(D29=Einstellungen!$D$6,'Daten VE'!K29,IF(D29>Einstellungen!$D$6,'Daten VE'!L28+L28*E29-IF(Anlageziele!$E$12='Daten Einstellg_Ziele'!$C$19,Anlageziele!$E$13,Vermerh.!$B$6/Anlageziele!$E$13),0)) -> 2,516,879 | N29: =IF(Vermerh.!C30="EUR",Vermerh.!B30,Vermerh.!B30/1.95583)*-1 -> 0
C30: =IF(C29="","",IF(C29=Einstellungen!$D$7-1,"",'Daten VE'!C29+1)) ->  | D30: 2016 | E30: 0.5% | F30: =IF($D30=Vermerh.!$D$6,$N$6,0) -> 0 | G30: =IF(D30=Vermerh.!$D$11,$N$11,0)+IF(D30=Vermerh.!$D$12,$N$12,0)+IF(D30=Vermerh.!$D$13,$N$13,0)+IF(D30=Vermerh.!$D$14,$N$14,0)+IF(D30=Vermerh.!$D$15,$N$15,0) -> 0 | H30: =IF(D30=Vermerh.!$D$20,$N$19,0)+IF(D30=Vermerh.!$D$21,$N$20,0)+IF(D30=Vermerh.!$D$22,$N$21,0)+IF(D30=Vermerh.!$D$23,$N$22,0)+IF(D30=Vermerh.!$D$24,$N$23,0) -> 0 | I30: =IF(D30=Vermerh.!$D$29,$N$28,0)+IF(D30=Vermerh.!$D$30,$N$29,0)+IF(D30=Vermerh.!$D$31,$N$30,0)+IF(D30=Vermerh.!$D$32,$N$31,0)+IF(D30=Vermerh.!$D$33,$N$32,0) -> 0 | J30: 6,000,000 | K30: 7,303,212 | L30: =IF(D30=Einstellungen!$D$6,'Daten VE'!K30,IF(D30>Einstellungen!$D$6,'Daten VE'!L29+L29*E30-IF(Anlageziele!$E$12='Daten Einstellg_Ziele'!$C$19,Anlageziele!$E$13,Vermerh.!$B$6/Anlageziele!$E$13),0)) -> 2,254,463 | N30: =IF(Vermerh.!C31="EUR",Vermerh.!B31,Vermerh.!B31/1.95583)*-1 -> 0
C31: =IF(C30="","",IF(C30=Einstellungen!$D$7-1,"",'Daten VE'!C30+1)) ->  | D31: 2017 | E31: 1.8% | F31: =IF($D31=Vermerh.!$D$6,$N$6,0) -> 0 | G31: =IF(D31=Vermerh.!$D$11,$N$11,0)+IF(D31=Vermerh.!$D$12,$N$12,0)+IF(D31=Vermerh.!$D$13,$N$13,0)+IF(D31=Vermerh.!$D$14,$N$14,0)+IF(D31=Vermerh.!$D$15,$N$15,0) -> 0 | H31: =IF(D31=Vermerh.!$D$20,$N$19,0)+IF(D31=Vermerh.!$D$21,$N$20,0)+IF(D31=Vermerh.!$D$22,$N$21,0)+IF(D31=Vermerh.!$D$23,$N$22,0)+IF(D31=Vermerh.!$D$24,$N$23,0) -> 0 | I31: =IF(D31=Vermerh.!$D$29,$N$28,0)+IF(D31=Vermerh.!$D$30,$N$29,0)+IF(D31=Vermerh.!$D$31,$N$30,0)+IF(D31=Vermerh.!$D$32,$N$31,0)+IF(D31=Vermerh.!$D$33,$N$32,0) -> 0 | J31: 6,000,000 | K31: 7,434,670 | L31: =IF(D31=Einstellungen!$D$6,'Daten VE'!K31,IF(D31>Einstellungen!$D$6,'Daten VE'!L30+L30*E31-IF(Anlageziele!$E$12='Daten Einstellg_Ziele'!$C$19,Anlageziele!$E$13,Vermerh.!$B$6/Anlageziele!$E$13),0)) -> 2,020,043 | N31: =IF(Vermerh.!C32="EUR",Vermerh.!B32,Vermerh.!B32/1.95583)*-1 -> 0
C32: =IF(C31="","",IF(C31=Einstellungen!$D$7-1,"",'Daten VE'!C31+1)) ->  | D32: 2018 | E32: 1.9% | F32: =IF($D32=Vermerh.!$D$6,$N$6,0) -> 0 | G32: =IF(D32=Vermerh.!$D$11,$N$11,0)+IF(D32=Vermerh.!$D$12,$N$12,0)+IF(D32=Vermerh.!$D$13,$N$13,0)+IF(D32=Vermerh.!$D$14,$N$14,0)+IF(D32=Vermerh.!$D$15,$N$15,0) -> 0 | H32: =IF(D32=Vermerh.!$D$20,$N$19,0)+IF(D32=Vermerh.!$D$21,$N$20,0)+IF(D32=Vermerh.!$D$22,$N$21,0)+IF(D32=Vermerh.!$D$23,$N$22,0)+IF(D32=Vermerh.!$D$24,$N$23,0) -> 0 | I32: =IF(D32=Vermerh.!$D$29,$N$28,0)+IF(D32=Vermerh.!$D$30,$N$29,0)+IF(D32=Vermerh.!$D$31,$N$30,0)+IF(D32=Vermerh.!$D$32,$N$31,0)+IF(D32=Vermerh.!$D$33,$N$32,0) -> 0 | J32: =J31+SUM(F32:I32) -> 6,000,000 | K32: =K31+K31*E32+SUM(F32:I32) -> 7,575,928 | L32: =IF(D32=Einstellungen!$D$6,'Daten VE'!K32,IF(D32>Einstellungen!$D$6,'Daten VE'!L31+L31*E32-IF(Anlageziele!$E$12='Daten Einstellg_Ziele'!$C$19,Anlageziele!$E$13,Vermerh.!$B$6/Anlageziele!$E$13),0)) -> 1,783,424 | N32: =IF(Vermerh.!C33="EUR",Vermerh.!B33,Vermerh.!B33/1.95583)*-1 -> 0
C33: =IF(C32="","",IF(C32=Einstellungen!$D$7-1,"",'Daten VE'!C32+1)) -> 
C34: =IF(C33="","",IF(C33=Einstellungen!$D$7-1,"",'Daten VE'!C33+1)) -> 
C37: Soll | D37: =E37-1 -> 2014 | E37: 2015 | F37: 2016 | G37: 2017 | H37: =I37-1 -> 2018 | I37: =Einstellungen!D7 -> 2019 | J37: =I37+1 -> 2020 | K37: =J37+1 -> 2021 | L37: 2022 | M37: 2023
C38: Real | D38: =SUMIF($D$6:$D$34,D37,$K$6:$K$34) -> 7,245,142 | E38: =SUMIF($D$6:$D$34,E37,$K$6:$K$31) -> 7,266,877 | F38: =SUMIF($D$6:$D$34,F37,$K$6:$K$31) -> 7,303,212 | G38: =SUMIF($D$6:$D$34,G37,$K$6:$K$31) -> 7,434,670 | H38: =SUMIF($D$6:$D$34,H37,$K$6:$K$31) -> 7,575,928 | I38: =D54+D54*Einstellungen!K24 -> 7,727,447 | J38: =I38+I38*Einstellungen!K25 -> 7,881,996 | K38: =J38+J38*Einstellungen!K26 -> 8,039,636 | L38: =K38+K38*Einstellungen!K27 -> 8,200,429 | M38: =L38+L38*Einstellungen!K28 -> 8,364,437
C39: Nominal | D39: =SUMIF($D$6:$D$34,D37,$J$6:$J$34) -> 6,000,000 | E39: =SUMIF($D$6:$D$34,E37,$J$6:$J$34) -> 6,000,000 | F39: =SUMIF($D$6:$D$34,F37,$J$6:$J$34) -> 6,000,000 | G39: =SUMIF($D$6:$D$34,G37,$J$6:$J$34) -> 6,000,000 | H39: =SUMIF($D$6:$D$34,H37,$J$6:$J$34) -> 6,000,000 | I39: =H39+'Einn._Ausg.'!C8 -> 6,000,000 | J39: =I39+'Einn._Ausg.'!D8 -> 6,000,000 | K39: =J39+'Einn._Ausg.'!E8 -> 6,000,000 | L39: =K39+'Einn._Ausg.'!F8 -> 6,000,000 | M39: =L39+'Einn._Ausg.'!G8 -> 6,000,000
C40: Verbrauch | D40: =SUMIF($D$6:$D$34,D37,$L$6:$L$34) -> 2,783,528 | E40: =SUMIF($D$6:$D$34,E37,$L$6:$L$34) -> 2,516,879 | F40: =SUMIF($D$6:$D$34,F37,$L$6:$L$34) -> 2,254,463 | G40: =SUMIF($D$6:$D$34,G37,$L$6:$L$34) -> 2,020,043 | H40: =SUMIF($D$6:$D$34,H37,$L$6:$L$34) -> 1,783,424 | I40: =D55-IF(Anlageziele!$E$12='Daten Einstellg_Ziele'!$C$19,Anlageziele!$E$13,Vermerh.!$B$6/Anlageziele!$E$13) -> 1,508,424 | J40: =I40-IF(Anlageziele!$E$12='Daten Einstellg_Ziele'!$C$19,Anlageziele!$E$13,Vermerh.!$B$6/Anlageziele!$E$13) -> 1,233,424 | K40: =J40-IF(Anlageziele!$E$12='Daten Einstellg_Ziele'!$C$19,Anlageziele!$E$13,Vermerh.!$B$6/Anlageziele!$E$13) -> 958,424 | L40: =K40-IF(Anlageziele!$E$12='Daten Einstellg_Ziele'!$C$19,Anlageziele!$E$13,Vermerh.!$B$6/Anlageziele!$E$13) -> 683,424 | M40: =L40-IF(Anlageziele!$E$12='Daten Einstellg_Ziele'!$C$19,Anlageziele!$E$13,Vermerh.!$B$6/Anlageziele!$E$13) -> 408,424
C41: Substanz | D41: =E41 -> 7,600,000 | E41: 7,600,000 | F41: 7,600,000 | G41: =H41 -> 7,600,000 | H41: ='Zahlen Basis'!E6 -> 7,600,000 | I41: ='Zahlen Basis'!F6 -> 7,651,750 | J41: ='Zahlen Basis'!G6 -> 7,704,271 | K41: ='Zahlen Basis'!H6 -> 7,757,582 | L41: ='Zahlen Basis'!I6 -> 7,811,703 | M41: ='Zahlen Basis'!J6 -> 7,866,653
C43: Grafik Vermögenserhaltung
D44: =D37 -> 2014 | E44: =E37 -> 2015 | F44: 2016 | G44: 2017 | H44: 2018 | I44: 2019 | J44: 2020 | K44: 2021 | L44: 2022 | M44: =M37 -> 2023
C45: Vermögenserhaltungsziel | D45: =IF(Anlageziele!$E$5="Substanz",'Daten VE'!D41,IF(Anlageziele!$E$5="Nominal",D39,IF(Anlageziele!$E$5="Verbrauch",D40,D38))) -> 7,245,142 | E45: =IF(Anlageziele!$E$5="Substanz",'Daten VE'!E41,IF(Anlageziele!$E$5="Nominal",E39,IF(Anlageziele!$E$5="Verbrauch",E40,E38))) -> 7,266,877 | F45: =IF(Anlageziele!$E$5="Substanz",'Daten VE'!F41,IF(Anlageziele!$E$5="Nominal",F39,IF(Anlageziele!$E$5="Verbrauch",F40,F38))) -> 7,303,212 | G45: =IF(Anlageziele!$E$5="Substanz",'Daten VE'!G41,IF(Anlageziele!$E$5="Nominal",G39,IF(Anlageziele!$E$5="Verbrauch",G40,G38))) -> 7,434,670 | H45: =IF(Anlageziele!$E$5="Substanz",'Daten VE'!H41,IF(Anlageziele!$E$5="Nominal",H39,IF(Anlageziele!$E$5="Verbrauch",H40,H38))) -> 7,575,928 | I45: =IF(Anlageziele!$E$5="Substanz",'Daten VE'!I41,IF(Anlageziele!$E$5="Nominal",I39,IF(Anlageziele!$E$5="Verbrauch",I40,I38))) -> 7,727,447 | J45: =IF(Anlageziele!$E$5="Substanz",'Daten VE'!J41,IF(Anlageziele!$E$5="Nominal",J39,IF(Anlageziele!$E$5="Verbrauch",J40,J38))) -> 7,881,996 | K45: =IF(Anlageziele!$E$5="Substanz",'Daten VE'!K41,IF(Anlageziele!$E$5="Nominal",K39,IF(Anlageziele!$E$5="Verbrauch",K40,K38))) -> 8,039,636 | L45: =IF(Anlageziele!$E$5="Substanz",'Daten VE'!L41,IF(Anlageziele!$E$5="Nominal",L39,IF(Anlageziele!$E$5="Verbrauch",L40,L38))) -> 8,200,429 | M45: =IF(Anlageziele!$E$5="Substanz",'Daten VE'!M41,IF(Anlageziele!$E$5="Nominal",M39,IF(Anlageziele!$E$5="Verbrauch",M40,M38))) -> 8,364,437
C46: Projektion | H46: ='Zahlen Basis'!E6 -> 7,600,000 | I46: ='Zahlen Basis'!F6 -> 7,651,750 | J46: ='Zahlen Basis'!G6 -> 7,704,271 | K46: ='Zahlen Basis'!H6 -> 7,757,582 | L46: ='Zahlen Basis'!I6 -> 7,811,703 | M46: ='Zahlen Basis'!J6 -> 7,866,653
C47: Zielerreichung | H47: =(H46-H45)/H45 -> 0.3%
C49: Ausgangswert Vermögenserhaltung
D50: Grundstock | E50: Investitionsvermögen
C51: Grundstock nominal | D51: =N5 -> 6,000,000
C52: Inflationsausgleich | D52: =IF(Anlageziele!E5="Real",D54-D51,0) -> 1,575,928
C53: Investitionsvermögen | E53: =Vermentw.!K14 -> 7,600,000
C54: Grundstock real (Soll) | D54: =SUMIF($D$6:$D$34,Einstellungen!$D$7-1,'Daten VE'!$K$6:$K$34) -> 7,575,928
C55: Grundstock Verbrauch | D55: =SUMIF($D$6:$D$34,Einstellungen!$D$7-1,'Daten VE'!$L$6:$L$34) -> 1,783,424
C56: Grundstock Substanz | D56: =Vermentw.!K14 -> 7,600,000

Sheet Einn._Ausg.
B4: Einnahmen (ohne Vermögenserträge):
B6: EUR | C6: =Einstellungen!D7 -> 2019 | D6: =C6+1 -> 2020 | E6: =D6+1 -> 2021 | F6: 2022 | G6: 2023
B7: Spenden | C7: 5,000 | D7: =C7 -> 5,000 | E7: =D7 -> 5,000 | F7: 5,000 | G7: 5,000
B8: Zustiftungen | C8: 0 | D8: =C8 -> 0 | E8: 0 | F8: 0 | G8: 0
B9: Zuwendungen in Rücklagen | C9: 0 | D9: =C9 -> 0 | E9: 0 | F9: 0 | G9: 0
B10: Sonstige Einnahmen | C10: 0 | D10: 0 | E10: 0 | F10: 0 | G10: 0
B11: Summe | C11: =SUM(C7:C10) -> 5,000 | D11: =SUM(D7:D10) -> 5,000 | E11: 5,000 | F11: 5,000 | G11: 5,000
B14: Allgemeine Verwaltungskosten (ohne Projektkosten zur Zweckverwirklichung)
B16: EUR | C16: =C6 -> 2019 | D16: 2020 | E16: 2021 | F16: 2022 | G16: 2023
B17: Personalkosten | C17: 8,000 | D17: =IF(Einstellungen!$K$32='Daten Einstellg_Ziele'!$E$21,'Einn._Ausg.'!C17,'Einn._Ausg.'!C17+'Einn._Ausg.'!C17*Einstellungen!$K$25) -> 8,160 | E17: =IF(Einstellungen!$K$32='Daten Einstellg_Ziele'!$E$21,'Einn._Ausg.'!D17,'Einn._Ausg.'!D17+'Einn._Ausg.'!D17*Einstellungen!$K$26) -> 8,323 | F17: =IF(Einstellungen!$K$32='Daten Einstellg_Ziele'!$E$21,'Einn._Ausg.'!E17,'Einn._Ausg.'!E17+'Einn._Ausg.'!E17*Einstellungen!$K$27) -> 8,490 | G17: =IF(Einstellungen!$K$32='Daten Einstellg_Ziele'!$E$21,'Einn._Ausg.'!F17,'Einn._Ausg.'!F17+'Einn._Ausg.'!F17*Einstellungen!$K$28) -> 8,659
B18: Raummieten | C18: 6,000 | D18: =IF(Einstellungen!$K$32='Daten Einstellg_Ziele'!$E$21,'Einn._Ausg.'!C18,'Einn._Ausg.'!C18+'Einn._Ausg.'!C18*Einstellungen!$K$25) -> 6,120 | E18: =IF(Einstellungen!$K$32='Daten Einstellg_Ziele'!$E$21,'Einn._Ausg.'!D18,'Einn._Ausg.'!D18+'Einn._Ausg.'!D18*Einstellungen!$K$26) -> 6,242 | F18: =IF(Einstellungen!$K$32='Daten Einstellg_Ziele'!$E$21,'Einn._Ausg.'!E18,'Einn._Ausg.'!E18+'Einn._Ausg.'!E18*Einstellungen!$K$27) -> 6,367 | G18: =IF(Einstellungen!$K$32='Daten Einstellg_Ziele'!$E$21,'Einn._Ausg.'!F18,'Einn._Ausg.'!F18+'Einn._Ausg.'!F18*Einstellungen!$K$28) -> 6,495
B19: Sachkosten | C19: 1,000 | D19: =IF(Einstellungen!$K$32='Daten Einstellg_Ziele'!$E$21,'Einn._Ausg.'!C19,'Einn._Ausg.'!C19+'Einn._Ausg.'!C19*Einstellungen!$K$25) -> 1,020 | E19: =IF(Einstellungen!$K$32='Daten Einstellg_Ziele'!$E$21,'Einn._Ausg.'!D19,'Einn._Ausg.'!D19+'Einn._Ausg.'!D19*Einstellungen!$K$26) -> 1,040 | F19: =IF(Einstellungen!$K$32='Daten Einstellg_Ziele'!$E$21,'Einn._Ausg.'!E19,'Einn._Ausg.'!E19+'Einn._Ausg.'!E19*Einstellungen!$K$27) -> 1,061 | G19: =IF(Einstellungen!$K$32='Daten Einstellg_Ziele'!$E$21,'Einn._Ausg.'!F19,'Einn._Ausg.'!F19+'Einn._Ausg.'!F19*Einstellungen!$K$28) -> 1,082
B20: Reisekosten | C20: 2,000 | D20: =IF(Einstellungen!$K$32='Daten Einstellg_Ziele'!$E$21,'Einn._Ausg.'!C20,'Einn._Ausg.'!C20+'Einn._Ausg.'!C20*Einstellungen!$K$25) -> 2,040 | E20: =IF(Einstellungen!$K$32='Daten Einstellg_Ziele'!$E$21,'Einn._Ausg.'!D20,'Einn._Ausg.'!D20+'Einn._Ausg.'!D20*Einstellungen!$K$26) -> 2,081 | F20: =IF(Einstellungen!$K$32='Daten Einstellg_Ziele'!$E$21,'Einn._Ausg.'!E20,'Einn._Ausg.'!E20+'Einn._Ausg.'!E20*Einstellungen!$K$27) -> 2,122 | G20: =IF(Einstellungen!$K$32='Daten Einstellg_Ziele'!$E$21,'Einn._Ausg.'!F20,'Einn._Ausg.'!F20+'Einn._Ausg.'!F20*Einstellungen!$K$28) -> 2,165
B21: Rechtsberatung | C21: 1,500 | D21: 0 | E21: =IF(Einstellungen!$K$32='Daten Einstellg_Ziele'!$E$21,'Einn._Ausg.'!D21,'Einn._Ausg.'!D21+'Einn._Ausg.'!D21*Einstellungen!$K$26) -> 0 | F21: =IF(Einstellungen!$K$32='Daten Einstellg_Ziele'!$E$21,'Einn._Ausg.'!E21,'Einn._Ausg.'!E21+'Einn._Ausg.'!E21*Einstellungen!$K$27) -> 0 | G21: =IF(Einstellungen!$K$32='Daten Einstellg_Ziele'!$E$21,'Einn._Ausg.'!F21,'Einn._Ausg.'!F21+'Einn._Ausg.'!F21*Einstellungen!$K$28) -> 0
B22: Rechnungslegung/Abschluss | C22: 2,500 | D22: =IF(Einstellungen!$K$32='Daten Einstellg_Ziele'!$E$21,'Einn._Ausg.'!C22,'Einn._Ausg.'!C22+'Einn._Ausg.'!C22*Einstellungen!$K$25) -> 2,550 | E22: =IF(Einstellungen!$K$32='Daten Einstellg_Ziele'!$E$21,'Einn._Ausg.'!D22,'Einn._Ausg.'!D22+'Einn._Ausg.'!D22*Einstellungen!$K$26) -> 2,601 | F22: =IF(Einstellungen!$K$32='Daten Einstellg_Ziele'!$E$21,'Einn._Ausg.'!E22,'Einn._Ausg.'!E22+'Einn._Ausg.'!E22*Einstellungen!$K$27) -> 2,653 | G22: =IF(Einstellungen!$K$32='Daten Einstellg_Ziele'!$E$21,'Einn._Ausg.'!F22,'Einn._Ausg.'!F22+'Einn._Ausg.'!F22*Einstellungen!$K$28) -> 2,706
B23: Prüfungskosten | C23: 1,000 | D23: =IF(Einstellungen!$K$32='Daten Einstellg_Ziele'!$E$21,'Einn._Ausg.'!C23,'Einn._Ausg.'!C23+'Einn._Ausg.'!C23*Einstellungen!$K$25) -> 1,020 | E23: =IF(Einstellungen!$K$32='Daten Einstellg_Ziele'!$E$21,'Einn._Ausg.'!D23,'Einn._Ausg.'!D23+'Einn._Ausg.'!D23*Einstellungen!$K$26) -> 1,040 | F23: =IF(Einstellungen!$K$32='Daten Einstellg_Ziele'!$E$21,'Einn._Ausg.'!E23,'Einn._Ausg.'!E23+'Einn._Ausg.'!E23*Einstellungen!$K$27) -> 1,061 | G23: =IF(Einstellungen!$K$32='Daten Einstellg_Ziele'!$E$21,'Einn._Ausg.'!F23,'Einn._Ausg.'!F23+'Einn._Ausg.'!F23*Einstellungen!$K$28) -> 1,082
B24: Vermögensberatung | C24: 0 | D24: =IF(Einstellungen!$K$32='Daten Einstellg_Ziele'!$E$21,'Einn._Ausg.'!C24,'Einn._Ausg.'!C24+'Einn._Ausg.'!C24*Einstellungen!$K$25) -> 0 | E24: =IF(Einstellungen!$K$32='Daten Einstellg_Ziele'!$E$21,'Einn._Ausg.'!D24,'Einn._Ausg.'!D24+'Einn._Ausg.'!D24*Einstellungen!$K$26) -> 0 | F24: =IF(Einstellungen!$K$32='Daten Einstellg_Ziele'!$E$21,'Einn._Ausg.'!E24,'Einn._Ausg.'!E24+'Einn._Ausg.'!E24*Einstellungen!$K$27) -> 0 | G24: =IF(Einstellungen!$K$32='Daten Einstellg_Ziele'!$E$21,'Einn._Ausg.'!F24,'Einn._Ausg.'!F24+'Einn._Ausg.'!F24*Einstellungen!$K$28) -> 0
B25: Marketing/PR | C25: 3,000 | D25: =IF(Einstellungen!$K$32='Daten Einstellg_Ziele'!$E$21,'Einn._Ausg.'!C25,'Einn._Ausg.'!C25+'Einn._Ausg.'!C25*Einstellungen!$K$25) -> 3,060 | E25: =IF(Einstellungen!$K$32='Daten Einstellg_Ziele'!$E$21,'Einn._Ausg.'!D25,'Einn._Ausg.'!D25+'Einn._Ausg.'!D25*Einstellungen!$K$26) -> 3,121 | F25: =IF(Einstellungen!$K$32='Daten Einstellg_Ziele'!$E$21,'Einn._Ausg.'!E25,'Einn._Ausg.'!E25+'Einn._Ausg.'!E25*Einstellungen!$K$27) -> 3,184 | G25: =IF(Einstellungen!$K$32='Daten Einstellg_Ziele'!$E$21,'Einn._Ausg.'!F25,'Einn._Ausg.'!F25+'Einn._Ausg.'!F25*Einstellungen!$K$28) -> 3,247
B26: Fundraising | C26: 0 | D26: =IF(Einstellungen!$K$32='Daten Einstellg_Ziele'!$E$21,'Einn._Ausg.'!C26,'Einn._Ausg.'!C26+'Einn._Ausg.'!C26*Einstellungen!$K$25) -> 0 | E26: =IF(Einstellungen!$K$32='Daten Einstellg_Ziele'!$E$21,'Einn._Ausg.'!D26,'Einn._Ausg.'!D26+'Einn._Ausg.'!D26*Einstellungen!$K$26) -> 0 | F26: =IF(Einstellungen!$K$32='Daten Einstellg_Ziele'!$E$21,'Einn._Ausg.'!E26,'Einn._Ausg.'!E26+'Einn._Ausg.'!E26*Einstellungen!$K$27) -> 0 | G26: =IF(Einstellungen!$K$32='Daten Einstellg_Ziele'!$E$21,'Einn._Ausg.'!F26,'Einn._Ausg.'!F26+'Einn._Ausg.'!F26*Einstellungen!$K$28) -> 0
B27: Sonstige Aufwände | C27: 3,000 | D27: =IF(Einstellungen!$K$32='Daten Einstellg_Ziele'!$E$21,'Einn._Ausg.'!C27,'Einn._Ausg.'!C27+'Einn._Ausg.'!C27*Einstellungen!$K$25) -> 3,060 | E27: =IF(Einstellungen!$K$32='Daten Einstellg_Ziele'!$E$21,'Einn._Ausg.'!D27,'Einn._Ausg.'!D27+'Einn._Ausg.'!D27*Einstellungen!$K$26) -> 3,121 | F27: =IF(Einstellungen!$K$32='Daten Einstellg_Ziele'!$E$21,'Einn._Ausg.'!E27,'Einn._Ausg.'!E27+'Einn._Ausg.'!E27*Einstellungen!$K$27) -> 3,184 | G27: =IF(Einstellungen!$K$32='Daten Einstellg_Ziele'!$E$21,'Einn._Ausg.'!F27,'Einn._Ausg.'!F27+'Einn._Ausg.'!F27*Einstellungen!$K$28) -> 3,247
B28: Summe | C28: =SUM(C17:C27) -> 28,000 | D28: =SUM(D17:D27) -> 27,030 | E28: 27,571 | F28: 28,122 | G28: 28,684
B30: --- Ende der Eingaben ---

Sheet Annahmen
B4: Basisszenario (linear) | I4: Szenario Worst Case | N4: Szenario 2
D5: Wertveränderg. | E5: Bruttoertrag | F5: Bruttoertrag | G5: Kosten der VV. | I5: Abweichung | J5: Abweichung | L5: Ausfall im | N5: Abweichung | O5: Abweichung | Q5: Ausfall im
B6: Nr. | C6: Vermögensgegenstand | D6: % p.a. | E6: % p.a. | F6: EUR p.a. | G6: EUR p.a. | I6: Wert in % | J6: Ertrag in % | K6: Jahr | L6: Jahr | N6: =I6 -> Wert in % | O6: =J6 -> Ertrag in % | P6: Jahr | Q6: =L6 -> Jahr
B7: =Vermentw.!B5 -> 1 | C7: =IF(Vermentw.!C5<>0,Vermentw.!C5,"") -> Vermögensverwaltung A-Bank Aktien | D7: 3.0% | E7: 2.5% | F7: =IF(Vermentw.!D5<>0,Vermentw.!D5*Annahmen!E7,"") -> 16,250 | G7: 6,000 | I7: -30.0% | K7: 2020 | L7: Kein Ausfall | P7: Bitte ausw. | Q7: Kein Ausfall
B8: =Vermentw.!B6 -> 2 | C8: =IF(Vermentw.!C6<>0,Vermentw.!C6,"") -> Vermögensverwaltung A-Bank Renten | D8: 0.5% | E8: 0.5% | F8: =IF(Vermentw.!D6<>0,Vermentw.!D6*Annahmen!E8,"") -> 26,000 | I8: -10.0% | K8: 2020 | L8: Kein Ausfall | Q8: Kein Ausfall
B9: =Vermentw.!B7 -> 3 | C9: =IF(Vermentw.!C7<>0,Vermentw.!C7,"") -> Stiftungsfonds Xy | D9: 0.5% | E9: 2.5% | F9: =IF(Vermentw.!D7<>0,Vermentw.!D7*Annahmen!E9,"") -> 6,250 | I9: 0.0% | K9: 2020 | L9: Kein Ausfall | Q9: Kein Ausfall
B10: =Vermentw.!B8 -> 4 | C10: =IF(Vermentw.!C8<>0,Vermentw.!C8,"") -> Immobilie | D10: 1.0% | E10: 2.0% | F10: =IF(Vermentw.!D8<>0,Vermentw.!D8*Annahmen!E10,"") -> 10,000 | G10: 5,000 | I10: 0.0% | K10: 2020 | L10: Kein Ausfall | Q10: Kein Ausfall
B11: =Vermentw.!B9 -> 5 | C11: =IF(Vermentw.!C9<>0,Vermentw.!C9,"") -> Bankguthaben B-Bank | D11: 0.0% | E11: 0.0% | F11: =IF(Vermentw.!D9<>0,Vermentw.!D9*Annahmen!E11,"") -> 0 | I11: 0.0% | K11: Bitte ausw. | L11: Kein Ausfall | Q11: Kein Ausfall
B12: =Vermentw.!B10 -> 6 | C12: =IF(Vermentw.!C10<>0,Vermentw.!C10,"") ->  | D12: 0.0% | E12: 0.0% | F12: =IF(Vermentw.!D10<>0,Vermentw.!D10*Annahmen!E12,"") ->  | I12: 0.0% | K12: Bitte ausw. | L12: Kein Ausfall | Q12: Kein Ausfall
B13: =Vermentw.!B11 -> 7 | C13: =IF(Vermentw.!C11<>0,Vermentw.!C11,"") ->  | D13: 0.0% | E13: 0.0% | F13: =IF(Vermentw.!D11<>0,Vermentw.!D11*Annahmen!E13,"") ->  | I13: 0.0% | K13: Bitte ausw. | L13: Kein Ausfall | Q13: Kein Ausfall
B14: =Vermentw.!B12 -> 8 | C14: =IF(Vermentw.!C12<>0,Vermentw.!C12,"") ->  | D14: 0.0% | E14: 0.0% | F14: =IF(Vermentw.!D12<>0,Vermentw.!D12*Annahmen!E14,"") ->  | I14: 0.0% | K14: Bitte ausw. | L14: Kein Ausfall | Q14: Kein Ausfall
B15: =Vermentw.!B13 -> 9 | C15: =IF(Vermentw.!C13<>0,Vermentw.!C13,"") ->  | D15: 0.0% | E15: 0.0% | F15: =IF(Vermentw.!D13<>0,Vermentw.!D13*Annahmen!E15,"") ->  | I15: 0.0% | K15: Bitte ausw. | L15: Kein Ausfall | Q15: Kein Ausfall
B16: =Vermentw.!B14 -> 10 | C16: =IF(Vermentw.!C14<>0,Vermentw.!C14,"") ->  | D16: 0.0% | E16: 4.0% | F16: =IF(Vermentw.!D14<>0,Vermentw.!D14*Annahmen!E16,"") ->  | I16: 0.0% | K16: Bitte ausw. | L16: Kein Ausfall | Q16: Kein Ausfall
B17: =Vermentw.!B15 -> 11 | C17: =IF(Vermentw.!C15<>0,Vermentw.!C15,"") ->  | D17: 1.0% | E17: 5.0% | F17: =IF(Vermentw.!D15<>0,Vermentw.!D15*Annahmen!E17,"") ->  | I17: 0.0% | K17: Bitte ausw. | L17: Kein Ausfall | Q17: Kein Ausfall
B18: 12 | C18: =IF(Vermentw.!C16<>0,Vermentw.!C16,"") ->  | D18: 1.5% | E18: 3.0% | F18: =IF(Vermentw.!D16<>0,Vermentw.!D16*Annahmen!E18,"") ->  | I18: 0.0% | K18: Bitte ausw. | L18: Kein Ausfall | Q18: Kein Ausfall
B20: --- Ende der Eingaben ---

Sheet Daten Projektion (hidden)
A1: Daten Projektion Annahmen | D1: Daten Projektion
F3: Vermögen
B5: Szenariojahr | C5: Ausfalljahr | E5: Nr. | F5: Vermögensgegenstand | G5: Anlageklasse | H5: Wert EUR | I5: =Einstellungen!D7 -> 2019 | J5: =I5+1 -> 2020 | K5: =J5+1 -> 2021 | L5: 2022 | M5: 2023
B6: Bitte ausw. | C6: Kein Ausfall | E6: =Vermentw.!B5 -> 1 | F6: =Vermentw.!C5 -> Vermögensverwaltung A-Bank Aktien | G6: =Vermentw.!E5 -> Aktien | H6: =IF(G6="Verbindlichkeiten",Vermentw.!D5*-1,Vermentw.!D5) -> 650,000 | I6: =H6+H6*Annahmen!$D7 -> 669,500 | J6: =I6+I6*Annahmen!$D7 -> 689,585 | K6: =J6+J6*Annahmen!$D7 -> 710,273 | L6: =K6+K6*Annahmen!$D7 -> 731,581 | M6: =L6+L6*Annahmen!$D7 -> 753,528
B7: =Einstellungen!D7 -> 2019 | C7: =Einstellungen!D7 -> 2019 | E7: =Vermentw.!B6 -> 2 | F7: =Vermentw.!C6 -> Vermögensverwaltung A-Bank Renten | G7: =Vermentw.!E6 -> Renten | H7: =IF(G7="Verbindlichkeiten",Vermentw.!D6*-1,Vermentw.!D6) -> 5,200,000 | I7: =H7+H7*Annahmen!$D8 -> 5,226,000 | J7: =I7+I7*Annahmen!$D8 -> 5,252,130 | K7: =J7+J7*Annahmen!$D8 -> 5,278,391 | L7: =K7+K7*Annahmen!$D8 -> 5,304,783 | M7: =L7+L7*Annahmen!$D8 -> 5,331,307
B8: =B7+1 -> 2020 | C8: =C7+1 -> 2020 | E8: =Vermentw.!B7 -> 3 | F8: =Vermentw.!C7 -> Stiftungsfonds Xy | G8: =Vermentw.!E7 -> Renten | H8: =IF(G8="Verbindlichkeiten",Vermentw.!D7*-1,Vermentw.!D7) -> 250,000 | I8: =H8+H8*Annahmen!$D9 -> 251,250 | J8: =I8+I8*Annahmen!$D9 -> 252,506 | K8: =J8+J8*Annahmen!$D9 -> 253,769 | L8: =K8+K8*Annahmen!$D9 -> 255,038 | M8: =L8+L8*Annahmen!$D9 -> 256,313
B9: =B8+1 -> 2021 | C9: 2021 | E9: =Vermentw.!B8 -> 4 | F9: =Vermentw.!C8 -> Immobilie | G9: =Vermentw.!E8 -> Immobilien | H9: =IF(G9="Verbindlichkeiten",Vermentw.!D8*-1,Vermentw.!D8) -> 500,000 | I9: =H9+H9*Annahmen!$D10 -> 505,000 | J9: =I9+I9*Annahmen!$D10 -> 510,050 | K9: =J9+J9*Annahmen!$D10 -> 515,151 | L9: =K9+K9*Annahmen!$D10 -> 520,302 | M9: =L9+L9*Annahmen!$D10 -> 525,505
B10: 2022 | C10: 2022 | E10: =Vermentw.!B9 -> 5 | F10: =Vermentw.!C9 -> Bankguthaben B-Bank | G10: =Vermentw.!E9 -> Kontoguthaben | H10: =IF(G10="Verbindlichkeiten",Vermentw.!D9*-1,Vermentw.!D9) -> 1,000,000 | I10: =H10+H10*Annahmen!$D11 -> 1,000,000 | J10: =I10+I10*Annahmen!$D11 -> 1,000,000 | K10: =J10+J10*Annahmen!$D11 -> 1,000,000 | L10: =K10+K10*Annahmen!$D11 -> 1,000,000 | M10: =L10+L10*Annahmen!$D11 -> 1,000,000
B11: 2023 | C11: 2023 | E11: =Vermentw.!B10 -> 6 | F11: =Vermentw.!C10 -> 0 | G11: =Vermentw.!E10 -> Bitte auswählen | H11: =IF(G11="Verbindlichkeiten",Vermentw.!D10*-1,Vermentw.!D10) -> 0 | I11: =H11+H11*Annahmen!$D12 -> 0 | J11: =I11+I11*Annahmen!$D12 -> 0 | K11: =J11+J11*Annahmen!$D12 -> 0 | L11: =K11+K11*Annahmen!$D12 -> 0 | M11: =L11+L11*Annahmen!$D12 -> 0
E12: =Vermentw.!B11 -> 7 | F12: =Vermentw.!C11 -> 0 | G12: =Vermentw.!E11 -> Bitte auswählen | H12: =IF(G12="Verbindlichkeiten",Vermentw.!D11*-1,Vermentw.!D11) -> 0 | I12: =H12+H12*Annahmen!$D13 -> 0 | J12: =I12+I12*Annahmen!$D13 -> 0 | K12: =J12+J12*Annahmen!$D13 -> 0 | L12: =K12+K12*Annahmen!$D13 -> 0 | M12: =L12+L12*Annahmen!$D13 -> 0
E13: =Vermentw.!B12 -> 8 | F13: =Vermentw.!C12 -> 0 | G13: =Vermentw.!E12 -> Bitte auswählen | H13: =IF(G13="Verbindlichkeiten",Vermentw.!D12*-1,Vermentw.!D12) -> 0 | I13: =H13+H13*Annahmen!$D14 -> 0 | J13: =I13+I13*Annahmen!$D14 -> 0 | K13: =J13+J13*Annahmen!$D14 -> 0 | L13: =K13+K13*Annahmen!$D14 -> 0 | M13: =L13+L13*Annahmen!$D14 -> 0
E14: =Vermentw.!B13 -> 9 | F14: =Vermentw.!C13 -> 0 | G14: =Vermentw.!E13 -> Bitte auswählen | H14: =IF(G14="Verbindlichkeiten",Vermentw.!D13*-1,Vermentw.!D13) -> 0 | I14: =H14+H14*Annahmen!$D15 -> 0 | J14: =I14+I14*Annahmen!$D15 -> 0 | K14: =J14+J14*Annahmen!$D15 -> 0 | L14: =K14+K14*Annahmen!$D15 -> 0 | M14: =L14+L14*Annahmen!$D15 -> 0
E15: =Vermentw.!B14 -> 10 | F15: =Vermentw.!C14 -> 0 | G15: =Vermentw.!E14 -> Bitte auswählen | H15: =IF(G15="Verbindlichkeiten",Vermentw.!D14*-1,Vermentw.!D14) -> 0 | I15: =H15+H15*Annahmen!$D16 -> 0 | J15: =I15+I15*Annahmen!$D16 -> 0 | K15: =J15+J15*Annahmen!$D16 -> 0 | L15: =K15+K15*Annahmen!$D16 -> 0 | M15: =L15+L15*Annahmen!$D16 -> 0
E16: =Vermentw.!B15 -> 11 | F16: =Vermentw.!C15 -> 0 | G16: =Vermentw.!E15 -> Bitte auswählen | H16: =IF(G16="Verbindlichkeiten",Vermentw.!D15*-1,Vermentw.!D15) -> 0 | I16: =H16+H16*Annahmen!$D17 -> 0 | J16: =I16+I16*Annahmen!$D17 -> 0 | K16: =J16+J16*Annahmen!$D17 -> 0 | L16: =K16+K16*Annahmen!$D17 -> 0 | M16: =L16+L16*Annahmen!$D17 -> 0
E17: =Vermentw.!B16 -> 12 | F17: =Vermentw.!C16 -> 0 | G17: =Vermentw.!E16 -> Bitte auswählen | H17: =IF(G17="Verbindlichkeiten",Vermentw.!D16*-1,Vermentw.!D16) -> 0 | I17: =H17+H17*Annahmen!$D18 -> 0 | J17: =I17+I17*Annahmen!$D18 -> 0 | K17: =J17+J17*Annahmen!$D18 -> 0 | L17: =K17+K17*Annahmen!$D18 -> 0 | M17: =L17+L17*Annahmen!$D18 -> 0
F18: Summe | H18: =SUM(H6:H17) -> 7,600,000 | I18: =SUM(I6:I17) -> 7,651,750 | J18: 7,704,271 | K18: 7,757,582 | L18: 7,811,703 | M18: 7,866,653
F20: Vermögen nach Anlageklassen | G20: Immobilien | H20: =SUMIF($G6:$G17,G20,H6:H17) -> 500,000 | I20: =SUMIF($G$6:$G$17,$G$20,I$6:I$17) -> 505,000 | J20: 510,050 | K20: 515,151 | L20: 520,302 | M20: 525,505
G21: ='Daten Vermögen'!B7 -> Beteiligungen | H21: =SUMIF($G$6:$G$17,$G$21,$H$6:H$17) -> 0 | I21: =SUMIF($G$6:$G$17,$G$21,$H$6:I$17) -> 0 | J21: =SUMIF($G$6:$G$17,$G$21,$H$6:J$17) -> 0 | K21: =SUMIF($G$6:$G$17,$G$21,$H$6:K$17) -> 0 | L21: =SUMIF($G$6:$G$17,$G$21,$H$6:L$17) -> 0 | M21: =SUMIF($G$6:$G$17,$G$21,$H$6:M$17) -> 0
G22: Wertpapiere | H22: =SUM(H23:H26) -> 6,100,000 | I22: 6,146,750 | J22: 6,194,221 | K22: 6,242,432 | L22: 6,291,401 | M22: 6,341,147
G23: davon Aktien | H23: =SUMIF($G$6:$G$17,'Daten Vermögen'!$B$8,H$6:H$17) -> 650,000 | I23: =SUMIF($G$6:$G$17,'Daten Vermögen'!$B$8,I$6:I$17) -> 669,500 | J23: =SUMIF($G$6:$G$17,'Daten Vermögen'!$B$8,J$6:J$17) -> 689,585 | K23: =SUMIF($G$6:$G$17,'Daten Vermögen'!$B$8,K$6:K$17) -> 710,273 | L23: =SUMIF($G$6:$G$17,'Daten Vermögen'!$B$8,L$6:L$17) -> 731,581 | M23: =SUMIF($G$6:$G$17,'Daten Vermögen'!$B$8,M$6:M$17) -> 753,528
G24: davon Renten | H24: =SUMIF($G$6:$G$17,'Daten Vermögen'!$B$9,H$6:H$17) -> 5,450,000 | I24: =SUMIF($G$6:$G$17,'Daten Vermögen'!$B$9,I$6:I$17) -> 5,477,250 | J24: =SUMIF($G$6:$G$17,'Daten Vermögen'!$B$9,J$6:J$17) -> 5,504,636 | K24: =SUMIF($G$6:$G$17,'Daten Vermögen'!$B$9,K$6:K$17) -> 5,532,159 | L24: =SUMIF($G$6:$G$17,'Daten Vermögen'!$B$9,L$6:L$17) -> 5,559,820 | M24: =SUMIF($G$6:$G$17,'Daten Vermögen'!$B$9,M$6:M$17) -> 5,587,619
G25: davon Liquidität | H25: =SUMIF($G$6:$G$17,$G$25,H$6:H$17) -> 0 | I25: =SUMIF($G$6:$G$17,$G$25,I$6:I$17) -> 0 | J25: 0 | K25: 0 | L25: 0 | M25: 0
G26: davon Alternative Investments | H26: =SUMIF($G$6:$G$17,$G$26,H$6:H$17) -> 0 | I26: =SUMIF($G$6:$G$17,$G$26,I$6:I$17) -> 0 | J26: 0 | K26: 0 | L26: 0 | M26: 0
G27: Spar- und Termineinlagen | H27: =SUMIF($G$6:$G$17,'Daten Vermögen'!$B$10,H$6:H$17) -> 0 | I27: =SUMIF($G$6:$G$17,'Daten Vermögen'!$B$10,I$6:I$17) -> 0 | J27: =SUMIF($G$6:$G$17,'Daten Vermögen'!$B$10,J$6:J$17) -> 0 | K27: =SUMIF($G$6:$G$17,'Daten Vermögen'!$B$10,K$6:K$17) -> 0 | L27: =SUMIF($G$6:$G$17,'Daten Vermögen'!$B$10,L$6:L$17) -> 0 | M27: =SUMIF($G$6:$G$17,'Daten Vermögen'!$B$10,M$6:M$17) -> 0
G28: Kontoguthaben Investitionsvermögen | H28: =SUMIF($G$6:$G$17,'Daten Vermögen'!$B$11,H$6:H$17) -> 1,000,000 | I28: =SUMIF($G$6:$G$17,'Daten Vermögen'!$B$11,I$6:I$17) -> 1,000,000 | J28: =SUMIF($G$6:$G$17,'Daten Vermögen'!$B$11,J$6:J$17) -> 1,000,000 | K28: =SUMIF($G$6:$G$17,'Daten Vermögen'!$B$11,K$6:K$17) -> 1,000,000 | L28: =SUMIF($G$6:$G$17,'Daten Vermögen'!$B$11,L$6:L$17) -> 1,000,000 | M28: =SUMIF($G$6:$G$17,'Daten Vermögen'!$B$11,M$6:M$17) -> 1,000,000
G29: Sonstiges Vermögen | H29: =SUMIF($G$6:$G$17,$G$29,H$6:H$17) -> 0 | I29: 0 | J29: 0 | K29: 0 | L29: 0 | M29: 0
G30: Verbindlichkeiten | H30: =SUMIF($G$6:$G$17,$G$30,H$6:H$17) -> 0 | I30: 0 | J30: 0 | K30: 0 | L30: 0 | M30: 0
G31: Summe | H31: =SUM(H20:H22)+SUM(H27:H30) -> 7,600,000 | I31: 7,651,750 | J31: 7,704,271 | K31: 7,757,582 | L31: 7,811,703 | M31: 7,866,653
F33: Erträge
C35: Erträge | E35: =E5 -> Nr. | F35: Vermögensgegenstand | G35: Anlageklasse | H35: Ertrag EUR | I35: =I5 -> 2019 | J35: =J5 -> 2020 | K35: =K5 -> 2021 | L35: =L5 -> 2022 | M35: =M5 -> 2023
E36: 1 | F36: Vermögensverwaltung A-Bank Aktien | G36: Aktien | H36: =IF(G36="Verbindlichkeiten",-1,1) -> 1 | I36: =H6*$H36*Annahmen!$E7 -> 16,250 | J36: =I6*$H36*Annahmen!$E7 -> 16,738 | K36: =J6*$H36*Annahmen!$E7 -> 17,240 | L36: =K6*$H36*Annahmen!$E7 -> 17,757 | M36: =L6*$H36*Annahmen!$E7 -> 18,290
E37: 2 | F37: Vermögensverwaltung A-Bank Renten | G37: Renten | H37: =IF(G37="Verbindlichkeiten",-1,1) -> 1 | I37: =H7*$H37*Annahmen!$E8 -> 26,000 | J37: =I7*$H37*Annahmen!$E8 -> 26,130 | K37: =J7*$H37*Annahmen!$E8 -> 26,261 | L37: =K7*$H37*Annahmen!$E8 -> 26,392 | M37: =L7*$H37*Annahmen!$E8 -> 26,524
E38: 3 | F38: Stiftungsfonds Xy | G38: Renten | H38: 1 | I38: =H8*$H38*Annahmen!$E9 -> 6,250 | J38: =I8*$H38*Annahmen!$E9 -> 6,281 | K38: =J8*$H38*Annahmen!$E9 -> 6,313 | L38: =K8*$H38*Annahmen!$E9 -> 6,344 | M38: =L8*$H38*Annahmen!$E9 -> 6,376
E39: 4 | F39: Immobilie | G39: Immobilien | H39: 1 | I39: =H9*$H39*Annahmen!$E10 -> 10,000 | J39: =I9*$H39*Annahmen!$E10 -> 10,100 | K39: =J9*$H39*Annahmen!$E10 -> 10,201 | L39: =K9*$H39*Annahmen!$E10 -> 10,303 | M39: =L9*$H39*Annahmen!$E10 -> 10,406
E40: 5 | F40: Bankguthaben B-Bank | G40: Kontoguthaben | H40: 1 | I40: =H10*$H40*Annahmen!$E11 -> 0 | J40: =I10*$H40*Annahmen!$E11 -> 0 | K40: =J10*$H40*Annahmen!$E11 -> 0 | L40: =K10*$H40*Annahmen!$E11 -> 0 | M40: =L10*$H40*Annahmen!$E11 -> 0
E41: 6 | F41: 0 | G41: Bitte auswählen | H41: 1 | I41: =H11*$H41*Annahmen!$E12 -> 0 | J41: =I11*$H41*Annahmen!$E12 -> 0 | K41: =J11*$H41*Annahmen!$E12 -> 0 | L41: =K11*$H41*Annahmen!$E12 -> 0 | M41: =L11*$H41*Annahmen!$E12 -> 0
E42: 7 | F42: 0 | G42: Bitte auswählen | H42: 1 | I42: =H12*$H42*Annahmen!$E13 -> 0 | J42: =I12*$H42*Annahmen!$E13 -> 0 | K42: =J12*$H42*Annahmen!$E13 -> 0 | L42: =K12*$H42*Annahmen!$E13 -> 0 | M42: =L12*$H42*Annahmen!$E13 -> 0
E43: 8 | F43: 0 | G43: Bitte auswählen | H43: 1 | I43: =H13*$H43*Annahmen!$E14 -> 0 | J43: =I13*$H43*Annahmen!$E14 -> 0 | K43: =J13*$H43*Annahmen!$E14 -> 0 | L43: =K13*$H43*Annahmen!$E14 -> 0 | M43: =L13*$H43*Annahmen!$E14 -> 0
E44: 9 | F44: 0 | G44: Bitte auswählen | H44: 1 | I44: =H14*$H44*Annahmen!$E15 -> 0 | J44: =I14*$H44*Annahmen!$E15 -> 0 | K44: =J14*$H44*Annahmen!$E15 -> 0 | L44: =K14*$H44*Annahmen!$E15 -> 0 | M44: =L14*$H44*Annahmen!$E15 -> 0
E45: 10 | F45: 0 | G45: Bitte auswählen | H45: 1 | I45: =H15*$H45*Annahmen!$E16 -> 0 | J45: =I15*$H45*Annahmen!$E16 -> 0 | K45: =J15*$H45*Annahmen!$E16 -> 0 | L45: =K15*$H45*Annahmen!$E16 -> 0 | M45: =L15*$H45*Annahmen!$E16 -> 0
E46: 11 | F46: 0 | G46: Bitte auswählen | H46: 1 | I46: =H16*$H46*Annahmen!$E17 -> 0 | J46: =I16*$H46*Annahmen!$E17 -> 0 | K46: =J16*$H46*Annahmen!$E17 -> 0 | L46: =K16*$H46*Annahmen!$E17 -> 0 | M46: =L16*$H46*Annahmen!$E17 -> 0
E47: 12 | F47: 0 | G47: Bitte auswählen | H47: 1 | I47: =H17*$H47*Annahmen!$E18 -> 0 | J47: =I17*$H47*Annahmen!$E18 -> 0 | K47: =J17*$H47*Annahmen!$E18 -> 0 | L47: =K17*$H47*Annahmen!$E18 -> 0 | M47: =L17*$H47*Annahmen!$E18 -> 0
F48: =F18 -> Summe | I48: =SUM(I36:I47) -> 58,500 | J48: =SUM(J36:J47) -> 59,249 | K48: 60,014 | L48: 60,796 | M48: 61,595
F50: Erträge nach Anlageklassen | G50: =G20 -> Immobilien | H50: =SUMIF($G36:$G47,$G$50,H36:H47) -> 1 | I50: =SUMIF($G36:$G47,$G$50,I36:I47) -> 10,000 | J50: 10,100 | K50: 10,201 | L50: 10,303 | M50: 10,406
G51: Beteiligungen | H51: =SUMIF($G36:$G47,$G$51,H$36:H$47) -> 0 | I51: =SUMIF($G36:$G47,$G$51,I$36:I$47) -> 0 | J51: 0 | K51: 0 | L51: 0 | M51: 0
G52: Wertpapiere | H52: =SUM(H53:H56) -> 3 | I52: 48,500 | J52: 49,149 | K52: 49,813 | L52: 50,493 | M52: 51,189
G53: davon Aktien | H53: =SUMIF($G36:$G47,'Daten Vermögen'!$B$8,H36:H47) -> 1 | I53: =SUMIF($G36:$G47,'Daten Vermögen'!$B$8,I36:I47) -> 16,250 | J53: =SUMIF($G36:$G47,'Daten Vermögen'!$B$8,J36:J47) -> 16,738 | K53: =SUMIF($G36:$G47,'Daten Vermögen'!$B$8,K36:K47) -> 17,240 | L53: =SUMIF($G36:$G47,'Daten Vermögen'!$B$8,L36:L47) -> 17,757 | M53: =SUMIF($G36:$G47,'Daten Vermögen'!$B$8,M36:M47) -> 18,290
G54: davon Renten | H54: =SUMIF($G36:$G47,'Daten Vermögen'!$B$9,H36:H47) -> 2 | I54: =SUMIF($G36:$G47,'Daten Vermögen'!$B$9,I36:I47) -> 32,250 | J54: =SUMIF($G36:$G47,'Daten Vermögen'!$B$9,J36:J47) -> 32,411 | K54: =SUMIF($G36:$G47,'Daten Vermögen'!$B$9,K36:K47) -> 32,573 | L54: =SUMIF($G36:$G47,'Daten Vermögen'!$B$9,L36:L47) -> 32,736 | M54: =SUMIF($G36:$G47,'Daten Vermögen'!$B$9,M36:M47) -> 32,900
G55: davon Liquidität | H55: =SUMIF($G36:$G47,$G$55,H36:H47) -> 0 | I55: =SUMIF($G36:$G47,$G$55,I36:I47) -> 0 | J55: 0 | K55: 0 | L55: 0 | M55: 0
G56: davon Alternative Investments | H56: =SUMIF($G36:$G47,$G$56,H36:H47) -> 0 | I56: =SUMIF($G36:$G47,$G$56,I36:I47) -> 0 | J56: 0 | K56: 0 | L56: 0 | M56: 0
G57: Spar- und Termineinlagen | H57: =SUMIF($G36:$G47,'Daten Vermögen'!$B$10,H36:H47) -> 0 | I57: =SUMIF($G36:$G47,'Daten Vermögen'!$B$10,I36:I47) -> 0 | J57: =SUMIF($G36:$G47,'Daten Vermögen'!$B$10,J36:J47) -> 0 | K57: =SUMIF($G36:$G47,'Daten Vermögen'!$B$10,K36:K47) -> 0 | L57: =SUMIF($G36:$G47,'Daten Vermögen'!$B$10,L36:L47) -> 0 | M57: =SUMIF($G36:$G47,'Daten Vermögen'!$B$10,M36:M47) -> 0
G58: Kontoguthaben Investitionsvermögen | H58: =SUMIF($G36:$G47,'Daten Vermögen'!B11,H36:H47) -> 1 | I58: =SUMIF($G36:$G47,'Daten Vermögen'!C11,I36:I47) -> 0 | J58: =SUMIF($G36:$G47,'Daten Vermögen'!D11,J36:J47) -> 0 | K58: =SUMIF($G36:$G47,'Daten Vermögen'!E11,K36:K47) -> 0 | L58: =SUMIF($G36:$G47,'Daten Vermögen'!F11,L36:L47) -> 0 | M58: =SUMIF($G36:$G47,'Daten Vermögen'!G11,M36:M47) -> 0
G59: Sonstiges Vermögen | H59: =SUMIF($G36:$G47,'Daten Vermögen'!$B$12,H36:H47) -> 0 | I59: =SUMIF($G36:$G47,'Daten Vermögen'!$B$12,I36:I47) -> 0 | J59: =SUMIF($G36:$G47,'Daten Vermögen'!$B$12,J36:J47) -> 0 | K59: =SUMIF($G36:$G47,'Daten Vermögen'!$B$12,K36:K47) -> 0 | L59: =SUMIF($G36:$G47,'Daten Vermögen'!$B$12,L36:L47) -> 0 | M59: =SUMIF($G36:$G47,'Daten Vermögen'!$B$12,M36:M47) -> 0
G60: Verbindlichkeiten | H60: =SUMIF($G36:$G47,$G$60,H36:H47) -> 0 | I60: 0 | J60: 0 | K60: 0 | L60: 0 | M60: 0
G61: Summe | H61: =SUM(H50:H52)+SUM(H57:H60) -> 5 | I61: 58,500 | J61: 59,249 | K61: 60,014 | L61: 60,796 | M61: 61,595
F63: Kosten
C65: Kosten | E65: =E35 -> Nr. | F65: Vermögensgegenstand | G65: Anlageklasse | H65: Kosten EUR | I65: =I35 -> 2019 | J65: =J35 -> 2020 | K65: =K35 -> 2021 | L65: =L35 -> 2022 | M65: =M35 -> 2023
E66: 1 | F66: Vermögensverwaltung A-Bank Aktien | G66: Aktien | H66: =Annahmen!G7 -> 6,000 | I66: =H66+H66*Einstellungen!$K$24 -> 6,120 | J66: =I66+I66*Einstellungen!$K$25 -> 6,242 | K66: =J66+J66*Einstellungen!$K$26 -> 6,367 | L66: =K66+K66*Einstellungen!$K$27 -> 6,495 | M66: =L66+L66*Einstellungen!$K$28 -> 6,624
E67: 2 | F67: Vermögensverwaltung A-Bank Renten | G67: Renten | H67: =Annahmen!G8 -> 0 | I67: =H67+H67*Einstellungen!$K$24 -> 0 | J67: =I67+I67*Einstellungen!$K$25 -> 0 | K67: =J67+J67*Einstellungen!$K$26 -> 0 | L67: =K67+K67*Einstellungen!$K$27 -> 0 | M67: =L67+L67*Einstellungen!$K$28 -> 0
E68: 3 | F68: Stiftungsfonds Xy | G68: Renten | H68: =Annahmen!G9 -> 0 | I68: =H68+H68*Einstellungen!$K$24 -> 0 | J68: =I68+I68*Einstellungen!$K$25 -> 0 | K68: =J68+J68*Einstellungen!$K$26 -> 0 | L68: =K68+K68*Einstellungen!$K$27 -> 0 | M68: =L68+L68*Einstellungen!$K$28 -> 0
E69: 4 | F69: Immobilie | G69: Immobilien | H69: =Annahmen!G10 -> 5,000 | I69: =H69+H69*Einstellungen!$K$24 -> 5,100 | J69: =I69+I69*Einstellungen!$K$25 -> 5,202 | K69: =J69+J69*Einstellungen!$K$26 -> 5,306 | L69: =K69+K69*Einstellungen!$K$27 -> 5,412 | M69: =L69+L69*Einstellungen!$K$28 -> 5,520
E70: 5 | F70: Bankguthaben B-Bank | G70: Kontoguthaben | H70: =Annahmen!G11 -> 0 | I70: =H70+H70*Einstellungen!$K$24 -> 0 | J70: =I70+I70*Einstellungen!$K$25 -> 0 | K70: =J70+J70*Einstellungen!$K$26 -> 0 | L70: =K70+K70*Einstellungen!$K$27 -> 0 | M70: =L70+L70*Einstellungen!$K$28 -> 0
E71: 6 | F71: 0 | G71: Bitte auswählen | H71: =Annahmen!G12 -> 0 | I71: =H71+H71*Einstellungen!$K$24 -> 0 | J71: =I71+I71*Einstellungen!$K$25 -> 0 | K71: =J71+J71*Einstellungen!$K$26 -> 0 | L71: =K71+K71*Einstellungen!$K$27 -> 0 | M71: =L71+L71*Einstellungen!$K$28 -> 0
E72: 7 | F72: 0 | G72: Bitte auswählen | H72: =Annahmen!G13 -> 0 | I72: =H72+H72*Einstellungen!$K$24 -> 0 | J72: =I72+I72*Einstellungen!$K$25 -> 0 | K72: =J72+J72*Einstellungen!$K$26 -> 0 | L72: =K72+K72*Einstellungen!$K$27 -> 0 | M72: =L72+L72*Einstellungen!$K$28 -> 0
E73: 8 | F73: 0 | G73: Bitte auswählen | H73: =Annahmen!G14 -> 0 | I73: =H73+H73*Einstellungen!$K$24 -> 0 | J73: =I73+I73*Einstellungen!$K$25 -> 0 | K73: =J73+J73*Einstellungen!$K$26 -> 0 | L73: =K73+K73*Einstellungen!$K$27 -> 0 | M73: =L73+L73*Einstellungen!$K$28 -> 0
E74: 9 | F74: 0 | G74: Bitte auswählen | H74: =Annahmen!G15 -> 0 | I74: =H74+H74*Einstellungen!$K$24 -> 0 | J74: =I74+I74*Einstellungen!$K$25 -> 0 | K74: =J74+J74*Einstellungen!$K$26 -> 0 | L74: =K74+K74*Einstellungen!$K$27 -> 0 | M74: =L74+L74*Einstellungen!$K$28 -> 0
E75: 10 | F75: 0 | G75: Bitte auswählen | H75: =Annahmen!G16 -> 0 | I75: =H75+H75*Einstellungen!$K$24 -> 0 | J75: =I75+I75*Einstellungen!$K$25 -> 0 | K75: =J75+J75*Einstellungen!$K$26 -> 0 | L75: =K75+K75*Einstellungen!$K$27 -> 0 | M75: =L75+L75*Einstellungen!$K$28 -> 0
E76: 11 | F76: 0 | G76: Bitte auswählen | H76: =Annahmen!G17 -> 0 | I76: =H76+H76*Einstellungen!$K$24 -> 0 | J76: =I76+I76*Einstellungen!$K$25 -> 0 | K76: =J76+J76*Einstellungen!$K$26 -> 0 | L76: =K76+K76*Einstellungen!$K$27 -> 0 | M76: =L76+L76*Einstellungen!$K$28 -> 0
E77: 12 | F77: 0 | G77: Bitte auswählen | H77: =Annahmen!G18 -> 0 | I77: =H77+H77*Einstellungen!$K$24 -> 0 | J77: =I77+I77*Einstellungen!$K$25 -> 0 | K77: =J77+J77*Einstellungen!$K$26 -> 0 | L77: =K77+K77*Einstellungen!$K$27 -> 0 | M77: =L77+L77*Einstellungen!$K$28 -> 0
F78: =F48 -> Summe | G78: =G48 -> 0 | H78: =SUM(H66:H77) -> 11,000 | I78: =SUM(I66:I77) -> 11,220 | J78: 11,444 | K78: 11,673 | L78: 11,907 | M78: 12,145
F80: Kosten nach Anlageklassen | G80: =G50 -> Immobilien | H80: =SUMIF($G$66:$G$77,$G$80,H66:H77) -> 5,000 | I80: 5,100 | J80: 5,202 | K80: 5,306 | L80: 5,412 | M80: 5,520
G81: Beteiligungen | H81: =SUMIF($G$66:$G$77,$G$81,H66:H77) -> 0 | I81: 0 | J81: 0 | K81: 0 | L81: 0 | M81: 0
G82: Wertpapiere | H82: =SUM(H83:H86) -> 6,000 | I82: 6,120 | J82: 6,242 | K82: 6,367 | L82: 6,495 | M82: 6,624
G83: davon Aktien | H83: =SUMIF($G$66:$G$77,"Aktien",H$66:H$77) -> 6,000 | I83: =SUMIF($G$66:$G$77,"Aktien",I$66:I$77) -> 6,120 | J83: 6,242 | K83: =SUMIF($G$66:$G$77,"Aktien",K$66:K$77) -> 6,367 | L83: 6,495 | M83: 6,624
G84: davon Renten | H84: =SUMIF($G$66:$G$77,"Renten",H$66:H$77) -> 0 | I84: =SUMIF($G$66:$G$77,"Renten",I$66:I$77) -> 0 | J84: 0 | K84: 0 | L84: 0 | M84: 0
G85: davon Liquidität | H85: =SUMIF($G$66:$G$77,"Liquidität",H$66:H$77) -> 0 | I85: =SUMIF($G$66:$G$77,"Liquidität",I$66:I$77) -> 0 | J85: 0 | K85: 0 | L85: 0 | M85: 0
G86: davon Alternative Investments | H86: =SUMIF($G$66:$G$77,"Alternative Investments",H66:H77) -> 0 | I86: 0 | J86: 0 | K86: 0 | L86: 0 | M86: 0
G87: Spar- und Termineinlagen | H87: =SUMIF($G$66:$G$77,$G$87,H66:H77) -> 0 | I87: 0 | J87: 0 | K87: 0 | L87: 0 | M87: 0
G88: Kontoguthaben Investitionsvermögen | H88: =SUMIF($G$66:$G$77,"Kontoguthaben",H66:H77) -> 0 | I88: 0 | J88: 0 | K88: 0 | L88: 0 | M88: 0
G89: Sonstiges Vermögen | H89: =SUMIF($G$66:$G$77,$G$89,H66:H77) -> 0 | I89: 0 | J89: 0 | K89: 0 | L89: 0 | M89: 0
G90: Verbindlichkeiten | H90: =SUMIF($G$66:$G$77,$G$90,H66:H77) -> 0 | I90: 0 | J90: 0 | K90: 0 | L90: 0 | M90: 0
G91: Summe | H91: =SUM(H80:H82)+SUM(H87:H90) -> 11,000 | I91: 11,220 | J91: 11,444 | K91: 11,673 | L91: 11,907 | M91: 12,145
F93: Ertragsziel | I93: =Einstellungen!D7 -> 2019 | J93: =I93+1 -> 2020 | K93: =J93+1 -> 2021 | L93: 2022 | M93: 2023
G94: Zweckerfüllung Überschuss | I94: =I48+'Einn._Ausg.'!C11-'Einn._Ausg.'!C28-'Daten Projektion'!I78-(I48-I91)*Einstellungen!$D$30%-'Einn._Ausg.'!C8-'Einn._Ausg.'!C9 -> 8,678 | J94: =J48+'Einn._Ausg.'!D11-'Einn._Ausg.'!D28-'Daten Projektion'!J78-(J48-J91)*Einstellungen!$D$30%-'Einn._Ausg.'!D8-'Einn._Ausg.'!D9 -> 9,999 | K94: =K48+'Einn._Ausg.'!E11-'Einn._Ausg.'!E28-'Daten Projektion'!K78-(K48-K91)*Einstellungen!$D$30%-'Einn._Ausg.'!E8-'Einn._Ausg.'!E9 -> 9,818 | L94: =L48+'Einn._Ausg.'!F11-'Einn._Ausg.'!F28-'Daten Projektion'!L78-(L48-L91)*Einstellungen!$D$30%-'Einn._Ausg.'!F8-'Einn._Ausg.'!F9 -> 9,634 | M94: =M48+'Einn._Ausg.'!G11-'Einn._Ausg.'!G28-'Daten Projektion'!M78-(M48-M91)*Einstellungen!$D$30%-'Einn._Ausg.'!G8-'Einn._Ausg.'!G9 -> 9,447
G95: Zielsumme | I95: =Anlageziele!$M$7 -> 10,000 | J95: =Anlageziele!$M$7 -> 10,000 | K95: =Anlageziele!$M$7 -> 10,000 | L95: =Anlageziele!$M$7 -> 10,000 | M95: =Anlageziele!$M$7 -> 10,000
G96: Zielquote | I96: ='Daten VE'!$D$51*Anlageziele!$M$7% -> 600,000,000 | J96: ='Daten VE'!$D$51*Anlageziele!$M$7% -> 600,000,000 | K96: ='Daten VE'!$D$51*Anlageziele!$M$7% -> 600,000,000 | L96: ='Daten VE'!$D$51*Anlageziele!$M$7% -> 600,000,000 | M96: ='Daten VE'!$D$51*Anlageziele!$M$7% -> 600,000,000
G97: Sonstige Ausgaben | I97: ='Einn._Ausg.'!C28+'Daten Projektion'!I91+('Daten Projektion'!I48-'Daten Projektion'!I78)*Einstellungen!$D$30% -> 54,822 | J97: ='Einn._Ausg.'!D28+'Daten Projektion'!J91+('Daten Projektion'!J48-'Daten Projektion'!J78)*Einstellungen!$D$30% -> 54,250 | K97: ='Einn._Ausg.'!E28+'Daten Projektion'!K91+('Daten Projektion'!K48-'Daten Projektion'!K78)*Einstellungen!$D$30% -> 55,196 | L97: ='Einn._Ausg.'!F28+'Daten Projektion'!L91+('Daten Projektion'!L48-'Daten Projektion'!L78)*Einstellungen!$D$30% -> 56,162 | M97: ='Einn._Ausg.'!G28+'Daten Projektion'!M91+('Daten Projektion'!M48-'Daten Projektion'!M78)*Einstellungen!$D$30% -> 57,148
G98: Ertragsziel Überschuss | I98: =I94+I97 -> 63,500 | J98: =J94+J97 -> 64,249 | K98: 65,014 | L98: 65,796 | M98: 66,595
G99: Ertragsziel Zielsumme | I99: =I95+I97 -> 64,822 | J99: =J95+J97 -> 64,250 | K99: 65,196 | L99: 66,162 | M99: 67,148
G100: Ertragsziel Zielquote | I100: =I96+I97 -> 600,054,822 | J100: =J96+J97 -> 600,054,250 | K100: 600,055,196 | L100: 600,056,162 | M100: 600,057,148
F102: Cockpit Grafik Erträge | I102: =I93 -> 2019 | J102: =J93 -> 2020 | K102: =K93 -> 2021 | L102: =L93 -> 2022 | M102: =M93 -> 2023
F103: Ertragsziel | G103: =Anlageziele!M5 -> Zielausschüttung als Betrag | I103: =IF(Anlageziele!$M$5="Überschuss",'Daten Projektion'!I98,IF(Anlageziele!$M$5='Daten Einstellg_Ziele'!$D$21,'Daten Projektion'!I99,I100)) -> 64,822 | J103: =IF(Anlageziele!$M$5="Überschuss",'Daten Projektion'!J98,IF(Anlageziele!$M$5='Daten Einstellg_Ziele'!$D$21,'Daten Projektion'!J99,J100)) -> 64,250 | K103: =IF(Anlageziele!$M$5="Überschuss",'Daten Projektion'!K98,IF(Anlageziele!$M$5='Daten Einstellg_Ziele'!$D$21,'Daten Projektion'!K99,K100)) -> 65,196 | L103: =IF(Anlageziele!$M$5="Überschuss",'Daten Projektion'!L98,IF(Anlageziele!$M$5='Daten Einstellg_Ziele'!$D$21,'Daten Projektion'!L99,L100)) -> 66,162 | M103: =IF(Anlageziele!$M$5="Überschuss",'Daten Projektion'!M98,IF(Anlageziele!$M$5='Daten Einstellg_Ziele'!$D$21,'Daten Projektion'!M99,M100)) -> 67,148
G104: Status quo/Projektion | I104: =I61 -> 58,500 | J104: =J61 -> 59,249 | K104: =K61 -> 60,014 | L104: =L61 -> 60,796 | M104: =M61 -> 61,595
F106: Freie Rücklage | G106: FR Ertragsziel Überschuss | I106: =('Daten Projektion'!I61-I91)*Einstellungen!$D$30% -> 15,602 | J106: =('Daten Projektion'!J61-J91)*Einstellungen!$D$30% -> 15,775 | K106: =('Daten Projektion'!K61-K91)*Einstellungen!$D$30% -> 15,952 | L106: =('Daten Projektion'!L61-L91)*Einstellungen!$D$30% -> 16,133 | M106: =('Daten Projektion'!M61-M91)*Einstellungen!$D$30% -> 16,319
G107: Einnahmen | I107: ='Zahlen Basis'!F31 -> 63,500 | J107: ='Zahlen Basis'!G31 -> 64,249 | K107: ='Zahlen Basis'!H31 -> 65,014 | L107: ='Zahlen Basis'!I31 -> 65,796 | M107: ='Zahlen Basis'!J31 -> 66,595
G108: Zielausschüttung Ausgaben o. FR | I108: =SUM('Zahlen Basis'!F40:F42)+'Zahlen Basis'!F46+'Zahlen Basis'!F47+'Zahlen Basis'!F48+'Zahlen Basis'!F50 -> 52,220 | J108: =SUM('Zahlen Basis'!G40:G42)+'Zahlen Basis'!G46+'Zahlen Basis'!G47+'Zahlen Basis'!G48+'Zahlen Basis'!G50 -> 51,534 | K108: =SUM('Zahlen Basis'!H40:H42)+'Zahlen Basis'!H46+'Zahlen Basis'!H47+'Zahlen Basis'!H48+'Zahlen Basis'!H50 -> 52,365 | L108: =SUM('Zahlen Basis'!I40:I42)+'Zahlen Basis'!I46+'Zahlen Basis'!I47+'Zahlen Basis'!I48+'Zahlen Basis'!I50 -> 53,212 | M108: =SUM('Zahlen Basis'!J40:J42)+'Zahlen Basis'!J46+'Zahlen Basis'!J47+'Zahlen Basis'!J48+'Zahlen Basis'!J50 -> 54,077
G109: Differenz | I109: =I107-I108 -> 11,280 | J109: =J107-J108 -> 12,714 | K109: 12,649 | L109: 12,584 | M109: 12,519
G110: FR Zielausschüttung | I110: =IF(I109>I106,I106,I109) -> 11,280 | J110: =IF(J109>J106,J106,J109) -> 12,714 | K110: 12,649 | L110: 12,584 | M110: 12,519
F112: Risiko: Vermögen Worst Case Basiszenario
E114: =E5 -> Nr. | F114: Vermögensgegenstand | G114: Anlageklasse | H114: Wert EUR | I114: 2019 | J114: 2020 | K114: 2021 | L114: 2022 | M114: 2023
E115: =E6 -> 1 | F115: Vermögensverwaltung A-Bank Aktien | G115: Aktien | H115: 650,000 | I115: =IF(I$114>=Annahmen!$L7,0,IF(I$114=Annahmen!$K7,'Daten Projektion'!H115+'Daten Projektion'!H115*Annahmen!$I7,'Daten Projektion'!H115+'Daten Projektion'!H115*Annahmen!$D7)) -> 669,500 | J115: =IF(J114>=Annahmen!$L$7,0,IF(J114=Annahmen!$K$7,'Daten Projektion'!I115+'Daten Projektion'!I115*Annahmen!$I$7,'Daten Projektion'!I115+'Daten Projektion'!I115*Annahmen!$D$7)) -> 468,650 | K115: =IF(K114>=Annahmen!$L$7,0,IF(K114=Annahmen!$K$7,'Daten Projektion'!J115+'Daten Projektion'!J115*Annahmen!$I$7,'Daten Projektion'!J115+'Daten Projektion'!J115*Annahmen!$D$7)) -> 482,710 | L115: =IF(L114>=Annahmen!$L$7,0,IF(L114=Annahmen!$K$7,'Daten Projektion'!K115+'Daten Projektion'!K115*Annahmen!$I$7,'Daten Projektion'!K115+'Daten Projektion'!K115*Annahmen!$D$7)) -> 497,191 | M115: =IF(M114>=Annahmen!$L$7,0,IF(M114=Annahmen!$K$7,'Daten Projektion'!L115+'Daten Projektion'!L115*Annahmen!$I$7,'Daten Projektion'!L115+'Daten Projektion'!L115*Annahmen!$D$7)) -> 512,107
E116: 2 | F116: Vermögensverwaltung A-Bank Renten | G116: Renten | H116: 5,200,000 | I116: =IF(I$114>=Annahmen!$L8,0,IF(I$114=Annahmen!$K8,'Daten Projektion'!H116+'Daten Projektion'!H116*Annahmen!$I8,'Daten Projektion'!H116+'Daten Projektion'!H116*Annahmen!$D8)) -> 5,226,000 | J116: =IF(J$114>=Annahmen!$L8,0,IF(J$114=Annahmen!$K8,'Daten Projektion'!I116+'Daten Projektion'!I116*Annahmen!$I8,'Daten Projektion'!I116+'Daten Projektion'!I116*Annahmen!$D8)) -> 4,703,400 | K116: =IF(K$114>=Annahmen!$L8,0,IF(K$114=Annahmen!$K8,'Daten Projektion'!J116+'Daten Projektion'!J116*Annahmen!$I8,'Daten Projektion'!J116+'Daten Projektion'!J116*Annahmen!$D8)) -> 4,726,917 | L116: =IF(L$114>=Annahmen!$L8,0,IF(L$114=Annahmen!$K8,'Daten Projektion'!K116+'Daten Projektion'!K116*Annahmen!$I8,'Daten Projektion'!K116+'Daten Projektion'!K116*Annahmen!$D8)) -> 4,750,552 | M116: =IF(M$114>=Annahmen!$L8,0,IF(M$114=Annahmen!$K8,'Daten Projektion'!L116+'Daten Projektion'!L116*Annahmen!$I8,'Daten Projektion'!L116+'Daten Projektion'!L116*Annahmen!$D8)) -> 4,774,304
E117: 3 | F117: Stiftungsfonds Xy | G117: Renten | H117: 250,000 | I117: =IF(I$114>=Annahmen!$L9,0,IF(I$114=Annahmen!$K9,'Daten Projektion'!H117+'Daten Projektion'!H117*Annahmen!$I9,'Daten Projektion'!H117+'Daten Projektion'!H117*Annahmen!$D9)) -> 251,250 | J117: =IF(J$114>=Annahmen!$L9,0,IF(J$114=Annahmen!$K9,'Daten Projektion'!I117+'Daten Projektion'!I117*Annahmen!$I9,'Daten Projektion'!I117+'Daten Projektion'!I117*Annahmen!$D9)) -> 251,250 | K117: =IF(K$114>=Annahmen!$L9,0,IF(K$114=Annahmen!$K9,'Daten Projektion'!J117+'Daten Projektion'!J117*Annahmen!$I9,'Daten Projektion'!J117+'Daten Projektion'!J117*Annahmen!$D9)) -> 252,506 | L117: =IF(L$114>=Annahmen!$L9,0,IF(L$114=Annahmen!$K9,'Daten Projektion'!K117+'Daten Projektion'!K117*Annahmen!$I9,'Daten Projektion'!K117+'Daten Projektion'!K117*Annahmen!$D9)) -> 253,769 | M117: =IF(M$114>=Annahmen!$L9,0,IF(M$114=Annahmen!$K9,'Daten Projektion'!L117+'Daten Projektion'!L117*Annahmen!$I9,'Daten Projektion'!L117+'Daten Projektion'!L117*Annahmen!$D9)) -> 255,038
E118: 4 | F118: Immobilie | G118: Immobilien | H118: 500,000 | I118: =IF(I$114>=Annahmen!$L10,0,IF(I$114=Annahmen!$K10,'Daten Projektion'!H118+'Daten Projektion'!H118*Annahmen!$I10,'Daten Projektion'!H118+'Daten Projektion'!H118*Annahmen!$D10)) -> 505,000 | J118: =IF(J$114>=Annahmen!$L10,0,IF(J$114=Annahmen!$K10,'Daten Projektion'!I118+'Daten Projektion'!I118*Annahmen!$I10,'Daten Projektion'!I118+'Daten Projektion'!I118*Annahmen!$D10)) -> 505,000 | K118: =IF(K$114>=Annahmen!$L10,0,IF(K$114=Annahmen!$K10,'Daten Projektion'!J118+'Daten Projektion'!J118*Annahmen!$I10,'Daten Projektion'!J118+'Daten Projektion'!J118*Annahmen!$D10)) -> 510,050 | L118: =IF(L$114>=Annahmen!$L10,0,IF(L$114=Annahmen!$K10,'Daten Projektion'!K118+'Daten Projektion'!K118*Annahmen!$I10,'Daten Projektion'!K118+'Daten Projektion'!K118*Annahmen!$D10)) -> 515,151 | M118: =IF(M$114>=Annahmen!$L10,0,IF(M$114=Annahmen!$K10,'Daten Projektion'!L118+'Daten Projektion'!L118*Annahmen!$I10,'Daten Projektion'!L118+'Daten Projektion'!L118*Annahmen!$D10)) -> 520,302
E119: 5 | F119: Bankguthaben B-Bank | G119: Kontoguthaben | H119: 1,000,000 | I119: =IF(I$114>=Annahmen!$L11,0,IF(I$114=Annahmen!$K11,'Daten Projektion'!H119+'Daten Projektion'!H119*Annahmen!$I11,'Daten Projektion'!H119+'Daten Projektion'!H119*Annahmen!$D11)) -> 1,000,000 | J119: =IF(J$114>=Annahmen!$L11,0,IF(J$114=Annahmen!$K11,'Daten Projektion'!I119+'Daten Projektion'!I119*Annahmen!$I11,'Daten Projektion'!I119+'Daten Projektion'!I119*Annahmen!$D11)) -> 1,000,000 | K119: =IF(K$114>=Annahmen!$L11,0,IF(K$114=Annahmen!$K11,'Daten Projektion'!J119+'Daten Projektion'!J119*Annahmen!$I11,'Daten Projektion'!J119+'Daten Projektion'!J119*Annahmen!$D11)) -> 1,000,000 | L119: =IF(L$114>=Annahmen!$L11,0,IF(L$114=Annahmen!$K11,'Daten Projektion'!K119+'Daten Projektion'!K119*Annahmen!$I11,'Daten Projektion'!K119+'Daten Projektion'!K119*Annahmen!$D11)) -> 1,000,000 | M119: =IF(M$114>=Annahmen!$L11,0,IF(M$114=Annahmen!$K11,'Daten Projektion'!L119+'Daten Projektion'!L119*Annahmen!$I11,'Daten Projektion'!L119+'Daten Projektion'!L119*Annahmen!$D11)) -> 1,000,000
E120: 6 | F120: 0 | G120: Bitte auswählen | H120: 0 | I120: =IF(I$114>=Annahmen!$L12,0,IF(I$114=Annahmen!$K12,'Daten Projektion'!H120+'Daten Projektion'!H120*Annahmen!$I12,'Daten Projektion'!H120+'Daten Projektion'!H120*Annahmen!$D12)) -> 0 | J120: =IF(J$114>=Annahmen!$L12,0,IF(J$114=Annahmen!$K12,'Daten Projektion'!I120+'Daten Projektion'!I120*Annahmen!$I12,'Daten Projektion'!I120+'Daten Projektion'!I120*Annahmen!$D12)) -> 0 | K120: =IF(K$114>=Annahmen!$L12,0,IF(K$114=Annahmen!$K12,'Daten Projektion'!J120+'Daten Projektion'!J120*Annahmen!$I12,'Daten Projektion'!J120+'Daten Projektion'!J120*Annahmen!$D12)) -> 0 | L120: =IF(L$114>=Annahmen!$L12,0,IF(L$114=Annahmen!$K12,'Daten Projektion'!K120+'Daten Projektion'!K120*Annahmen!$I12,'Daten Projektion'!K120+'Daten Projektion'!K120*Annahmen!$D12)) -> 0 | M120: =IF(M$114>=Annahmen!$L12,0,IF(M$114=Annahmen!$K12,'Daten Projektion'!L120+'Daten Projektion'!L120*Annahmen!$I12,'Daten Projektion'!L120+'Daten Projektion'!L120*Annahmen!$D12)) -> 0
E121: 7 | F121: 0 | G121: Bitte auswählen | H121: 0 | I121: =IF(I$114>=Annahmen!$L13,0,IF(I$114=Annahmen!$K13,'Daten Projektion'!H121+'Daten Projektion'!H121*Annahmen!$I13,'Daten Projektion'!H121+'Daten Projektion'!H121*Annahmen!$D13)) -> 0 | J121: =IF(J$114>=Annahmen!$L13,0,IF(J$114=Annahmen!$K13,'Daten Projektion'!I121+'Daten Projektion'!I121*Annahmen!$I13,'Daten Projektion'!I121+'Daten Projektion'!I121*Annahmen!$D13)) -> 0 | K121: =IF(K$114>=Annahmen!$L13,0,IF(K$114=Annahmen!$K13,'Daten Projektion'!J121+'Daten Projektion'!J121*Annahmen!$I13,'Daten Projektion'!J121+'Daten Projektion'!J121*Annahmen!$D13)) -> 0 | L121: =IF(L$114>=Annahmen!$L13,0,IF(L$114=Annahmen!$K13,'Daten Projektion'!K121+'Daten Projektion'!K121*Annahmen!$I13,'Daten Projektion'!K121+'Daten Projektion'!K121*Annahmen!$D13)) -> 0 | M121: =IF(M$114>=Annahmen!$L13,0,IF(M$114=Annahmen!$K13,'Daten Projektion'!L121+'Daten Projektion'!L121*Annahmen!$I13,'Daten Projektion'!L121+'Daten Projektion'!L121*Annahmen!$D13)) -> 0
E122: 8 | F122: 0 | G122: Bitte auswählen | H122: 0 | I122: =IF(I$114>=Annahmen!$L14,0,IF(I$114=Annahmen!$K14,'Daten Projektion'!H122+'Daten Projektion'!H122*Annahmen!$I14,'Daten Projektion'!H122+'Daten Projektion'!H122*Annahmen!$D14)) -> 0 | J122: =IF(J$114>=Annahmen!$L14,0,IF(J$114=Annahmen!$K14,'Daten Projektion'!I122+'Daten Projektion'!I122*Annahmen!$I14,'Daten Projektion'!I122+'Daten Projektion'!I122*Annahmen!$D14)) -> 0 | K122: =IF(K$114>=Annahmen!$L14,0,IF(K$114=Annahmen!$K14,'Daten Projektion'!J122+'Daten Projektion'!J122*Annahmen!$I14,'Daten Projektion'!J122+'Daten Projektion'!J122*Annahmen!$D14)) -> 0 | L122: =IF(L$114>=Annahmen!$L14,0,IF(L$114=Annahmen!$K14,'Daten Projektion'!K122+'Daten Projektion'!K122*Annahmen!$I14,'Daten Projektion'!K122+'Daten Projektion'!K122*Annahmen!$D14)) -> 0 | M122: =IF(M$114>=Annahmen!$L14,0,IF(M$114=Annahmen!$K14,'Daten Projektion'!L122+'Daten Projektion'!L122*Annahmen!$I14,'Daten Projektion'!L122+'Daten Projektion'!L122*Annahmen!$D14)) -> 0
E123: 9 | F123: 0 | G123: Bitte auswählen | H123: 0 | I123: =IF(I$114>=Annahmen!$L15,0,IF(I$114=Annahmen!$K15,'Daten Projektion'!H123+'Daten Projektion'!H123*Annahmen!$I15,'Daten Projektion'!H123+'Daten Projektion'!H123*Annahmen!$D15)) -> 0 | J123: =IF(J$114>=Annahmen!$L15,0,IF(J$114=Annahmen!$K15,'Daten Projektion'!I123+'Daten Projektion'!I123*Annahmen!$I15,'Daten Projektion'!I123+'Daten Projektion'!I123*Annahmen!$D15)) -> 0 | K123: =IF(K$114>=Annahmen!$L15,0,IF(K$114=Annahmen!$K15,'Daten Projektion'!J123+'Daten Projektion'!J123*Annahmen!$I15,'Daten Projektion'!J123+'Daten Projektion'!J123*Annahmen!$D15)) -> 0 | L123: =IF(L$114>=Annahmen!$L15,0,IF(L$114=Annahmen!$K15,'Daten Projektion'!K123+'Daten Projektion'!K123*Annahmen!$I15,'Daten Projektion'!K123+'Daten Projektion'!K123*Annahmen!$D15)) -> 0 | M123: =IF(M$114>=Annahmen!$L15,0,IF(M$114=Annahmen!$K15,'Daten Projektion'!L123+'Daten Projektion'!L123*Annahmen!$I15,'Daten Projektion'!L123+'Daten Projektion'!L123*Annahmen!$D15)) -> 0
E124: 10 | F124: 0 | G124: Bitte auswählen | H124: 0 | I124: =IF(I$114>=Annahmen!$L16,0,IF(I$114=Annahmen!$K16,'Daten Projektion'!H124+'Daten Projektion'!H124*Annahmen!$I16,'Daten Projektion'!H124+'Daten Projektion'!H124*Annahmen!$D16)) -> 0 | J124: =IF(J$114>=Annahmen!$L16,0,IF(J$114=Annahmen!$K16,'Daten Projektion'!I124+'Daten Projektion'!I124*Annahmen!$I16,'Daten Projektion'!I124+'Daten Projektion'!I124*Annahmen!$D16)) -> 0 | K124: =IF(K$114>=Annahmen!$L16,0,IF(K$114=Annahmen!$K16,'Daten Projektion'!J124+'Daten Projektion'!J124*Annahmen!$I16,'Daten Projektion'!J124+'Daten Projektion'!J124*Annahmen!$D16)) -> 0 | L124: =IF(L$114>=Annahmen!$L16,0,IF(L$114=Annahmen!$K16,'Daten Projektion'!K124+'Daten Projektion'!K124*Annahmen!$I16,'Daten Projektion'!K124+'Daten Projektion'!K124*Annahmen!$D16)) -> 0 | M124: =IF(M$114>=Annahmen!$L16,0,IF(M$114=Annahmen!$K16,'Daten Projektion'!L124+'Daten Projektion'!L124*Annahmen!$I16,'Daten Projektion'!L124+'Daten Projektion'!L124*Annahmen!$D16)) -> 0
E125: 11 | F125: 0 | G125: Bitte auswählen | H125: 0 | I125: =IF(I$114>=Annahmen!$L17,0,IF(I$114=Annahmen!$K17,'Daten Projektion'!H125+'Daten Projektion'!H125*Annahmen!$I17,'Daten Projektion'!H125+'Daten Projektion'!H125*Annahmen!$D17)) -> 0 | J125: =IF(J$114>=Annahmen!$L17,0,IF(J$114=Annahmen!$K17,'Daten Projektion'!I125+'Daten Projektion'!I125*Annahmen!$I17,'Daten Projektion'!I125+'Daten Projektion'!I125*Annahmen!$D17)) -> 0 | K125: =IF(K$114>=Annahmen!$L17,0,IF(K$114=Annahmen!$K17,'Daten Projektion'!J125+'Daten Projektion'!J125*Annahmen!$I17,'Daten Projektion'!J125+'Daten Projektion'!J125*Annahmen!$D17)) -> 0 | L125: =IF(L$114>=Annahmen!$L17,0,IF(L$114=Annahmen!$K17,'Daten Projektion'!K125+'Daten Projektion'!K125*Annahmen!$I17,'Daten Projektion'!K125+'Daten Projektion'!K125*Annahmen!$D17)) -> 0 | M125: =IF(M$114>=Annahmen!$L17,0,IF(M$114=Annahmen!$K17,'Daten Projektion'!L125+'Daten Projektion'!L125*Annahmen!$I17,'Daten Projektion'!L125+'Daten Projektion'!L125*Annahmen!$D17)) -> 0
E126: 12 | F126: 0 | G126: Bitte auswählen | H126: 0 | I126: =IF(I$114>=Annahmen!$L18,0,IF(I$114=Annahmen!$K18,'Daten Projektion'!H126+'Daten Projektion'!H126*Annahmen!$I18,'Daten Projektion'!H126+'Daten Projektion'!H126*Annahmen!$D18)) -> 0 | J126: =IF(J$114>=Annahmen!$L18,0,IF(J$114=Annahmen!$K18,'Daten Projektion'!I126+'Daten Projektion'!I126*Annahmen!$I18,'Daten Projektion'!I126+'Daten Projektion'!I126*Annahmen!$D18)) -> 0 | K126: =IF(K$114>=Annahmen!$L18,0,IF(K$114=Annahmen!$K18,'Daten Projektion'!J126+'Daten Projektion'!J126*Annahmen!$I18,'Daten Projektion'!J126+'Daten Projektion'!J126*Annahmen!$D18)) -> 0 | L126: =IF(L$114>=Annahmen!$L18,0,IF(L$114=Annahmen!$K18,'Daten Projektion'!K126+'Daten Projektion'!K126*Annahmen!$I18,'Daten Projektion'!K126+'Daten Projektion'!K126*Annahmen!$D18)) -> 0 | M126: =IF(M$114>=Annahmen!$L18,0,IF(M$114=Annahmen!$K18,'Daten Projektion'!L126+'Daten Projektion'!L126*Annahmen!$I18,'Daten Projektion'!L126+'Daten Projektion'!L126*Annahmen!$D18)) -> 0
F127: Summe | H127: =SUM(H115:H126) -> 7,600,000 | I127: =SUM(I115:I126) -> 7,651,750 | J127: 6,928,300 | K127: 6,972,183 | L127: 7,016,662 | M127: 7,061,750
F129: Vermögen Worst Case nach AK | G129: Immobilien | H129: =SUMIF($G115:$G126,G129,H115:H126) -> 500,000 | I129: =SUMIF($G$115:$G$126,$G$129,I$115:$I126) -> 505,000 | J129: =SUMIF($G$115:$G$126,$G$129,$J$115:J126) -> 505,000 | K129: =SUMIF($G$115:$G$126,$G$129,$K$115:K126) -> 510,050 | L129: =SUMIF($G$115:$G$126,$G$129,$L$115:L126) -> 515,151 | M129: =SUMIF($G$115:$G$126,$G$129,$M$115:M126) -> 520,302
G130: Beteiligungen | H130: =SUMIF($G115:$G126,G130,H115:H126) -> 0 | I130: =SUMIF($G115:$G126,H130,I115:I126) -> 0 | J130: 0 | K130: 0 | L130: 0 | M130: 0
G131: Wertpapiere | H131: =SUM(H132:H135) -> 6,100,000 | I131: 6,146,750 | J131: 5,423,300 | K131: 5,462,133 | L131: 5,501,511 | M131: 5,541,448
G132: davon Aktien | H132: =SUMIF($G$115:$G$126,"Aktien",$H$115:$H$126) -> 650,000 | I132: =SUMIF($G$115:$G$126,"Aktien",I$115:I$126) -> 669,500 | J132: =SUMIF($G$115:$G$126,"Aktien",J$115:J$126) -> 468,650 | K132: 482,710 | L132: 497,191 | M132: 512,107
G133: davon Renten | H133: =SUMIF($G$115:$G$126,"Renten",H$115:H$126) -> 5,450,000 | I133: =SUMIF($G$115:$G$126,"Renten",I$115:I$126) -> 5,477,250 | J133: 4,954,650 | K133: 4,979,423 | L133: 5,004,320 | M133: 5,029,342
G134: davon Liquidität | H134: =SUMIF($G$115:$G$126,"Liquididtät",H115:H126) -> 0 | I134: =SUMIF($G$115:$G$126,"Liquididtät",I115:I126) -> 0 | J134: 0 | K134: 0 | L134: 0 | M134: 0
G135: davon Alternative Investments | H135: =SUMIF($G$115:$G$126,"Alternative Investments",H115:H126) -> 0 | I135: =SUMIF($G$115:$G$126,"Alternative Investments",I115:I126) -> 0 | J135: 0 | K135: 0 | L135: 0 | M135: 0
G136: Spar- und Termineinlagen | H136: =SUMIF($G$115:$G$126,"Spar- u. Termineinlagen",H115:H126) -> 0 | I136: =SUMIF($G$115:$G$126,"Spar- u. Termineinlagen",I115:I126) -> 0 | J136: 0 | K136: 0 | L136: 0 | M136: 0
G137: Kontoguthaben Investitionsvermögen | H137: =SUMIF($G$6:$G$17,"Kontoguthaben",H115:H126) -> 1,000,000 | I137: =SUMIF($G$6:$G$17,"Kontoguthaben",I115:I126) -> 1,000,000 | J137: 1,000,000 | K137: 1,000,000 | L137: 1,000,000 | M137: 1,000,000
G138: Sonstiges Vermögen | H138: =SUMIF($G$115:$G$126,"Sonstiges Vermögen",H115:H126) -> 0 | I138: =SUMIF($G$115:$G$126,"Sonstiges Vermögen",I115:I126) -> 0 | J138: 0 | K138: 0 | L138: 0 | M138: 0
G139: Verbindlichkeiten | H139: =SUMIF($G$115:$G$126,"Verbindlichkeiten",H115:H126) -> 0 | I139: =SUMIF($G$115:$G$126,"Verbindlichkeiten",I115:I126) -> 0 | J139: 0 | K139: 0 | L139: 0 | M139: 0
G140: Summe | H140: =SUM(H129:H131)+SUM(H136:H139) -> 7,600,000 | I140: 7,651,750 | J140: 6,928,300 | K140: 6,972,183 | L140: 7,016,662 | M140: 7,061,750
I142: =I114 -> 2019 | J142: =J114 -> 2020 | K142: 2021 | L142: 2022 | M142: 2023
F143: Cockpit Grafik Risiko | G143: Maximalverlust Projektion | I143: =I140 -> 7,651,750 | J143: =J140 -> 6,928,300 | K143: 6,972,183 | L143: 7,016,662 | M143: 7,061,750
G144: Risikoziel Investitionsvermögen | I144: ='Daten VE'!I45-'Daten VE'!I45*Anlageziele!$E$21 -> 7,341,075 | J144: ='Daten VE'!J45-'Daten VE'!J45*Anlageziele!$E$21 -> 7,487,896 | K144: ='Daten VE'!K45-'Daten VE'!K45*Anlageziele!$E$21 -> 7,637,654 | L144: ='Daten VE'!L45-'Daten VE'!L45*Anlageziele!$E$21 -> 7,790,407 | M144: ='Daten VE'!M45-'Daten VE'!M45*Anlageziele!$E$21 -> 7,946,215
G145: Risikoziel Grundstock | I145: ='Daten VE'!I39-'Daten VE'!I39*Anlageziele!E19 -> 6,000,000 | J145: ='Daten VE'!J39-'Daten VE'!J39*Anlageziele!F19 -> 6,000,000 | K145: ='Daten VE'!K39-'Daten VE'!K39*Anlageziele!G19 -> 6,000,000 | L145: ='Daten VE'!L39-'Daten VE'!L39*Anlageziele!H19 -> 6,000,000 | M145: ='Daten VE'!M39-'Daten VE'!M39*Anlageziele!I19 -> 6,000,000
F147: Nachhaltigkeit
C149: Nachhaltigkeit | E149: =Vermentw.!B4 -> Nr. | F149: =Vermentw.!C4 -> Vermögensgegenstand (Bezeichnung) | G149: =Vermentw.!H4 -> Nachhaltigkeit | H149: =Vermentw.!D4 -> Wert EUR | I149: =I142 -> 2019 | J149: =J142 -> 2020 | K149: =K142 -> 2021 | L149: =L142 -> 2022 | M149: =M142 -> 2023
E150: =Vermentw.!B5 -> 1 | F150: =Vermentw.!C5 -> Vermögensverwaltung A-Bank Aktien | G150: =Vermentw.!H5 -> Engagement | H150: =H6 -> 650,000 | I150: 669,500 | J150: 689,585 | K150: 710,273 | L150: 731,581 | M150: 753,528
E151: =Vermentw.!B6 -> 2 | F151: =Vermentw.!C6 -> Vermögensverwaltung A-Bank Renten | G151: =Vermentw.!H6 -> Best in Class | H151: 5,200,000 | I151: 5,226,000 | J151: 5,252,130 | K151: 5,278,391 | L151: 5,304,783 | M151: 5,331,307
E152: =Vermentw.!B7 -> 3 | F152: =Vermentw.!C7 -> Stiftungsfonds Xy | G152: =Vermentw.!H7 -> Ausschluss | H152: 250,000 | I152: 251,250 | J152: 252,506 | K152: 253,769 | L152: 255,038 | M152: 256,313
E153: =Vermentw.!B8 -> 4 | F153: =Vermentw.!C8 -> Immobilie | G153: =Vermentw.!H8 -> Zweckkonform | H153: 500,000 | I153: 505,000 | J153: 510,050 | K153: 515,151 | L153: 520,302 | M153: 525,505
E154: =Vermentw.!B9 -> 5 | F154: =Vermentw.!C9 -> Bankguthaben B-Bank | G154: =Vermentw.!H9 -> Keine | H154: 1,000,000 | I154: 1,000,000 | J154: 1,000,000 | K154: 1,000,000 | L154: 1,000,000 | M154: 1,000,000
E155: =Vermentw.!B10 -> 6 | F155: =Vermentw.!C10 -> 0 | G155: =Vermentw.!H10 -> Bitte ausw. | H155: 0 | I155: 0 | J155: 0 | K155: 0 | L155: 0 | M155: 0
E156: =Vermentw.!B11 -> 7 | F156: =Vermentw.!C11 -> 0 | G156: =Vermentw.!H11 -> Bitte ausw. | H156: 0 | I156: 0 | J156: 0 | K156: 0 | L156: 0 | M156: 0
E157: =Vermentw.!B12 -> 8 | F157: =Vermentw.!C12 -> 0 | G157: =Vermentw.!H12 -> Bitte ausw. | H157: 0 | I157: 0 | J157: 0 | K157: 0 | L157: 0 | M157: 0
E158: =Vermentw.!B13 -> 9 | F158: =Vermentw.!C13 -> 0 | G158: =Vermentw.!H13 -> Bitte ausw. | H158: 0 | I158: 0 | J158: 0 | K158: 0 | L158: 0 | M158: 0
E159: =Vermentw.!B14 -> 10 | F159: =Vermentw.!C14 -> 0 | G159: =Vermentw.!H14 -> Bitte ausw. | H159: 0 | I159: 0 | J159: 0 | K159: 0 | L159: 0 | M159: 0
E160: =Vermentw.!B15 -> 11 | F160: =Vermentw.!C15 -> 0 | G160: =Vermentw.!H15 -> Bitte ausw. | H160: 0 | I160: 0 | J160: 0 | K160: 0 | L160: 0 | M160: 0
E161: =Vermentw.!B16 -> 12 | F161: =Vermentw.!C16 -> 0 | G161: =Vermentw.!H16 -> Bitte ausw. | H161: 0 | I161: 0 | J161: 0 | K161: 0 | L161: 0 | M161: 0
F162: Summe | H162: =SUM(H150:H161) -> 7,600,000 | I162: =SUM(I150:I161) -> 7,651,750 | J162: 7,704,271 | K162: 7,757,582 | L162: 7,811,703 | M162: 7,866,653
F164: Vermögen nach Nachhaltigkeit | I164: =I149 -> 2019 | J164: =J149 -> 2020 | K164: 2021 | L164: 2022 | M164: 2023
G165: Ausschluss | H165: =SUMIF($G$150:$G$161,$G165,$H$150:$H$161) -> 250,000 | I165: =SUMIF($G$150:$G$161,$G$165,I150:I161) -> 251,250 | J165: =SUMIF($G$150:$G$161,$G$165,J150:J161) -> 252,506 | K165: =SUMIF($G$150:$G$161,$G$165,K150:K161) -> 253,769 | L165: =SUMIF($G$150:$G$161,$G$165,L150:L161) -> 255,038 | M165: =SUMIF($G$150:$G$161,$G$165,M150:M161) -> 256,313
G166: Zweckkonform | H166: =SUMIF($G$150:$G$161,$G166,H$150:H$161) -> 500,000 | I166: =SUMIF($G$150:$G$161,$G166,I$150:I$161) -> 505,000 | J166: 510,050 | K166: 515,151 | L166: 520,302 | M166: 525,505
G167: Best in Class | H167: =SUMIF($G$150:$G$161,$G167,H$150:H$161) -> 5,200,000 | I167: 5,226,000 | J167: 5,252,130 | K167: 5,278,391 | L167: 5,304,783 | M167: 5,331,307
G168: Engagement | H168: =SUMIF($G$150:$G$161,$G168,H$150:H$161) -> 650,000 | I168: 669,500 | J168: 689,585 | K168: 710,273 | L168: 731,581 | M168: 753,528
G169: Impact Investing | H169: =SUMIF($G$150:$G$161,$G169,H$150:H$161) -> 0 | I169: 0 | J169: 0 | K169: 0 | L169: 0 | M169: 0
G170: Summe Nachhaltigkeit | H170: =SUM(H165:H169) -> 6,600,000 | I170: 6,651,750 | J170: 6,704,271 | K170: 6,757,582 | L170: 6,811,703 | M170: 6,866,653
G171: Quote Nachhaltigkeit | H171: =H170-H165 -> 6,350,000 | I171: =I170/I18 -> 86.9% | J171: =J170/J18 -> 87.0% | K171: 87.1% | L171: 87.2% | M171: 87.3%
F172: Projektion Auswahl | G172: =Anlageziele!L22 -> Best in Class | H172: =SUMIF($G$165:$G$169,Anlageziele!$L$22,'Daten Projektion'!H165:H169) -> 5,200,000 | I172: =SUMIF($G$165:$G$169,Anlageziele!$L$22,'Daten Projektion'!I165:I169) -> 5,226,000 | J172: =SUMIF($G$165:$G$169,Anlageziele!$L$22,'Daten Projektion'!J165:J169) -> 5,252,130 | K172: =SUMIF($G$165:$G$169,Anlageziele!$L$22,'Daten Projektion'!K165:K169) -> 5,278,391 | L172: =SUMIF($G$165:$G$169,Anlageziele!$L$22,'Daten Projektion'!L165:L169) -> 5,304,783 | M172: =SUMIF($G$165:$G$169,Anlageziele!$L$22,'Daten Projektion'!M165:M169) -> 5,331,307
F173: Ziel Auswahl | G173: =Anlageziele!L22 -> Best in Class | H173: =SUMIF($G$165:$G$169,Anlageziele!$L$22,'Daten Projektion'!H165:H169) -> 5,200,000 | I173: =IF(I164>=Anlageziele!$L$19,'Daten Projektion'!I18*Anlageziele!$M$22,0) -> 0 | J173: =IF(J164>=Anlageziele!$L$19,'Daten Projektion'!J18*Anlageziele!$M$22,0) -> 0 | K173: =IF(K164>=Anlageziele!$L$19,'Daten Projektion'!K18*Anlageziele!$M$22,0) -> 775,758 | L173: =IF(L164>=Anlageziele!$L$19,'Daten Projektion'!L18*Anlageziele!$M$22,0) -> 781,170 | M173: =IF(M164>=Anlageziele!$L$19,'Daten Projektion'!M18*Anlageziele!$M$22,0) -> 786,665
F174: Ziel | G174: Impact Investing | I174: =IF(I164>=Anlageziele!$L$19,'Daten Projektion'!I18*Anlageziele!$M$21,0) -> 0 | J174: =IF(J164>=Anlageziele!$L$19,'Daten Projektion'!J18*Anlageziele!$M$21,0) -> 0 | K174: =IF(K164>=Anlageziele!$L$19,'Daten Projektion'!K18*Anlageziele!$M$21,0) -> 775,758 | L174: =IF(L164>=Anlageziele!$L$19,'Daten Projektion'!L18*Anlageziele!$M$21,0) -> 781,170 | M174: =IF(M164>=Anlageziele!$L$19,'Daten Projektion'!M18*Anlageziele!$M$21,0) -> 786,665
G175: Nachhaltigkeitsziel | H175: =H170*Anlageziele!$M$20 -> 4,950,000 | I175: =IF(I164>=Anlageziele!$L$19,'Daten Projektion'!I18*Anlageziele!$M$20,999) -> 999 | J175: =IF(J164>=Anlageziele!$L$19,'Daten Projektion'!J18*Anlageziele!$M$20,999) -> 999 | K175: =IF(K164>=Anlageziele!$L$19,'Daten Projektion'!K18*Anlageziele!$M$20,999) -> 5,818,187 | L175: =IF(L164>=Anlageziele!$L$19,'Daten Projektion'!L18*Anlageziele!$M$20,999) -> 5,858,777 | M175: =IF(M164>=Anlageziele!$L$19,'Daten Projektion'!M18*Anlageziele!$M$20,999) -> 5,899,989
G176: Differenz EUR | H176: =H127*Anlageziele!M20-'Daten Projektion'!H170 -> -900,000 | I176: =I175-I170 -> -6,650,751 | J176: =J175-J170 -> -6,703,272 | K176: -939,396 | L176: -952,926 | M176: -966,663
G177: Differenz Quote | I177: =I176/I175 -> -665740.8% | J177: =J176/J175 -> -670998.2% | K177: -16.1% | L177: -16.3% | M177: -16.4%
G178: Differenz Jahre | H178: =Anlageziele!L19-'Daten Projektion'!I164+1 -> 3 | I178: =Anlageziele!$L$19-'Daten Projektion'!I164 -> 2 | J178: =Anlageziele!$L$19-'Daten Projektion'!J164 -> 1 | K178: =Anlageziele!$L$19-'Daten Projektion'!K164 -> 0 | L178: =Anlageziele!$L$19-'Daten Projektion'!L164 -> -1 | M178: =Anlageziele!$L$19-'Daten Projektion'!M164 -> -2
G179: Teilquote | H179: =I177/H178 -> -221913.6%
F182: Grafik Vergleich BC WC | I182: =I164 -> 2019 | J182: =J164 -> 2020 | K182: 2021 | L182: 2022 | M182: 2023
G183: Vermögen Basiszenario | I183: =I31 -> 7,651,750 | J183: =J31 -> 7,704,271 | K183: =K31 -> 7,757,582 | L183: =L31 -> 7,811,703 | M183: =M31 -> 7,866,653
G184: Vermögen Worst Case | I184: =I140 -> 7,651,750 | J184: =J140 -> 6,928,300 | K184: 6,972,183 | L184: 7,016,662 | M184: 7,061,750
G185: Maximalverlust InvVerm. | I185: =I144 -> 7,341,075 | J185: =J144 -> 7,487,896 | K185: 7,637,654 | L185: 7,790,407 | M185: 7,946,215
G186: Maximalverlust Grundstock | I186: =I145 -> 6,000,000 | J186: =J145 -> 6,000,000 | K186: 6,000,000 | L186: 6,000,000 | M186: 6,000,000
F188: Attribution

Sheet Umschichtung
G4: Anschaffung | K4: Projektion Umschichtung | N4: Projektion Worst Case
B5: Nr. | C5: Vermögensgegenstand neu | D5: Anlageklasse | E5: Umschichung gegen Vermggst. alt | F5: Nachhaltigkeit | G5: Jahr | H5: Wert EUR | I5: Kosten % | J5: Kosten EUR | K5: Wertveränd. % p.a. | L5: Ertrag % p.a. | M5: Kosten EUR p.a. | N5: Max. Verlust % | O5: Verlustjahr
B6: U1 | C6: Aufstockung VV Aktien | D6: Aktien | E6: Bankguthaben B-Bank | F6: Best in Class | G6: 2020 | H6: 500,000 | I6: 0.0% | J6: =H6*I6 -> 0 | K6: 3.0% | L6: 2.0% | M6: 2,000 | N6: -30.0% | O6: 2020
B7: U2 | C7: ABC Stiftungsfonds | D7: Aktien | E7: Bankguthaben B-Bank | F7: Best in Class | G7: 2019 | H7: 500,000 | I7: 0.0% | J7: =H7*I7 -> 0 | K7: 1.5% | L7: 1.5% | M7: 0 | N7: -10.0% | O7: 2020
B8: U3 | E8: 0 | F8: Bitte ausw. | G8: Bitte ausw. | I8: 0.0% | J8: 0 | K8: 0.0% | L8: 0.0% | M8: 0 | N8: 0.0% | O8: Bitte ausw.
B9: U4 | F9: Bitte ausw. | G9: Bitte ausw. | H9: 0 | I9: 0.0% | J9: 0 | K9: 0.0% | L9: 0.0% | M9: 0 | N9: 0.0% | O9: Bitte ausw.
B10: U5 | F10: Bitte ausw. | G10: Bitte ausw. | H10: 0 | I10: 0.0% | J10: 0 | K10: 0.0% | L10: 0.0% | M10: 0 | N10: 0.0% | O10: Bitte ausw.
B11: U6 | F11: Bitte ausw. | G11: Bitte ausw. | H11: 0 | I11: 0.0% | J11: 0 | K11: 0.0% | L11: 0.0% | M11: 0 | N11: 0.0% | O11: Bitte ausw.
C14: Datum des Umschichtungsbeschlusses | D14: 2019-02-20
C15: Der Umschichtungsbeschluss erfolgt | D15: Bitte auswählen
C17: Informationsgrundlagen | D17: Typ | E17: Bezeichnung | F17: Datum
D18: Beratungsgespräch | E18: B-Bank | F18: 2019-02-15
D19: Bitte auswählen
D20: Bitte auswählen
D21: Bitte auswählen
D22: Bitte auswählen
D23: Bitte auswählen
D24: Bitte auswählen
D25: Bitte auswählen
C27: --- Ende der Eingaben ---

Sheet Umschichtungsbeschluss
A1: =Einstellungen!D5 -> Paradigma-Stiftung
A3: =IF(Einstellungen!K9="Vorstand","Vorstandsbeschluss vom",IF(Einstellungen!K9="Geschäftsführung","Beschluss der Geschäftsführung vom","Beschluss des Geschäftsführungsgremiums vom")) -> Vorstandsbeschluss vom | C3: =Umschichtung!D14 -> 2019-02-20 | E3: =IF(Umschichtung!D15="im Umlaufverfahren","(Auslauf)","") -> 
A5: 1. | B5: =IF(Umschichtung!D15="im Umlaufverfahren","Mit der Beschlussfassung im Umlaufverfahren besteht Einverständnis.","In seiner Sitzung vom oben genannten Datum hat das Geschäftsführungsorgan folgenden Beschluss gefasst.") -> In seiner Sitzung vom oben genannten Datum hat das Geschäftsführungsorgan folgenden Beschluss gefasst.
A7: 2. | B7: =IF(Einstellungen!K9="Vorstand","Der Vorstand",IF(Einstellungen!K9="Geschäftsführung","Die Geschäftsführung","Das Geschäftsführungsorgan")) -> Der Vorstand | C7: beschließt folgende Umschichtungen.
B9: Neuinvestition | C9: Abzubauende Position | E9: Wert EUR
B10: =Umschichtung!C6 -> Aufstockung VV Aktien | C10: =IF(Umschichtung!E6="","",Umschichtung!E6) -> Bankguthaben B-Bank | E10: =IF(Umschichtung!E6="","",Umschichtung!H6) -> 500,000
B11: =IF(Umschichtung!C7="","",Umschichtung!C7) -> ABC Stiftungsfonds | C11: =IF(Umschichtung!E7="","",Umschichtung!E7) -> Bankguthaben B-Bank | E11: =IF(Umschichtung!E7="","",Umschichtung!H7) -> 500,000
B12: =IF(Umschichtung!C8="","",Umschichtung!C8) ->  | C12: =IF(Umschichtung!E8="","",Umschichtung!E8) -> 0 | E12: =IF(Umschichtung!E8="","",Umschichtung!H8) -> 0
B13: =IF(Umschichtung!C9="","",Umschichtung!C9) ->  | C13: =IF(Umschichtung!E9="","",Umschichtung!E9) ->  | E13: =IF(Umschichtung!E9="","",Umschichtung!H9) -> 
B14: =IF(Umschichtung!C10="","",Umschichtung!C10) ->  | C14: =IF(Umschichtung!E10="","",Umschichtung!E10) ->  | E14: =IF(Umschichtung!E10="","",Umschichtung!H10) -> 
B15: =IF(Umschichtung!C11="","",Umschichtung!C11) ->  | C15: =IF(Umschichtung!E11="","",Umschichtung!E11) ->  | E15: =IF(Umschichtung!E11="","",Umschichtung!H11) -> 
B16: Summe | E16: =SUM(E10:E15) -> 1,000,000
A18: 3. | B18: Nach heutigem Kenntnisstand erwartet das Gremium in der Projektion folgende Auswirkungen der Umschichtungsentscheidungen auf die Erreichung der Anlageziele.
B20: Zielabweichung | C20: ohne Umschichtung | D20: mit Umschichtung | E20: Differenz
B21: Vermögenserhaltung: | C21: ='Daten Umschichtung'!J63 -> -6.0% | D21: ='Daten Umschichtung'!J64 -> -5.0% | E21: =D21-C21 -> 0.9%
B22: Erträge: | C22: ='Daten Umschichtung'!J106 -> -8.3% | D22: ='Daten Umschichtung'!J107 -> 19.2% | E22: =D22-C22 -> 27.5%
B23: Risiko: | C23: ='Daten Umschichtung'!E155 -> -87.2% | D23: ='Daten Umschichtung'!E156 -> -100.2% | E23: -12.9%
B24: Nachhaltigkeit: | C24: ='Daten Umschichtung'!J193 -> 16.4% | D24: ='Daten Umschichtung'!J194 -> 34.6% | E24: 18.3%
A26: 4. | B26: Diese Einschätzung stützt sich auf folgende Informationen/Unterlagen.
B28: =IF(Umschichtung!D18="Bitte auswählen","",Umschichtung!D18) -> Beratungsgespräch | C28: =IF(Umschichtung!E18="","",Umschichtung!E18) -> B-Bank | D28: =IF(Umschichtung!F18="","","vom") -> vom | E28: =IF(Umschichtung!F18="","",Umschichtung!F18) -> 2019-02-15
B29: =IF(Umschichtung!D19="Bitte auswählen","",Umschichtung!D19) ->  | C29: =IF(Umschichtung!E19="","",Umschichtung!E19) ->  | D29: =IF(Umschichtung!F19="","","vom") -> 
B30: =IF(Umschichtung!D20="Bitte auswählen","",Umschichtung!D20) ->  | C30: =IF(Umschichtung!E20="","",Umschichtung!E20) ->  | D30: =IF(Umschichtung!F20="","","vom") -> 
B31: =IF(Umschichtung!D21="Bitte auswählen","",Umschichtung!D21) ->  | C31: =IF(Umschichtung!E21="","",Umschichtung!E21) ->  | D31: =IF(Umschichtung!F21="","","vom") -> 
B32: =IF(Umschichtung!D22="Bitte auswählen","",Umschichtung!D22) ->  | C32: =IF(Umschichtung!E22="","",Umschichtung!E22) ->  | D32: =IF(Umschichtung!F22="","","vom") -> 
B33: =IF(Umschichtung!D23="Bitte auswählen","",Umschichtung!D23) ->  | C33: =IF(Umschichtung!E23="","",Umschichtung!E23) ->  | D33: =IF(Umschichtung!F23="","","vom") -> 
B34: =IF(Umschichtung!D24="Bitte auswählen","",Umschichtung!D24) ->  | C34: =IF(Umschichtung!E24="","",Umschichtung!E24) ->  | D34: =IF(Umschichtung!F24="","","vom") -> 
B35: =IF(Umschichtung!D25="Bitte auswählen","",Umschichtung!D25) ->  | C35: =IF(Umschichtung!E25="","",Umschichtung!E25) ->  | D35: =IF(Umschichtung!F25="","","vom") -> 
A37: 5. | B37: Keiner der am Entscheidungsprozess Beteiligten Personen und keiner diesen nahe stehenden Person bringt die Umschichtung einen unmittelbaren oder mittelbaren Vor- oder Nachteil.
B39: _______________________________________ | C39: _______________________________________
B40: =IF(Einstellungen!L12="","",Einstellungen!L12) -> Alfred Abel | C40: =IF(Einstellungen!L13="","",Einstellungen!L13) -> Bertram Bauer
B42: =IF(Einstellungen!L14="","","_______________________________________") -> _______________________________________ | C42: =IF(Einstellungen!L13="","","_______________________________________") -> _______________________________________
B43: =IF(Einstellungen!L14="","",Einstellungen!L14) -> Charlotte Cäsar | C43: =IF(Einstellungen!L15="","",Einstellungen!L15) -> Dieter Döring
B44: =IF(Umschichtung!$D$15="im Umlaufverfahren",IF(Einstellungen!L14="","","Ort, Datum"),"") -> 
B45: =IF(Umschichtung!$D$15="im Umlaufverfahren",IF(Einstellungen!L15="","","________________________________________"),"") -> 
B46: =IF(Umschichtung!$D$15="im Umlaufverfahren",IF(Einstellungen!L15="","","Ort, Datum"),"") -> 
B47: =IF(Umschichtung!$D$15="im Umlaufverfahren",IF(Einstellungen!L16="","","________________________________________"),"") ->  | C47: =IF(Einstellungen!L16="","","_______________________________________") -> 
B48: =IF(Umschichtung!$D$15="im Umlaufverfahren",IF(Einstellungen!L16="","","Ort, Datum"),"") ->  | C48: =IF(Einstellungen!L16="","",Einstellungen!L16) -> 

Sheet Zahlen Basis
C2: Analyse Basisszenario
C4: Beschreibung | D4: Einh. | E4: Bestand | F4: =Einstellungen!D7 -> 2019 | G4: =F4+1 -> 2020 | H4: 2021 | I4: 2022 | J4: 2023
C6: Vermögen | D6: =Einstellungen!D9 -> EUR | E6: =SUM(E7:E9)+SUM(E14:E17) -> 7,600,000 | F6: 7,651,750 | G6: 7,704,271 | H6: 7,757,582 | I6: 7,811,703 | J6: 7,866,653
C7: Immobilien (Verkehrswert) | D7: =$D$6 -> EUR | E7: =IF(D7='Daten Einstellg_Ziele'!$B$8,Vermentw.!K6,Vermentw.!K6/1000) -> 500,000 | F7: ='Daten Projektion'!I20 -> 505,000 | G7: ='Daten Projektion'!J20 -> 510,050 | H7: ='Daten Projektion'!K20 -> 515,151 | I7: ='Daten Projektion'!L20 -> 520,302 | J7: ='Daten Projektion'!M20 -> 525,505
C8: Beteiligungen | D8: EUR | E8: =IF(D8='Daten Einstellg_Ziele'!$B$8,Vermentw.!K7,Vermentw.!K7/1000) -> 0 | F8: ='Daten Projektion'!I21 -> 0 | G8: ='Daten Projektion'!J21 -> 0 | H8: ='Daten Projektion'!K21 -> 0 | I8: ='Daten Projektion'!L21 -> 0 | J8: ='Daten Projektion'!M21 -> 0
C9: Wertpapiere | D9: EUR | E9: =SUM(E10:E13) -> 6,100,000 | F9: 6,146,750 | G9: 6,194,221 | H9: 6,242,432 | I9: 6,291,401 | J9: 6,341,147
C10: davon Aktien | D10: EUR | E10: =IF(D10='Daten Einstellg_Ziele'!$B$8,Vermentw.!K8,Vermentw.!K8/1000) -> 650,000 | F10: ='Daten Projektion'!I23 -> 669,500 | G10: ='Daten Projektion'!J23 -> 689,585 | H10: ='Daten Projektion'!K23 -> 710,273 | I10: ='Daten Projektion'!L23 -> 731,581 | J10: ='Daten Projektion'!M23 -> 753,528
C11: davon Renten | D11: EUR | E11: =IF(D11='Daten Einstellg_Ziele'!$B$8,Vermentw.!K9,Vermentw.!K9/1000) -> 5,450,000 | F11: ='Daten Projektion'!I24 -> 5,477,250 | G11: ='Daten Projektion'!J24 -> 5,504,636 | H11: ='Daten Projektion'!K24 -> 5,532,159 | I11: ='Daten Projektion'!L24 -> 5,559,820 | J11: ='Daten Projektion'!M24 -> 5,587,619
C12: davon Liquidität (Cashbestand in Fonds) | D12: EUR | E12: 0 | F12: ='Daten Projektion'!I25 -> 0 | G12: ='Daten Projektion'!J25 -> 0 | H12: ='Daten Projektion'!K25 -> 0 | I12: ='Daten Projektion'!L25 -> 0 | J12: ='Daten Projektion'!M25 -> 0
C13: davon Alternative Investments | D13: EUR | E13: 0 | F13: ='Daten Projektion'!I26 -> 0 | G13: ='Daten Projektion'!J26 -> 0 | H13: ='Daten Projektion'!K26 -> 0 | I13: ='Daten Projektion'!L26 -> 0 | J13: ='Daten Projektion'!M26 -> 0
C14: Spar- und Termineinlagen | D14: EUR | E14: =IF(D14='Daten Einstellg_Ziele'!B8,Vermentw.!K10,Vermentw.!K10/1000) -> 0 | F14: ='Daten Projektion'!I27 -> 0 | G14: ='Daten Projektion'!J27 -> 0 | H14: ='Daten Projektion'!K27 -> 0 | I14: ='Daten Projektion'!L27 -> 0 | J14: ='Daten Projektion'!M27 -> 0
C15: Kontoguthaben Investitionsvermögen | D15: EUR | E15: =IF(D15='Daten Einstellg_Ziele'!$B$8,Vermentw.!K11,Vermentw.!K11/1000) -> 1,000,000 | F15: ='Daten Projektion'!I28 -> 1,000,000 | G15: ='Daten Projektion'!J28 -> 1,000,000 | H15: ='Daten Projektion'!K28 -> 1,000,000 | I15: ='Daten Projektion'!L28 -> 1,000,000 | J15: ='Daten Projektion'!M28 -> 1,000,000
C16: Sonstiges Vermögen | D16: EUR | E16: =IF(D16='Daten Einstellg_Ziele'!$B$8,Vermentw.!K12,Vermentw.!K12/1000) -> 0 | F16: ='Daten Projektion'!I29 -> 0 | G16: ='Daten Projektion'!J29 -> 0 | H16: ='Daten Projektion'!K29 -> 0 | I16: ='Daten Projektion'!L29 -> 0 | J16: ='Daten Projektion'!M29 -> 0
C17: Verbindlichkeiten | D17: EUR | E17: =IF(D17='Daten Einstellg_Ziele'!$B$8,Vermentw.!K13,Vermentw.!K13/1000) -> 0 | F17: ='Daten Projektion'!I30 -> 0 | G17: ='Daten Projektion'!J30 -> 0 | H17: ='Daten Projektion'!K30 -> 0 | I17: ='Daten Projektion'!L30 -> 0 | J17: ='Daten Projektion'!M30 -> 0
C18: Kennzahlen
C19: Aktienquote Wertpapiere | D19: % | E19: =E10/E9 -> 10.7% | F19: 10.9% | G19: 11.1% | H19: 11.4% | I19: 11.6% | J19: 11.9%
C20: Aktienquote Gesamtvermögen | D20: % | E20: =E10/E6 -> 8.6% | F20: 8.7% | G20: 9.0% | H20: 9.2% | I20: 9.4% | J20: 9.6%
C21: Bestand freie Rücklage | D21: =D6 -> EUR | E21: =IF(Einstellungen!D9="TEUR",Einstellungen!D29/1000,Einstellungen!D29) -> 10,000 | F21: =E21+E22 -> 10,000 | G21: 21,280 | H21: 33,994 | I21: 46,643 | J21: 59,227
C22: Veränderung freie Rücklage inkl. Tilgung | D22: =D7 -> EUR | E22: 0 | F22: =F49 -> 11,280 | G22: =G49 -> 12,714 | H22: 12,649 | I22: 12,584 | J22: 12,519
C23: Bestand Umschichtungsrücklage | D23: =D8 -> EUR | E23: =IF(Einstellungen!D12="TEUR",Einstellungen!D28/1000,Einstellungen!D28) -> 20,000 | F23: =E23+E24 -> 20,000 | G23: =F23+F24 -> 20,000 | H23: 20,000 | I23: 20,000 | J23: 20,000
C24: Veränderung Umschichtungsrücklage | D24: =D9 -> EUR | E24: 0 | F24: =IF(Einstellungen!$R$30=TRUE,(E10*Einstellungen!$D$37+'Zahlen Basis'!E11*Einstellungen!$D$38+'Zahlen Basis'!E12*Einstellungen!$D$39+'Zahlen Basis'!E13*Einstellungen!$D$40+'Zahlen Basis'!#REF!*Einstellungen!$D$41)-E9*Einstellungen!#REF!+IF(F4=Einstellungen!$T$40,Einstellungen!$S$40,0)+IF(F4=Einstellungen!$T$41,Einstellungen!$S$41,0)+IF(F4=Einstellungen!$T$42,Einstellungen!$S$42,0),0) -> 0 | G24: =IF(Einstellungen!$R$30=TRUE,(F10*Einstellungen!$D$37+'Zahlen Basis'!F11*Einstellungen!$D$38+'Zahlen Basis'!F12*Einstellungen!$D$39+'Zahlen Basis'!F13*Einstellungen!$D$40+'Zahlen Basis'!#REF!*Einstellungen!$D$41)-F9*Einstellungen!#REF!+IF(G4=Einstellungen!$T$40,Einstellungen!$S$40,0)+IF(G4=Einstellungen!$T$41,Einstellungen!$S$41,0)+IF(G4=Einstellungen!$T$42,Einstellungen!$S$42,0),0) -> 0 | H24: =IF(Einstellungen!$R$30=TRUE,(G10*Einstellungen!$D$37+'Zahlen Basis'!G11*Einstellungen!$D$38+'Zahlen Basis'!G12*Einstellungen!$D$39+'Zahlen Basis'!G13*Einstellungen!$D$40+'Zahlen Basis'!#REF!*Einstellungen!$D$41)-G9*Einstellungen!#REF!+IF(H4=Einstellungen!$T$40,Einstellungen!$S$40,0)+IF(H4=Einstellungen!$T$41,Einstellungen!$S$41,0)+IF(H4=Einstellungen!$T$42,Einstellungen!$S$42,0),0) -> 0 | I24: =IF(Einstellungen!$R$30=TRUE,(H10*Einstellungen!$D$37+'Zahlen Basis'!H11*Einstellungen!$D$38+'Zahlen Basis'!H12*Einstellungen!$D$39+'Zahlen Basis'!H13*Einstellungen!$D$40+'Zahlen Basis'!#REF!*Einstellungen!$D$41)-H9*Einstellungen!#REF!+IF(I4=Einstellungen!$T$40,Einstellungen!$S$40,0)+IF(I4=Einstellungen!$T$41,Einstellungen!$S$41,0)+IF(I4=Einstellungen!$T$42,Einstellungen!$S$42,0),0) -> 0 | J24: =IF(Einstellungen!$R$30=TRUE,(I10*Einstellungen!$D$37+'Zahlen Basis'!I11*Einstellungen!$D$38+'Zahlen Basis'!I12*Einstellungen!$D$39+'Zahlen Basis'!I13*Einstellungen!$D$40+'Zahlen Basis'!#REF!*Einstellungen!$D$41)-I9*Einstellungen!#REF!+IF(J4=Einstellungen!$T$40,Einstellungen!$S$40,0)+IF(J4=Einstellungen!$T$41,Einstellungen!$S$41,0)+IF(J4=Einstellungen!$T$42,Einstellungen!$S$42,0),0) -> 0
C25: Grundstockvermögen (Soll) | D25: =D10 -> EUR | E25: =IF(Anlageziele!$E$5="Nominal",'Daten VE'!$D$51,IF(Anlageziele!$E$5="Verbrauch",'Daten VE'!$D$55,IF(Anlageziele!$E$5="Substanz",'Zahlen Basis'!E6,'Daten VE'!$D$54))) -> 7,575,928 | F25: =IF(Anlageziele!$E$5="Nominal",'Daten VE'!$D$51,IF(Anlageziele!$E$5="Verbrauch",'Daten VE'!I40,IF(Anlageziele!$E$5="Substanz",'Zahlen Basis'!F6,'Daten VE'!I38))) -> 7,727,447 | G25: =IF(Anlageziele!$E$5="Nominal",'Daten VE'!$D$51,IF(Anlageziele!$E$5="Verbrauch",'Daten VE'!J40,IF(Anlageziele!$E$5="Substanz",'Zahlen Basis'!G6,'Daten VE'!J38))) -> 7,881,996 | H25: =IF(Anlageziele!$E$5="Nominal",'Daten VE'!$D$51,IF(Anlageziele!$E$5="Verbrauch",'Daten VE'!K40,IF(Anlageziele!$E$5="Substanz",'Zahlen Basis'!H6,'Daten VE'!K38))) -> 8,039,636 | I25: =IF(Anlageziele!$E$5="Nominal",'Daten VE'!$D$51,IF(Anlageziele!$E$5="Verbrauch",'Daten VE'!L40,IF(Anlageziele!$E$5="Substanz",'Zahlen Basis'!I6,'Daten VE'!L38))) -> 8,200,429 | J25: =IF(Anlageziele!$E$5="Nominal",'Daten VE'!$D$51,IF(Anlageziele!$E$5="Verbrauch",'Daten VE'!M40,IF(Anlageziele!$E$5="Substanz",'Zahlen Basis'!J6,'Daten VE'!M38))) -> 8,364,437
C26: Delta absolut | D26: =D12 -> EUR | E26: =E6-E25 -> 24,072 | F26: -75,697 | G26: -177,725 | H26: -282,053 | I26: -388,726 | J26: -497,785
C27: Delta Prozent | D27: % | E27: =E26/E6 -> 0.3% | F27: -1.0% | G27: -2.3% | H27: -3.6% | I27: -5.0% | J27: -6.3%
C29: Liquidität Saldo | D29: =D6 -> EUR | E29: =E31-E39 -> 0 | F29: =F31-F39 -> 0 | G29: =G31-G39 -> 0 | H29: 0 | I29: 0 | J29: 0
C31: Einnahmen | D31: =D29 -> EUR | E31: =SUM(E32:E37) -> 0 | F31: =SUM(F32:F38) -> 63,500 | G31: =SUM(G32:G38) -> 64,249 | H31: 65,014 | I31: 65,796 | J31: 66,595
C32: Spenden | D32: =$D$31 -> EUR | E32: 0 | F32: ='Einn._Ausg.'!C7 -> 5,000 | G32: ='Einn._Ausg.'!D7 -> 5,000 | H32: ='Einn._Ausg.'!E7 -> 5,000 | I32: ='Einn._Ausg.'!F7 -> 5,000 | J32: ='Einn._Ausg.'!G7 -> 5,000
C33: Zustiftungen | D33: =$D$31 -> EUR | E33: 0 | F33: ='Einn._Ausg.'!C8 -> 0 | G33: ='Einn._Ausg.'!D8 -> 0 | H33: ='Einn._Ausg.'!E8 -> 0 | I33: ='Einn._Ausg.'!F8 -> 0 | J33: ='Einn._Ausg.'!G8 -> 0
B34: Ordtl. Erträge | C34: Mieterträge (brutto) | D34: EUR | E34: 0 | F34: ='Daten Projektion'!I50 -> 10,000 | G34: ='Daten Projektion'!J50 -> 10,100 | H34: ='Daten Projektion'!K50 -> 10,201 | I34: ='Daten Projektion'!L50 -> 10,303 | J34: ='Daten Projektion'!M50 -> 10,406
C35: Erträge aus Beteiligungen | D35: EUR | E35: 0 | F35: ='Daten Projektion'!I51 -> 0 | G35: ='Daten Projektion'!J51 -> 0 | H35: ='Daten Projektion'!K51 -> 0 | I35: ='Daten Projektion'!L51 -> 0 | J35: ='Daten Projektion'!M51 -> 0
C36: Wertpapiererträge (brutto) | D36: EUR | E36: 0 | F36: ='Daten Projektion'!I52 -> 48,500 | G36: ='Daten Projektion'!J52 -> 49,149 | H36: ='Daten Projektion'!K52 -> 49,813 | I36: ='Daten Projektion'!L52 -> 50,493 | J36: ='Daten Projektion'!M52 -> 51,189
C37: Zinsen und ähnliche Erträge | D37: EUR | E37: 0 | F37: ='Daten Projektion'!I57 -> 0 | G37: ='Daten Projektion'!J57 -> 0 | H37: ='Daten Projektion'!K57 -> 0 | I37: ='Daten Projektion'!L57 -> 0 | J37: ='Daten Projektion'!M57 -> 0
C38: Erträge aus sonstigem Vermögen | D38: EUR | E38: 0 | F38: ='Daten Projektion'!I59 -> 0 | G38: ='Daten Projektion'!J59 -> 0 | H38: ='Daten Projektion'!K59 -> 0 | I38: ='Daten Projektion'!L59 -> 0 | J38: ='Daten Projektion'!M59 -> 0
C39: Ausgaben | D39: EUR | E39: 0 | F39: =SUM(F40:F42)+SUM(F46:F50) -> 63,500 | G39: =SUM(G40:G42)+SUM(G46:G50) -> 64,249 | H39: 65,014 | I39: 65,796 | J39: 66,595
C40: Ausgaben für den Stiftungszweck | D40: EUR | E40: 0 | F40: =IF(Anlageziele!$M$5='Daten Einstellg_Ziele'!$D$21,Anlageziele!$M$7,IF(Anlageziele!$M$5='Daten Einstellg_Ziele'!$D$22,'Daten VE'!$D$51*Anlageziele!M7%,F31-F41-F42-F46-F47-F47-F48-F49-F50)) -> 10,000 | G40: =IF(Anlageziele!$M$5='Daten Einstellg_Ziele'!$D$21,Anlageziele!$M$7,IF(Anlageziele!$M$5='Daten Einstellg_Ziele'!$D$22,'Daten VE'!$D$51*Anlageziele!N7%,G31-G41-G42-G46-G47-G47-G48-G49-G50)) -> 10,000 | H40: =IF(Anlageziele!$M$5='Daten Einstellg_Ziele'!$D$21,Anlageziele!$M$7,IF(Anlageziele!$M$5='Daten Einstellg_Ziele'!$D$22,'Daten VE'!$D$51*Anlageziele!O7%,H31-H41-H42-H46-H47-H47-H48-H49-H50)) -> 10,000 | I40: =IF(Anlageziele!$M$5='Daten Einstellg_Ziele'!$D$21,Anlageziele!$M$7,IF(Anlageziele!$M$5='Daten Einstellg_Ziele'!$D$22,'Daten VE'!$D$51*Anlageziele!P7%,I31-I41-I42-I46-I47-I47-I48-I49-I50)) -> 10,000 | J40: =IF(Anlageziele!$M$5='Daten Einstellg_Ziele'!$D$21,Anlageziele!$M$7,IF(Anlageziele!$M$5='Daten Einstellg_Ziele'!$D$22,'Daten VE'!$D$51*Anlageziele!Q7%,J31-J41-J42-J46-J47-J47-J48-J49-J50)) -> 10,000
C41: Allg. Verwaltungskosten | D41: EUR | E41: 0 | F41: ='Einn._Ausg.'!C28 -> 28,000 | G41: ='Einn._Ausg.'!D28 -> 27,030 | H41: ='Einn._Ausg.'!E28 -> 27,571 | I41: ='Einn._Ausg.'!F28 -> 28,122 | J41: ='Einn._Ausg.'!G28 -> 28,684
C42: Kosten Vermögensverwaltung | D42: EUR | E42: 0 | F42: ='Daten Projektion'!I91 -> 11,220 | G42: ='Daten Projektion'!J91 -> 11,444 | H42: ='Daten Projektion'!K91 -> 11,673 | I42: ='Daten Projektion'!L91 -> 11,907 | J42: ='Daten Projektion'!M91 -> 12,145
C43: davon Immobilien | D43: EUR | E43: 0 | F43: ='Daten Projektion'!I80 -> 5,100 | G43: ='Daten Projektion'!J80 -> 5,202 | H43: ='Daten Projektion'!K80 -> 5,306 | I43: ='Daten Projektion'!L80 -> 5,412 | J43: ='Daten Projektion'!M80 -> 5,520
C44: davon Beteiligungen | D44: EUR | E44: 0 | F44: ='Daten Projektion'!I81 -> 0 | G44: ='Daten Projektion'!J81 -> 0 | H44: ='Daten Projektion'!K81 -> 0 | I44: ='Daten Projektion'!L81 -> 0 | J44: ='Daten Projektion'!M81 -> 0
C45: davon Wertpapiere | D45: EUR | E45: 0 | F45: ='Daten Projektion'!I82 -> 6,120 | G45: ='Daten Projektion'!J82 -> 6,242 | H45: ='Daten Projektion'!K82 -> 6,367 | I45: ='Daten Projektion'!L82 -> 6,495 | J45: ='Daten Projektion'!M82 -> 6,624
C46: Sollzinsen | D46: EUR | E46: 0 | F46: ='Daten Projektion'!I60*-1 -> 0 | G46: ='Daten Projektion'!J60*-1 -> 0 | H46: ='Daten Projektion'!K60*-1 -> 0 | I46: ='Daten Projektion'!L60*-1 -> 0 | J46: ='Daten Projektion'!M60*-1 -> 0
C47: Tilgung | D47: =$D$31 -> EUR | E47: 0 | F47: =(E17-F17)*-1 -> 0 | G47: =(F17-G17)*-1 -> 0 | H47: =(G17-H17)*-1 -> 0 | I47: =(H17-I17)*-1 -> 0 | J47: =(I17-J17)*-1 -> 0
C48: Sonstige Aufwände | D48: EUR | E48: 0 | F48: ='Einn._Ausg.'!C27 -> 3,000 | G48: ='Einn._Ausg.'!D27 -> 3,060 | H48: ='Einn._Ausg.'!E27 -> 3,121 | I48: ='Einn._Ausg.'!F27 -> 3,184 | J48: ='Einn._Ausg.'!G27 -> 3,247
C49: Zuführung Freie Rücklage | D49: EUR | E49: 0 | F49: =IF(Anlageziele!$M$5="Überschuss",'Daten Projektion'!I106,'Daten Projektion'!I110) -> 11,280 | G49: =IF(Anlageziele!$M$5="Überschuss",'Daten Projektion'!J106,'Daten Projektion'!J110) -> 12,714 | H49: =IF(Anlageziele!$M$5="Überschuss",'Daten Projektion'!K106,'Daten Projektion'!K110) -> 12,649 | I49: =IF(Anlageziele!$M$5="Überschuss",'Daten Projektion'!L106,'Daten Projektion'!L110) -> 12,584 | J49: =IF(Anlageziele!$M$5="Überschuss",'Daten Projektion'!M106,'Daten Projektion'!M110) -> 12,519
C50: Neuanlage | D50: EUR | E50: =E33 -> 0 | F50: =F33 -> 0 | G50: =G33 -> 0 | H50: 0 | I50: 0 | J50: 0
C51: Kennzahlen
C52: Ausschüttungsrendite brutto | D52: % | E52: 0.0% | F52: =SUM(F34:F38)/E6 -> 0.8% | G52: =SUM(G34:G38)/F6 -> 0.8% | H52: =SUM(H34:H38)/G6 -> 0.8% | I52: =SUM(I34:I38)/H6 -> 0.8% | J52: =SUM(J34:J38)/I6 -> 0.8%
C53: Verwaltungskostenquote 1 (Aufsicht) | D53: % | E53: 0.0% | F53: =(F41+F42)/(F31-F33) -> 61.8% | G53: =(G41+G42)/(G31-G33) -> 59.9% | H53: 60.4% | I53: 60.8% | J53: 61.3%
C54: Verwaltungskostenquote 2 (Finanzamt) | D54: % | E54: 0.0% | F54: =F41/(F31-F42-F33) -> 53.6% | G54: =G41/(G31-G42-G33) -> 51.2% | H54: 51.7% | I54: 52.2% | J54: 52.7%
C55: Zweckeffizienz der Erträge | D55: % | E55: 0.0% | F55: =F40/(F31-F33) -> 15.7% | G55: =G40/(G31-G33) -> 15.6% | H55: 15.4% | I55: 15.2% | J55: 15.0%
C56: Zweckeffizienz des Vermögens | D56: % | E56: =E40/E6 -> 0.0% | F56: 0.1% | G56: 0.1% | H56: 0.1% | I56: 0.1% | J56: 0.1%

Sheet Zahlen Worst Case
C2: Analyse Worst Case
C4: Beschreibung | D4: Einh. | E4: Bestand | F4: =Einstellungen!D7 -> 2019 | G4: =F4+1 -> 2020 | H4: 2021 | I4: 2022 | J4: 2023
C6: Vermögen | D6: =Einstellungen!D9 -> EUR | E6: =SUM(E7:E9)+SUM(E14:E17) -> 7,600,000 | F6: 7,651,750 | G6: 6,928,300 | H6: 6,972,183 | I6: 7,016,662 | J6: 7,061,750
C7: Immobilien (Verkehrswert) | D7: =$D$6 -> EUR | E7: =IF(D7='Daten Einstellg_Ziele'!$B$8,Vermentw.!K6,Vermentw.!K6/1000) -> 500,000 | F7: ='Daten Projektion'!I129 -> 505,000 | G7: ='Daten Projektion'!J129 -> 505,000 | H7: ='Daten Projektion'!K129 -> 510,050 | I7: ='Daten Projektion'!L129 -> 515,151 | J7: ='Daten Projektion'!M129 -> 520,302
C8: Beteiligungen | D8: EUR | E8: =IF(D8='Daten Einstellg_Ziele'!$B$8,Vermentw.!K7,Vermentw.!K7/1000) -> 0 | F8: ='Daten Projektion'!I130 -> 0 | G8: ='Daten Projektion'!J130 -> 0 | H8: ='Daten Projektion'!K130 -> 0 | I8: ='Daten Projektion'!L130 -> 0 | J8: ='Daten Projektion'!M130 -> 0
C9: Wertpapiere | D9: EUR | E9: =SUM(E10:E13) -> 6,100,000 | F9: 6,146,750 | G9: 5,423,300 | H9: 5,462,133 | I9: 5,501,511 | J9: 5,541,448
C10: davon Aktien | D10: EUR | E10: =IF(D10='Daten Einstellg_Ziele'!$B$8,Vermentw.!K8,Vermentw.!K8/1000) -> 650,000 | F10: ='Daten Projektion'!I132 -> 669,500 | G10: ='Daten Projektion'!J132 -> 468,650 | H10: ='Daten Projektion'!K132 -> 482,710 | I10: ='Daten Projektion'!L132 -> 497,191 | J10: ='Daten Projektion'!M132 -> 512,107
C11: davon Renten | D11: EUR | E11: =IF(D11='Daten Einstellg_Ziele'!$B$8,Vermentw.!K9,Vermentw.!K9/1000) -> 5,450,000 | F11: ='Daten Projektion'!I133 -> 5,477,250 | G11: ='Daten Projektion'!J133 -> 4,954,650 | H11: ='Daten Projektion'!K133 -> 4,979,423 | I11: ='Daten Projektion'!L133 -> 5,004,320 | J11: ='Daten Projektion'!M133 -> 5,029,342
C12: davon Liquidität (Cashbestand in Fonds) | D12: EUR | E12: 0 | F12: ='Daten Projektion'!I134 -> 0 | G12: ='Daten Projektion'!J134 -> 0 | H12: ='Daten Projektion'!K134 -> 0 | I12: ='Daten Projektion'!L134 -> 0 | J12: ='Daten Projektion'!M134 -> 0
C13: davon Alternative Investments | D13: EUR | E13: 0 | F13: ='Daten Projektion'!I135 -> 0 | G13: ='Daten Projektion'!J135 -> 0 | H13: ='Daten Projektion'!K135 -> 0 | I13: ='Daten Projektion'!L135 -> 0 | J13: ='Daten Projektion'!M26 -> 0
C14: Spar- und Termineinlagen | D14: EUR | E14: =IF(D14='Daten Einstellg_Ziele'!B8,Vermentw.!K10,Vermentw.!K10/1000) -> 0 | F14: ='Daten Projektion'!I136 -> 0 | G14: ='Daten Projektion'!J136 -> 0 | H14: ='Daten Projektion'!K136 -> 0 | I14: ='Daten Projektion'!L136 -> 0 | J14: ='Daten Projektion'!M136 -> 0
C15: Kontoguthaben Investitionsvermögen | D15: EUR | E15: =IF(D15='Daten Einstellg_Ziele'!$B$8,Vermentw.!K11,Vermentw.!K11/1000) -> 1,000,000 | F15: ='Daten Projektion'!I137 -> 1,000,000 | G15: ='Daten Projektion'!J137 -> 1,000,000 | H15: ='Daten Projektion'!K137 -> 1,000,000 | I15: ='Daten Projektion'!L137 -> 1,000,000 | J15: ='Daten Projektion'!M137 -> 1,000,000
C16: Sonstiges Vermögen | D16: EUR | E16: =IF(D16='Daten Einstellg_Ziele'!$B$8,Vermentw.!K12,Vermentw.!K12/1000) -> 0 | F16: ='Daten Projektion'!I138 -> 0 | G16: ='Daten Projektion'!J138 -> 0 | H16: ='Daten Projektion'!K138 -> 0 | I16: ='Daten Projektion'!L138 -> 0 | J16: ='Daten Projektion'!M138 -> 0
C17: Verbindlichkeiten | D17: EUR | E17: =IF(D17='Daten Einstellg_Ziele'!$B$8,Vermentw.!K13,Vermentw.!K13/1000) -> 0 | F17: ='Daten Projektion'!I139 -> 0 | G17: ='Daten Projektion'!J139 -> 0 | H17: ='Daten Projektion'!K139 -> 0 | I17: ='Daten Projektion'!L139 -> 0 | J17: ='Daten Projektion'!M139 -> 0
C18: Kennzahlen
C19: Aktienquote Wertpapiere | D19: % | E19: =E10/E9 -> 10.7% | F19: 10.9% | G19: 8.6% | H19: 8.8% | I19: 9.0% | J19: 9.2%
C20: Aktienquote Gesamtvermögen | D20: % | E20: =E10/E6 -> 8.6% | F20: 8.7% | G20: 6.8% | H20: 6.9% | I20: 7.1% | J20: 7.3%
C21: Bestand freie Rücklage | D21: =D6 -> EUR | E21: =IF(Einstellungen!D9="TEUR",Einstellungen!D29/1000,Einstellungen!D29) -> 10,000 | F21: =E21+E22 -> 10,000 | G21: 31,280 | H21: 53,994 | I21: 76,643 | J21: 99,227
C22: Veränderung freie Rücklage inkl. Tilgung | D22: =D7 -> EUR | E22: 0 | F22: =F49 -> 21,280 | G22: =G49 -> 22,714 | H22: =H49 -> 22,649 | I22: =I49 -> 22,584 | J22: =J49 -> 22,519
C23: Bestand Umschichtungsrücklage | D23: =D8 -> EUR | E23: =IF(Einstellungen!D12="TEUR",Einstellungen!D28/1000,Einstellungen!D28) -> 20,000 | F23: =E23+E24 -> 20,000 | G23: =F23+F24 -> 20,000 | H23: 20,000 | I23: 20,000 | J23: 20,000
C24: Veränderung Umschichtungsrücklage | D24: =D9 -> EUR | E24: 0 | F24: =IF(Einstellungen!$R$30=TRUE,(E10*Einstellungen!$D$37+'Zahlen Worst Case'!E11*Einstellungen!$D$38+'Zahlen Worst Case'!E12*Einstellungen!$D$39+'Zahlen Worst Case'!E13*Einstellungen!$D$40+'Zahlen Worst Case'!#REF!*Einstellungen!$D$41)-E9*Einstellungen!#REF!+IF(F4=Einstellungen!$T$40,Einstellungen!$S$40,0)+IF(F4=Einstellungen!$T$41,Einstellungen!$S$41,0)+IF(F4=Einstellungen!$T$42,Einstellungen!$S$42,0),0) -> 0 | G24: =IF(Einstellungen!$R$30=TRUE,(F10*Einstellungen!$D$37+'Zahlen Worst Case'!F11*Einstellungen!$D$38+'Zahlen Worst Case'!F12*Einstellungen!$D$39+'Zahlen Worst Case'!F13*Einstellungen!$D$40+'Zahlen Worst Case'!#REF!*Einstellungen!$D$41)-F9*Einstellungen!#REF!+IF(G4=Einstellungen!$T$40,Einstellungen!$S$40,0)+IF(G4=Einstellungen!$T$41,Einstellungen!$S$41,0)+IF(G4=Einstellungen!$T$42,Einstellungen!$S$42,0),0) -> 0 | H24: =IF(Einstellungen!$R$30=TRUE,(G10*Einstellungen!$D$37+'Zahlen Worst Case'!G11*Einstellungen!$D$38+'Zahlen Worst Case'!G12*Einstellungen!$D$39+'Zahlen Worst Case'!G13*Einstellungen!$D$40+'Zahlen Worst Case'!#REF!*Einstellungen!$D$41)-G9*Einstellungen!#REF!+IF(H4=Einstellungen!$T$40,Einstellungen!$S$40,0)+IF(H4=Einstellungen!$T$41,Einstellungen!$S$41,0)+IF(H4=Einstellungen!$T$42,Einstellungen!$S$42,0),0) -> 0 | I24: =IF(Einstellungen!$R$30=TRUE,(H10*Einstellungen!$D$37+'Zahlen Worst Case'!H11*Einstellungen!$D$38+'Zahlen Worst Case'!H12*Einstellungen!$D$39+'Zahlen Worst Case'!H13*Einstellungen!$D$40+'Zahlen Worst Case'!#REF!*Einstellungen!$D$41)-H9*Einstellungen!#REF!+IF(I4=Einstellungen!$T$40,Einstellungen!$S$40,0)+IF(I4=Einstellungen!$T$41,Einstellungen!$S$41,0)+IF(I4=Einstellungen!$T$42,Einstellungen!$S$42,0),0) -> 0 | J24: =IF(Einstellungen!$R$30=TRUE,(I10*Einstellungen!$D$37+'Zahlen Worst Case'!I11*Einstellungen!$D$38+'Zahlen Worst Case'!I12*Einstellungen!$D$39+'Zahlen Worst Case'!I13*Einstellungen!$D$40+'Zahlen Worst Case'!#REF!*Einstellungen!$D$41)-I9*Einstellungen!#REF!+IF(J4=Einstellungen!$T$40,Einstellungen!$S$40,0)+IF(J4=Einstellungen!$T$41,Einstellungen!$S$41,0)+IF(J4=Einstellungen!$T$42,Einstellungen!$S$42,0),0) -> 0
C25: Grundstockvermögen (Soll) | D25: =D10 -> EUR | E25: =IF(Anlageziele!$E$5="Nominal",'Daten VE'!$D$51,IF(Anlageziele!$E$5="Verbrauch",'Daten VE'!$D$55,IF(Anlageziele!$E$5="Substanz",'Zahlen Worst Case'!E6,'Daten VE'!$D$54))) -> 7,575,928 | F25: =IF(Anlageziele!$E$5="Nominal",'Daten VE'!$D$51,IF(Anlageziele!$E$5="Verbrauch",'Daten VE'!I40,IF(Anlageziele!$E$5="Substanz",'Zahlen Worst Case'!F6,'Daten VE'!I38))) -> 7,727,447 | G25: =IF(Anlageziele!$E$5="Nominal",'Daten VE'!$D$51,IF(Anlageziele!$E$5="Verbrauch",'Daten VE'!J40,IF(Anlageziele!$E$5="Substanz",'Zahlen Worst Case'!G6,'Daten VE'!J38))) -> 7,881,996 | H25: =IF(Anlageziele!$E$5="Nominal",'Daten VE'!$D$51,IF(Anlageziele!$E$5="Verbrauch",'Daten VE'!K40,IF(Anlageziele!$E$5="Substanz",'Zahlen Worst Case'!H6,'Daten VE'!K38))) -> 8,039,636 | I25: =IF(Anlageziele!$E$5="Nominal",'Daten VE'!$D$51,IF(Anlageziele!$E$5="Verbrauch",'Daten VE'!L40,IF(Anlageziele!$E$5="Substanz",'Zahlen Worst Case'!I6,'Daten VE'!L38))) -> 8,200,429 | J25: =IF(Anlageziele!$E$5="Nominal",'Daten VE'!$D$51,IF(Anlageziele!$E$5="Verbrauch",'Daten VE'!M40,IF(Anlageziele!$E$5="Substanz",'Zahlen Worst Case'!J6,'Daten VE'!M38))) -> 8,364,437
C26: Delta absolut | D26: =D12 -> EUR | E26: =E6-E25 -> 24,072 | F26: -75,697 | G26: -953,696 | H26: -1,067,453 | I26: -1,183,767 | J26: -1,302,687
C27: Delta Prozent | D27: % | E27: =E26/E6 -> 0.3% | F27: -1.0% | G27: -13.8% | H27: -15.3% | I27: -16.9% | J27: -18.4%
C29: Liquidität Saldo | D29: =D6 -> EUR | E29: =E31-E39 -> 0 | F29: =F31-F39 -> 0 | G29: =G31-G39 -> 0 | H29: 0 | I29: 0 | J29: 0
C31: Einnahmen | D31: =D29 -> EUR | E31: =SUM(E32:E37) -> 0 | F31: =SUM(F32:F38) -> 63,500 | G31: =SUM(G32:G38) -> 64,249 | H31: 65,014 | I31: 65,796 | J31: 66,595
C32: Spenden | D32: =$D$31 -> EUR | E32: 0 | F32: ='Einn._Ausg.'!C7 -> 5,000 | G32: ='Einn._Ausg.'!D7 -> 5,000 | H32: ='Einn._Ausg.'!E7 -> 5,000 | I32: ='Einn._Ausg.'!F7 -> 5,000 | J32: ='Einn._Ausg.'!G7 -> 5,000
C33: Zustiftungen | D33: =$D$31 -> EUR | E33: 0 | F33: ='Einn._Ausg.'!C8 -> 0 | G33: ='Einn._Ausg.'!D8 -> 0 | H33: ='Einn._Ausg.'!E8 -> 0 | I33: ='Einn._Ausg.'!F8 -> 0 | J33: ='Einn._Ausg.'!G8 -> 0
B34: Ordtl. Erträge | C34: Mieterträge (brutto) | D34: EUR | E34: 0 | F34: ='Daten Projektion'!I50 -> 10,000 | G34: ='Daten Projektion'!J50 -> 10,100 | H34: ='Daten Projektion'!K50 -> 10,201 | I34: ='Daten Projektion'!L50 -> 10,303 | J34: ='Daten Projektion'!M50 -> 10,406
C35: Erträge aus Beteiligungen | D35: EUR | E35: 0 | F35: ='Daten Projektion'!I51 -> 0 | G35: ='Daten Projektion'!J51 -> 0 | H35: ='Daten Projektion'!K51 -> 0 | I35: ='Daten Projektion'!L51 -> 0 | J35: ='Daten Projektion'!M51 -> 0
C36: Wertpapiererträge (brutto) | D36: EUR | E36: 0 | F36: ='Daten Projektion'!I52 -> 48,500 | G36: ='Daten Projektion'!J52 -> 49,149 | H36: ='Daten Projektion'!K52 -> 49,813 | I36: ='Daten Projektion'!L52 -> 50,493 | J36: ='Daten Projektion'!M52 -> 51,189
C37: Zinsen und ähnliche Erträge | D37: EUR | E37: 0 | F37: ='Daten Projektion'!I57 -> 0 | G37: ='Daten Projektion'!J57 -> 0 | H37: ='Daten Projektion'!K57 -> 0 | I37: ='Daten Projektion'!L57 -> 0 | J37: ='Daten Projektion'!M57 -> 0
C38: Erträge aus sonstigem Vermögen | D38: EUR | E38: 0 | F38: ='Daten Projektion'!I59 -> 0 | G38: ='Daten Projektion'!J59 -> 0 | H38: ='Daten Projektion'!K59 -> 0 | I38: ='Daten Projektion'!L59 -> 0 | J38: ='Daten Projektion'!M59 -> 0
C39: Ausgaben | D39: EUR | E39: 0 | F39: =SUM(F40:F42)+SUM(F46:F50) -> 63,500 | G39: =SUM(G40:G42)+SUM(G46:G50) -> 64,249 | H39: 65,014 | I39: 65,796 | J39: 66,595
C40: Ausgaben für den Stiftungszweck | D40: EUR | E40: 0 | F40: =IF(Anlageziele!$M$5="Zielausschüttung",Anlageziele!$M$7,'Zahlen Worst Case'!F31-SUM('Zahlen Worst Case'!F41:F42)-SUM('Zahlen Worst Case'!F46:F50)) -> 0 | G40: =IF(Anlageziele!$M$5="Zielausschüttung",Anlageziele!$M$7,'Zahlen Worst Case'!G31-SUM('Zahlen Worst Case'!G41:G42)-SUM('Zahlen Worst Case'!G46:G50)) -> 0 | H40: =IF(Anlageziele!$M$5="Zielausschüttung",Anlageziele!$M$7,'Zahlen Worst Case'!H31-SUM('Zahlen Worst Case'!H41:H42)-SUM('Zahlen Worst Case'!H46:H50)) -> 0 | I40: =IF(Anlageziele!$M$5="Zielausschüttung",Anlageziele!$M$7,'Zahlen Worst Case'!I31-SUM('Zahlen Worst Case'!I41:I42)-SUM('Zahlen Worst Case'!I46:I50)) -> 0 | J40: =IF(Anlageziele!$M$5="Zielausschüttung",Anlageziele!$M$7,'Zahlen Worst Case'!J31-SUM('Zahlen Worst Case'!J41:J42)-SUM('Zahlen Worst Case'!J46:J50)) -> -0
C41: Allg. Verwaltungskosten | D41: EUR | E41: 0 | F41: ='Einn._Ausg.'!C28 -> 28,000 | G41: ='Einn._Ausg.'!D28 -> 27,030 | H41: ='Einn._Ausg.'!E28 -> 27,571 | I41: ='Einn._Ausg.'!F28 -> 28,122 | J41: ='Einn._Ausg.'!G28 -> 28,684
C42: Kosten Vermögensverwaltung | D42: EUR | E42: 0 | F42: =SUM(F43:F45) -> 11,220 | G42: =SUM(G43:G45) -> 11,444 | H42: 11,673 | I42: 11,907 | J42: 12,145
C43: davon Immobilien | D43: EUR | E43: 0 | F43: ='Daten Projektion'!I80 -> 5,100 | G43: ='Daten Projektion'!J80 -> 5,202 | H43: ='Daten Projektion'!K80 -> 5,306 | I43: ='Daten Projektion'!L80 -> 5,412 | J43: ='Daten Projektion'!M80 -> 5,520
C44: davon Beteiligungen | D44: EUR | E44: 0 | F44: ='Daten Projektion'!I81 -> 0 | G44: ='Daten Projektion'!J81 -> 0 | H44: ='Daten Projektion'!K81 -> 0 | I44: ='Daten Projektion'!L81 -> 0 | J44: ='Daten Projektion'!M81 -> 0
C45: davon Wertpapiere | D45: EUR | E45: 0 | F45: ='Daten Projektion'!I82 -> 6,120 | G45: ='Daten Projektion'!J82 -> 6,242 | H45: ='Daten Projektion'!K82 -> 6,367 | I45: ='Daten Projektion'!L82 -> 6,495 | J45: ='Daten Projektion'!M82 -> 6,624
C46: Sollzinsen | D46: EUR | E46: 0 | F46: ='Daten Projektion'!I60*-1 -> 0 | G46: ='Daten Projektion'!J60*-1 -> 0 | H46: ='Daten Projektion'!K60*-1 -> 0 | I46: ='Daten Projektion'!L60*-1 -> 0 | J46: ='Daten Projektion'!M60*-1 -> 0
C47: Tilgung | D47: EUR | E47: 0 | F47: =(E17-F17)*-1 -> 0 | G47: =(F17-G17)*-1 -> 0 | H47: =(G17-H17)*-1 -> 0 | I47: =(H17-I17)*-1 -> 0 | J47: =(I17-J17)*-1 -> 0
C48: Sonstige Aufwände | D48: EUR | E48: 0 | F48: ='Einn._Ausg.'!C27 -> 3,000 | G48: ='Einn._Ausg.'!D27 -> 3,060 | H48: ='Einn._Ausg.'!E27 -> 3,121 | I48: ='Einn._Ausg.'!F27 -> 3,184 | J48: ='Einn._Ausg.'!G27 -> 3,247
C49: Zuführung Freie Rücklage | D49: EUR | E49: 0 | F49: =IF(Anlageziele!$M$5="Zielausschüttung",'Zahlen Worst Case'!F31-SUM('Zahlen Worst Case'!F40:F42)-SUM('Zahlen Worst Case'!F46:F48)-'Zahlen Worst Case'!F50,(SUM(F34:F38)-F42)*Einstellungen!$D$30%+F31-F41-F42-F46-F47-F48-(SUM(F34:F38)-F42)*Einstellungen!$D$30%-F50) -> 21,280 | G49: =IF(Anlageziele!$M$5="Zielausschüttung",'Zahlen Worst Case'!G31-SUM('Zahlen Worst Case'!G40:G42)-SUM('Zahlen Worst Case'!G46:G48)-'Zahlen Worst Case'!G50,(SUM(G34:G38)-G42)*Einstellungen!$D$30%+G31-G41-G42-G46-G47-G48-(SUM(G34:G38)-G42)*Einstellungen!$D$30%-G50) -> 22,714 | H49: =IF(Anlageziele!$M$5="Zielausschüttung",'Zahlen Worst Case'!H31-SUM('Zahlen Worst Case'!H40:H42)-SUM('Zahlen Worst Case'!H46:H48)-'Zahlen Worst Case'!H50,(SUM(H34:H38)-H42)*Einstellungen!$D$30%+H31-H41-H42-H46-H47-H48-(SUM(H34:H38)-H42)*Einstellungen!$D$30%-H50) -> 22,649 | I49: =IF(Anlageziele!$M$5="Zielausschüttung",'Zahlen Worst Case'!I31-SUM('Zahlen Worst Case'!I40:I42)-SUM('Zahlen Worst Case'!I46:I48)-'Zahlen Worst Case'!I50,(SUM(I34:I38)-I42)*Einstellungen!$D$30%+I31-I41-I42-I46-I47-I48-(SUM(I34:I38)-I42)*Einstellungen!$D$30%-I50) -> 22,584 | J49: =IF(Anlageziele!$M$5="Zielausschüttung",'Zahlen Worst Case'!J31-SUM('Zahlen Worst Case'!J40:J42)-SUM('Zahlen Worst Case'!J46:J48)-'Zahlen Worst Case'!J50,(SUM(J34:J38)-J42)*Einstellungen!$D$30%+J31-J41-J42-J46-J47-J48-(SUM(J34:J38)-J42)*Einstellungen!$D$30%-J50) -> 22,519
C50: Neuanlage | D50: EUR | E50: =E33 -> 0 | F50: =F33 -> 0 | G50: =G33 -> 0 | H50: 0 | I50: 0 | J50: 0
C51: Kennzahlen
C52: Ausschüttungsrendite brutto | D52: % | E52: 0.0% | F52: =SUM(F34:F38)/E6 -> 0.8% | G52: =SUM(G34:G38)/F6 -> 0.8% | H52: =SUM(H34:H38)/G6 -> 0.9% | I52: =SUM(I34:I38)/H6 -> 0.9% | J52: =SUM(J34:J38)/I6 -> 0.9%
C53: Verwaltungskostenquote (Aufsicht) | D53: % | E53: 0.0% | F53: =(F41+F42)/(F31-F33) -> 61.8% | G53: =(G41+G42)/(G31-G33) -> 59.9% | H53: 60.4% | I53: 60.8% | J53: 61.3%
C54: Verwaltungskostenquote (Finanzamt) | D54: % | E54: 0.0% | F54: =F41/(F31-F42-F33) -> 53.6% | G54: =G41/(G31-G42-G33) -> 51.2% | H54: 51.7% | I54: 52.2% | J54: 52.7%
C55: Zweckeffizienz der Erträge | D55: % | E55: 0.0% | F55: =F40/(F31-F33) -> 0.0% | G55: =G40/(G31-G33) -> 0.0% | H55: 0.0% | I55: 0.0% | J55: -0.0%
C56: Zweckeffizienz des Vermögens | D56: % | E56: =E40/E6 -> 0.0% | F56: 0.0% | G56: 0.0% | H56: 0.0% | I56: 0.0% | J56: -0.0%

Sheet Daten Umschichtung (hidden)
A1: Daten Umschichtung
B3: Nr. | C3: Vermögensgegenstand | D3: Umschichtung gegen | E3: Wert | F3: =Einstellungen!D7 -> 2019 | G3: =F3+1 -> 2020 | H3: =G3+1 -> 2021 | I3: 2022 | J3: 2023 | L3: Beschlussfassung | M3: Informationsgrundlagen
B4: 1 | C4: =Vermentw.!C5 -> Vermögensverwaltung A-Bank Aktien | D4: =Vermentw.!E5 -> Aktien | E4: ='Daten Projektion'!H6 -> 650,000 | F4: =(SUMIFS(Umschichtung!$H$6:$H$11,Umschichtung!$E$6:$E$11,'Daten Umschichtung'!$C4,Umschichtung!$G$6:$G$11,'Daten Umschichtung'!F$3)+SUMIFS(Umschichtung!$J$6:$J$11,Umschichtung!$E$6:$E$11,'Daten Umschichtung'!$C4,Umschichtung!$G$6:$G$11,'Daten Umschichtung'!F$3))*-1 -> 0 | G4: =(SUMIFS(Umschichtung!$H$6:$H$11,Umschichtung!$E$6:$E$11,'Daten Umschichtung'!$C4,Umschichtung!$G$6:$G$11,'Daten Umschichtung'!G$3)+SUMIFS(Umschichtung!$J$6:$J$11,Umschichtung!$E$6:$E$11,'Daten Umschichtung'!$C4,Umschichtung!$G$6:$G$11,'Daten Umschichtung'!G$3))*-1 -> 0 | H4: =(SUMIFS(Umschichtung!$H$6:$H$11,Umschichtung!$E$6:$E$11,'Daten Umschichtung'!$C4,Umschichtung!$G$6:$G$11,'Daten Umschichtung'!H$3)+SUMIFS(Umschichtung!$J$6:$J$11,Umschichtung!$E$6:$E$11,'Daten Umschichtung'!$C4,Umschichtung!$G$6:$G$11,'Daten Umschichtung'!H$3))*-1 -> 0 | I4: =(SUMIFS(Umschichtung!$H$6:$H$11,Umschichtung!$E$6:$E$11,'Daten Umschichtung'!$C4,Umschichtung!$G$6:$G$11,'Daten Umschichtung'!I$3)+SUMIFS(Umschichtung!$J$6:$J$11,Umschichtung!$E$6:$E$11,'Daten Umschichtung'!$C4,Umschichtung!$G$6:$G$11,'Daten Umschichtung'!I$3))*-1 -> 0 | J4: =(SUMIFS(Umschichtung!$H$6:$H$11,Umschichtung!$E$6:$E$11,'Daten Umschichtung'!$C4,Umschichtung!$G$6:$G$11,'Daten Umschichtung'!J$3)+SUMIFS(Umschichtung!$J$6:$J$11,Umschichtung!$E$6:$E$11,'Daten Umschichtung'!$C4,Umschichtung!$G$6:$G$11,'Daten Umschichtung'!J$3))*-1 -> 0 | L4: Bitte auswählen | M4: Bitte auswählen
B5: =B4+1 -> 2 | C5: =Vermentw.!C6 -> Vermögensverwaltung A-Bank Renten | D5: =Vermentw.!E6 -> Renten | E5: ='Daten Projektion'!H7 -> 5,200,000 | F5: =(SUMIFS(Umschichtung!$H$6:$H$11,Umschichtung!$E$6:$E$11,'Daten Umschichtung'!$C5,Umschichtung!$G$6:$G$11,'Daten Umschichtung'!F$3)+SUMIFS(Umschichtung!$J$6:$J$11,Umschichtung!$E$6:$E$11,'Daten Umschichtung'!$C5,Umschichtung!$G$6:$G$11,'Daten Umschichtung'!F$3))*-1 -> 0 | G5: =(SUMIFS(Umschichtung!$H$6:$H$11,Umschichtung!$E$6:$E$11,'Daten Umschichtung'!$C5,Umschichtung!$G$6:$G$11,'Daten Umschichtung'!G$3)+SUMIFS(Umschichtung!$J$6:$J$11,Umschichtung!$E$6:$E$11,'Daten Umschichtung'!$C5,Umschichtung!$G$6:$G$11,'Daten Umschichtung'!G$3))*-1 -> 0 | H5: =(SUMIFS(Umschichtung!$H$6:$H$11,Umschichtung!$E$6:$E$11,'Daten Umschichtung'!$C5,Umschichtung!$G$6:$G$11,'Daten Umschichtung'!H$3)+SUMIFS(Umschichtung!$J$6:$J$11,Umschichtung!$E$6:$E$11,'Daten Umschichtung'!$C5,Umschichtung!$G$6:$G$11,'Daten Umschichtung'!H$3))*-1 -> 0 | I5: =(SUMIFS(Umschichtung!$H$6:$H$11,Umschichtung!$E$6:$E$11,'Daten Umschichtung'!$C5,Umschichtung!$G$6:$G$11,'Daten Umschichtung'!I$3)+SUMIFS(Umschichtung!$J$6:$J$11,Umschichtung!$E$6:$E$11,'Daten Umschichtung'!$C5,Umschichtung!$G$6:$G$11,'Daten Umschichtung'!I$3))*-1 -> 0 | J5: =(SUMIFS(Umschichtung!$H$6:$H$11,Umschichtung!$E$6:$E$11,'Daten Umschichtung'!$C5,Umschichtung!$G$6:$G$11,'Daten Umschichtung'!J$3)+SUMIFS(Umschichtung!$J$6:$J$11,Umschichtung!$E$6:$E$11,'Daten Umschichtung'!$C5,Umschichtung!$G$6:$G$11,'Daten Umschichtung'!J$3))*-1 -> 0 | L5: in persönlicher Abstimmung | M5: Beratungsgespräch
B6: =B5+1 -> 3 | C6: =Vermentw.!C7 -> Stiftungsfonds Xy | D6: =Vermentw.!E7 -> Renten | E6: ='Daten Projektion'!H8 -> 250,000 | F6: =(SUMIFS(Umschichtung!$H$6:$H$11,Umschichtung!$E$6:$E$11,'Daten Umschichtung'!$C6,Umschichtung!$G$6:$G$11,'Daten Umschichtung'!F$3)+SUMIFS(Umschichtung!$J$6:$J$11,Umschichtung!$E$6:$E$11,'Daten Umschichtung'!$C6,Umschichtung!$G$6:$G$11,'Daten Umschichtung'!F$3))*-1 -> 0 | G6: =(SUMIFS(Umschichtung!$H$6:$H$11,Umschichtung!$E$6:$E$11,'Daten Umschichtung'!$C6,Umschichtung!$G$6:$G$11,'Daten Umschichtung'!G$3)+SUMIFS(Umschichtung!$J$6:$J$11,Umschichtung!$E$6:$E$11,'Daten Umschichtung'!$C6,Umschichtung!$G$6:$G$11,'Daten Umschichtung'!G$3))*-1 -> 0 | H6: =(SUMIFS(Umschichtung!$H$6:$H$11,Umschichtung!$E$6:$E$11,'Daten Umschichtung'!$C6,Umschichtung!$G$6:$G$11,'Daten Umschichtung'!H$3)+SUMIFS(Umschichtung!$J$6:$J$11,Umschichtung!$E$6:$E$11,'Daten Umschichtung'!$C6,Umschichtung!$G$6:$G$11,'Daten Umschichtung'!H$3))*-1 -> 0 | I6: =(SUMIFS(Umschichtung!$H$6:$H$11,Umschichtung!$E$6:$E$11,'Daten Umschichtung'!$C6,Umschichtung!$G$6:$G$11,'Daten Umschichtung'!I$3)+SUMIFS(Umschichtung!$J$6:$J$11,Umschichtung!$E$6:$E$11,'Daten Umschichtung'!$C6,Umschichtung!$G$6:$G$11,'Daten Umschichtung'!I$3))*-1 -> 0 | J6: =(SUMIFS(Umschichtung!$H$6:$H$11,Umschichtung!$E$6:$E$11,'Daten Umschichtung'!$C6,Umschichtung!$G$6:$G$11,'Daten Umschichtung'!J$3)+SUMIFS(Umschichtung!$J$6:$J$11,Umschichtung!$E$6:$E$11,'Daten Umschichtung'!$C6,Umschichtung!$G$6:$G$11,'Daten Umschichtung'!J$3))*-1 -> 0 | L6: im Umlaufverfahren | M6: Geeignetheitserklärung
B7: 4 | C7: =Vermentw.!C8 -> Immobilie | D7: =Vermentw.!E8 -> Immobilien | E7: ='Daten Projektion'!H9 -> 500,000 | F7: =(SUMIFS(Umschichtung!$H$6:$H$11,Umschichtung!$E$6:$E$11,'Daten Umschichtung'!$C7,Umschichtung!$G$6:$G$11,'Daten Umschichtung'!F$3)+SUMIFS(Umschichtung!$J$6:$J$11,Umschichtung!$E$6:$E$11,'Daten Umschichtung'!$C7,Umschichtung!$G$6:$G$11,'Daten Umschichtung'!F$3))*-1 -> 0 | G7: =(SUMIFS(Umschichtung!$H$6:$H$11,Umschichtung!$E$6:$E$11,'Daten Umschichtung'!$C7,Umschichtung!$G$6:$G$11,'Daten Umschichtung'!G$3)+SUMIFS(Umschichtung!$J$6:$J$11,Umschichtung!$E$6:$E$11,'Daten Umschichtung'!$C7,Umschichtung!$G$6:$G$11,'Daten Umschichtung'!G$3))*-1 -> 0 | H7: =(SUMIFS(Umschichtung!$H$6:$H$11,Umschichtung!$E$6:$E$11,'Daten Umschichtung'!$C7,Umschichtung!$G$6:$G$11,'Daten Umschichtung'!H$3)+SUMIFS(Umschichtung!$J$6:$J$11,Umschichtung!$E$6:$E$11,'Daten Umschichtung'!$C7,Umschichtung!$G$6:$G$11,'Daten Umschichtung'!H$3))*-1 -> 0 | I7: =(SUMIFS(Umschichtung!$H$6:$H$11,Umschichtung!$E$6:$E$11,'Daten Umschichtung'!$C7,Umschichtung!$G$6:$G$11,'Daten Umschichtung'!I$3)+SUMIFS(Umschichtung!$J$6:$J$11,Umschichtung!$E$6:$E$11,'Daten Umschichtung'!$C7,Umschichtung!$G$6:$G$11,'Daten Umschichtung'!I$3))*-1 -> 0 | J7: =(SUMIFS(Umschichtung!$H$6:$H$11,Umschichtung!$E$6:$E$11,'Daten Umschichtung'!$C7,Umschichtung!$G$6:$G$11,'Daten Umschichtung'!J$3)+SUMIFS(Umschichtung!$J$6:$J$11,Umschichtung!$E$6:$E$11,'Daten Umschichtung'!$C7,Umschichtung!$G$6:$G$11,'Daten Umschichtung'!J$3))*-1 -> 0 | M7: Produktinformationsblatt
B8: 5 | C8: =Vermentw.!C9 -> Bankguthaben B-Bank | D8: =Vermentw.!E9 -> Kontoguthaben | E8: ='Daten Projektion'!H10 -> 1,000,000 | F8: =(SUMIFS(Umschichtung!$H$6:$H$11,Umschichtung!$E$6:$E$11,'Daten Umschichtung'!$C8,Umschichtung!$G$6:$G$11,'Daten Umschichtung'!F$3)+SUMIFS(Umschichtung!$J$6:$J$11,Umschichtung!$E$6:$E$11,'Daten Umschichtung'!$C8,Umschichtung!$G$6:$G$11,'Daten Umschichtung'!F$3))*-1 -> -500,000 | G8: =(SUMIFS(Umschichtung!$H$6:$H$11,Umschichtung!$E$6:$E$11,'Daten Umschichtung'!$C8,Umschichtung!$G$6:$G$11,'Daten Umschichtung'!G$3)+SUMIFS(Umschichtung!$J$6:$J$11,Umschichtung!$E$6:$E$11,'Daten Umschichtung'!$C8,Umschichtung!$G$6:$G$11,'Daten Umschichtung'!G$3))*-1 -> -500,000 | H8: =(SUMIFS(Umschichtung!$H$6:$H$11,Umschichtung!$E$6:$E$11,'Daten Umschichtung'!$C8,Umschichtung!$G$6:$G$11,'Daten Umschichtung'!H$3)+SUMIFS(Umschichtung!$J$6:$J$11,Umschichtung!$E$6:$E$11,'Daten Umschichtung'!$C8,Umschichtung!$G$6:$G$11,'Daten Umschichtung'!H$3))*-1 -> 0 | I8: =(SUMIFS(Umschichtung!$H$6:$H$11,Umschichtung!$E$6:$E$11,'Daten Umschichtung'!$C8,Umschichtung!$G$6:$G$11,'Daten Umschichtung'!I$3)+SUMIFS(Umschichtung!$J$6:$J$11,Umschichtung!$E$6:$E$11,'Daten Umschichtung'!$C8,Umschichtung!$G$6:$G$11,'Daten Umschichtung'!I$3))*-1 -> 0 | J8: =(SUMIFS(Umschichtung!$H$6:$H$11,Umschichtung!$E$6:$E$11,'Daten Umschichtung'!$C8,Umschichtung!$G$6:$G$11,'Daten Umschichtung'!J$3)+SUMIFS(Umschichtung!$J$6:$J$11,Umschichtung!$E$6:$E$11,'Daten Umschichtung'!$C8,Umschichtung!$G$6:$G$11,'Daten Umschichtung'!J$3))*-1 -> 0 | M8: Verkaufsprospekt
B9: 6 | C9: =Vermentw.!C10 -> 0 | D9: =Vermentw.!E10 -> Bitte auswählen | E9: ='Daten Projektion'!H11 -> 0 | F9: =(SUMIFS(Umschichtung!$H$6:$H$11,Umschichtung!$E$6:$E$11,'Daten Umschichtung'!$C9,Umschichtung!$G$6:$G$11,'Daten Umschichtung'!F$3)+SUMIFS(Umschichtung!$J$6:$J$11,Umschichtung!$E$6:$E$11,'Daten Umschichtung'!$C9,Umschichtung!$G$6:$G$11,'Daten Umschichtung'!F$3))*-1 -> 0 | G9: =(SUMIFS(Umschichtung!$H$6:$H$11,Umschichtung!$E$6:$E$11,'Daten Umschichtung'!$C9,Umschichtung!$G$6:$G$11,'Daten Umschichtung'!G$3)+SUMIFS(Umschichtung!$J$6:$J$11,Umschichtung!$E$6:$E$11,'Daten Umschichtung'!$C9,Umschichtung!$G$6:$G$11,'Daten Umschichtung'!G$3))*-1 -> 0 | H9: =(SUMIFS(Umschichtung!$H$6:$H$11,Umschichtung!$E$6:$E$11,'Daten Umschichtung'!$C9,Umschichtung!$G$6:$G$11,'Daten Umschichtung'!H$3)+SUMIFS(Umschichtung!$J$6:$J$11,Umschichtung!$E$6:$E$11,'Daten Umschichtung'!$C9,Umschichtung!$G$6:$G$11,'Daten Umschichtung'!H$3))*-1 -> 0 | I9: =(SUMIFS(Umschichtung!$H$6:$H$11,Umschichtung!$E$6:$E$11,'Daten Umschichtung'!$C9,Umschichtung!$G$6:$G$11,'Daten Umschichtung'!I$3)+SUMIFS(Umschichtung!$J$6:$J$11,Umschichtung!$E$6:$E$11,'Daten Umschichtung'!$C9,Umschichtung!$G$6:$G$11,'Daten Umschichtung'!I$3))*-1 -> 0 | J9: =(SUMIFS(Umschichtung!$H$6:$H$11,Umschichtung!$E$6:$E$11,'Daten Umschichtung'!$C9,Umschichtung!$G$6:$G$11,'Daten Umschichtung'!J$3)+SUMIFS(Umschichtung!$J$6:$J$11,Umschichtung!$E$6:$E$11,'Daten Umschichtung'!$C9,Umschichtung!$G$6:$G$11,'Daten Umschichtung'!J$3))*-1 -> 0 | M9: Informationsveranstaltung vom
B10: 7 | C10: =Vermentw.!C11 -> 0 | D10: =Vermentw.!E11 -> Bitte auswählen | E10: ='Daten Projektion'!H12 -> 0 | F10: =(SUMIFS(Umschichtung!$H$6:$H$11,Umschichtung!$E$6:$E$11,'Daten Umschichtung'!$C10,Umschichtung!$G$6:$G$11,'Daten Umschichtung'!F$3)+SUMIFS(Umschichtung!$J$6:$J$11,Umschichtung!$E$6:$E$11,'Daten Umschichtung'!$C10,Umschichtung!$G$6:$G$11,'Daten Umschichtung'!F$3))*-1 -> 0 | G10: =(SUMIFS(Umschichtung!$H$6:$H$11,Umschichtung!$E$6:$E$11,'Daten Umschichtung'!$C10,Umschichtung!$G$6:$G$11,'Daten Umschichtung'!G$3)+SUMIFS(Umschichtung!$J$6:$J$11,Umschichtung!$E$6:$E$11,'Daten Umschichtung'!$C10,Umschichtung!$G$6:$G$11,'Daten Umschichtung'!G$3))*-1 -> 0 | H10: =(SUMIFS(Umschichtung!$H$6:$H$11,Umschichtung!$E$6:$E$11,'Daten Umschichtung'!$C10,Umschichtung!$G$6:$G$11,'Daten Umschichtung'!H$3)+SUMIFS(Umschichtung!$J$6:$J$11,Umschichtung!$E$6:$E$11,'Daten Umschichtung'!$C10,Umschichtung!$G$6:$G$11,'Daten Umschichtung'!H$3))*-1 -> 0 | I10: =(SUMIFS(Umschichtung!$H$6:$H$11,Umschichtung!$E$6:$E$11,'Daten Umschichtung'!$C10,Umschichtung!$G$6:$G$11,'Daten Umschichtung'!I$3)+SUMIFS(Umschichtung!$J$6:$J$11,Umschichtung!$E$6:$E$11,'Daten Umschichtung'!$C10,Umschichtung!$G$6:$G$11,'Daten Umschichtung'!I$3))*-1 -> 0 | J10: =(SUMIFS(Umschichtung!$H$6:$H$11,Umschichtung!$E$6:$E$11,'Daten Umschichtung'!$C10,Umschichtung!$G$6:$G$11,'Daten Umschichtung'!J$3)+SUMIFS(Umschichtung!$J$6:$J$11,Umschichtung!$E$6:$E$11,'Daten Umschichtung'!$C10,Umschichtung!$G$6:$G$11,'Daten Umschichtung'!J$3))*-1 -> 0 | M10: Presseartikel
B11: 8 | C11: =Vermentw.!C12 -> 0 | D11: =Vermentw.!E12 -> Bitte auswählen | E11: ='Daten Projektion'!H13 -> 0 | F11: =(SUMIFS(Umschichtung!$H$6:$H$11,Umschichtung!$E$6:$E$11,'Daten Umschichtung'!$C11,Umschichtung!$G$6:$G$11,'Daten Umschichtung'!F$3)+SUMIFS(Umschichtung!$J$6:$J$11,Umschichtung!$E$6:$E$11,'Daten Umschichtung'!$C11,Umschichtung!$G$6:$G$11,'Daten Umschichtung'!F$3))*-1 -> 0 | G11: =(SUMIFS(Umschichtung!$H$6:$H$11,Umschichtung!$E$6:$E$11,'Daten Umschichtung'!$C11,Umschichtung!$G$6:$G$11,'Daten Umschichtung'!G$3)+SUMIFS(Umschichtung!$J$6:$J$11,Umschichtung!$E$6:$E$11,'Daten Umschichtung'!$C11,Umschichtung!$G$6:$G$11,'Daten Umschichtung'!G$3))*-1 -> 0 | H11: =(SUMIFS(Umschichtung!$H$6:$H$11,Umschichtung!$E$6:$E$11,'Daten Umschichtung'!$C11,Umschichtung!$G$6:$G$11,'Daten Umschichtung'!H$3)+SUMIFS(Umschichtung!$J$6:$J$11,Umschichtung!$E$6:$E$11,'Daten Umschichtung'!$C11,Umschichtung!$G$6:$G$11,'Daten Umschichtung'!H$3))*-1 -> 0 | I11: =(SUMIFS(Umschichtung!$H$6:$H$11,Umschichtung!$E$6:$E$11,'Daten Umschichtung'!$C11,Umschichtung!$G$6:$G$11,'Daten Umschichtung'!I$3)+SUMIFS(Umschichtung!$J$6:$J$11,Umschichtung!$E$6:$E$11,'Daten Umschichtung'!$C11,Umschichtung!$G$6:$G$11,'Daten Umschichtung'!I$3))*-1 -> 0 | J11: =(SUMIFS(Umschichtung!$H$6:$H$11,Umschichtung!$E$6:$E$11,'Daten Umschichtung'!$C11,Umschichtung!$G$6:$G$11,'Daten Umschichtung'!J$3)+SUMIFS(Umschichtung!$J$6:$J$11,Umschichtung!$E$6:$E$11,'Daten Umschichtung'!$C11,Umschichtung!$G$6:$G$11,'Daten Umschichtung'!J$3))*-1 -> 0 | M11: Fachmedium
B12: 9 | C12: =Vermentw.!C13 -> 0 | D12: =Vermentw.!E13 -> Bitte auswählen | E12: ='Daten Projektion'!H14 -> 0 | F12: =(SUMIFS(Umschichtung!$H$6:$H$11,Umschichtung!$E$6:$E$11,'Daten Umschichtung'!$C12,Umschichtung!$G$6:$G$11,'Daten Umschichtung'!F$3)+SUMIFS(Umschichtung!$J$6:$J$11,Umschichtung!$E$6:$E$11,'Daten Umschichtung'!$C12,Umschichtung!$G$6:$G$11,'Daten Umschichtung'!F$3))*-1 -> 0 | G12: =(SUMIFS(Umschichtung!$H$6:$H$11,Umschichtung!$E$6:$E$11,'Daten Umschichtung'!$C12,Umschichtung!$G$6:$G$11,'Daten Umschichtung'!G$3)+SUMIFS(Umschichtung!$J$6:$J$11,Umschichtung!$E$6:$E$11,'Daten Umschichtung'!$C12,Umschichtung!$G$6:$G$11,'Daten Umschichtung'!G$3))*-1 -> 0 | H12: =(SUMIFS(Umschichtung!$H$6:$H$11,Umschichtung!$E$6:$E$11,'Daten Umschichtung'!$C12,Umschichtung!$G$6:$G$11,'Daten Umschichtung'!H$3)+SUMIFS(Umschichtung!$J$6:$J$11,Umschichtung!$E$6:$E$11,'Daten Umschichtung'!$C12,Umschichtung!$G$6:$G$11,'Daten Umschichtung'!H$3))*-1 -> 0 | I12: =(SUMIFS(Umschichtung!$H$6:$H$11,Umschichtung!$E$6:$E$11,'Daten Umschichtung'!$C12,Umschichtung!$G$6:$G$11,'Daten Umschichtung'!I$3)+SUMIFS(Umschichtung!$J$6:$J$11,Umschichtung!$E$6:$E$11,'Daten Umschichtung'!$C12,Umschichtung!$G$6:$G$11,'Daten Umschichtung'!I$3))*-1 -> 0 | J12: =(SUMIFS(Umschichtung!$H$6:$H$11,Umschichtung!$E$6:$E$11,'Daten Umschichtung'!$C12,Umschichtung!$G$6:$G$11,'Daten Umschichtung'!J$3)+SUMIFS(Umschichtung!$J$6:$J$11,Umschichtung!$E$6:$E$11,'Daten Umschichtung'!$C12,Umschichtung!$G$6:$G$11,'Daten Umschichtung'!J$3))*-1 -> 0 | M12: Sonstiges
B13: 10 | C13: =Vermentw.!C14 -> 0 | D13: =Vermentw.!E14 -> Bitte auswählen | E13: ='Daten Projektion'!H15 -> 0 | F13: =(SUMIFS(Umschichtung!$H$6:$H$11,Umschichtung!$E$6:$E$11,'Daten Umschichtung'!$C13,Umschichtung!$G$6:$G$11,'Daten Umschichtung'!F$3)+SUMIFS(Umschichtung!$J$6:$J$11,Umschichtung!$E$6:$E$11,'Daten Umschichtung'!$C13,Umschichtung!$G$6:$G$11,'Daten Umschichtung'!F$3))*-1 -> 0 | G13: =(SUMIFS(Umschichtung!$H$6:$H$11,Umschichtung!$E$6:$E$11,'Daten Umschichtung'!$C13,Umschichtung!$G$6:$G$11,'Daten Umschichtung'!G$3)+SUMIFS(Umschichtung!$J$6:$J$11,Umschichtung!$E$6:$E$11,'Daten Umschichtung'!$C13,Umschichtung!$G$6:$G$11,'Daten Umschichtung'!G$3))*-1 -> 0 | H13: =(SUMIFS(Umschichtung!$H$6:$H$11,Umschichtung!$E$6:$E$11,'Daten Umschichtung'!$C13,Umschichtung!$G$6:$G$11,'Daten Umschichtung'!H$3)+SUMIFS(Umschichtung!$J$6:$J$11,Umschichtung!$E$6:$E$11,'Daten Umschichtung'!$C13,Umschichtung!$G$6:$G$11,'Daten Umschichtung'!H$3))*-1 -> 0 | I13: =(SUMIFS(Umschichtung!$H$6:$H$11,Umschichtung!$E$6:$E$11,'Daten Umschichtung'!$C13,Umschichtung!$G$6:$G$11,'Daten Umschichtung'!I$3)+SUMIFS(Umschichtung!$J$6:$J$11,Umschichtung!$E$6:$E$11,'Daten Umschichtung'!$C13,Umschichtung!$G$6:$G$11,'Daten Umschichtung'!I$3))*-1 -> 0 | J13: =(SUMIFS(Umschichtung!$H$6:$H$11,Umschichtung!$E$6:$E$11,'Daten Umschichtung'!$C13,Umschichtung!$G$6:$G$11,'Daten Umschichtung'!J$3)+SUMIFS(Umschichtung!$J$6:$J$11,Umschichtung!$E$6:$E$11,'Daten Umschichtung'!$C13,Umschichtung!$G$6:$G$11,'Daten Umschichtung'!J$3))*-1 -> 0
B14: 11 | C14: =Vermentw.!C15 -> 0 | D14: =Vermentw.!E15 -> Bitte auswählen | E14: ='Daten Projektion'!H16 -> 0 | F14: =(SUMIFS(Umschichtung!$H$6:$H$11,Umschichtung!$E$6:$E$11,'Daten Umschichtung'!$C14,Umschichtung!$G$6:$G$11,'Daten Umschichtung'!F$3)+SUMIFS(Umschichtung!$J$6:$J$11,Umschichtung!$E$6:$E$11,'Daten Umschichtung'!$C14,Umschichtung!$G$6:$G$11,'Daten Umschichtung'!F$3))*-1 -> 0 | G14: =(SUMIFS(Umschichtung!$H$6:$H$11,Umschichtung!$E$6:$E$11,'Daten Umschichtung'!$C14,Umschichtung!$G$6:$G$11,'Daten Umschichtung'!G$3)+SUMIFS(Umschichtung!$J$6:$J$11,Umschichtung!$E$6:$E$11,'Daten Umschichtung'!$C14,Umschichtung!$G$6:$G$11,'Daten Umschichtung'!G$3))*-1 -> 0 | H14: =(SUMIFS(Umschichtung!$H$6:$H$11,Umschichtung!$E$6:$E$11,'Daten Umschichtung'!$C14,Umschichtung!$G$6:$G$11,'Daten Umschichtung'!H$3)+SUMIFS(Umschichtung!$J$6:$J$11,Umschichtung!$E$6:$E$11,'Daten Umschichtung'!$C14,Umschichtung!$G$6:$G$11,'Daten Umschichtung'!H$3))*-1 -> 0 | I14: =(SUMIFS(Umschichtung!$H$6:$H$11,Umschichtung!$E$6:$E$11,'Daten Umschichtung'!$C14,Umschichtung!$G$6:$G$11,'Daten Umschichtung'!I$3)+SUMIFS(Umschichtung!$J$6:$J$11,Umschichtung!$E$6:$E$11,'Daten Umschichtung'!$C14,Umschichtung!$G$6:$G$11,'Daten Umschichtung'!I$3))*-1 -> 0 | J14: =(SUMIFS(Umschichtung!$H$6:$H$11,Umschichtung!$E$6:$E$11,'Daten Umschichtung'!$C14,Umschichtung!$G$6:$G$11,'Daten Umschichtung'!J$3)+SUMIFS(Umschichtung!$J$6:$J$11,Umschichtung!$E$6:$E$11,'Daten Umschichtung'!$C14,Umschichtung!$G$6:$G$11,'Daten Umschichtung'!J$3))*-1 -> 0
B15: 12 | C15: =Vermentw.!C16 -> 0 | D15: =Vermentw.!E16 -> Bitte auswählen | E15: ='Daten Projektion'!H17 -> 0 | F15: =(SUMIFS(Umschichtung!$H$6:$H$11,Umschichtung!$E$6:$E$11,'Daten Umschichtung'!$C15,Umschichtung!$G$6:$G$11,'Daten Umschichtung'!F$3)+SUMIFS(Umschichtung!$J$6:$J$11,Umschichtung!$E$6:$E$11,'Daten Umschichtung'!$C15,Umschichtung!$G$6:$G$11,'Daten Umschichtung'!F$3))*-1 -> 0 | G15: =(SUMIFS(Umschichtung!$H$6:$H$11,Umschichtung!$E$6:$E$11,'Daten Umschichtung'!$C15,Umschichtung!$G$6:$G$11,'Daten Umschichtung'!G$3)+SUMIFS(Umschichtung!$J$6:$J$11,Umschichtung!$E$6:$E$11,'Daten Umschichtung'!$C15,Umschichtung!$G$6:$G$11,'Daten Umschichtung'!G$3))*-1 -> 0 | H15: =(SUMIFS(Umschichtung!$H$6:$H$11,Umschichtung!$E$6:$E$11,'Daten Umschichtung'!$C15,Umschichtung!$G$6:$G$11,'Daten Umschichtung'!H$3)+SUMIFS(Umschichtung!$J$6:$J$11,Umschichtung!$E$6:$E$11,'Daten Umschichtung'!$C15,Umschichtung!$G$6:$G$11,'Daten Umschichtung'!H$3))*-1 -> 0 | I15: =(SUMIFS(Umschichtung!$H$6:$H$11,Umschichtung!$E$6:$E$11,'Daten Umschichtung'!$C15,Umschichtung!$G$6:$G$11,'Daten Umschichtung'!I$3)+SUMIFS(Umschichtung!$J$6:$J$11,Umschichtung!$E$6:$E$11,'Daten Umschichtung'!$C15,Umschichtung!$G$6:$G$11,'Daten Umschichtung'!I$3))*-1 -> 0 | J15: =(SUMIFS(Umschichtung!$H$6:$H$11,Umschichtung!$E$6:$E$11,'Daten Umschichtung'!$C15,Umschichtung!$G$6:$G$11,'Daten Umschichtung'!J$3)+SUMIFS(Umschichtung!$J$6:$J$11,Umschichtung!$E$6:$E$11,'Daten Umschichtung'!$C15,Umschichtung!$G$6:$G$11,'Daten Umschichtung'!J$3))*-1 -> 0
B16: =Umschichtung!B6 -> U1 | C16: =Umschichtung!C6 -> Aufstockung VV Aktien | D16: =Umschichtung!E6 -> Bankguthaben B-Bank | E16: 0 | F16: =SUMIFS(Umschichtung!$H$6:$H$11,Umschichtung!$C$6:$C$11,'Daten Umschichtung'!$C16,Umschichtung!$G$6:$G$11,'Daten Umschichtung'!F$3) -> 0 | G16: =SUMIFS(Umschichtung!$H$6:$H$11,Umschichtung!$C$6:$C$11,'Daten Umschichtung'!$C16,Umschichtung!$G$6:$G$11,'Daten Umschichtung'!G$3) -> 500,000 | H16: =SUMIFS(Umschichtung!$H$6:$H$11,Umschichtung!$C$6:$C$11,'Daten Umschichtung'!$C16,Umschichtung!$G$6:$G$11,'Daten Umschichtung'!H$3) -> 0 | I16: =SUMIFS(Umschichtung!$H$6:$H$11,Umschichtung!$C$6:$C$11,'Daten Umschichtung'!$C16,Umschichtung!$G$6:$G$11,'Daten Umschichtung'!I$3) -> 0 | J16: =SUMIFS(Umschichtung!$H$6:$H$11,Umschichtung!$C$6:$C$11,'Daten Umschichtung'!$C16,Umschichtung!$G$6:$G$11,'Daten Umschichtung'!J$3) -> 0
B17: =Umschichtung!B7 -> U2 | C17: =Umschichtung!C7 -> ABC Stiftungsfonds | D17: =Umschichtung!E7 -> Bankguthaben B-Bank | E17: 0 | F17: =SUMIFS(Umschichtung!$H$6:$H$11,Umschichtung!$C$6:$C$11,'Daten Umschichtung'!$C17,Umschichtung!$G$6:$G$11,'Daten Umschichtung'!F$3) -> 500,000 | G17: =SUMIFS(Umschichtung!$H$6:$H$11,Umschichtung!$C$6:$C$11,'Daten Umschichtung'!$C17,Umschichtung!$G$6:$G$11,'Daten Umschichtung'!G$3) -> 0 | H17: =SUMIFS(Umschichtung!$H$6:$H$11,Umschichtung!$C$6:$C$11,'Daten Umschichtung'!$C17,Umschichtung!$G$6:$G$11,'Daten Umschichtung'!H$3) -> 0 | I17: =SUMIFS(Umschichtung!$H$6:$H$11,Umschichtung!$C$6:$C$11,'Daten Umschichtung'!$C17,Umschichtung!$G$6:$G$11,'Daten Umschichtung'!I$3) -> 0 | J17: =SUMIFS(Umschichtung!$H$6:$H$11,Umschichtung!$C$6:$C$11,'Daten Umschichtung'!$C17,Umschichtung!$G$6:$G$11,'Daten Umschichtung'!J$3) -> 0
B18: =Umschichtung!B8 -> U3 | C18: =Umschichtung!C8 -> 0 | D18: =Umschichtung!E8 -> 0 | E18: 0 | F18: =SUMIFS(Umschichtung!$H$6:$H$11,Umschichtung!$C$6:$C$11,'Daten Umschichtung'!$C18,Umschichtung!$G$6:$G$11,'Daten Umschichtung'!F$3) -> 0 | G18: =SUMIFS(Umschichtung!$H$6:$H$11,Umschichtung!$C$6:$C$11,'Daten Umschichtung'!$C18,Umschichtung!$G$6:$G$11,'Daten Umschichtung'!G$3) -> 0 | H18: =SUMIFS(Umschichtung!$H$6:$H$11,Umschichtung!$C$6:$C$11,'Daten Umschichtung'!$C18,Umschichtung!$G$6:$G$11,'Daten Umschichtung'!H$3) -> 0 | I18: =SUMIFS(Umschichtung!$H$6:$H$11,Umschichtung!$C$6:$C$11,'Daten Umschichtung'!$C18,Umschichtung!$G$6:$G$11,'Daten Umschichtung'!I$3) -> 0 | J18: =SUMIFS(Umschichtung!$H$6:$H$11,Umschichtung!$C$6:$C$11,'Daten Umschichtung'!$C18,Umschichtung!$G$6:$G$11,'Daten Umschichtung'!J$3) -> 0
B19: =Umschichtung!B9 -> U4 | C19: =Umschichtung!C9 -> 0 | D19: =Umschichtung!E9 -> 0 | E19: 0 | F19: =SUMIFS(Umschichtung!$H$6:$H$11,Umschichtung!$C$6:$C$11,'Daten Umschichtung'!$C19,Umschichtung!$G$6:$G$11,'Daten Umschichtung'!F$3) -> 0 | G19: =SUMIFS(Umschichtung!$H$6:$H$11,Umschichtung!$C$6:$C$11,'Daten Umschichtung'!$C19,Umschichtung!$G$6:$G$11,'Daten Umschichtung'!G$3) -> 0 | H19: =SUMIFS(Umschichtung!$H$6:$H$11,Umschichtung!$C$6:$C$11,'Daten Umschichtung'!$C19,Umschichtung!$G$6:$G$11,'Daten Umschichtung'!H$3) -> 0 | I19: =SUMIFS(Umschichtung!$H$6:$H$11,Umschichtung!$C$6:$C$11,'Daten Umschichtung'!$C19,Umschichtung!$G$6:$G$11,'Daten Umschichtung'!I$3) -> 0 | J19: =SUMIFS(Umschichtung!$H$6:$H$11,Umschichtung!$C$6:$C$11,'Daten Umschichtung'!$C19,Umschichtung!$G$6:$G$11,'Daten Umschichtung'!J$3) -> 0
B20: =Umschichtung!B10 -> U5 | C20: =Umschichtung!C10 -> 0 | D20: =Umschichtung!E10 -> 0 | E20: 0 | F20: =SUMIFS(Umschichtung!$H$6:$H$11,Umschichtung!$C$6:$C$11,'Daten Umschichtung'!$C20,Umschichtung!$G$6:$G$11,'Daten Umschichtung'!F$3) -> 0 | G20: =SUMIFS(Umschichtung!$H$6:$H$11,Umschichtung!$C$6:$C$11,'Daten Umschichtung'!$C20,Umschichtung!$G$6:$G$11,'Daten Umschichtung'!G$3) -> 0 | H20: =SUMIFS(Umschichtung!$H$6:$H$11,Umschichtung!$C$6:$C$11,'Daten Umschichtung'!$C20,Umschichtung!$G$6:$G$11,'Daten Umschichtung'!H$3) -> 0 | I20: =SUMIFS(Umschichtung!$H$6:$H$11,Umschichtung!$C$6:$C$11,'Daten Umschichtung'!$C20,Umschichtung!$G$6:$G$11,'Daten Umschichtung'!I$3) -> 0 | J20: =SUMIFS(Umschichtung!$H$6:$H$11,Umschichtung!$C$6:$C$11,'Daten Umschichtung'!$C20,Umschichtung!$G$6:$G$11,'Daten Umschichtung'!J$3) -> 0
B21: =Umschichtung!B11 -> U6 | C21: =Umschichtung!C11 -> 0 | D21: =Umschichtung!E11 -> 0 | E21: 0 | F21: =SUMIFS(Umschichtung!$H$6:$H$11,Umschichtung!$C$6:$C$11,'Daten Umschichtung'!$C21,Umschichtung!$G$6:$G$11,'Daten Umschichtung'!F$3) -> 0 | G21: =SUMIFS(Umschichtung!$H$6:$H$11,Umschichtung!$C$6:$C$11,'Daten Umschichtung'!$C21,Umschichtung!$G$6:$G$11,'Daten Umschichtung'!G$3) -> 0 | H21: =SUMIFS(Umschichtung!$H$6:$H$11,Umschichtung!$C$6:$C$11,'Daten Umschichtung'!$C21,Umschichtung!$G$6:$G$11,'Daten Umschichtung'!H$3) -> 0 | I21: =SUMIFS(Umschichtung!$H$6:$H$11,Umschichtung!$C$6:$C$11,'Daten Umschichtung'!$C21,Umschichtung!$G$6:$G$11,'Daten Umschichtung'!I$3) -> 0 | J21: =SUMIFS(Umschichtung!$H$6:$H$11,Umschichtung!$C$6:$C$11,'Daten Umschichtung'!$C21,Umschichtung!$G$6:$G$11,'Daten Umschichtung'!J$3) -> 0
C22: Summe | F22: =SUM(F4:F21) -> 0 | G22: 0 | H22: 0 | I22: 0 | J22: 0
B24: =B3 -> Nr. | C24: =C3 -> Vermögensgegenstand | D24: Anlageklasse | E24: =E3 -> Wert | F24: =F3 -> 2019 | G24: =G3 -> 2020 | H24: 2021 | I24: 2022 | J24: 2023
B25: =B4 -> 1 | C25: Vermögensverwaltung A-Bank Aktien | D25: Aktien | E25: 650,000 | F25: =E25+E25*Annahmen!$D7+'Daten Umschichtung'!F4 -> 669,500 | G25: =F25+F25*Annahmen!$D7+'Daten Umschichtung'!G4 -> 689,585 | H25: =G25+G25*Annahmen!$D7+'Daten Umschichtung'!H4 -> 710,273 | I25: =H25+H25*Annahmen!$D7+'Daten Umschichtung'!I4 -> 731,581 | J25: =I25+I25*Annahmen!$D7+'Daten Umschichtung'!J4 -> 753,528
B26: 2 | C26: Vermögensverwaltung A-Bank Renten | D26: Renten | E26: 5,200,000 | F26: =E26+E26*Annahmen!$D8+'Daten Umschichtung'!F5 -> 5,226,000 | G26: =F26+F26*Annahmen!$D8+'Daten Umschichtung'!G5 -> 5,252,130 | H26: =G26+G26*Annahmen!$D8+'Daten Umschichtung'!H5 -> 5,278,391 | I26: =H26+H26*Annahmen!$D8+'Daten Umschichtung'!I5 -> 5,304,783 | J26: =I26+I26*Annahmen!$D8+'Daten Umschichtung'!J5 -> 5,331,307
B27: 3 | C27: Stiftungsfonds Xy | D27: Renten | E27: 250,000 | F27: =E27+E27*Annahmen!$D9+'Daten Umschichtung'!F6 -> 251,250 | G27: =F27+F27*Annahmen!$D9+'Daten Umschichtung'!G6 -> 252,506 | H27: =G27+G27*Annahmen!$D9+'Daten Umschichtung'!H6 -> 253,769 | I27: =H27+H27*Annahmen!$D9+'Daten Umschichtung'!I6 -> 255,038 | J27: =I27+I27*Annahmen!$D9+'Daten Umschichtung'!J6 -> 256,313
B28: 4 | C28: Immobilie | D28: Immobilien | E28: 500,000 | F28: =E28+E28*Annahmen!$D10+'Daten Umschichtung'!F7 -> 505,000 | G28: =F28+F28*Annahmen!$D10+'Daten Umschichtung'!G7 -> 510,050 | H28: =G28+G28*Annahmen!$D10+'Daten Umschichtung'!H7 -> 515,151 | I28: =H28+H28*Annahmen!$D10+'Daten Umschichtung'!I7 -> 520,302 | J28: =I28+I28*Annahmen!$D10+'Daten Umschichtung'!J7 -> 525,505
B29: 5 | C29: Bankguthaben B-Bank | D29: Kontoguthaben | E29: 1,000,000 | F29: =E29+E29*Annahmen!$D11+'Daten Umschichtung'!F8 -> 500,000 | G29: =F29+F29*Annahmen!$D11+'Daten Umschichtung'!G8 -> 0 | H29: =G29+G29*Annahmen!$D11+'Daten Umschichtung'!H8 -> 0 | I29: =H29+H29*Annahmen!$D11+'Daten Umschichtung'!I8 -> 0 | J29: =I29+I29*Annahmen!$D11+'Daten Umschichtung'!J8 -> 0
B30: 6 | C30: 0 | D30: Bitte auswählen | E30: 0 | F30: =E30+E30*Annahmen!$D12+'Daten Umschichtung'!F9 -> 0 | G30: =F30+F30*Annahmen!$D12+'Daten Umschichtung'!G9 -> 0 | H30: =G30+G30*Annahmen!$D12+'Daten Umschichtung'!H9 -> 0 | I30: =H30+H30*Annahmen!$D12+'Daten Umschichtung'!I9 -> 0 | J30: =I30+I30*Annahmen!$D12+'Daten Umschichtung'!J9 -> 0
B31: 7 | C31: 0 | D31: Bitte auswählen | E31: 0 | F31: =E31+E31*Annahmen!$D13+'Daten Umschichtung'!F10 -> 0 | G31: =F31+F31*Annahmen!$D13+'Daten Umschichtung'!G10 -> 0 | H31: =G31+G31*Annahmen!$D13+'Daten Umschichtung'!H10 -> 0 | I31: =H31+H31*Annahmen!$D13+'Daten Umschichtung'!I10 -> 0 | J31: =I31+I31*Annahmen!$D13+'Daten Umschichtung'!J10 -> 0
B32: 8 | C32: 0 | D32: Bitte auswählen | E32: 0 | F32: =E32+E32*Annahmen!$D14+'Daten Umschichtung'!F11 -> 0 | G32: =F32+F32*Annahmen!$D14+'Daten Umschichtung'!G11 -> 0 | H32: =G32+G32*Annahmen!$D14+'Daten Umschichtung'!H11 -> 0 | I32: =H32+H32*Annahmen!$D14+'Daten Umschichtung'!I11 -> 0 | J32: =I32+I32*Annahmen!$D14+'Daten Umschichtung'!J11 -> 0
B33: 9 | C33: 0 | D33: Bitte auswählen | E33: 0 | F33: =E33+E33*Annahmen!$D15+'Daten Umschichtung'!F12 -> 0 | G33: =F33+F33*Annahmen!$D15+'Daten Umschichtung'!G12 -> 0 | H33: =G33+G33*Annahmen!$D15+'Daten Umschichtung'!H12 -> 0 | I33: =H33+H33*Annahmen!$D15+'Daten Umschichtung'!I12 -> 0 | J33: =I33+I33*Annahmen!$D15+'Daten Umschichtung'!J12 -> 0
B34: 10 | C34: 0 | D34: Bitte auswählen | E34: 0 | F34: =E34+E34*Annahmen!$D16+'Daten Umschichtung'!F13 -> 0 | G34: =F34+F34*Annahmen!$D16+'Daten Umschichtung'!G13 -> 0 | H34: =G34+G34*Annahmen!$D16+'Daten Umschichtung'!H13 -> 0 | I34: =H34+H34*Annahmen!$D16+'Daten Umschichtung'!I13 -> 0 | J34: =I34+I34*Annahmen!$D16+'Daten Umschichtung'!J13 -> 0
B35: 11 | C35: 0 | D35: Bitte auswählen | E35: 0 | F35: =E35+E35*Annahmen!$D17+'Daten Umschichtung'!F14 -> 0 | G35: =F35+F35*Annahmen!$D17+'Daten Umschichtung'!G14 -> 0 | H35: =G35+G35*Annahmen!$D17+'Daten Umschichtung'!H14 -> 0 | I35: =H35+H35*Annahmen!$D17+'Daten Umschichtung'!I14 -> 0 | J35: =I35+I35*Annahmen!$D17+'Daten Umschichtung'!J14 -> 0
B36: =B15 -> 12 | C36: =C15 -> 0 | D36: Bitte auswählen | E36: 0 | F36: =E36+E36*Annahmen!$D18+'Daten Umschichtung'!F15 -> 0 | G36: =F36+F36*Annahmen!$D18+'Daten Umschichtung'!G15 -> 0 | H36: =G36+G36*Annahmen!$D18+'Daten Umschichtung'!H15 -> 0 | I36: =H36+H36*Annahmen!$D18+'Daten Umschichtung'!I15 -> 0 | J36: =I36+I36*Annahmen!$D18+'Daten Umschichtung'!J15 -> 0
B37: =B16 -> U1 | C37: =C16 -> Aufstockung VV Aktien | D37: =Umschichtung!D6 -> Aktien | E37: 0 | F37: =E37+E37*Umschichtung!$K6+F16 -> 0 | G37: =F37+F37*Umschichtung!$K6+G16 -> 500,000 | H37: =G37+G37*Umschichtung!$K6+H16 -> 515,000 | I37: =H37+H37*Umschichtung!$K6+I16 -> 530,450 | J37: =I37+I37*Umschichtung!$K6+J16 -> 546,364
B38: =B17 -> U2 | C38: ABC Stiftungsfonds | D38: =Umschichtung!D7 -> Aktien | E38: 0 | F38: =E38+E38*Umschichtung!$K7+F17 -> 500,000 | G38: =F38+F38*Umschichtung!$K7+G17 -> 507,500 | H38: =G38+G38*Umschichtung!$K7+H17 -> 515,113 | I38: =H38+H38*Umschichtung!$K7+I17 -> 522,839 | J38: =I38+I38*Umschichtung!$K7+J17 -> 530,682
B39: U3 | C39: 0 | D39: =Umschichtung!D8 -> 0 | E39: 0 | F39: =E39+E39*Umschichtung!$K8+F18 -> 0 | G39: =F39+F39*Umschichtung!$K8+G18 -> 0 | H39: =G39+G39*Umschichtung!$K8+H18 -> 0 | I39: =H39+H39*Umschichtung!$K8+I18 -> 0 | J39: =I39+I39*Umschichtung!$K8+J18 -> 0
B40: U4 | C40: 0 | D40: =Umschichtung!D9 -> 0 | E40: 0 | F40: =E40+E40*Umschichtung!$K9+F19 -> 0 | G40: =F40+F40*Umschichtung!$K9+G19 -> 0 | H40: =G40+G40*Umschichtung!$K9+H19 -> 0 | I40: =H40+H40*Umschichtung!$K9+I19 -> 0 | J40: =I40+I40*Umschichtung!$K9+J19 -> 0
B41: U5 | C41: 0 | D41: =Umschichtung!D10 -> 0 | E41: 0 | F41: =E41+E41*Umschichtung!$K10+F20 -> 0 | G41: =F41+F41*Umschichtung!$K10+G20 -> 0 | H41: =G41+G41*Umschichtung!$K10+H20 -> 0 | I41: =H41+H41*Umschichtung!$K10+I20 -> 0 | J41: =I41+I41*Umschichtung!$K10+J20 -> 0
B42: U6 | C42: 0 | D42: =Umschichtung!D11 -> 0 | E42: 0 | F42: =E42+E42*Umschichtung!$K11+F21 -> 0 | G42: =F42+F42*Umschichtung!$K11+G21 -> 0 | H42: =G42+G42*Umschichtung!$K11+H21 -> 0 | I42: =H42+H42*Umschichtung!$K11+I21 -> 0 | J42: =I42+I42*Umschichtung!$K11+J21 -> 0
C43: Summe | E43: =SUM(E25:E42) -> 7,600,000 | F43: =SUM(F25:F42) -> 7,651,750 | G43: =SUM(G25:G42) -> 7,711,771 | H43: 7,787,695 | I43: 7,864,992 | J43: =SUM(J25:J42) -> 7,943,698
C46: Vermögen Umschichtung nach AK | D46: Immobilien | E46: =SUMIF($D$25:$D$36,$D46,E$25:E$42) -> 500,000 | F46: =SUMIF($D$25:$D$42,$D46,F$25:F$42) -> 505,000 | G46: =SUMIF($D$25:$D$42,$D46,G$25:G$42) -> 510,050 | H46: 515,151 | I46: 520,302 | J46: =SUMIF($D$25:$D$42,$D46,J$25:J$42) -> 525,505
D47: Beteiligungen | E47: =SUMIF($D$25:$D$36,$D47,E$25:E$42) -> 0 | F47: =SUMIF($D$25:$D$42,$D47,F$25:F$42) -> 0 | G47: 0 | H47: 0 | I47: 0 | J47: 0
D48: Wertpapiere | E48: =SUM(E49:E52) -> 6,100,000 | F48: =SUM(F49:F52) -> 6,646,750 | G48: 7,201,721 | H48: 7,272,544 | I48: 7,344,690 | J48: 7,418,193
D49: davon Aktien | E49: =SUMIF($D$25:$D$42,"Aktien",E$25:E$42) -> 650,000 | F49: =SUMIF($D$25:$D$42,"Aktien",F$25:F$42) -> 1,169,500 | G49: =SUMIF($D$25:$D$42,"Aktien",G$25:G$42) -> 1,697,085 | H49: 1,740,385 | I49: 1,784,870 | J49: 1,830,573
D50: davon Renten | E50: =SUMIF($D$25:$D$42,"Renten",E$25:E$42) -> 5,450,000 | F50: =SUMIF($D$25:$D$42,"Renten",F$25:F$42) -> 5,477,250 | G50: 5,504,636 | H50: =SUMIF($D$25:$D$42,"Renten",H$25:H$42) -> 5,532,159 | I50: 5,559,820 | J50: 5,587,619
D51: davon Liquidität | E51: =SUMIF($D$25:$D$42,"Liquidität",E$25:E$42) -> 0 | F51: =SUMIF($D$25:$D$42,"Liquidität",F$25:F$42) -> 0 | G51: 0 | H51: =SUMIF($D$25:$D$42,"Liquidität",H$25:H$42) -> 0 | I51: 0 | J51: 0
D52: davon Alternative Investments | E52: =SUMIF($D$25:$D$42,"Alternative Investments",E$25:E$42) -> 0 | F52: =SUMIF($D$25:$D$42,"Alternative Investments",F$25:F$42) -> 0 | G52: =SUMIF($D$25:$D$42,"Alternative Investments",G$25:G$42) -> 0 | H52: 0 | I52: 0 | J52: =SUMIF($D$25:$D$42,"Alternative Investments",J$25:J$42) -> 0
D53: Spar- und Termineinlagen | E53: =SUMIF($D$25:$D$42,"Spar- u. Termineinlagen",E$25:E$42) -> 0 | F53: =SUMIF($D$25:$D$42,"Spar- u. Termineinlagen",F$25:F$42) -> 0 | G53: 0 | H53: 0 | I53: 0 | J53: 0
D54: Kontoguthaben Investitionsvermögen | E54: =SUMIF($D$25:$D$42,"Kontoguthaben",E$25:E$42) -> 1,000,000 | F54: =SUMIF($D$25:$D$42,"Kontoguthaben",F$25:F$42) -> 500,000 | G54: 0 | H54: 0 | I54: 0 | J54: 0
D55: Sonstiges Vermögen | E55: =SUMIF($D$25:$D$42,"Sonstiges Vermögen",E$25:E$42) -> 0 | F55: =SUMIF($D$25:$D$42,"Sonstiges Vermögen",F$25:F$42) -> 0 | G55: 0 | H55: 0 | I55: 0 | J55: =SUMIF($D$25:$D$42,"Sonstiges Vermögen",J$25:J$42) -> 0
D56: Verbindlichkeiten | E56: =SUMIF($D$25:$D$42,"Verbindlichkeiten",E$25:E$42) -> 0 | F56: =SUMIF($D$25:$D$42,"Verbindlichkeiten",F$25:F$42) -> 0 | G56: 0 | H56: 0 | I56: 0 | J56: =SUMIF($D$25:$D$42,"Verbindlichkeiten",J$25:J$42) -> 0
D57: Summe | E57: =SUM(E46:E48)+SUM(E53:E56) -> 7,600,000 | F57: 7,651,750 | G57: 7,711,771 | H57: 7,787,695 | I57: 7,864,992 | J57: 7,943,698
C59: Zielerreichung Vermögen | F59: =F24 -> 2019 | G59: =G24 -> 2020 | H59: =H24 -> 2021 | I59: =I24 -> 2022 | J59: =J24 -> 2023
D60: Vermögenserhaltungsziel | E60: ='Daten VE'!H45 -> 7,575,928 | F60: ='Daten VE'!I45 -> 7,727,447 | G60: ='Daten VE'!J45 -> 7,881,996 | H60: ='Daten VE'!K45 -> 8,039,636 | I60: ='Daten VE'!L45 -> 8,200,429 | J60: ='Daten VE'!M45 -> 8,364,437
D61: Vermögen Basisszenario | E61: ='Daten Projektion'!H31 -> 7,600,000 | F61: ='Daten Projektion'!I31 -> 7,651,750 | G61: ='Daten Projektion'!J31 -> 7,704,271 | H61: ='Daten Projektion'!K31 -> 7,757,582 | I61: ='Daten Projektion'!L31 -> 7,811,703 | J61: ='Daten Projektion'!M31 -> 7,866,653
D62: Vermögen Umschichtung | E62: =E57 -> 7,600,000 | F62: 7,651,750 | G62: 7,711,771 | H62: 7,787,695 | I62: 7,864,992 | J62: 7,943,698
D63: Zielabweichung Vermögen Basisszenario | F63: =(F61-F60)/F60 -> -1.0% | G63: =(G61-G60)/G60 -> -2.3% | H63: -3.5% | I63: -4.7% | J63: -6.0%
D64: Zielabweichung Vermögen Umschichtung | F64: =(F62-F60)/F60 -> -1.0% | G64: =(G62-G60)/G60 -> -2.2% | H64: -3.1% | I64: -4.1% | J64: -5.0%
C66: Erträge Umschichtung
B68: =B24 -> Nr. | C68: Vermögensgegenstand | D68: Anlageklasse | F68: =F59 -> 2019 | G68: =G59 -> 2020 | H68: =H59 -> 2021 | I68: =I59 -> 2022 | J68: =J59 -> 2023
B69: 1 | C69: Vermögensverwaltung A-Bank Aktien | D69: Aktien | E69: =IF(D69="Verbindlichkeiten",-1,1) -> 1 | F69: =E25*$E69*Annahmen!$E7 -> 16,250 | G69: =F25*$E69*Annahmen!$E$7 -> 16,738 | H69: =G25*$E69*Annahmen!$E$7 -> 17,240 | I69: =H25*$E69*Annahmen!$E$7 -> 17,757 | J69: =I25*$E69*Annahmen!$E$7 -> 18,290
B70: 2 | C70: Vermögensverwaltung A-Bank Renten | D70: Renten | E70: =IF(D70="Verbindlichkeiten",-1,1) -> 1 | F70: =E26*$E70*Annahmen!$E8 -> 26,000 | G70: =F26*$E70*Annahmen!$E8 -> 26,130 | H70: =G26*$E70*Annahmen!$E8 -> 26,261 | I70: =H26*$E70*Annahmen!$E8 -> 26,392 | J70: =I26*$E70*Annahmen!$E8 -> 26,524
B71: 3 | C71: Stiftungsfonds Xy | D71: Renten | E71: 1 | F71: =E27*$E71*Annahmen!$E9 -> 6,250 | G71: =F27*$E71*Annahmen!$E9 -> 6,281 | H71: =G27*$E71*Annahmen!$E9 -> 6,313 | I71: =H27*$E71*Annahmen!$E9 -> 6,344 | J71: =I27*$E71*Annahmen!$E9 -> 6,376
B72: 4 | C72: Immobilie | D72: Immobilien | E72: 1 | F72: =E28*$E72*Annahmen!$E10 -> 10,000 | G72: =F28*$E72*Annahmen!$E10 -> 10,100 | H72: =G28*$E72*Annahmen!$E10 -> 10,201 | I72: =H28*$E72*Annahmen!$E10 -> 10,303 | J72: =I28*$E72*Annahmen!$E10 -> 10,406
B73: 5 | C73: Bankguthaben B-Bank | D73: Kontoguthaben | E73: 1 | F73: =E29*$E73*Annahmen!$E11 -> 0 | G73: =F29*$E73*Annahmen!$E11 -> 0 | H73: =G29*$E73*Annahmen!$E11 -> 0 | I73: =H29*$E73*Annahmen!$E11 -> 0 | J73: =I29*$E73*Annahmen!$E11 -> 0
B74: 6 | C74: 0 | D74: Bitte auswählen | E74: 1 | F74: =E30*$E74*Annahmen!$E12 -> 0 | G74: =F30*$E74*Annahmen!$E12 -> 0 | H74: =G30*$E74*Annahmen!$E12 -> 0 | I74: =H30*$E74*Annahmen!$E12 -> 0 | J74: =I30*$E74*Annahmen!$E12 -> 0
B75: 7 | C75: 0 | D75: Bitte auswählen | E75: 1 | F75: =E31*$E75*Annahmen!$E13 -> 0 | G75: =F31*$E75*Annahmen!$E13 -> 0 | H75: =G31*$E75*Annahmen!$E13 -> 0 | I75: =H31*$E75*Annahmen!$E13 -> 0 | J75: =I31*$E75*Annahmen!$E13 -> 0
B76: 8 | C76: 0 | D76: Bitte auswählen | E76: 1 | F76: =E32*$E76*Annahmen!$E14 -> 0 | G76: =F32*$E76*Annahmen!$E14 -> 0 | H76: =G32*$E76*Annahmen!$E14 -> 0 | I76: =H32*$E76*Annahmen!$E14 -> 0 | J76: =I32*$E76*Annahmen!$E14 -> 0
B77: 9 | C77: 0 | D77: Bitte auswählen | E77: 1 | F77: =E33*$E77*Annahmen!$E15 -> 0 | G77: =F33*$E77*Annahmen!$E15 -> 0 | H77: =G33*$E77*Annahmen!$E15 -> 0 | I77: =H33*$E77*Annahmen!$E15 -> 0 | J77: =I33*$E77*Annahmen!$E15 -> 0
B78: 10 | C78: 0 | D78: Bitte auswählen | E78: 1 | F78: =E34*$E78*Annahmen!$E16 -> 0 | G78: =F34*$E78*Annahmen!$E16 -> 0 | H78: =G34*$E78*Annahmen!$E16 -> 0 | I78: =H34*$E78*Annahmen!$E16 -> 0 | J78: =I34*$E78*Annahmen!$E16 -> 0
B79: 11 | C79: 0 | D79: Bitte auswählen | E79: 1 | F79: =E35*$E79*Annahmen!$E17 -> 0 | G79: =F35*$E79*Annahmen!$E17 -> 0 | H79: =G35*$E79*Annahmen!$E17 -> 0 | I79: =H35*$E79*Annahmen!$E17 -> 0 | J79: =I35*$E79*Annahmen!$E17 -> 0
B80: 12 | C80: 0 | D80: Bitte auswählen | E80: 1 | F80: =E36*$E80*Annahmen!$E18 -> 0 | G80: =F36*$E80*Annahmen!$E18 -> 0 | H80: =G36*$E80*Annahmen!$E18 -> 0 | I80: =H36*$E80*Annahmen!$E18 -> 0 | J80: =I36*$E80*Annahmen!$E18 -> 0
B81: U1 | C81: Aufstockung VV Aktien | D81: Aktien | E81: 1 | F81: =E37*$E81*Umschichtung!$L6 -> 0 | G81: =F37*$E81*Umschichtung!$L6 -> 0 | H81: =G37*$E81*Umschichtung!$L6 -> 10,000 | I81: =H37*$E81*Umschichtung!$L6 -> 10,300 | J81: =I37*$E81*Umschichtung!$L6 -> 10,609
B82: U2 | C82: ABC Stiftungsfonds | D82: Aktien | E82: 1 | F82: =E38*$E82*Umschichtung!$L7 -> 0 | G82: =F38*$E82*Umschichtung!$L7 -> 7,500 | H82: =G38*$E82*Umschichtung!$L7 -> 7,613 | I82: =H38*$E82*Umschichtung!$L7 -> 7,727 | J82: =I38*$E82*Umschichtung!$L7 -> 7,843
B83: U3 | C83: 0 | D83: 0 | E83: 1 | F83: =E39*$E83*Umschichtung!$L8 -> 0 | G83: =F39*$E83*Umschichtung!$L8 -> 0 | H83: =G39*$E83*Umschichtung!$L8 -> 0 | I83: =H39*$E83*Umschichtung!$L8 -> 0 | J83: =I39*$E83*Umschichtung!$L8 -> 0
B84: U4 | C84: 0 | D84: 0 | E84: 1 | F84: =E40*$E84*Umschichtung!$L9 -> 0 | G84: =F40*$E84*Umschichtung!$L9 -> 0 | H84: =G40*$E84*Umschichtung!$L9 -> 0 | I84: =H40*$E84*Umschichtung!$L9 -> 0 | J84: =I40*$E84*Umschichtung!$L9 -> 0
B85: U5 | C85: 0 | D85: 0 | E85: 1 | F85: =E41*$E85*Umschichtung!$L10 -> 0 | G85: =F41*$E85*Umschichtung!$L10 -> 0 | H85: =G41*$E85*Umschichtung!$L10 -> 0 | I85: =H41*$E85*Umschichtung!$L10 -> 0 | J85: =I41*$E85*Umschichtung!$L10 -> 0
B86: U6 | C86: 0 | D86: 0 | E86: 1 | F86: =E42*$E86*Umschichtung!$L11 -> 0 | G86: =F42*$E86*Umschichtung!$L11 -> 0 | H86: =G42*$E86*Umschichtung!$L11 -> 0 | I86: =H42*$E86*Umschichtung!$L11 -> 0 | J86: =I42*$E86*Umschichtung!$L11 -> 0
C87: Summe | F87: =SUM(F69:F86) -> 58,500 | G87: =SUM(G69:G86) -> 66,749 | H87: 77,626 | I87: 78,823 | J87: 80,047
C89: Erträge Umschichtung nach AK | D89: ='Daten Projektion'!G20 -> Immobilien | F89: =SUMIF($D$69:$D$86,"Immobilien",F$69:F$86) -> 10,000 | G89: =SUMIF($D$69:$D$86,"Immobilien",G69:G86) -> 10,100 | H89: =SUMIF($D$69:$D$86,"Immobilien",H69:H86) -> 10,201 | I89: 10,303 | J89: 10,406
D90: ='Daten Projektion'!G21 -> Beteiligungen | F90: =SUMIF($D$69:$D$86,"Beteiligungen",F$69:F$86) -> 0 | G90: =SUMIF($D$69:$D$86,"Beteiligungen",G$69:G$86) -> 0 | H90: 0 | I90: 0 | J90: 0
D91: ='Daten Projektion'!G22 -> Wertpapiere | F91: =SUM(F92:F95) -> 48,500 | G91: =SUM(G92:G95) -> 56,649 | H91: 67,425 | I91: 68,520 | J91: 69,641
D92: ='Daten Projektion'!G23 -> davon Aktien | F92: =SUMIF($D$69:$D$86,"Aktien",F$69:F$86) -> 16,250 | G92: =SUMIF($D$69:$D$86,"Aktien",G$69:G$86) -> 24,238 | H92: 34,852 | I92: 35,784 | J92: 36,741
D93: ='Daten Projektion'!G24 -> davon Renten | F93: =SUMIF($D$69:$D$86,"Renten",F$69:F$86) -> 32,250 | G93: =SUMIF($D$69:$D$86,"Renten",G$69:G$86) -> 32,411 | H93: 32,573 | I93: 32,736 | J93: 32,900
D94: ='Daten Projektion'!G25 -> davon Liquidität | F94: =SUMIF($D$69:$D$86,"LIquidität",F$69:F$86) -> 0 | G94: =SUMIF($D$69:$D$86,"LIquidität",G$69:G$86) -> 0 | H94: 0 | I94: 0 | J94: 0
D95: ='Daten Projektion'!G26 -> davon Alternative Investments | F95: =SUMIF($D$69:$D$86,"Alternative Investments",F$69:F$86) -> 0 | G95: =SUMIF($D$69:$D$86,"Alternative Investments",G$69:G$86) -> 0 | H95: 0 | I95: 0 | J95: 0
D96: ='Daten Projektion'!G27 -> Spar- und Termineinlagen | F96: =SUMIF($D$69:$D$86,"Spar- u. Termineinlagen",F$69:F$86) -> 0 | G96: =SUMIF($D$69:$D$86,"Spar- u. Termineinlagen",G$69:G$86) -> 0 | H96: 0 | I96: 0 | J96: 0
D97: ='Daten Projektion'!G28 -> Kontoguthaben Investitionsvermögen | F97: =SUMIF($D$69:$D$86,"Kontoguthaben",F$69:F$86) -> 0 | G97: =SUMIF($D$69:$D$86,"Kontoguthaben",G$69:G$86) -> 0 | H97: 0 | I97: 0 | J97: 0
D98: ='Daten Projektion'!G29 -> Sonstiges Vermögen | F98: =SUMIF($D$69:$D$86,"Sonstiges Vermögen",F$69:F$86) -> 0 | G98: =SUMIF($D$69:$D$86,"Sonstiges Vermögen",G$69:G$86) -> 0 | H98: 0 | I98: 0 | J98: 0
D99: ='Daten Projektion'!G30 -> Verbindlichkeiten | F99: =SUMIF($D$69:$D$86,"Verbindlichkeiten",F$69:F$86) -> 0 | G99: =SUMIF($D$69:$D$86,"Verbindlichkeiten",G$69:G$86) -> 0 | H99: 0 | I99: 0 | J99: 0
D100: ='Daten Projektion'!G31 -> Summe | F100: =SUM(F89:F91)+SUM(F96:F99) -> 58,500 | G100: =SUM(G89:G91)+SUM(G96:G99) -> 66,749 | H100: 77,626 | I100: 78,823 | J100: 80,047
C102: Zielerreichung Erträge | F102: =F3 -> 2019 | G102: =G3 -> 2020 | H102: 2021 | I102: 2022 | J102: 2023
D103: Ertragsziel | F103: ='Daten Projektion'!I103 -> 64,822 | G103: ='Daten Projektion'!J103 -> 64,250 | H103: ='Daten Projektion'!K103 -> 65,196 | I103: ='Daten Projektion'!L103 -> 66,162 | J103: ='Daten Projektion'!M103 -> 67,148
D104: Erträge Basiszenario | F104: ='Daten Projektion'!I104 -> 58,500 | G104: ='Daten Projektion'!J104 -> 59,249 | H104: ='Daten Projektion'!K104 -> 60,014 | I104: ='Daten Projektion'!L104 -> 60,796 | J104: ='Daten Projektion'!M104 -> 61,595
D105: Erträge Umschichtung | F105: =F100 -> 58,500 | G105: =G100 -> 66,749 | H105: 77,626 | I105: 78,823 | J105: 80,047
D106: Zielabweichung Erträge Basisszenario | F106: =(F104-F103)/F103 -> -9.8% | G106: =(G104-G103)/G103 -> -7.8% | H106: -7.9% | I106: -8.1% | J106: -8.3%
D107: Zielabweichung Erträge Umschichtung | F107: =(F105-F103)/F103 -> -9.8% | G107: =(G105-G103)/G103 -> 3.9% | H107: 19.1% | I107: 19.1% | J107: 19.2%
C109: Risiko Umschichtung
B111: =B68 -> Nr. | C111: =C68 -> Vermögensgegenstand | D111: Anlageklasse | F111: =F68 -> 2019 | G111: =G68 -> 2020 | H111: 2021 | I111: 2022 | J111: 2023
B112: 1 | C112: =C69 -> Vermögensverwaltung A-Bank Aktien | D112: Aktien | E112: ='Daten Projektion'!H6 -> 650,000 | F112: =E112+IF(F$111>=Annahmen!$L7,0,IF(F$111=Annahmen!$K7,'Daten Umschichtung'!E112*Annahmen!$I7,E112*Annahmen!$D7))+F4 -> 669,500 | G112: =F112+IF(G$111>=Annahmen!$L7,0,IF(G$111=Annahmen!$K7,'Daten Umschichtung'!F112*Annahmen!$I7,F112*Annahmen!$D7))+G4 -> 468,650 | H112: =G112+IF(H$111>=Annahmen!$L7,0,IF(H$111=Annahmen!$K7,'Daten Umschichtung'!G112*Annahmen!$I7,G112*Annahmen!$D7))+H4 -> 482,710 | I112: =H112+IF(I$111>=Annahmen!$L7,0,IF(I$111=Annahmen!$K7,'Daten Umschichtung'!H112*Annahmen!$I7,H112*Annahmen!$D7))+I4 -> 497,191 | J112: =I112+IF(J$111>=Annahmen!$L7,0,IF(J$111=Annahmen!$K7,'Daten Umschichtung'!I112*Annahmen!$I7,I112*Annahmen!$D7))+J4 -> 512,107
B113: 2 | C113: Vermögensverwaltung A-Bank Renten | D113: Renten | E113: ='Daten Projektion'!H7 -> 5,200,000 | F113: =E113+IF(F$111>=Annahmen!$L8,0,IF(F$111=Annahmen!$K8,'Daten Umschichtung'!E113*Annahmen!$I8,E113*Annahmen!$D8))+F5 -> 5,226,000 | G113: =F113+IF(G$111>=Annahmen!$L8,0,IF(G$111=Annahmen!$K8,'Daten Umschichtung'!F113*Annahmen!$I8,F113*Annahmen!$D8))+G5 -> 4,703,400 | H113: =G113+IF(H$111>=Annahmen!$L8,0,IF(H$111=Annahmen!$K8,'Daten Umschichtung'!G113*Annahmen!$I8,G113*Annahmen!$D8))+H5 -> 4,726,917 | I113: =H113+IF(I$111>=Annahmen!$L8,0,IF(I$111=Annahmen!$K8,'Daten Umschichtung'!H113*Annahmen!$I8,H113*Annahmen!$D8))+I5 -> 4,750,552 | J113: =I113+IF(J$111>=Annahmen!$L8,0,IF(J$111=Annahmen!$K8,'Daten Umschichtung'!I113*Annahmen!$I8,I113*Annahmen!$D8))+J5 -> 4,774,304
B114: 3 | C114: Stiftungsfonds Xy | D114: Renten | E114: ='Daten Projektion'!H8 -> 250,000 | F114: =E114+IF(F$111>=Annahmen!$L9,0,IF(F$111=Annahmen!$K9,'Daten Umschichtung'!E114*Annahmen!$I9,E114*Annahmen!$D9))+F6 -> 251,250 | G114: =F114+IF(G$111>=Annahmen!$L9,0,IF(G$111=Annahmen!$K9,'Daten Umschichtung'!F114*Annahmen!$I9,F114*Annahmen!$D9))+G6 -> 251,250 | H114: =G114+IF(H$111>=Annahmen!$L9,0,IF(H$111=Annahmen!$K9,'Daten Umschichtung'!G114*Annahmen!$I9,G114*Annahmen!$D9))+H6 -> 252,506 | I114: =H114+IF(I$111>=Annahmen!$L9,0,IF(I$111=Annahmen!$K9,'Daten Umschichtung'!H114*Annahmen!$I9,H114*Annahmen!$D9))+I6 -> 253,769 | J114: =I114+IF(J$111>=Annahmen!$L9,0,IF(J$111=Annahmen!$K9,'Daten Umschichtung'!I114*Annahmen!$I9,I114*Annahmen!$D9))+J6 -> 255,038
B115: 4 | C115: Immobilie | D115: Immobilien | E115: ='Daten Projektion'!H9 -> 500,000 | F115: =E115+IF(F$111>=Annahmen!$L10,0,IF(F$111=Annahmen!$K10,'Daten Umschichtung'!E115*Annahmen!$I10,E115*Annahmen!$D10))+F7 -> 505,000 | G115: =F115+IF(G$111>=Annahmen!$L10,0,IF(G$111=Annahmen!$K10,'Daten Umschichtung'!F115*Annahmen!$I10,F115*Annahmen!$D10))+G7 -> 505,000 | H115: =G115+IF(H$111>=Annahmen!$L10,0,IF(H$111=Annahmen!$K10,'Daten Umschichtung'!G115*Annahmen!$I10,G115*Annahmen!$D10))+H7 -> 510,050 | I115: =H115+IF(I$111>=Annahmen!$L10,0,IF(I$111=Annahmen!$K10,'Daten Umschichtung'!H115*Annahmen!$I10,H115*Annahmen!$D10))+I7 -> 515,151 | J115: =I115+IF(J$111>=Annahmen!$L10,0,IF(J$111=Annahmen!$K10,'Daten Umschichtung'!I115*Annahmen!$I10,I115*Annahmen!$D10))+J7 -> 520,302
B116: 5 | C116: Bankguthaben B-Bank | D116: Kontoguthaben | E116: ='Daten Projektion'!H10 -> 1,000,000 | F116: =E116+IF(F$111>=Annahmen!$L11,0,IF(F$111=Annahmen!$K11,'Daten Umschichtung'!E116*Annahmen!$I11,E116*Annahmen!$D11))+F8 -> 500,000 | G116: =F116+IF(G$111>=Annahmen!$L11,0,IF(G$111=Annahmen!$K11,'Daten Umschichtung'!F116*Annahmen!$I11,F116*Annahmen!$D11))+G8 -> 0 | H116: =G116+IF(H$111>=Annahmen!$L11,0,IF(H$111=Annahmen!$K11,'Daten Umschichtung'!G116*Annahmen!$I11,G116*Annahmen!$D11))+H8 -> 0 | I116: =H116+IF(I$111>=Annahmen!$L11,0,IF(I$111=Annahmen!$K11,'Daten Umschichtung'!H116*Annahmen!$I11,H116*Annahmen!$D11))+I8 -> 0 | J116: =I116+IF(J$111>=Annahmen!$L11,0,IF(J$111=Annahmen!$K11,'Daten Umschichtung'!I116*Annahmen!$I11,I116*Annahmen!$D11))+J8 -> 0
B117: 6 | C117: 0 | D117: Bitte auswählen | E117: ='Daten Projektion'!H11 -> 0 | F117: =E117+IF(F$111>=Annahmen!$L12,0,IF(F$111=Annahmen!$K12,'Daten Umschichtung'!E117*Annahmen!$I12,E117*Annahmen!$D12))+F9 -> 0 | G117: =F117+IF(G$111>=Annahmen!$L12,0,IF(G$111=Annahmen!$K12,'Daten Umschichtung'!F117*Annahmen!$I12,F117*Annahmen!$D12))+G9 -> 0 | H117: =G117+IF(H$111>=Annahmen!$L12,0,IF(H$111=Annahmen!$K12,'Daten Umschichtung'!G117*Annahmen!$I12,G117*Annahmen!$D12))+H9 -> 0 | I117: =H117+IF(I$111>=Annahmen!$L12,0,IF(I$111=Annahmen!$K12,'Daten Umschichtung'!H117*Annahmen!$I12,H117*Annahmen!$D12))+I9 -> 0 | J117: =I117+IF(J$111>=Annahmen!$L12,0,IF(J$111=Annahmen!$K12,'Daten Umschichtung'!I117*Annahmen!$I12,I117*Annahmen!$D12))+J9 -> 0
B118: 7 | C118: 0 | D118: Bitte auswählen | E118: ='Daten Projektion'!H12 -> 0 | F118: =E118+IF(F$111>=Annahmen!$L13,0,IF(F$111=Annahmen!$K13,'Daten Umschichtung'!E118*Annahmen!$I13,E118*Annahmen!$D13))+F10 -> 0 | G118: =F118+IF(G$111>=Annahmen!$L13,0,IF(G$111=Annahmen!$K13,'Daten Umschichtung'!F118*Annahmen!$I13,F118*Annahmen!$D13))+G10 -> 0 | H118: =G118+IF(H$111>=Annahmen!$L13,0,IF(H$111=Annahmen!$K13,'Daten Umschichtung'!G118*Annahmen!$I13,G118*Annahmen!$D13))+H10 -> 0 | I118: =H118+IF(I$111>=Annahmen!$L13,0,IF(I$111=Annahmen!$K13,'Daten Umschichtung'!H118*Annahmen!$I13,H118*Annahmen!$D13))+I10 -> 0 | J118: =I118+IF(J$111>=Annahmen!$L13,0,IF(J$111=Annahmen!$K13,'Daten Umschichtung'!I118*Annahmen!$I13,I118*Annahmen!$D13))+J10 -> 0
B119: 8 | C119: 0 | D119: Bitte auswählen | E119: ='Daten Projektion'!H13 -> 0 | F119: =E119+IF(F$111>=Annahmen!$L14,0,IF(F$111=Annahmen!$K14,'Daten Umschichtung'!E119*Annahmen!$I14,E119*Annahmen!$D14))+F11 -> 0 | G119: =F119+IF(G$111>=Annahmen!$L14,0,IF(G$111=Annahmen!$K14,'Daten Umschichtung'!F119*Annahmen!$I14,F119*Annahmen!$D14))+G11 -> 0 | H119: =G119+IF(H$111>=Annahmen!$L14,0,IF(H$111=Annahmen!$K14,'Daten Umschichtung'!G119*Annahmen!$I14,G119*Annahmen!$D14))+H11 -> 0 | I119: =H119+IF(I$111>=Annahmen!$L14,0,IF(I$111=Annahmen!$K14,'Daten Umschichtung'!H119*Annahmen!$I14,H119*Annahmen!$D14))+I11 -> 0 | J119: =I119+IF(J$111>=Annahmen!$L14,0,IF(J$111=Annahmen!$K14,'Daten Umschichtung'!I119*Annahmen!$I14,I119*Annahmen!$D14))+J11 -> 0
B120: 9 | C120: 0 | D120: Bitte auswählen | E120: ='Daten Projektion'!H14 -> 0 | F120: =E120+IF(F$111>=Annahmen!$L15,0,IF(F$111=Annahmen!$K15,'Daten Umschichtung'!E120*Annahmen!$I15,E120*Annahmen!$D15))+F12 -> 0 | G120: =F120+IF(G$111>=Annahmen!$L15,0,IF(G$111=Annahmen!$K15,'Daten Umschichtung'!F120*Annahmen!$I15,F120*Annahmen!$D15))+G12 -> 0 | H120: =G120+IF(H$111>=Annahmen!$L15,0,IF(H$111=Annahmen!$K15,'Daten Umschichtung'!G120*Annahmen!$I15,G120*Annahmen!$D15))+H12 -> 0 | I120: =H120+IF(I$111>=Annahmen!$L15,0,IF(I$111=Annahmen!$K15,'Daten Umschichtung'!H120*Annahmen!$I15,H120*Annahmen!$D15))+I12 -> 0 | J120: =I120+IF(J$111>=Annahmen!$L15,0,IF(J$111=Annahmen!$K15,'Daten Umschichtung'!I120*Annahmen!$I15,I120*Annahmen!$D15))+J12 -> 0
B121: 10 | C121: 0 | D121: Bitte auswählen | E121: ='Daten Projektion'!H15 -> 0 | F121: =E121+IF(F$111>=Annahmen!$L16,0,IF(F$111=Annahmen!$K16,'Daten Umschichtung'!E121*Annahmen!$I16,E121*Annahmen!$D16))+F13 -> 0 | G121: =F121+IF(G$111>=Annahmen!$L16,0,IF(G$111=Annahmen!$K16,'Daten Umschichtung'!F121*Annahmen!$I16,F121*Annahmen!$D16))+G13 -> 0 | H121: =G121+IF(H$111>=Annahmen!$L16,0,IF(H$111=Annahmen!$K16,'Daten Umschichtung'!G121*Annahmen!$I16,G121*Annahmen!$D16))+H13 -> 0 | I121: =H121+IF(I$111>=Annahmen!$L16,0,IF(I$111=Annahmen!$K16,'Daten Umschichtung'!H121*Annahmen!$I16,H121*Annahmen!$D16))+I13 -> 0 | J121: =I121+IF(J$111>=Annahmen!$L16,0,IF(J$111=Annahmen!$K16,'Daten Umschichtung'!I121*Annahmen!$I16,I121*Annahmen!$D16))+J13 -> 0
B122: 11 | C122: 0 | D122: Bitte auswählen | E122: ='Daten Projektion'!H16 -> 0 | F122: =E122+IF(F$111>=Annahmen!$L17,0,IF(F$111=Annahmen!$K17,'Daten Umschichtung'!E122*Annahmen!$I17,E122*Annahmen!$D17))+F14 -> 0 | G122: =F122+IF(G$111>=Annahmen!$L17,0,IF(G$111=Annahmen!$K17,'Daten Umschichtung'!F122*Annahmen!$I17,F122*Annahmen!$D17))+G14 -> 0 | H122: =G122+IF(H$111>=Annahmen!$L17,0,IF(H$111=Annahmen!$K17,'Daten Umschichtung'!G122*Annahmen!$I17,G122*Annahmen!$D17))+H14 -> 0 | I122: =H122+IF(I$111>=Annahmen!$L17,0,IF(I$111=Annahmen!$K17,'Daten Umschichtung'!H122*Annahmen!$I17,H122*Annahmen!$D17))+I14 -> 0 | J122: =I122+IF(J$111>=Annahmen!$L17,0,IF(J$111=Annahmen!$K17,'Daten Umschichtung'!I122*Annahmen!$I17,I122*Annahmen!$D17))+J14 -> 0
B123: 12 | C123: 0 | D123: Bitte auswählen | E123: ='Daten Projektion'!H17 -> 0 | F123: =E123+IF(F$111>=Annahmen!$L18,0,IF(F$111=Annahmen!$K18,'Daten Umschichtung'!E123*Annahmen!$I18,E123*Annahmen!$D18))+F15 -> 0 | G123: =F123+IF(G$111>=Annahmen!$L18,0,IF(G$111=Annahmen!$K18,'Daten Umschichtung'!F123*Annahmen!$I18,F123*Annahmen!$D18))+G15 -> 0 | H123: =G123+IF(H$111>=Annahmen!$L18,0,IF(H$111=Annahmen!$K18,'Daten Umschichtung'!G123*Annahmen!$I18,G123*Annahmen!$D18))+H15 -> 0 | I123: =H123+IF(I$111>=Annahmen!$L18,0,IF(I$111=Annahmen!$K18,'Daten Umschichtung'!H123*Annahmen!$I18,H123*Annahmen!$D18))+I15 -> 0 | J123: =I123+IF(J$111>=Annahmen!$L18,0,IF(J$111=Annahmen!$K18,'Daten Umschichtung'!I123*Annahmen!$I18,I123*Annahmen!$D18))+J15 -> 0
B124: U1 | C124: Aufstockung VV Aktien | D124: Aktien | E124: =E16 -> 0 | F124: ='Daten Umschichtung'!E124+IF(F$111=Umschichtung!$O6,'Daten Umschichtung'!E124*Umschichtung!$N6,'Daten Umschichtung'!E124*Umschichtung!$K6)+F16 -> 0 | G124: ='Daten Umschichtung'!F124+IF(G$111=Umschichtung!$O6,'Daten Umschichtung'!F124*Umschichtung!$N6,'Daten Umschichtung'!F124*Umschichtung!$K6)+G16 -> 500,000 | H124: ='Daten Umschichtung'!G124+IF(H$111=Umschichtung!$O6,'Daten Umschichtung'!G124*Umschichtung!$N6,'Daten Umschichtung'!G124*Umschichtung!$K6)+H16 -> 515,000 | I124: ='Daten Umschichtung'!H124+IF(I$111=Umschichtung!$O6,'Daten Umschichtung'!H124*Umschichtung!$N6,'Daten Umschichtung'!H124*Umschichtung!$K6)+I16 -> 530,450 | J124: ='Daten Umschichtung'!I124+IF(J$111=Umschichtung!$O6,'Daten Umschichtung'!I124*Umschichtung!$N6,'Daten Umschichtung'!I124*Umschichtung!$K6)+J16 -> 546,364
B125: U2 | C125: ABC Stiftungsfonds | D125: Aktien | E125: 0 | F125: ='Daten Umschichtung'!E125+IF(F$111=Umschichtung!$O7,'Daten Umschichtung'!E125*Umschichtung!$N7,'Daten Umschichtung'!E125*Umschichtung!$K7)+F17 -> 500,000 | G125: ='Daten Umschichtung'!F125+IF(G$111=Umschichtung!$O7,'Daten Umschichtung'!F125*Umschichtung!$N7,'Daten Umschichtung'!F125*Umschichtung!$K7)+G17 -> 450,000 | H125: ='Daten Umschichtung'!G125+IF(H$111=Umschichtung!$O7,'Daten Umschichtung'!G125*Umschichtung!$N7,'Daten Umschichtung'!G125*Umschichtung!$K7)+H17 -> 456,750 | I125: ='Daten Umschichtung'!H125+IF(I$111=Umschichtung!$O7,'Daten Umschichtung'!H125*Umschichtung!$N7,'Daten Umschichtung'!H125*Umschichtung!$K7)+I17 -> 463,601 | J125: ='Daten Umschichtung'!I125+IF(J$111=Umschichtung!$O7,'Daten Umschichtung'!I125*Umschichtung!$N7,'Daten Umschichtung'!I125*Umschichtung!$K7)+J17 -> 470,555
B126: U3 | C126: 0 | D126: 0 | E126: 0 | F126: ='Daten Umschichtung'!E126+IF(F$111=Umschichtung!$O8,'Daten Umschichtung'!E126*Umschichtung!$N8,'Daten Umschichtung'!E126*Umschichtung!$K8)+F18 -> 0 | G126: ='Daten Umschichtung'!F126+IF(G$111=Umschichtung!$O8,'Daten Umschichtung'!F126*Umschichtung!$N8,'Daten Umschichtung'!F126*Umschichtung!$K8)+G18 -> 0 | H126: ='Daten Umschichtung'!G126+IF(H$111=Umschichtung!$O8,'Daten Umschichtung'!G126*Umschichtung!$N8,'Daten Umschichtung'!G126*Umschichtung!$K8)+H18 -> 0 | I126: ='Daten Umschichtung'!H126+IF(I$111=Umschichtung!$O8,'Daten Umschichtung'!H126*Umschichtung!$N8,'Daten Umschichtung'!H126*Umschichtung!$K8)+I18 -> 0 | J126: ='Daten Umschichtung'!I126+IF(J$111=Umschichtung!$O8,'Daten Umschichtung'!I126*Umschichtung!$N8,'Daten Umschichtung'!I126*Umschichtung!$K8)+J18 -> 0
B127: U4 | C127: 0 | D127: 0 | E127: 0 | F127: ='Daten Umschichtung'!E127+IF(F$111=Umschichtung!$O9,'Daten Umschichtung'!E127*Umschichtung!$N9,'Daten Umschichtung'!E127*Umschichtung!$K9)+F19 -> 0 | G127: ='Daten Umschichtung'!F127+IF(G$111=Umschichtung!$O9,'Daten Umschichtung'!F127*Umschichtung!$N9,'Daten Umschichtung'!F127*Umschichtung!$K9)+G19 -> 0 | H127: ='Daten Umschichtung'!G127+IF(H$111=Umschichtung!$O9,'Daten Umschichtung'!G127*Umschichtung!$N9,'Daten Umschichtung'!G127*Umschichtung!$K9)+H19 -> 0 | I127: ='Daten Umschichtung'!H127+IF(I$111=Umschichtung!$O9,'Daten Umschichtung'!H127*Umschichtung!$N9,'Daten Umschichtung'!H127*Umschichtung!$K9)+I19 -> 0 | J127: ='Daten Umschichtung'!I127+IF(J$111=Umschichtung!$O9,'Daten Umschichtung'!I127*Umschichtung!$N9,'Daten Umschichtung'!I127*Umschichtung!$K9)+J19 -> 0
B128: U5 | C128: 0 | D128: 0 | E128: 0 | F128: ='Daten Umschichtung'!E128+IF(F$111=Umschichtung!$O10,'Daten Umschichtung'!E128*Umschichtung!$N10,'Daten Umschichtung'!E128*Umschichtung!$K10)+F20 -> 0 | G128: ='Daten Umschichtung'!F128+IF(G$111=Umschichtung!$O10,'Daten Umschichtung'!F128*Umschichtung!$N10,'Daten Umschichtung'!F128*Umschichtung!$K10)+G20 -> 0 | H128: ='Daten Umschichtung'!G128+IF(H$111=Umschichtung!$O10,'Daten Umschichtung'!G128*Umschichtung!$N10,'Daten Umschichtung'!G128*Umschichtung!$K10)+H20 -> 0 | I128: ='Daten Umschichtung'!H128+IF(I$111=Umschichtung!$O10,'Daten Umschichtung'!H128*Umschichtung!$N10,'Daten Umschichtung'!H128*Umschichtung!$K10)+I20 -> 0 | J128: ='Daten Umschichtung'!I128+IF(J$111=Umschichtung!$O10,'Daten Umschichtung'!I128*Umschichtung!$N10,'Daten Umschichtung'!I128*Umschichtung!$K10)+J20 -> 0
B129: U6 | C129: 0 | D129: 0 | E129: 0 | F129: ='Daten Umschichtung'!E129+IF(F$111=Umschichtung!$O11,'Daten Umschichtung'!E129*Umschichtung!$N11,'Daten Umschichtung'!E129*Umschichtung!$K11)+F21 -> 0 | G129: ='Daten Umschichtung'!F129+IF(G$111=Umschichtung!$O11,'Daten Umschichtung'!F129*Umschichtung!$N11,'Daten Umschichtung'!F129*Umschichtung!$K11)+G21 -> 0 | H129: ='Daten Umschichtung'!G129+IF(H$111=Umschichtung!$O11,'Daten Umschichtung'!G129*Umschichtung!$N11,'Daten Umschichtung'!G129*Umschichtung!$K11)+H21 -> 0 | I129: ='Daten Umschichtung'!H129+IF(I$111=Umschichtung!$O11,'Daten Umschichtung'!H129*Umschichtung!$N11,'Daten Umschichtung'!H129*Umschichtung!$K11)+I21 -> 0 | J129: ='Daten Umschichtung'!I129+IF(J$111=Umschichtung!$O11,'Daten Umschichtung'!I129*Umschichtung!$N11,'Daten Umschichtung'!I129*Umschichtung!$K11)+J21 -> 0
C130: =C87 -> Summe | E130: =SUM(E112:E129) -> 7,600,000 | F130: =SUM(F112:F129) -> 7,651,750 | G130: =SUM(G112:G129) -> 6,878,300 | H130: 6,943,933 | I130: 7,010,713 | J130: 7,078,669
C132: Risiko Umschichtung nach AK | D132: =D46 -> Immobilien | E132: =SUMIF($D$112:$D$129,"Immobilien",E$112:E$129) -> 500,000 | F132: =SUMIF($D$112:$D$129,"Immobilien",F$112:F$129) -> 505,000 | G132: 505,000 | H132: 510,050 | I132: 515,151 | J132: 520,302
D133: =D47 -> Beteiligungen | E133: =SUMIF($D$112:$D$129,"Beteiligungen",E$112:E$129) -> 0 | F133: =SUMIF($D$112:$D$129,"Beteiligungen",F$112:F$129) -> 0 | G133: 0 | H133: 0 | I133: 0 | J133: 0
D134: Wertpapiere | E134: =SUM(E135:E138) -> 6,100,000 | F134: =SUM(F135:F138) -> 6,646,750 | G134: 6,373,300 | H134: 6,433,883 | I134: 6,495,562 | J134: 6,558,367
D135: =D49 -> davon Aktien | E135: =SUMIF($D$112:$D$129,"Aktien",E$112:E$129) -> 650,000 | F135: =SUMIF($D$112:$D$129,"Aktien",F$112:F$129) -> 1,169,500 | G135: 1,418,650 | H135: 1,454,460 | I135: 1,491,242 | J135: 1,529,025
D136: davon Renten | E136: =SUMIF($D$112:$D$129,"Renten",E$112:E$129) -> 5,450,000 | F136: =SUMIF($D$112:$D$129,"Renten",F$112:F$129) -> 5,477,250 | G136: 4,954,650 | H136: 4,979,423 | I136: 5,004,320 | J136: 5,029,342
D137: davon Liquidität | E137: =SUMIF($D$112:$D$129,"LIquidität",E$112:E$129) -> 0 | F137: =SUMIF($D$112:$D$129,"LIquidität",F$112:F$129) -> 0 | G137: 0 | H137: 0 | I137: 0 | J137: 0
D138: davon Alternative Investments | E138: =SUMIF($D$112:$D$129,"Alternative Investments",E$112:E$129) -> 0 | F138: =SUMIF($D$112:$D$129,"Alternative Investments",F$112:F$129) -> 0 | G138: 0 | H138: 0 | I138: 0 | J138: 0
D139: Spar- und Termineinlagen | E139: =SUMIF($D$112:$D$129,"Spar- u. Termineinlagen",E$112:E$129) -> 0 | F139: =SUMIF($D$112:$D$129,"Spar- u. Termineinlagen",F$112:F$129) -> 0 | G139: 0 | H139: 0 | I139: 0 | J139: 0
D140: Kontoguthaben Investitionsvermögen | E140: =SUMIF($D$112:$D$129,"Kontoguthaben",E$112:E$129) -> 1,000,000 | F140: =SUMIF($D$112:$D$129,"Kontoguthaben",F$112:F$129) -> 500,000 | G140: 0 | H140: 0 | I140: 0 | J140: 0
D141: Sonstiges Vermögen | E141: =SUMIF($D$112:$D$129,"Sonstiges Vermögen",E$112:E$129) -> 0 | F141: =SUMIF($D$112:$D$129,"Sonstiges Vermögen",F$112:F$129) -> 0 | G141: 0 | H141: 0 | I141: 0 | J141: 0
D142: Verbindlichkeiten | E142: =SUMIF($D$112:$D$129,"Verbindlichkeiten",E$112:E$129) -> 0 | F142: =SUMIF($D$112:$D$129,"Verbindlichkeiten",F$112:F$129) -> 0 | G142: 0 | H142: 0 | I142: 0 | J142: 0
D143: Summe | E143: =SUM(E132:E134)+SUM(E139:E142) -> 7,600,000 | F143: =SUM(F132:F134)+SUM(F139:F142) -> 7,651,750 | G143: 6,878,300 | H143: 6,943,933 | I143: 7,010,713 | J143: 7,078,669
C145: Risiko Grafik | F145: =F111 -> 2019 | G145: =G111 -> 2020 | H145: 2021 | I145: 2022 | J145: 2023
D146: Vermögen Worst Case Basis | F146: ='Daten Projektion'!I184 -> 7,651,750 | G146: ='Daten Projektion'!J184 -> 6,928,300 | H146: ='Daten Projektion'!K184 -> 6,972,183 | I146: ='Daten Projektion'!L184 -> 7,016,662 | J146: ='Daten Projektion'!M184 -> 7,061,750
D147: Vermögen Worst Case Umschichtung | F147: =F143 -> 7,651,750 | G147: =G143 -> 6,878,300 | H147: =H143 -> 6,943,933 | I147: =I143 -> 7,010,713 | J147: =J143 -> 7,078,669
D148: Maximalverlust Investitionsvermögen (Ziel) | F148: ='Daten Projektion'!I185 -> 7,341,075 | G148: ='Daten Projektion'!J185 -> 7,487,896 | H148: ='Daten Projektion'!K185 -> 7,637,654 | I148: ='Daten Projektion'!L185 -> 7,790,407 | J148: ='Daten Projektion'!M185 -> 7,946,215
D149: Maximalverlust Grundstock (Ziel) | F149: ='Daten Projektion'!I186 -> 6,000,000 | G149: ='Daten Projektion'!J186 -> 6,000,000 | H149: ='Daten Projektion'!K186 -> 6,000,000 | I149: ='Daten Projektion'!L186 -> 6,000,000 | J149: ='Daten Projektion'!M186 -> 6,000,000
C151: Zielerreichung Risiko | F151: =F3 -> 2019 | G151: =G3 -> 2020 | H151: 2021 | I151: 2022 | J151: 2023
D152: Risikoziel Maximalverlust | F152: ='Daten VE'!H45*Anlageziele!$E$21*-1 -> -378,796 | G152: ='Daten VE'!I45*Anlageziele!$E$21*-1 -> -386,372 | H152: ='Daten VE'!J45*Anlageziele!$E$21*-1 -> -394,100 | I152: ='Daten VE'!K45*Anlageziele!$E$21*-1 -> -401,982 | J152: ='Daten VE'!L45*Anlageziele!$E$21*-1 -> -410,021
D153: Maximalverlust Basisszenario Worst Case | F153: ='Daten Projektion'!I140-'Daten Projektion'!H140 -> 51,750 | G153: ='Daten Projektion'!J140-'Daten Projektion'!I140 -> -723,450 | H153: ='Daten Projektion'!K140-'Daten Projektion'!J140 -> 43,883 | I153: ='Daten Projektion'!L140-'Daten Projektion'!K140 -> 44,479 | J153: ='Daten Projektion'!M140-'Daten Projektion'!L140 -> 45,089
D154: Maximalverlust Umschichtung Worst Case | F154: =F143-E143 -> 51,750 | G154: =G143-F143 -> -773,450 | H154: 65,633 | I154: 66,780 | J154: 67,956
D155: Zielabweichung Risiko Basisszenario | E155: =MIN(F155:J155) -> -87.2% | F155: =(F153-F152)/F152*-1 -> 113.7% | G155: =(G153-G152)/G152*-1 -> -87.2% | H155: 111.1% | I155: 111.1% | J155: 111.0%
D156: Zielabweichung Risiko Umschichtung | E156: =MIN(F156:J156) -> -100.2% | F156: =(F154-F152)/F152*-1 -> 113.7% | G156: =(G154-G152)/G152*-1 -> -100.2% | H156: 116.7% | I156: 116.6% | J156: 116.6%
C158: Nachhaltigkeit Umschichtung
B160: Nr. | C160: Vermögensgegenstand | D160: Nachhaltigkeitskonzept | E160: Wert | F160: =F3 -> 2019 | G160: =G3 -> 2020 | H160: 2021 | I160: 2022 | J160: 2023
B161: =B4 -> 1 | C161: =C4 -> Vermögensverwaltung A-Bank Aktien | D161: =Vermentw.!H5 -> Engagement | E161: =E4 -> 650,000 | F161: =F25 -> 669,500 | G161: =G25 -> 689,585 | H161: 710,273 | I161: 731,581 | J161: 753,528
B162: =B5 -> 2 | C162: Vermögensverwaltung A-Bank Renten | D162: =Vermentw.!H6 -> Best in Class | E162: =E5 -> 5,200,000 | F162: =F26 -> 5,226,000 | G162: 5,252,130 | H162: 5,278,391 | I162: 5,304,783 | J162: 5,331,307
B163: 3 | C163: Stiftungsfonds Xy | D163: =Vermentw.!H7 -> Ausschluss | E163: 250,000 | F163: 251,250 | G163: 252,506 | H163: 253,769 | I163: 255,038 | J163: 256,313
B164: 4 | C164: Immobilie | D164: =Vermentw.!H8 -> Zweckkonform | E164: 500,000 | F164: 505,000 | G164: 510,050 | H164: 515,151 | I164: 520,302 | J164: 525,505
B165: 5 | C165: Bankguthaben B-Bank | D165: =Vermentw.!H9 -> Keine | E165: 1,000,000 | F165: 500,000 | G165: 0 | H165: 0 | I165: 0 | J165: 0
B166: 6 | C166: 0 | D166: =Vermentw.!H10 -> Bitte ausw. | E166: 0 | F166: 0 | G166: 0 | H166: 0 | I166: 0 | J166: 0
B167: 7 | C167: 0 | D167: =Vermentw.!H11 -> Bitte ausw. | E167: 0 | F167: 0 | G167: 0 | H167: 0 | I167: 0 | J167: 0
B168: 8 | C168: 0 | D168: =Vermentw.!H12 -> Bitte ausw. | E168: 0 | F168: 0 | G168: 0 | H168: 0 | I168: 0 | J168: 0
B169: 9 | C169: 0 | D169: =Vermentw.!H13 -> Bitte ausw. | E169: 0 | F169: 0 | G169: 0 | H169: 0 | I169: 0 | J169: 0
B170: 10 | C170: 0 | D170: =Vermentw.!H14 -> Bitte ausw. | E170: 0 | F170: 0 | G170: 0 | H170: 0 | I170: 0 | J170: 0
B171: 11 | C171: 0 | D171: =Vermentw.!H15 -> Bitte ausw. | E171: 0 | F171: 0 | G171: 0 | H171: 0 | I171: 0 | J171: 0
B172: 12 | C172: 0 | D172: =Vermentw.!H16 -> Bitte ausw. | E172: 0 | F172: 0 | G172: 0 | H172: 0 | I172: 0 | J172: 0
B173: U1 | C173: Aufstockung VV Aktien | D173: =Umschichtung!F6 -> Best in Class | E173: 0 | F173: 0 | G173: 500,000 | H173: 515,000 | I173: 530,450 | J173: 546,364
B174: U2 | C174: ABC Stiftungsfonds | D174: =Umschichtung!F7 -> Best in Class | E174: 0 | F174: 500,000 | G174: 507,500 | H174: 515,113 | I174: 522,839 | J174: 530,682
B175: U3 | C175: 0 | D175: =Umschichtung!F8 -> Bitte ausw. | E175: 0 | F175: 0 | G175: 0 | H175: 0 | I175: 0 | J175: 0
B176: U4 | C176: 0 | D176: =Umschichtung!F9 -> Bitte ausw. | E176: 0 | F176: 0 | G176: 0 | H176: 0 | I176: 0 | J176: 0
B177: U5 | C177: 0 | D177: =Umschichtung!F10 -> Bitte ausw. | E177: 0 | F177: 0 | G177: 0 | H177: 0 | I177: 0 | J177: 0
B178: U6 | C178: 0 | D178: =Umschichtung!F11 -> Bitte ausw. | E178: 0 | F178: 0 | G178: 0 | H178: 0 | I178: 0 | J178: 0
C180: Nachhaltigkeit Umschichtung | D180: Bitte auswählen | E180: =SUMIF($D$25:$D$36,$D180,E$25:E$42) -> 0 | F180: =SUMIF($D$161:$D$178,"Bitte ausw.",F$161:F$178) -> 0 | G180: =SUMIF($D$161:$D$178,"Bitte ausw.",G$161:G$178) -> 0 | H180: 0 | I180: 0 | J180: 0
D181: Keine | E181: =SUMIF($D$25:$D$36,$D181,E$25:E$42) -> 0 | F181: =SUMIF($D$161:$D$178,"Keine",F$161:F$178) -> 500,000 | G181: =SUMIF($D$161:$D$178,"Keine",G$161:G$178) -> 0 | H181: 0 | I181: 0 | J181: 0
D182: Ausschluss | F182: =SUMIF($D$161:$D$178,"Ausschluss",F$161:F$178) -> 251,250 | G182: =SUMIF($D$161:$D$178,"Ausschluss",G$161:G$178) -> 252,506 | H182: 253,769 | I182: 255,038 | J182: 256,313
D183: Zweckkonform | E183: =SUMIF($D$25:$D$42,"Aktien",E$25:E$42) -> 650,000 | F183: =SUMIF($D$161:$D$178,"Zweckkonform",F$161:F$178) -> 505,000 | G183: =SUMIF($D$161:$D$178,"Zweckkonform",G$161:G$178) -> 510,050 | H183: 515,151 | I183: 520,302 | J183: 525,505
D184: Best in Class | E184: =SUMIF($D$25:$D$42,"Renten",E$25:E$42) -> 5,450,000 | F184: =SUMIF($D$161:$D$178,"Best in Class",F$161:F$178) -> 5,726,000 | G184: =SUMIF($D$161:$D$178,"Best in Class",G$161:G$178) -> 6,259,630 | H184: 6,308,503 | I184: 6,358,072 | J184: 6,408,352
D185: Engagement | E185: =SUMIF($D$25:$D$42,"Liquidität",E$25:E$42) -> 0 | F185: =SUMIF($D$161:$D$178,"Engagement",F$161:F$178) -> 669,500 | G185: =SUMIF($D$161:$D$178,"Engagement",G$161:G$178) -> 689,585 | H185: 710,273 | I185: 731,581 | J185: 753,528
D186: Impact Investing | E186: =SUMIF($D$25:$D$42,"Alternative Investments",E$25:E$42) -> 0 | F186: =SUMIF($D$161:$D$178,"Impact Investing",F$161:F$178) -> 0 | G186: =SUMIF($D$161:$D$178,"Impact Investing",G$161:G$178) -> 0 | H186: 0 | I186: 0 | J186: 0
D187: Summe | E187: =SUM(E180:E181)+SUM(#REF!) ->  | F187: =SUM(F180:F186) -> 7,651,750 | G187: =SUM(G180:G186) -> 7,711,771 | H187: 7,787,695 | I187: 7,864,992 | J187: 7,943,698
C189: Zielerreichung Nachhaltigkeit | F189: =F3 -> 2019 | G189: =G3 -> 2020 | H189: 2021 | I189: 2022 | J189: 2023
D190: Nachhaltigkeitsziel | F190: =IF(Anlageziele!$L$19<='Daten Umschichtung'!F189,'Daten Projektion'!I18*Anlageziele!$M$20,'Daten Projektion'!I170) -> 6,651,750 | G190: =IF(Anlageziele!$L$19<='Daten Umschichtung'!G189,'Daten Projektion'!J18*Anlageziele!$M$20,'Daten Projektion'!J170) -> 6,704,271 | H190: =IF(Anlageziele!$L$19<='Daten Umschichtung'!H189,'Daten Projektion'!K18*Anlageziele!$M$20,'Daten Projektion'!K170) -> 5,818,187 | I190: =IF(Anlageziele!$L$19<='Daten Umschichtung'!I189,'Daten Projektion'!L18*Anlageziele!$M$20,'Daten Projektion'!L170) -> 5,858,777 | J190: =IF(Anlageziele!$L$19<='Daten Umschichtung'!J189,'Daten Projektion'!M18*Anlageziele!$M$20,'Daten Projektion'!M170) -> 5,899,989
D191: Nachhaltigkeit Basisszenario | F191: ='Daten Projektion'!I170 -> 6,651,750 | G191: ='Daten Projektion'!J170 -> 6,704,271 | H191: ='Daten Projektion'!K170 -> 6,757,582 | I191: ='Daten Projektion'!L170 -> 6,811,703 | J191: ='Daten Projektion'!M170 -> 6,866,653
D192: Nachhaltigkeit Umschichtung | F192: =SUM(F182:F186) -> 7,151,750 | G192: =SUM(G182:G186) -> 7,711,771 | H192: 7,787,695 | I192: 7,864,992 | J192: 7,943,698
D193: Zielabweichung Basisszenario | F193: =(F191-F190)/F190 -> 0.0% | G193: =(G191-G190)/G190 -> 0.0% | H193: 16.1% | I193: 16.3% | J193: 16.4%
D194: Zielabweichung Umschichtung | F194: =(F192-F190)/F190 -> 7.5% | G194: =(G192-G190)/G190 -> 15.0% | H194: 33.9% | I194: 34.2% | J194: 34.6%

Sheet Zahlen Umschichtung
C2: Analyse Umschichtung
C4: Beschreibung | D4: Einh. | E4: Bestand | F4: =Einstellungen!D7 -> 2019 | G4: =F4+1 -> 2020 | H4: 2021 | I4: 2022 | J4: 2023
C6: Vermögen | D6: =Einstellungen!D9 -> EUR | E6: =SUM(E7:E9)+SUM(E14:E17) -> 7,600,000 | F6: 7,651,750 | G6: 7,711,771 | H6: 7,787,695 | I6: 7,864,992 | J6: 7,943,698
C7: Immobilien (Verkehrswert) | D7: =$D$6 -> EUR | E7: ='Daten Umschichtung'!E46 -> 500,000 | F7: ='Daten Umschichtung'!F46 -> 505,000 | G7: ='Daten Umschichtung'!G46 -> 510,050 | H7: ='Daten Umschichtung'!H46 -> 515,151 | I7: ='Daten Umschichtung'!I46 -> 520,302 | J7: ='Daten Umschichtung'!J46 -> 525,505
C8: Beteiligungen | D8: EUR | E8: ='Daten Umschichtung'!E47 -> 0 | F8: ='Daten Umschichtung'!F47 -> 0 | G8: ='Daten Umschichtung'!G47 -> 0 | H8: ='Daten Umschichtung'!H47 -> 0 | I8: ='Daten Umschichtung'!I47 -> 0 | J8: ='Daten Umschichtung'!J47 -> 0
C9: Wertpapiere | D9: EUR | E9: ='Daten Umschichtung'!E48 -> 6,100,000 | F9: ='Daten Umschichtung'!F48 -> 6,646,750 | G9: ='Daten Umschichtung'!G48 -> 7,201,721 | H9: ='Daten Umschichtung'!H48 -> 7,272,544 | I9: ='Daten Umschichtung'!I48 -> 7,344,690 | J9: ='Daten Umschichtung'!J48 -> 7,418,193
C10: davon Aktien | D10: EUR | E10: ='Daten Umschichtung'!E49 -> 650,000 | F10: ='Daten Umschichtung'!F49 -> 1,169,500 | G10: ='Daten Umschichtung'!G49 -> 1,697,085 | H10: ='Daten Umschichtung'!H49 -> 1,740,385 | I10: ='Daten Umschichtung'!I49 -> 1,784,870 | J10: ='Daten Umschichtung'!J49 -> 1,830,573
C11: davon Renten | D11: EUR | E11: ='Daten Umschichtung'!E50 -> 5,450,000 | F11: ='Daten Umschichtung'!F50 -> 5,477,250 | G11: ='Daten Umschichtung'!G50 -> 5,504,636 | H11: ='Daten Umschichtung'!H50 -> 5,532,159 | I11: ='Daten Umschichtung'!I50 -> 5,559,820 | J11: ='Daten Umschichtung'!J50 -> 5,587,619
C12: davon Liquidität (Cashbestand in Fonds) | D12: EUR | E12: ='Daten Umschichtung'!E51 -> 0 | F12: ='Daten Umschichtung'!F51 -> 0 | G12: ='Daten Umschichtung'!G51 -> 0 | H12: ='Daten Umschichtung'!H51 -> 0 | I12: ='Daten Umschichtung'!I51 -> 0 | J12: ='Daten Umschichtung'!J51 -> 0
C13: davon Alternative Investments | D13: EUR | E13: ='Daten Umschichtung'!E52 -> 0 | F13: ='Daten Umschichtung'!F52 -> 0 | G13: ='Daten Umschichtung'!G52 -> 0 | H13: ='Daten Umschichtung'!H52 -> 0 | I13: ='Daten Umschichtung'!I52 -> 0 | J13: ='Daten Umschichtung'!J52 -> 0
C14: Spar- und Termineinlagen | D14: EUR | E14: ='Daten Umschichtung'!E53 -> 0 | F14: ='Daten Umschichtung'!F53 -> 0 | G14: ='Daten Umschichtung'!G53 -> 0 | H14: ='Daten Umschichtung'!H53 -> 0 | I14: ='Daten Umschichtung'!I53 -> 0 | J14: ='Daten Umschichtung'!J53 -> 0
C15: Kontoguthaben Investitionsvermögen | D15: EUR | E15: ='Daten Umschichtung'!E54 -> 1,000,000 | F15: ='Daten Umschichtung'!F54 -> 500,000 | G15: ='Daten Umschichtung'!G54 -> 0 | H15: ='Daten Umschichtung'!H54 -> 0 | I15: ='Daten Umschichtung'!I54 -> 0 | J15: ='Daten Umschichtung'!J54 -> 0
C16: Sonstiges Vermögen | D16: EUR | E16: ='Daten Umschichtung'!E55 -> 0 | F16: ='Daten Umschichtung'!F55 -> 0 | G16: ='Daten Umschichtung'!G55 -> 0 | H16: ='Daten Umschichtung'!H55 -> 0 | I16: ='Daten Umschichtung'!I55 -> 0 | J16: ='Daten Umschichtung'!J55 -> 0
C17: Verbindlichkeiten | D17: EUR | E17: ='Daten Umschichtung'!E56 -> 0 | F17: ='Daten Umschichtung'!F56 -> 0 | G17: ='Daten Umschichtung'!G56 -> 0 | H17: ='Daten Umschichtung'!H56 -> 0 | I17: ='Daten Umschichtung'!I56 -> 0 | J17: ='Daten Umschichtung'!J56 -> 0
C18: Kennzahlen
C19: Aktienquote Wertpapiere | D19: % | E19: =E10/E9 -> 10.7% | F19: 17.6% | G19: 23.6% | H19: 23.9% | I19: 24.3% | J19: 24.7%
C20: Aktienquote Gesamtvermögen | D20: % | E20: =E10/E6 -> 8.6% | F20: 15.3% | G20: 22.0% | H20: 22.3% | I20: 22.7% | J20: 23.0%
C21: Bestand freie Rücklage | D21: =D6 -> EUR | E21: =IF(Einstellungen!D9="TEUR",Einstellungen!D29/1000,Einstellungen!D29) -> 10,000 | F21: =E21+E22 -> 10,000 | G21: 21,280 | H21: 33,994 | I21: 46,643 | J21: 59,227
C22: Veränderung freie Rücklage inkl. Tilgung | D22: =D7 -> EUR | E22: 0 | F22: =F49 -> 11,280 | G22: =G49 -> 12,714 | H22: 12,649 | I22: 12,584 | J22: 12,519
C23: Bestand Umschichtungsrücklage | D23: =D8 -> EUR | E23: =IF(Einstellungen!D12="TEUR",Einstellungen!D28/1000,Einstellungen!D28) -> 20,000 | F23: =E23+E24 -> 20,000 | G23: =F23+F24 -> 20,000 | H23: 20,000 | I23: 20,000 | J23: 20,000
C24: Veränderung Umschichtungsrücklage | D24: =D9 -> EUR | E24: 0 | F24: =IF(Einstellungen!$R$30=TRUE,(E10*Einstellungen!$D$37+'Zahlen Umschichtung'!E11*Einstellungen!$D$38+'Zahlen Umschichtung'!E12*Einstellungen!$D$39+'Zahlen Umschichtung'!E13*Einstellungen!$D$40+'Zahlen Umschichtung'!#REF!*Einstellungen!$D$41)-E9*Einstellungen!#REF!+IF(F4=Einstellungen!$T$40,Einstellungen!$S$40,0)+IF(F4=Einstellungen!$T$41,Einstellungen!$S$41,0)+IF(F4=Einstellungen!$T$42,Einstellungen!$S$42,0),0) -> 0 | G24: =IF(Einstellungen!$R$30=TRUE,(F10*Einstellungen!$D$37+'Zahlen Umschichtung'!F11*Einstellungen!$D$38+'Zahlen Umschichtung'!F12*Einstellungen!$D$39+'Zahlen Umschichtung'!F13*Einstellungen!$D$40+'Zahlen Umschichtung'!#REF!*Einstellungen!$D$41)-F9*Einstellungen!#REF!+IF(G4=Einstellungen!$T$40,Einstellungen!$S$40,0)+IF(G4=Einstellungen!$T$41,Einstellungen!$S$41,0)+IF(G4=Einstellungen!$T$42,Einstellungen!$S$42,0),0) -> 0 | H24: =IF(Einstellungen!$R$30=TRUE,(G10*Einstellungen!$D$37+'Zahlen Umschichtung'!G11*Einstellungen!$D$38+'Zahlen Umschichtung'!G12*Einstellungen!$D$39+'Zahlen Umschichtung'!G13*Einstellungen!$D$40+'Zahlen Umschichtung'!#REF!*Einstellungen!$D$41)-G9*Einstellungen!#REF!+IF(H4=Einstellungen!$T$40,Einstellungen!$S$40,0)+IF(H4=Einstellungen!$T$41,Einstellungen!$S$41,0)+IF(H4=Einstellungen!$T$42,Einstellungen!$S$42,0),0) -> 0 | I24: =IF(Einstellungen!$R$30=TRUE,(H10*Einstellungen!$D$37+'Zahlen Umschichtung'!H11*Einstellungen!$D$38+'Zahlen Umschichtung'!H12*Einstellungen!$D$39+'Zahlen Umschichtung'!H13*Einstellungen!$D$40+'Zahlen Umschichtung'!#REF!*Einstellungen!$D$41)-H9*Einstellungen!#REF!+IF(I4=Einstellungen!$T$40,Einstellungen!$S$40,0)+IF(I4=Einstellungen!$T$41,Einstellungen!$S$41,0)+IF(I4=Einstellungen!$T$42,Einstellungen!$S$42,0),0) -> 0 | J24: =IF(Einstellungen!$R$30=TRUE,(I10*Einstellungen!$D$37+'Zahlen Umschichtung'!I11*Einstellungen!$D$38+'Zahlen Umschichtung'!I12*Einstellungen!$D$39+'Zahlen Umschichtung'!I13*Einstellungen!$D$40+'Zahlen Umschichtung'!#REF!*Einstellungen!$D$41)-I9*Einstellungen!#REF!+IF(J4=Einstellungen!$T$40,Einstellungen!$S$40,0)+IF(J4=Einstellungen!$T$41,Einstellungen!$S$41,0)+IF(J4=Einstellungen!$T$42,Einstellungen!$S$42,0),0) -> 0
C25: Grundstockvermögen (Soll) | D25: =D10 -> EUR | E25: ='Daten Umschichtung'!E60 -> 7,575,928 | F25: ='Daten Umschichtung'!F60 -> 7,727,447 | G25: ='Daten Umschichtung'!G60 -> 7,881,996 | H25: ='Daten Umschichtung'!H60 -> 8,039,636 | I25: ='Daten Umschichtung'!I60 -> 8,200,429 | J25: ='Daten Umschichtung'!J60 -> 8,364,437
C26: Delta absolut | D26: =D12 -> EUR | E26: =E6-E25 -> 24,072 | F26: -75,697 | G26: -170,225 | H26: -251,941 | I26: -335,436 | J26: -420,739
C27: Delta Prozent | D27: % | E27: =E26/E6 -> 0.3% | F27: -1.0% | G27: -2.2% | H27: -3.2% | I27: -4.3% | J27: -5.3%
C29: Liquidität Saldo | D29: =D6 -> EUR | E29: =E31-E39 -> 0 | F29: =F31-F39 -> 0 | G29: =G31-G39 -> 7,500 | H29: 17,613 | I29: 18,027 | J29: 18,452
C31: Einnahmen | D31: =D29 -> EUR | E31: =SUM(E32:E37) -> 0 | F31: =SUM(F32:F38) -> 63,500 | G31: =SUM(G32:G38) -> 71,749 | H31: 82,626 | I31: 83,823 | J31: 85,047
C32: Spenden | D32: =$D$31 -> EUR | E32: 0 | F32: ='Einn._Ausg.'!C7 -> 5,000 | G32: ='Einn._Ausg.'!D7 -> 5,000 | H32: ='Einn._Ausg.'!E7 -> 5,000 | I32: ='Einn._Ausg.'!F7 -> 5,000 | J32: ='Einn._Ausg.'!G7 -> 5,000
C33: Zustiftungen | D33: =$D$31 -> EUR | E33: 0 | F33: ='Einn._Ausg.'!C8 -> 0 | G33: ='Einn._Ausg.'!D8 -> 0 | H33: ='Einn._Ausg.'!E8 -> 0 | I33: ='Einn._Ausg.'!F8 -> 0 | J33: ='Einn._Ausg.'!G8 -> 0
B34: Ordtl. Erträge | C34: Mieterträge (brutto) | D34: EUR | E34: 0 | F34: ='Daten Umschichtung'!F89 -> 10,000 | G34: ='Daten Umschichtung'!G89 -> 10,100 | H34: ='Daten Umschichtung'!H89 -> 10,201 | I34: ='Daten Umschichtung'!I89 -> 10,303 | J34: ='Daten Umschichtung'!J89 -> 10,406
C35: Erträge aus Beteiligungen | D35: EUR | E35: 0 | F35: ='Daten Umschichtung'!F90 -> 0 | G35: ='Daten Umschichtung'!G90 -> 0 | H35: ='Daten Umschichtung'!H90 -> 0 | I35: ='Daten Umschichtung'!I90 -> 0 | J35: ='Daten Umschichtung'!J90 -> 0
C36: Wertpapiererträge (brutto) | D36: EUR | E36: 0 | F36: ='Daten Umschichtung'!F91 -> 48,500 | G36: ='Daten Umschichtung'!G91 -> 56,649 | H36: ='Daten Umschichtung'!H91 -> 67,425 | I36: ='Daten Umschichtung'!I91 -> 68,520 | J36: ='Daten Umschichtung'!J91 -> 69,641
C37: Zinsen und ähnliche Erträge | D37: EUR | E37: 0 | F37: ='Daten Umschichtung'!F96 -> 0 | G37: ='Daten Umschichtung'!G96 -> 0 | H37: ='Daten Umschichtung'!H96 -> 0 | I37: ='Daten Umschichtung'!I96 -> 0 | J37: ='Daten Umschichtung'!J96 -> 0
C38: Erträge aus sonstigem Vermögen | D38: EUR | E38: 0 | F38: ='Daten Umschichtung'!F98 -> 0 | G38: ='Daten Umschichtung'!G98 -> 0 | H38: ='Daten Umschichtung'!H98 -> 0 | I38: ='Daten Umschichtung'!I98 -> 0 | J38: ='Daten Umschichtung'!J98 -> 0
C39: Ausgaben | D39: EUR | E39: 0 | F39: =SUM(F40:F42)+SUM(F46:F50) -> 63,500 | G39: =SUM(G40:G42)+SUM(G46:G50) -> 64,249 | H39: 65,014 | I39: 65,796 | J39: 66,595
C40: Ausgaben für den Stiftungszweck | D40: EUR | E40: 0 | F40: =IF(Anlageziele!$M$5='Daten Einstellg_Ziele'!$D$21,Anlageziele!$M$7,IF(Anlageziele!$M$5='Daten Einstellg_Ziele'!$D$22,'Daten VE'!$D$51*Anlageziele!M7%,F31-F41-F42-F46-F47-F47-F48-F49-F50)) -> 10,000 | G40: =IF(Anlageziele!$M$5='Daten Einstellg_Ziele'!$D$21,Anlageziele!$M$7,IF(Anlageziele!$M$5='Daten Einstellg_Ziele'!$D$22,'Daten VE'!$D$51*Anlageziele!N7%,G31-G41-G42-G46-G47-G47-G48-G49-G50)) -> 10,000 | H40: =IF(Anlageziele!$M$5='Daten Einstellg_Ziele'!$D$21,Anlageziele!$M$7,IF(Anlageziele!$M$5='Daten Einstellg_Ziele'!$D$22,'Daten VE'!$D$51*Anlageziele!O7%,H31-H41-H42-H46-H47-H47-H48-H49-H50)) -> 10,000 | I40: =IF(Anlageziele!$M$5='Daten Einstellg_Ziele'!$D$21,Anlageziele!$M$7,IF(Anlageziele!$M$5='Daten Einstellg_Ziele'!$D$22,'Daten VE'!$D$51*Anlageziele!P7%,I31-I41-I42-I46-I47-I47-I48-I49-I50)) -> 10,000 | J40: =IF(Anlageziele!$M$5='Daten Einstellg_Ziele'!$D$21,Anlageziele!$M$7,IF(Anlageziele!$M$5='Daten Einstellg_Ziele'!$D$22,'Daten VE'!$D$51*Anlageziele!Q7%,J31-J41-J42-J46-J47-J47-J48-J49-J50)) -> 10,000
C41: Allg. Verwaltungskosten | D41: EUR | E41: 0 | F41: ='Einn._Ausg.'!C28 -> 28,000 | G41: ='Einn._Ausg.'!D28 -> 27,030 | H41: ='Einn._Ausg.'!E28 -> 27,571 | I41: ='Einn._Ausg.'!F28 -> 28,122 | J41: ='Einn._Ausg.'!G28 -> 28,684
C42: Kosten Vermögensverwaltung | D42: EUR | E42: 0 | F42: ='Daten Projektion'!I91 -> 11,220 | G42: ='Daten Projektion'!J91 -> 11,444 | H42: ='Daten Projektion'!K91 -> 11,673 | I42: ='Daten Projektion'!L91 -> 11,907 | J42: ='Daten Projektion'!M91 -> 12,145
C43: davon Immobilien | D43: EUR | E43: 0 | F43: ='Daten Projektion'!I80 -> 5,100 | G43: ='Daten Projektion'!J80 -> 5,202 | H43: ='Daten Projektion'!K80 -> 5,306 | I43: ='Daten Projektion'!L80 -> 5,412 | J43: ='Daten Projektion'!M80 -> 5,520
C44: davon Beteiligungen | D44: EUR | E44: 0 | F44: ='Daten Projektion'!I81 -> 0 | G44: ='Daten Projektion'!J81 -> 0 | H44: ='Daten Projektion'!K81 -> 0 | I44: ='Daten Projektion'!L81 -> 0 | J44: ='Daten Projektion'!M81 -> 0
C45: davon Wertpapiere | D45: EUR | E45: 0 | F45: ='Daten Projektion'!I82 -> 6,120 | G45: ='Daten Projektion'!J82 -> 6,242 | H45: ='Daten Projektion'!K82 -> 6,367 | I45: ='Daten Projektion'!L82 -> 6,495 | J45: ='Daten Projektion'!M82 -> 6,624
C46: Sollzinsen | D46: EUR | E46: 0 | F46: ='Daten Umschichtung'!F99*-1 -> 0 | G46: ='Daten Umschichtung'!G99*-1 -> 0 | H46: ='Daten Umschichtung'!H99*-1 -> 0 | I46: ='Daten Umschichtung'!I99*-1 -> 0 | J46: ='Daten Umschichtung'!J99*-1 -> 0
C47: Tilgung | D47: =$D$31 -> EUR | E47: 0 | F47: =(E17-F17)*-1 -> 0 | G47: =(F17-G17)*-1 -> 0 | H47: =(G17-H17)*-1 -> 0 | I47: =(H17-I17)*-1 -> 0 | J47: =(I17-J17)*-1 -> 0
C48: Sonstige Aufwände | D48: EUR | E48: 0 | F48: ='Einn._Ausg.'!C27 -> 3,000 | G48: ='Einn._Ausg.'!D27 -> 3,060 | H48: ='Einn._Ausg.'!E27 -> 3,121 | I48: ='Einn._Ausg.'!F27 -> 3,184 | J48: ='Einn._Ausg.'!G27 -> 3,247
C49: Zuführung Freie Rücklage | D49: EUR | E49: 0 | F49: =IF(Anlageziele!$M$5="Überschuss",'Daten Projektion'!I106,'Daten Projektion'!I110) -> 11,280 | G49: =IF(Anlageziele!$M$5="Überschuss",'Daten Projektion'!J106,'Daten Projektion'!J110) -> 12,714 | H49: =IF(Anlageziele!$M$5="Überschuss",'Daten Projektion'!K106,'Daten Projektion'!K110) -> 12,649 | I49: =IF(Anlageziele!$M$5="Überschuss",'Daten Projektion'!L106,'Daten Projektion'!L110) -> 12,584 | J49: =IF(Anlageziele!$M$5="Überschuss",'Daten Projektion'!M106,'Daten Projektion'!M110) -> 12,519
C50: Neuanlage | D50: EUR | E50: =E33 -> 0 | F50: =F33 -> 0 | G50: =G33 -> 0 | H50: 0 | I50: 0 | J50: 0
C51: Kennzahlen
C52: Ausschüttungsrendite brutto | D52: % | E52: 0.0% | F52: =SUM(F34:F38)/E6 -> 0.8% | G52: =SUM(G34:G38)/F6 -> 0.9% | H52: =SUM(H34:H38)/G6 -> 1.0% | I52: =SUM(I34:I38)/H6 -> 1.0% | J52: =SUM(J34:J38)/I6 -> 1.0%
C53: Verwaltungskostenquote 1 (Aufsicht) | D53: % | E53: 0.0% | F53: =(F41+F42)/(F31-F33) -> 61.8% | G53: =(G41+G42)/(G31-G33) -> 53.6% | H53: 47.5% | I53: 47.8% | J53: 48.0%
C54: Verwaltungskostenquote 2 (Finanzamt) | D54: % | E54: 0.0% | F54: =F41/(F31-F42-F33) -> 53.6% | G54: =G41/(G31-G42-G33) -> 44.8% | H54: 38.9% | I54: 39.1% | J54: 39.3%
C55: Zweckeffizienz der Erträge | D55: % | E55: 0.0% | F55: =F40/(F31-F33) -> 15.7% | G55: =G40/(G31-G33) -> 13.9% | H55: 12.1% | I55: 11.9% | J55: 11.8%
C56: Zweckeffizienz des Vermögens | D56: % | E56: =E40/E6 -> 0.0% | F56: 0.1% | G56: 0.1% | H56: 0.1% | I56: 0.1% | J56: 0.1%
C103: Ergebnisbeiträge
E104: Ant. Vermögen | F104: Ant. Ertrag
C105: Immobilien (Verkwert.) | E105: =#REF!/#REF! ->  | F105: =#REF!/#REF! -> 
C106: Beteiligungen | E106: =#REF!/#REF! ->  | F106: =#REF!/#REF! -> 
C107: Wertpapiere | E107: =#REF!/#REF! ->  | F107: =#REF!/#REF! -> 
C108: Spar- und Termineinlagen | E108: =#REF!/#REF! ->  | F108: =#REF!/#REF! -> 
C109: Sonstiges Vermögen | E109: =#REF!/#REF! ->  | F109: =#REF!/#REF! -> 
E110: =SUM(E105:E109) ->  | F110: =SUM(F105:F109) -> 

Sheet Glossar (hidden)
A1: Glossar
B3: Begriff | C3: Erklärung
B4: DCF | C4: Discounted Cashflow-Verfahren
B5: Divesting
B6: Engagement
B7: Impact Investing
B17: Vermögenserhaltungskonzept

Sheet Eingabe Szenario (hidden)
B1: Prämissen Szenario
B3: Beschreibung
B6: Name der Stiftung: | C6: =Einstellungen!D5 -> Paradigma-Stiftung
B7: Gründungsjahr (JJJJ) | C7: =Einstellungen!D6 -> 2001
B8: Auswertungsbeginn (JJJJ) | C8: =Einstellungen!D7 -> 2019
B9: Durchschnittliche Geldwertveränderung | C9: 1.5%
B10: Ausgaben für den Stiftungszweck | F10: 1
B11: Zielausschüttung p.a. EUR | C11: 500,000
B12: Aufgriffsgrenze Verwaltungskosten FA | C12: 25.0%
B13: Aufgriffsgrenze Verwaltungskosten Aufsicht | C13: 33.0%
B14: Darstellung Vermögen | C14: =IF(Einstellungen!R9=1,"EUR","TEUR") -> TEUR | D14: EUR | F14: 1
D15: TEUR
C17: Grundfall | D17: ▼ | J17: Grundfall | K17: ▼
B18: Immobilien EUR | C18: =Einstellungen!D17 -> 0 | D18: 0 | I18: Allgemeine Verwaltungskosten EUR | J18: =Einstellungen!K25 -> 0 | K18: 10,000
B19: Beteiligungen EUR | C19: =Einstellungen!D18 -> 0 | D19: 0 | I19: Vermögensabh. allg. Verwaltungskosten | J19: =Einstellungen!K26 -> 2.0% | K19: 0.0%
B20: Wertpapiere EUR | C20: =Einstellungen!D19 -> 0 | D20: 3,000,000 | I20: Ertragsabh. allg. Verwaltungskosten | J20: =Einstellungen!K27 -> 2.0% | K20: 0.0%
B21: Spar- und Termineinlagen EUR | C21: =Einstellungen!#REF! ->  | D21: 0 | I21: Fixkosten WP-Vermögen EUR | J21: =Einstellungen!K28 -> 0 | K21: 10,000
B22: Sonstiges Vermögen EUR | C22: =Einstellungen!D21 -> 0 | D22: 0 | I22: Variable Gebühren auf Depotbestand | J22: =Einstellungen!K29 -> 0.0% | K22: 0.8%
B23: Verbindlichkeiten EUR | C23: =Einstellungen!D22 -> 0 | D23: 0 | I23: Sonstige Aufwände EUR | J23: =Einstellungen!K32 -> Ja | K23: 0
B24: Gesamt EUR | C24: =SUM(C18:C22)-C23 ->  | D24: =SUM(D18:D22)-D23 -> 3,000,000
B28: Allokation | J28: Grundfall | K28: ▼
C29: Bestand | D29: EUR | E29: Neu | I29: Anfangsbestand freie Rücklage EUR | J29: =Einstellungen!#REF! ->  | K29: 22,000
B30: Aktien | C30: 20.0% | D30: =$D$20*C30 -> 600,000 | E30: 25.0% | I30: Zuführung freie Rücklage aus Erträgen p.a. | J30: =Einstellungen!#REF! ->  | K30: 33.0% | L30: =IF(K30>33.3%,"Maximal 33,3%","") -> 
B31: Renten | C31: 75.0% | D31: =$D$20*C31 -> 2,250,000 | E31: 50.0% | I31: Zuführung freie Rücklage aus Spenden p.a. | J31: =Einstellungen!#REF! ->  | K31: 10.0% | L31: =IF(K31>10%,"Maximal 10%","") -> 
B32: Liquidität | C32: 5.0% | D32: =$D$20*C32 -> 150,000 | E32: 10.0% | I32: Bildung einer Umschichtungsrücklage? | J32: =Einstellungen!#REF! ->  | L32: FALSE | M32: =IF(L32=TRUE,1,0) -> 0
B33: Alternative Anlagen | C33: 0.0% | D33: =$D$20*C33 -> 0 | E33: 5.0% | I33: Anfangsbestand Umschichtungsrücklage | J33: =Einstellungen!K31 -> 0 | K33: 0
B34: Sonstige/gemischt | C34: 0.0% | D34: =$D$20*C34 -> 0 | E34: 10.0% | I34: Liquiditätskonto unverzinst | J34: =Einstellungen!#REF! ->  | K34: 100,000
B35: Gesamt | C35: =SUM(C30:C34) -> 100.0% | D35: =SUM(D30:D34) -> 3,000,000 | E35: =SUM(E30:E34) -> 100.0% | G35: =IF(C35+E35<>200%,"Gesamwert <> 100%","") -> 
B37: Durchschnittsrenditen | J37: Grundfall | K37: ▼
C38: Kurs | D38: Ausschüttg. | E38: Gesamt | I38: Spenden p.a. EUR | J38: =Einstellungen!K36 -> 0 | K38: 50,000
B39: Aktien | C39: 4.0% | D39: 3.0% | E39: =C39+D39 -> 7.0% | I39: Zustiftung 1 EUR … im Jahr | J39: =Einstellungen!K37 -> 0 | K39: 500,000 | M39: 3 | N39: =2015+M39 -> 2018 | O39: =IF($F$14=1,K39,K39/1000) -> 500,000
B40: Renten | C40: 0.0% | D40: 1.6% | E40: 1.6% | I40: Zustiftung 2 EUR ... im Jahr | J40: =Einstellungen!K38 -> 0 | K40: 0 | M40: 5 | N40: 2020 | O40: 0
B41: Liquidität | C41: 0.0% | D41: 0.3% | E41: 0.3% | I41: Zustiftung 3 EUR ... im Jahr | J41: =Einstellungen!K39 -> 0 | K41: 300,000 | M41: 5 | N41: 2020 | O41: 300,000
B42: Alternative Investments | C42: 2.0% | D42: 2.0% | E42: 4.0% | I42: Zuwendung in Rücklagen EUR … im Jahr | J42: =Einstellungen!K40 -> 0 | K42: 0 | M42: 1 | N42: 2016 | O42: 0
B43: Sonstige/Gemischt | C43: 5.0% | D43: 0.0% | E43: 5.0% | I43: Zuwendung in Rücklagen EUR … im Jahr | J43: =Einstellungen!K41 -> 0 | K43: 0 | M43: 1 | N43: 2016 | O43: 0
B44: Gesamtrendite gewichtet | C44: =$E$30*C39+$E$31*C40+$E$33*C42+$E$34*C43+$E$32*C41 -> 1.6% | D44: =$E$30*D39+$E$31*D40+$E$33*D42+$E$34*D43+$E$32*D41 -> 1.7% | E44: 3.3% | I44: Zuwendung in Rücklagen EUR … im Jahr | J44: =Einstellungen!K42 -> 0 | K44: 0 | M44: 7 | N44: 2022 | O44: 0
C47: Grundfall | D47: ▼
B48: Buchwert Grundstücke EUR | C48: =Einstellungen!D46 -> 0 | D48: 160,000 | G48: 2016
B49: Buchwert Gebäude EUR | C49: =Einstellungen!D47 -> 0 | D49: 300,000 | G49: 2017
B50: Mieteinnahmen p.a. EUR | C50: =Einstellungen!D48 -> 0 | D50: 12,000 | G50: 2018
B51: Verwaltungskosten p.a. EUR | C51: =Einstellungen!D49 -> 0 | D51: 5,000 | G51: 2019
B52: Wertveränderung p.a. | C52: =Einstellungen!D50 -> 0.0% | D52: 1.0% | G52: 2020
B53: Veränd. Mieten p.a.: | C53: =Einstellungen!D51 -> 0.0% | D53: 1.0% | G53: 2021
B54: Veränd. Verwaltgskosten p.a. | C54: =Einstellungen!D52 -> 0.0% | D54: 1.0% | G54: 2022
B55: Abschreibung p.a.: | C55: =Einstellungen!D53 -> 0.0% | D55: 2.0% | G55: 2023
G56: 2024
G57: 2025
C58: Grundfall | D58: ▼ | G58: 2026
B59: Wertveränderung p.a.: | C59: =Einstellungen!D57 -> 0 | D59: 0.0% | G59: 2027
B60: Ausschüttung p.a.: | C60: =Einstellungen!D58 -> 0.0% | D60: 4.5% | G60: 2028
B61: Kosten upfront EUR | C61: =Einstellungen!D59 -> 0 | D61: 5,000 | G61: 2029
B62: Kosten upfront volumensabhängig | C62: =Einstellungen!D60 -> 0.0% | D62: 3.0% | G62: 2030
B63: Kosten laufend EUR | C63: =Einstellungen!D61 -> 0 | D63: 0
B64: Kosten laufend volumensabhängig | C64: =Einstellungen!D62 -> 0.0% | D64: 1.0%
B65: Neuzeichnung EUR … im Jahr | C65: =Einstellungen!D63 -> 0 | D65: 10,000 | F65: 9 | G65: =2015+F65 -> 2024
C68: Grundfall | D68: ▼
B69: Wertveränderung p.a.: | C69: =Einstellungen!D67 -> 0.0% | D69: 1.0%
B70: Ausschüttung p.a.: | C70: =Einstellungen!D68 -> 0.0% | D70: 0.0%
C73: Grundfall | D73: ▼
B74: Zins p.a. | C74: =Einstellungen!#REF! ->  | D74: 2.0%
B75: Tilgungart
B76: Tilgung EUR | C76: =Einstellungen!#REF! ->  | D76: 1.0%

Sheet Analyse Szenario (hidden)
A1: Szenario
A3: Beschreibung | C3: Einh. | D3: Bestand | E3: ='Eingabe Szenario'!C8 -> 2019 | F3: =E3+1 -> 2020 | G3: 2021 | H3: 2022 | I3: 2023 | J3: 2024 | K3: 2025 | L3: 2026 | M3: 2027 | N3: 2028
A5: Vermögen | C5: =IF('Eingabe Szenario'!$F$14=1,'Eingabe Szenario'!$D$14,'Eingabe Szenario'!$D$15) -> EUR | D5: =SUM(D6:D8)+SUM(D14:D17) -> 100,000 | E5: =SUM(E6:E8)+SUM(E14:E17) -> 
A6: Immobilien (Verkehrswert) | C6: =IF('Eingabe Szenario'!$F$14=1,'Eingabe Szenario'!$D$14,'Eingabe Szenario'!$D$15) -> EUR | D6: =IF('Eingabe Szenario'!F14=1,'Eingabe Szenario'!D18,'Eingabe Szenario'!D18/1000) -> 0 | E6: =D6+D6*'Eingabe Szenario'!$D$52 -> 0 | F6: =E6+E6*'Eingabe Szenario'!$D$52 -> 0 | G6: =F6+F6*'Eingabe Szenario'!$D$52 -> 0 | H6: =G6+G6*'Eingabe Szenario'!$D$52 -> 0 | I6: =H6+H6*'Eingabe Szenario'!$D$52 -> 0 | J6: =I6+I6*'Eingabe Szenario'!$D$52 -> 0 | K6: =J6+J6*'Eingabe Szenario'!$D$52 -> 0 | L6: =K6+K6*'Eingabe Szenario'!$D$52 -> 0 | M6: =L6+L6*'Eingabe Szenario'!$D$52 -> 0 | N6: =M6+M6*'Eingabe Szenario'!$D$52 -> 0
A7: Beteiligungen | C7: =IF('Eingabe Szenario'!$F$14=1,'Eingabe Szenario'!$D$14,'Eingabe Szenario'!$D$15) -> EUR | D7: =IF('Eingabe Szenario'!$F$14=1,'Eingabe Szenario'!D19,'Eingabe Szenario'!D19/1000) -> 0 | E7: =D7+D7*'Eingabe Szenario'!$D$59 -> 0 | F7: =E7+E7*'Eingabe Szenario'!$D$59 -> 0 | G7: =F7+F7*'Eingabe Szenario'!$D$59 -> 0 | H7: =G7+G7*'Eingabe Szenario'!$D$59 -> 0 | I7: =H7+H7*'Eingabe Szenario'!$D$59 -> 0 | J7: =I7+I7*'Eingabe Szenario'!$D$59 -> 0 | K7: =J7+J7*'Eingabe Szenario'!$D$59 -> 0 | L7: =K7+K7*'Eingabe Szenario'!$D$59 -> 0 | M7: =L7+L7*'Eingabe Szenario'!$D$59 -> 0 | N7: =M7+M7*'Eingabe Szenario'!$D$59 -> 0
A8: Wertpapiere | B8: ='Eingabe Szenario'!C44 -> 1.6% | C8: =IF('Eingabe Szenario'!$F$14=1,'Eingabe Szenario'!$D$14,'Eingabe Szenario'!$D$15) -> EUR | D8: =SUM(D9:D13) -> 0 | E8: =SUM(E9:E13) -> 0 | F8: 79,010 | G8: 385,915 | H8: 397,799 | I8: 411,799 | J8: 426,324 | K8: 441,406 | L8: 457,067 | M8: 473,332 | N8: 490,227
A9: davon Aktien | B9: ='Eingabe Szenario'!C39 -> 4.0% | C9: =IF('Eingabe Szenario'!$F$14=1,'Eingabe Szenario'!$D$14,'Eingabe Szenario'!$D$15) -> EUR | D9: =IF('Eingabe Szenario'!$F$14=1,'Eingabe Szenario'!F30,'Eingabe Szenario'!F30/1000) -> 0 | E9: =D9+D9*'Eingabe Szenario'!$C$39+D59*'Eingabe Szenario'!$E$30+E60*'Eingabe Szenario'!$E$30 -> 0 | F9: =E9+E9*'Eingabe Szenario'!$C$39+E59*'Eingabe Szenario'!$E$30+'Analyse Szenario'!F60*'Eingabe Szenario'!$E$30 -> 76,003 | G9: =F9+F9*'Eingabe Szenario'!$C$39+F59*'Eingabe Szenario'!$E$30+'Analyse Szenario'!F60*'Eingabe Szenario'!$E$30 -> 155,003 | H9: =G9+G9*'Eingabe Szenario'!$C$39+G59*'Eingabe Szenario'!$E$30+'Analyse Szenario'!G60*'Eingabe Szenario'!$E$30 -> 162,162 | I9: =H9+H9*'Eingabe Szenario'!$C$39+H59*'Eingabe Szenario'!$E$30+'Analyse Szenario'!H60*'Eingabe Szenario'!$E$30 -> 170,038 | J9: =I9+I9*'Eingabe Szenario'!$C$39+I59*'Eingabe Szenario'!$E$30+'Analyse Szenario'!I60*'Eingabe Szenario'!$E$30 -> 178,252 | K9: =J9+J9*'Eingabe Szenario'!$C$39+J59*'Eingabe Szenario'!$E$30+'Analyse Szenario'!J60*'Eingabe Szenario'!$E$30 -> 186,819 | L9: =K9+K9*'Eingabe Szenario'!$C$39+K59*'Eingabe Szenario'!$E$30+'Analyse Szenario'!K60*'Eingabe Szenario'!$E$30 -> 195,754 | M9: =L9+L9*'Eingabe Szenario'!$C$39+L59*'Eingabe Szenario'!$E$30+'Analyse Szenario'!L60*'Eingabe Szenario'!$E$30 -> 205,073 | N9: =M9+M9*'Eingabe Szenario'!$C$39+M59*'Eingabe Szenario'!$E$30+'Analyse Szenario'!M60*'Eingabe Szenario'!$E$30 -> 214,792
A10: davon Renten | B10: ='Eingabe Szenario'!C40 -> 0.0% | C10: =IF('Eingabe Szenario'!$F$14=1,'Eingabe Szenario'!$D$14,'Eingabe Szenario'!$D$15) -> EUR | D10: =IF('Eingabe Szenario'!$F$14=1,'Eingabe Szenario'!$F$31,'Eingabe Szenario'!$F$31/1000) -> 0 | E10: =D10+D10*'Eingabe Szenario'!$C$40+D60*'Eingabe Szenario'!$E$31+E61*'Eingabe Szenario'!$E$31 -> 0 | F10: =E10+E10*'Eingabe Szenario'!$C$40+E59*'Eingabe Szenario'!$E$31+E60*'Eingabe Szenario'!$E$31 -> 2,005 | G10: =F10+F10*'Eingabe Szenario'!$C$40+F59*'Eingabe Szenario'!$E$31+F60*'Eingabe Szenario'!$E$31 -> 153,926 | H10: =G10+G10*'Eingabe Szenario'!$C$40+G59*'Eingabe Szenario'!$E$31+G60*'Eingabe Szenario'!$E$31 -> 155,843 | I10: =H10+H10*'Eingabe Szenario'!$C$40+H59*'Eingabe Szenario'!$E$31+H60*'Eingabe Szenario'!$E$31 -> 158,623 | J10: =I10+I10*'Eingabe Szenario'!$C$40+I59*'Eingabe Szenario'!$E$31+I60*'Eingabe Szenario'!$E$31 -> 161,447 | K10: =J10+J10*'Eingabe Szenario'!$C$40+J59*'Eingabe Szenario'!$E$31+J60*'Eingabe Szenario'!$E$31 -> 164,321 | L10: =K10+K10*'Eingabe Szenario'!$C$40+K59*'Eingabe Szenario'!$E$31+K60*'Eingabe Szenario'!$E$31 -> 167,246 | M10: =L10+L10*'Eingabe Szenario'!$C$40+L59*'Eingabe Szenario'!$E$31+L60*'Eingabe Szenario'!$E$31 -> 170,224 | N10: =M10+M10*'Eingabe Szenario'!$C$40+M59*'Eingabe Szenario'!$E$31+M60*'Eingabe Szenario'!$E$31 -> 173,255
A11: davon Liquidität | B11: ='Eingabe Szenario'!C41 -> 0.0% | C11: =IF('Eingabe Szenario'!$F$14=1,'Eingabe Szenario'!$D$14,'Eingabe Szenario'!$D$15) -> EUR | D11: =IF('Eingabe Szenario'!$F$14=1,'Eingabe Szenario'!F32,'Eingabe Szenario'!F32/1000) -> 0 | E11: =D11+D11*'Eingabe Szenario'!$C$41+D59*'Eingabe Szenario'!$E$32+'Analyse Szenario'!E60*'Eingabe Szenario'!$E$32 -> 0 | F11: =E11+E11*'Eingabe Szenario'!$C$41+E59*'Eingabe Szenario'!$E$32+'Analyse Szenario'!E60*'Eingabe Szenario'!$E$32 -> 401 | G11: =F11+F11*'Eingabe Szenario'!$C$41+F59*'Eingabe Szenario'!$E$32+'Analyse Szenario'!F60*'Eingabe Szenario'!$E$32 -> 30,785 | H11: =G11+G11*'Eingabe Szenario'!$C$41+G59*'Eingabe Szenario'!$E$32+'Analyse Szenario'!G60*'Eingabe Szenario'!$E$32 -> 31,169 | I11: =H11+H11*'Eingabe Szenario'!$C$41+H59*'Eingabe Szenario'!$E$32+'Analyse Szenario'!H60*'Eingabe Szenario'!$E$32 -> 31,725 | J11: =I11+I11*'Eingabe Szenario'!$C$41+I59*'Eingabe Szenario'!$E$32+'Analyse Szenario'!I60*'Eingabe Szenario'!$E$32 -> 32,289 | K11: =J11+J11*'Eingabe Szenario'!$C$41+J59*'Eingabe Szenario'!$E$32+'Analyse Szenario'!J60*'Eingabe Szenario'!$E$32 -> 32,864 | L11: =K11+K11*'Eingabe Szenario'!$C$41+K59*'Eingabe Szenario'!$E$32+'Analyse Szenario'!K60*'Eingabe Szenario'!$E$32 -> 33,449 | M11: =L11+L11*'Eingabe Szenario'!$C$41+L59*'Eingabe Szenario'!$E$32+'Analyse Szenario'!L60*'Eingabe Szenario'!$E$32 -> 34,045 | N11: =M11+M11*'Eingabe Szenario'!$C$41+M59*'Eingabe Szenario'!$E$32+'Analyse Szenario'!M60*'Eingabe Szenario'!$E$32 -> 34,651
A12: davon Alternative Investments | B12: ='Eingabe Szenario'!C42 -> 2.0% | C12: =IF('Eingabe Szenario'!$F$14=1,'Eingabe Szenario'!$D$14,'Eingabe Szenario'!$D$15) -> EUR | D12: =IF('Eingabe Szenario'!$F$14=1,'Eingabe Szenario'!F33,'Eingabe Szenario'!F33/1000) -> 0 | E12: =D12+D12*'Eingabe Szenario'!$C$42+D59*'Eingabe Szenario'!$E$33+'Analyse Szenario'!E60*'Eingabe Szenario'!$E$33 -> 0 | F12: =E12+E12*'Eingabe Szenario'!$C$42+E59*'Eingabe Szenario'!$E$33+'Analyse Szenario'!E60*'Eingabe Szenario'!$E$33 -> 201 | G12: =F12+F12*'Eingabe Szenario'!$C$42+F59*'Eingabe Szenario'!$E$33+'Analyse Szenario'!F60*'Eingabe Szenario'!$E$33 -> 15,397 | H12: =G12+G12*'Eingabe Szenario'!$C$42+G59*'Eingabe Szenario'!$E$33+'Analyse Szenario'!G60*'Eingabe Szenario'!$E$33 -> 15,896 | I12: =H12+H12*'Eingabe Szenario'!$C$42+H59*'Eingabe Szenario'!$E$33+'Analyse Szenario'!H60*'Eingabe Szenario'!$E$33 -> 16,492 | J12: =I12+I12*'Eingabe Szenario'!$C$42+I59*'Eingabe Szenario'!$E$33+'Analyse Szenario'!I60*'Eingabe Szenario'!$E$33 -> 17,104 | K12: =J12+J12*'Eingabe Szenario'!$C$42+J59*'Eingabe Szenario'!$E$33+'Analyse Szenario'!J60*'Eingabe Szenario'!$E$33 -> 17,734 | L12: =K12+K12*'Eingabe Szenario'!$C$42+K59*'Eingabe Szenario'!$E$33+'Analyse Szenario'!K60*'Eingabe Szenario'!$E$33 -> 18,381 | M12: =L12+L12*'Eingabe Szenario'!$C$42+L59*'Eingabe Szenario'!$E$33+'Analyse Szenario'!L60*'Eingabe Szenario'!$E$33 -> 19,046 | N12: =M12+M12*'Eingabe Szenario'!$C$42+M59*'Eingabe Szenario'!$E$33+'Analyse Szenario'!M60*'Eingabe Szenario'!$E$33 -> 19,731
A13: davon Sonstige/gemischt | B13: ='Eingabe Szenario'!C43 -> 5.0% | C13: =IF('Eingabe Szenario'!$F$14=1,'Eingabe Szenario'!$D$14,'Eingabe Szenario'!$D$15) -> EUR | D13: =IF('Eingabe Szenario'!$F$14=1,'Eingabe Szenario'!F34,'Eingabe Szenario'!F34/1000) -> 0 | E13: =D13+D13*'Eingabe Szenario'!$C$43+D59*'Eingabe Szenario'!$E$34+'Analyse Szenario'!E60*'Eingabe Szenario'!$E$34 -> 0 | F13: =E13+E13*'Eingabe Szenario'!$C$43+E59*'Eingabe Szenario'!$E$34+'Analyse Szenario'!E60*'Eingabe Szenario'!$E$34 -> 401 | G13: =F13+F13*'Eingabe Szenario'!$C$43+F59*'Eingabe Szenario'!$E$34+'Analyse Szenario'!F60*'Eingabe Szenario'!$E$34 -> 30,805 | H13: =G13+G13*'Eingabe Szenario'!$C$43+G59*'Eingabe Szenario'!$E$34+'Analyse Szenario'!G60*'Eingabe Szenario'!$E$34 -> 32,729 | I13: =H13+H13*'Eingabe Szenario'!$C$43+H59*'Eingabe Szenario'!$E$34+'Analyse Szenario'!H60*'Eingabe Szenario'!$E$34 -> 34,921 | J13: =I13+I13*'Eingabe Szenario'!$C$43+I59*'Eingabe Szenario'!$E$34+'Analyse Szenario'!I60*'Eingabe Szenario'!$E$34 -> 37,232 | K13: =J13+J13*'Eingabe Szenario'!$C$43+J59*'Eingabe Szenario'!$E$34+'Analyse Szenario'!J60*'Eingabe Szenario'!$E$34 -> 39,669 | L13: =K13+K13*'Eingabe Szenario'!$C$43+K59*'Eingabe Szenario'!$E$34+'Analyse Szenario'!K60*'Eingabe Szenario'!$E$34 -> 42,237 | M13: =L13+L13*'Eingabe Szenario'!$C$43+L59*'Eingabe Szenario'!$E$34+'Analyse Szenario'!L60*'Eingabe Szenario'!$E$34 -> 44,944 | N13: =M13+M13*'Eingabe Szenario'!$C$43+M59*'Eingabe Szenario'!$E$34+'Analyse Szenario'!M60*'Eingabe Szenario'!$E$34 -> 47,798
A14: Spar- und Termineinlagen | B14: ='Eingabe Szenario'!C41 -> 0.0% | C14: =IF('Eingabe Szenario'!$F$14=1,'Eingabe Szenario'!$D$14,'Eingabe Szenario'!$D$15) -> EUR | D14: =IF('Eingabe Szenario'!$F$14=1,'Eingabe Szenario'!D21,'Eingabe Szenario'!D21/1000) -> 0 | E14: =D14 -> 0 | F14: =E14 -> 0 | G14: 0 | H14: 0 | I14: 0 | J14: 0 | K14: 0 | L14: 0 | M14: 0 | N14: 0
A15: Sonstiges Vermögen | C15: =IF('Eingabe Szenario'!$F$14=1,'Eingabe Szenario'!$D$14,'Eingabe Szenario'!$D$15) -> EUR | D15: =IF('Eingabe Szenario'!$F$14=1,'Eingabe Szenario'!D22,'Eingabe Szenario'!D22/1000) -> 0 | E15: =D15+D15*'Eingabe Szenario'!$D$69 -> 0 | F15: =E15+E15*'Eingabe Szenario'!$D$69 -> 0 | G15: =F15+F15*'Eingabe Szenario'!$D$69 -> 0 | H15: =G15+G15*'Eingabe Szenario'!$D$69 -> 0 | I15: =H15+H15*'Eingabe Szenario'!$D$69 -> 0 | J15: =I15+I15*'Eingabe Szenario'!$D$69 -> 0 | K15: =J15+J15*'Eingabe Szenario'!$D$69 -> 0 | L15: =K15+K15*'Eingabe Szenario'!$D$69 -> 0 | M15: =L15+L15*'Eingabe Szenario'!$D$69 -> 0 | N15: =M15+M15*'Eingabe Szenario'!$D$69 -> 0
A16: Verbindlichkeiten | C16: =IF('Eingabe Szenario'!$F$14=1,'Eingabe Szenario'!$D$14,'Eingabe Szenario'!$D$15) -> EUR | D16: =IF('Eingabe Szenario'!$F$14=1,'Eingabe Szenario'!D23*-1,'Eingabe Szenario'!D23/1000*-1) -> 0 | E16: =IF(E39<0,D16-D16*'Eingabe Szenario'!$D$76+E39,D16-D16*'Eingabe Szenario'!$D$76) ->  | F16: =IF(F39<0,E16-E16*'Eingabe Szenario'!$D$76+F39,E16-E16*'Eingabe Szenario'!$D$76) ->  | G16: =IF(G39<0,F16-F16*'Eingabe Szenario'!$D$76+G39,F16-F16*'Eingabe Szenario'!$D$76) ->  | H16: =IF(H39<0,G16-G16*'Eingabe Szenario'!$D$76+H39,G16-G16*'Eingabe Szenario'!$D$76) ->  | I16: =IF(I39<0,H16-H16*'Eingabe Szenario'!$D$76+I39,H16-H16*'Eingabe Szenario'!$D$76) ->  | J16: =IF(J39<0,I16-I16*'Eingabe Szenario'!$D$76+J39,I16-I16*'Eingabe Szenario'!$D$76) ->  | K16: =IF(K39<0,J16-J16*'Eingabe Szenario'!$D$76+K39,J16-J16*'Eingabe Szenario'!$D$76) ->  | L16: =IF(L39<0,K16-K16*'Eingabe Szenario'!$D$76+L39,K16-K16*'Eingabe Szenario'!$D$76) ->  | M16: =IF(M39<0,L16-L16*'Eingabe Szenario'!$D$76+M39,L16-L16*'Eingabe Szenario'!$D$76) ->  | N16: =IF(N39<0,M16-M16*'Eingabe Szenario'!$D$76+N39,M16-M16*'Eingabe Szenario'!$D$76) -> 
A17: Liquiditätskonto (unverzinst) | B17: ='Eingabe Szenario'!C41 -> 0.0% | C17: =IF('Eingabe Szenario'!$F$14=1,'Eingabe Szenario'!$D$14,'Eingabe Szenario'!$D$15) -> EUR | D17: =IF('Eingabe Szenario'!$F$14=1,'Eingabe Szenario'!K34,'Eingabe Szenario'!K34/1000) -> 100,000 | E17: =IF(E39>=0,D17+E39,D17) -> 
A18: Rechnungslegung
A19: Buchwert Grundstücke | C19: =IF('Eingabe Szenario'!$F$14=1,'Eingabe Szenario'!$D$14,'Eingabe Szenario'!$D$15) -> EUR | D19: =IF('Eingabe Szenario'!$F$14=1,'Eingabe Szenario'!D48,'Eingabe Szenario'!D48/1000) -> 160,000 | E19: =D19 -> 160,000 | F19: =E19 -> 160,000 | G19: 160,000 | H19: 160,000 | I19: 160,000 | J19: 160,000 | K19: 160,000 | L19: 160,000 | M19: 160,000 | N19: 160,000
A20: Buchwert Gebäude | C20: =IF('Eingabe Szenario'!$F$14=1,'Eingabe Szenario'!$D$14,'Eingabe Szenario'!$D$15) -> EUR | D20: =IF('Eingabe Szenario'!$F$14=1,'Eingabe Szenario'!D49,'Eingabe Szenario'!D49/1000) -> 300,000 | E20: =D20-D21 -> 294,000 | F20: =E20-E21 -> 288,120 | G20: 282,358 | H20: 276,710 | I20: 271,176 | J20: 265,753 | K20: 260,438 | L20: 255,229 | M20: 250,124 | N20: 245,122
A21: AfA Immobilien | B21: ='Eingabe Szenario'!D55 -> 2.0% | C21: =IF('Eingabe Szenario'!$F$14=1,'Eingabe Szenario'!$D$14,'Eingabe Szenario'!$D$15) -> EUR | D21: =D20*'Eingabe Szenario'!D55 -> 6,000 | E21: =E20*'Eingabe Szenario'!$D$55 -> 5,880 | F21: =F20*'Eingabe Szenario'!$D$55 -> 5,762 | G21: =G20*'Eingabe Szenario'!$D$55 -> 5,647 | H21: =H20*'Eingabe Szenario'!$D$55 -> 5,534 | I21: =I20*'Eingabe Szenario'!$D$55 -> 5,424 | J21: =J20*'Eingabe Szenario'!$D$55 -> 5,315 | K21: =K20*'Eingabe Szenario'!$D$55 -> 5,209 | L21: =L20*'Eingabe Szenario'!$D$55 -> 5,105 | M21: =M20*'Eingabe Szenario'!$D$55 -> 5,002 | N21: =N20*'Eingabe Szenario'!$D$55 -> 4,902
A22: Stille Reserven Immobilien | C22: =IF('Eingabe Szenario'!$F$14=1,'Eingabe Szenario'!$D$14,'Eingabe Szenario'!$D$15) -> EUR | D22: =D6-D19-D20 -> -460,000 | E22: -454,000 | F22: -448,120 | G22: -442,358 | H22: -436,710 | I22: -431,176 | J22: -425,753 | K22: -420,438 | L22: -415,229 | M22: -410,124 | N22: -405,122
A23: Aktienquote Wertpapiere | C23: % | D23: =D9/D8 ->  | E23: =E9/E8 ->  | F23: 96.2% | G23: 40.2% | H23: 40.8% | I23: 41.3% | J23: 41.8% | K23: 42.3% | L23: 42.8% | M23: 43.3% | N23: 43.8%
A24: Aktienquote Gesamtverm. | C24: % | D24: =D9/D5 -> 0.0%
A25: Bestand freie Rücklage | C25: =IF('Eingabe Szenario'!$F$14=1,'Eingabe Szenario'!$D$14,'Eingabe Szenario'!$D$15) -> EUR | D25: =IF('Eingabe Szenario'!$F$14=1,'Eingabe Szenario'!K29,'Eingabe Szenario'!K29/1000) -> 22,000 | E25: =D25+D27 -> 22,000 | F25: =E25+E27 -> 
A26: Tilgung | B26: ='Eingabe Szenario'!D76 -> 1.0% | C26: =IF('Eingabe Szenario'!$F$14=1,'Eingabe Szenario'!$D$14,'Eingabe Szenario'!$D$15) -> EUR | D26: 0 | E26: =IF('Eingabe Szenario'!$F$14=1,'Eingabe Szenario'!#REF!*'Eingabe Szenario'!$D$76*-1,('Eingabe Szenario'!#REF!*'Eingabe Szenario'!$D$76*-1)/1000) ->  | F26: =IF('Eingabe Szenario'!$F$14=1,'Eingabe Szenario'!#REF!*'Eingabe Szenario'!$D$76*-1,('Eingabe Szenario'!#REF!*'Eingabe Szenario'!$D$76*-1)/1000) ->  | G26: =IF('Eingabe Szenario'!$F$14=1,'Eingabe Szenario'!#REF!*'Eingabe Szenario'!$D$76*-1,('Eingabe Szenario'!#REF!*'Eingabe Szenario'!$D$76*-1)/1000) ->  | H26: =IF('Eingabe Szenario'!$F$14=1,'Eingabe Szenario'!#REF!*'Eingabe Szenario'!$D$76*-1,('Eingabe Szenario'!#REF!*'Eingabe Szenario'!$D$76*-1)/1000) ->  | I26: =IF('Eingabe Szenario'!$F$14=1,'Eingabe Szenario'!#REF!*'Eingabe Szenario'!$D$76*-1,('Eingabe Szenario'!#REF!*'Eingabe Szenario'!$D$76*-1)/1000) ->  | J26: =IF('Eingabe Szenario'!$F$14=1,'Eingabe Szenario'!#REF!*'Eingabe Szenario'!$D$76*-1,('Eingabe Szenario'!#REF!*'Eingabe Szenario'!$D$76*-1)/1000) ->  | K26: =IF('Eingabe Szenario'!$F$14=1,'Eingabe Szenario'!#REF!*'Eingabe Szenario'!$D$76*-1,('Eingabe Szenario'!#REF!*'Eingabe Szenario'!$D$76*-1)/1000) ->  | L26: =IF('Eingabe Szenario'!$F$14=1,'Eingabe Szenario'!#REF!*'Eingabe Szenario'!$D$76*-1,('Eingabe Szenario'!#REF!*'Eingabe Szenario'!$D$76*-1)/1000) ->  | M26: =IF('Eingabe Szenario'!$F$14=1,'Eingabe Szenario'!#REF!*'Eingabe Szenario'!$D$76*-1,('Eingabe Szenario'!#REF!*'Eingabe Szenario'!$D$76*-1)/1000) ->  | N26: =IF('Eingabe Szenario'!$F$14=1,'Eingabe Szenario'!#REF!*'Eingabe Szenario'!$D$76*-1,('Eingabe Szenario'!#REF!*'Eingabe Szenario'!$D$76*-1)/1000) -> 
A27: Veränderung freie Rücklage inkl. Tilgung | C27: =IF('Eingabe Szenario'!$F$14=1,'Eingabe Szenario'!$D$14,'Eingabe Szenario'!$D$15) -> EUR | D27: =D59 -> 0 | E27: =E59+E26 -> 
A28: Bestand Umschichtungsrücklage | C28: =IF('Eingabe Szenario'!$F$14=1,'Eingabe Szenario'!$D$14,'Eingabe Szenario'!$D$15) -> EUR | D28: =IF('Eingabe Szenario'!$F$14=1,'Eingabe Szenario'!K33,'Eingabe Szenario'!K33/1000) -> 0 | E28: =D28+D29 -> 0 | F28: =E28+E29 -> 0 | G28: 0 | H28: 0 | I28: 0 | J28: 0 | K28: 0 | L28: 0 | M28: 0 | N28: 0
A29: Veränderung Umschichtungsrücklage | C29: =IF('Eingabe Szenario'!$F$14=1,'Eingabe Szenario'!$D$14,'Eingabe Szenario'!$D$15) -> EUR | D29: 0 | E29: =IF('Eingabe Szenario'!$L$32=TRUE,(D9*'Eingabe Szenario'!$C$39+'Analyse Szenario'!D10*'Eingabe Szenario'!$C$40+'Analyse Szenario'!D11*'Eingabe Szenario'!$C$41+'Analyse Szenario'!D12*'Eingabe Szenario'!$C$42+'Analyse Szenario'!D13*'Eingabe Szenario'!$C$43)-D8*'Eingabe Szenario'!$C$9+IF(E3='Eingabe Szenario'!$N$42,'Eingabe Szenario'!$O$42,0)+IF(E3='Eingabe Szenario'!$N$43,'Eingabe Szenario'!$O$43,0)+IF(E3='Eingabe Szenario'!$N$44,'Eingabe Szenario'!$O$44,0),0) -> 0 | F29: =IF('Eingabe Szenario'!$L$32=TRUE,(E9*'Eingabe Szenario'!$C$39+'Analyse Szenario'!E10*'Eingabe Szenario'!$C$40+'Analyse Szenario'!E11*'Eingabe Szenario'!$C$41+'Analyse Szenario'!E12*'Eingabe Szenario'!$C$42+'Analyse Szenario'!E13*'Eingabe Szenario'!$C$43)-E8*'Eingabe Szenario'!$C$9+IF(F3='Eingabe Szenario'!$N$42,'Eingabe Szenario'!$O$42,0)+IF(F3='Eingabe Szenario'!$N$43,'Eingabe Szenario'!$O$43,0)+IF(F3='Eingabe Szenario'!$N$44,'Eingabe Szenario'!$O$44,0),0) -> 0 | G29: =IF('Eingabe Szenario'!$L$32=TRUE,(F9*'Eingabe Szenario'!$C$39+'Analyse Szenario'!F10*'Eingabe Szenario'!$C$40+'Analyse Szenario'!F11*'Eingabe Szenario'!$C$41+'Analyse Szenario'!F12*'Eingabe Szenario'!$C$42+'Analyse Szenario'!F13*'Eingabe Szenario'!$C$43)-F8*'Eingabe Szenario'!$C$9+IF(G3='Eingabe Szenario'!$N$42,'Eingabe Szenario'!$O$42,0)+IF(G3='Eingabe Szenario'!$N$43,'Eingabe Szenario'!$O$43,0)+IF(G3='Eingabe Szenario'!$N$44,'Eingabe Szenario'!$O$44,0),0) -> 0 | H29: =IF('Eingabe Szenario'!$L$32=TRUE,(G9*'Eingabe Szenario'!$C$39+'Analyse Szenario'!G10*'Eingabe Szenario'!$C$40+'Analyse Szenario'!G11*'Eingabe Szenario'!$C$41+'Analyse Szenario'!G12*'Eingabe Szenario'!$C$42+'Analyse Szenario'!G13*'Eingabe Szenario'!$C$43)-G8*'Eingabe Szenario'!$C$9+IF(H3='Eingabe Szenario'!$N$42,'Eingabe Szenario'!$O$42,0)+IF(H3='Eingabe Szenario'!$N$43,'Eingabe Szenario'!$O$43,0)+IF(H3='Eingabe Szenario'!$N$44,'Eingabe Szenario'!$O$44,0),0) -> 0 | I29: =IF('Eingabe Szenario'!$L$32=TRUE,(H9*'Eingabe Szenario'!$C$39+'Analyse Szenario'!H10*'Eingabe Szenario'!$C$40+'Analyse Szenario'!H11*'Eingabe Szenario'!$C$41+'Analyse Szenario'!H12*'Eingabe Szenario'!$C$42+'Analyse Szenario'!H13*'Eingabe Szenario'!$C$43)-H8*'Eingabe Szenario'!$C$9+IF(I3='Eingabe Szenario'!$N$42,'Eingabe Szenario'!$O$42,0)+IF(I3='Eingabe Szenario'!$N$43,'Eingabe Szenario'!$O$43,0)+IF(I3='Eingabe Szenario'!$N$44,'Eingabe Szenario'!$O$44,0),0) -> 0 | J29: =IF('Eingabe Szenario'!$L$32=TRUE,(I9*'Eingabe Szenario'!$C$39+'Analyse Szenario'!I10*'Eingabe Szenario'!$C$40+'Analyse Szenario'!I11*'Eingabe Szenario'!$C$41+'Analyse Szenario'!I12*'Eingabe Szenario'!$C$42+'Analyse Szenario'!I13*'Eingabe Szenario'!$C$43)-I8*'Eingabe Szenario'!$C$9+IF(J3='Eingabe Szenario'!$N$42,'Eingabe Szenario'!$O$42,0)+IF(J3='Eingabe Szenario'!$N$43,'Eingabe Szenario'!$O$43,0)+IF(J3='Eingabe Szenario'!$N$44,'Eingabe Szenario'!$O$44,0),0) -> 0 | K29: =IF('Eingabe Szenario'!$L$32=TRUE,(J9*'Eingabe Szenario'!$C$39+'Analyse Szenario'!J10*'Eingabe Szenario'!$C$40+'Analyse Szenario'!J11*'Eingabe Szenario'!$C$41+'Analyse Szenario'!J12*'Eingabe Szenario'!$C$42+'Analyse Szenario'!J13*'Eingabe Szenario'!$C$43)-J8*'Eingabe Szenario'!$C$9+IF(K3='Eingabe Szenario'!$N$42,'Eingabe Szenario'!$O$42,0)+IF(K3='Eingabe Szenario'!$N$43,'Eingabe Szenario'!$O$43,0)+IF(K3='Eingabe Szenario'!$N$44,'Eingabe Szenario'!$O$44,0),0) -> 0 | L29: =IF('Eingabe Szenario'!$L$32=TRUE,(K9*'Eingabe Szenario'!$C$39+'Analyse Szenario'!K10*'Eingabe Szenario'!$C$40+'Analyse Szenario'!K11*'Eingabe Szenario'!$C$41+'Analyse Szenario'!K12*'Eingabe Szenario'!$C$42+'Analyse Szenario'!K13*'Eingabe Szenario'!$C$43)-K8*'Eingabe Szenario'!$C$9+IF(L3='Eingabe Szenario'!$N$42,'Eingabe Szenario'!$O$42,0)+IF(L3='Eingabe Szenario'!$N$43,'Eingabe Szenario'!$O$43,0)+IF(L3='Eingabe Szenario'!$N$44,'Eingabe Szenario'!$O$44,0),0) -> 0 | M29: =IF('Eingabe Szenario'!$L$32=TRUE,(L9*'Eingabe Szenario'!$C$39+'Analyse Szenario'!L10*'Eingabe Szenario'!$C$40+'Analyse Szenario'!L11*'Eingabe Szenario'!$C$41+'Analyse Szenario'!L12*'Eingabe Szenario'!$C$42+'Analyse Szenario'!L13*'Eingabe Szenario'!$C$43)-L8*'Eingabe Szenario'!$C$9+IF(M3='Eingabe Szenario'!$N$42,'Eingabe Szenario'!$O$42,0)+IF(M3='Eingabe Szenario'!$N$43,'Eingabe Szenario'!$O$43,0)+IF(M3='Eingabe Szenario'!$N$44,'Eingabe Szenario'!$O$44,0),0) -> 0 | N29: =IF('Eingabe Szenario'!$L$32=TRUE,(M9*'Eingabe Szenario'!$C$39+'Analyse Szenario'!M10*'Eingabe Szenario'!$C$40+'Analyse Szenario'!M11*'Eingabe Szenario'!$C$41+'Analyse Szenario'!M12*'Eingabe Szenario'!$C$42+'Analyse Szenario'!M13*'Eingabe Szenario'!$C$43)-M8*'Eingabe Szenario'!$C$9+IF(N3='Eingabe Szenario'!$N$42,'Eingabe Szenario'!$O$42,0)+IF(N3='Eingabe Szenario'!$N$43,'Eingabe Szenario'!$O$43,0)+IF(N3='Eingabe Szenario'!$N$44,'Eingabe Szenario'!$O$44,0),0) -> 0
A30: Realer Kapitalerhalt Grundstock (Ist) | C30: =IF('Eingabe Szenario'!$F$14=1,'Eingabe Szenario'!$D$14,'Eingabe Szenario'!$D$15) -> EUR | D30: =D5-D17-D22-D25-D28 -> 438,000 | E30: =E5-E17-E22-E25-E28 -> 
A31: Realer Kapitalerhalt Grundstock (Soll) | C31: =IF('Eingabe Szenario'!$F$14=1,'Eingabe Szenario'!$D$14,'Eingabe Szenario'!$D$15) -> EUR | D31: =IF('Eingabe Szenario'!$F$14=1,'Eingabe Szenario'!D24,'Eingabe Szenario'!D24/1000) -> 3,000,000 | E31: =D31+D43+(D43+D31)*'Eingabe Szenario'!$C$9 -> 3,045,000 | F31: =E31+E43+(E43+E31)*'Eingabe Szenario'!$C$9 -> 3,090,675 | G31: =F31+F43+(F43+F31)*'Eingabe Szenario'!$C$9 -> 3,441,535 | H31: =G31+G43+(G43+G31)*'Eingabe Szenario'!$C$9 -> 3,493,158 | I31: =H31+H43+(H43+H31)*'Eingabe Szenario'!$C$9 -> 3,545,556 | J31: =I31+I43+(I43+I31)*'Eingabe Szenario'!$C$9 -> 3,598,739 | K31: =J31+J43+(J43+J31)*'Eingabe Szenario'!$C$9 -> 3,652,720 | L31: =K31+K43+(K43+K31)*'Eingabe Szenario'!$C$9 -> 3,707,511 | M31: =L31+L43+(L43+L31)*'Eingabe Szenario'!$C$9 -> 3,763,123 | N31: =M31+M43+(M43+M31)*'Eingabe Szenario'!$C$9 -> 3,819,570
A32: Delta absolut | C32: =IF('Eingabe Szenario'!$F$14=1,'Eingabe Szenario'!$D$14,'Eingabe Szenario'!$D$15) -> EUR | D32: =D30+D28+D25+D22-D31 -> -3,000,000 | E32: =E30+E28+E25+E22-E31 -> 
A33: Delta Prozent | C33: % | D33: =D32/D31 -> -100.0% | E33: =E32/E31 ->  | F33: =F32/F31 -> 
A37: Beschreibung | C37: Einh. | D37: Bestand | E37: ='Eingabe Szenario'!C8 -> 2019 | F37: =E37+1 -> 2020 | G37: 2021 | H37: 2022 | I37: 2023 | J37: 2024 | K37: 2025 | L37: 2026 | M37: 2027 | N37: 2028
A39: Saldo Liquidität | C39: =IF('Eingabe Szenario'!$F$14=1,'Eingabe Szenario'!$D$14,'Eingabe Szenario'!$D$15) -> EUR | D39: =D41-D49 -> 0 | E39: =E41-E49 ->  | F39: =F41-F49 -> 
A41: Einnahmen | C41: =IF('Eingabe Szenario'!$F$14=1,'Eingabe Szenario'!$D$14,'Eingabe Szenario'!$D$15) -> EUR | D41: =SUM(D42:D47) -> 0 | E41: 62,000 | F41: 362,120 | G41: 64,559 | H41: 69,877 | I41: 70,257 | J41: 70,676 | K41: 71,108 | L41: 71,553 | M41: 72,011 | N41: 72,483
A42: Spenden | C42: =IF('Eingabe Szenario'!$F$14=1,'Eingabe Szenario'!$D$14,'Eingabe Szenario'!$D$15) -> EUR | D42: 0 | E42: =IF('Eingabe Szenario'!$F$14=1,'Eingabe Szenario'!$K$38,'Eingabe Szenario'!$K$38/1000) -> 50,000 | F42: =IF('Eingabe Szenario'!$F$14=1,'Eingabe Szenario'!$K$38,'Eingabe Szenario'!$K$38/1000) -> 50,000 | G42: =IF('Eingabe Szenario'!$F$14=1,'Eingabe Szenario'!$K$38,'Eingabe Szenario'!$K$38/1000) -> 50,000 | H42: =IF('Eingabe Szenario'!$F$14=1,'Eingabe Szenario'!$K$38,'Eingabe Szenario'!$K$38/1000) -> 50,000 | I42: =IF('Eingabe Szenario'!$F$14=1,'Eingabe Szenario'!$K$38,'Eingabe Szenario'!$K$38/1000) -> 50,000 | J42: =IF('Eingabe Szenario'!$F$14=1,'Eingabe Szenario'!$K$38,'Eingabe Szenario'!$K$38/1000) -> 50,000 | K42: =IF('Eingabe Szenario'!$F$14=1,'Eingabe Szenario'!$K$38,'Eingabe Szenario'!$K$38/1000) -> 50,000 | L42: =IF('Eingabe Szenario'!$F$14=1,'Eingabe Szenario'!$K$38,'Eingabe Szenario'!$K$38/1000) -> 50,000 | M42: =IF('Eingabe Szenario'!$F$14=1,'Eingabe Szenario'!$K$38,'Eingabe Szenario'!$K$38/1000) -> 50,000 | N42: =IF('Eingabe Szenario'!$F$14=1,'Eingabe Szenario'!$K$38,'Eingabe Szenario'!$K$38/1000) -> 50,000
A43: Zustiftungen | C43: =IF('Eingabe Szenario'!$F$14=1,'Eingabe Szenario'!$D$14,'Eingabe Szenario'!$D$15) -> EUR | D43: 0 | E43: =IF('Analyse Szenario'!E3='Eingabe Szenario'!$N$39,'Eingabe Szenario'!$O$39,0)+IF('Analyse Szenario'!E3='Eingabe Szenario'!$N$40,'Eingabe Szenario'!$O$40,0)+IF('Analyse Szenario'!E3='Eingabe Szenario'!$N$41,'Eingabe Szenario'!$O$41,0) -> 0 | F43: =IF('Analyse Szenario'!F3='Eingabe Szenario'!$N$39,'Eingabe Szenario'!$O$39,0)+IF('Analyse Szenario'!F3='Eingabe Szenario'!$N$40,'Eingabe Szenario'!$O$40,0)+IF('Analyse Szenario'!F3='Eingabe Szenario'!$N$41,'Eingabe Szenario'!$O$41,0) -> 300,000 | G43: =IF('Analyse Szenario'!G3='Eingabe Szenario'!$N$39,'Eingabe Szenario'!$O$39,0)+IF('Analyse Szenario'!G3='Eingabe Szenario'!$N$40,'Eingabe Szenario'!$O$40,0)+IF('Analyse Szenario'!G3='Eingabe Szenario'!$N$41,'Eingabe Szenario'!$O$41,0) -> 0 | H43: =IF('Analyse Szenario'!H3='Eingabe Szenario'!$N$39,'Eingabe Szenario'!$O$39,0)+IF('Analyse Szenario'!H3='Eingabe Szenario'!$N$40,'Eingabe Szenario'!$O$40,0)+IF('Analyse Szenario'!H3='Eingabe Szenario'!$N$41,'Eingabe Szenario'!$O$41,0) -> 0 | I43: =IF('Analyse Szenario'!I3='Eingabe Szenario'!$N$39,'Eingabe Szenario'!$O$39,0)+IF('Analyse Szenario'!I3='Eingabe Szenario'!$N$40,'Eingabe Szenario'!$O$40,0)+IF('Analyse Szenario'!I3='Eingabe Szenario'!$N$41,'Eingabe Szenario'!$O$41,0) -> 0 | J43: =IF('Analyse Szenario'!J3='Eingabe Szenario'!$N$39,'Eingabe Szenario'!$O$39,0)+IF('Analyse Szenario'!J3='Eingabe Szenario'!$N$40,'Eingabe Szenario'!$O$40,0)+IF('Analyse Szenario'!J3='Eingabe Szenario'!$N$41,'Eingabe Szenario'!$O$41,0) -> 0 | K43: =IF('Analyse Szenario'!K3='Eingabe Szenario'!$N$39,'Eingabe Szenario'!$O$39,0)+IF('Analyse Szenario'!K3='Eingabe Szenario'!$N$40,'Eingabe Szenario'!$O$40,0)+IF('Analyse Szenario'!K3='Eingabe Szenario'!$N$41,'Eingabe Szenario'!$O$41,0) -> 0 | L43: =IF('Analyse Szenario'!L3='Eingabe Szenario'!$N$39,'Eingabe Szenario'!$O$39,0)+IF('Analyse Szenario'!L3='Eingabe Szenario'!$N$40,'Eingabe Szenario'!$O$40,0)+IF('Analyse Szenario'!L3='Eingabe Szenario'!$N$41,'Eingabe Szenario'!$O$41,0) -> 0 | M43: =IF('Analyse Szenario'!M3='Eingabe Szenario'!$N$39,'Eingabe Szenario'!$O$39,0)+IF('Analyse Szenario'!M3='Eingabe Szenario'!$N$40,'Eingabe Szenario'!$O$40,0)+IF('Analyse Szenario'!M3='Eingabe Szenario'!$N$41,'Eingabe Szenario'!$O$41,0) -> 0 | N43: =IF('Analyse Szenario'!N3='Eingabe Szenario'!$N$39,'Eingabe Szenario'!$O$39,0)+IF('Analyse Szenario'!N3='Eingabe Szenario'!$N$40,'Eingabe Szenario'!$O$40,0)+IF('Analyse Szenario'!N3='Eingabe Szenario'!$N$41,'Eingabe Szenario'!$O$41,0) -> 0
A44: Mieterträge (brutto) | C44: =IF('Eingabe Szenario'!$F$14=1,'Eingabe Szenario'!$D$14,'Eingabe Szenario'!$D$15) -> EUR | D44: 0 | E44: =IF('Eingabe Szenario'!F14=1,'Eingabe Szenario'!D50,'Eingabe Szenario'!D50/1000) -> 12,000 | F44: =E44+E44*'Eingabe Szenario'!$D$53 -> 12,120 | G44: =F44+F44*'Eingabe Szenario'!$D$53 -> 12,241 | H44: =G44+G44*'Eingabe Szenario'!$D$53 -> 12,364 | I44: =H44+H44*'Eingabe Szenario'!$D$53 -> 12,487 | J44: =I44+I44*'Eingabe Szenario'!$D$53 -> 12,612 | K44: =J44+J44*'Eingabe Szenario'!$D$53 -> 12,738 | L44: =K44+K44*'Eingabe Szenario'!$D$53 -> 12,866 | M44: =L44+L44*'Eingabe Szenario'!$D$53 -> 12,994 | N44: =M44+M44*'Eingabe Szenario'!$D$53 -> 13,124
A45: Erträge aus Beteiligungen | B45: 0.0% | C45: =IF('Eingabe Szenario'!$F$14=1,'Eingabe Szenario'!$D$14,'Eingabe Szenario'!$D$15) -> EUR | D45: 0 | E45: =IF('Eingabe Szenario'!F15=1,'Eingabe Szenario'!D60,'Eingabe Szenario'!D60/1000) -> 0 | F45: =F7*'Eingabe Szenario'!$D$60 -> 0 | G45: =G7*'Eingabe Szenario'!$D$60 -> 0 | H45: =H7*'Eingabe Szenario'!$D$60 -> 0 | I45: =I7*'Eingabe Szenario'!$D$60 -> 0 | J45: =J7*'Eingabe Szenario'!$D$60 -> 0 | K45: =K7*'Eingabe Szenario'!$D$60 -> 0 | L45: =L7*'Eingabe Szenario'!$D$60 -> 0 | M45: =M7*'Eingabe Szenario'!$D$60 -> 0 | N45: =N7*'Eingabe Szenario'!$D$60 -> 0
A46: Wertpapiererträge (brutto) | B46: ='Eingabe Szenario'!D44 -> 1.7% | C46: =IF('Eingabe Szenario'!$F$14=1,'Eingabe Szenario'!$D$14,'Eingabe Szenario'!$D$15) -> EUR | D46: 0 | E46: =D9*'Eingabe Szenario'!$D$39+'Analyse Szenario'!D10*'Eingabe Szenario'!$D$40+'Analyse Szenario'!D12*'Eingabe Szenario'!$D$42+'Analyse Szenario'!D13*'Eingabe Szenario'!$D$43+D11*'Eingabe Szenario'!$D$41 -> 0 | F46: =E9*'Eingabe Szenario'!$D$39+'Analyse Szenario'!E10*'Eingabe Szenario'!$D$40+'Analyse Szenario'!E12*'Eingabe Szenario'!$D$42+'Analyse Szenario'!E13*'Eingabe Szenario'!$D$43+E11*'Eingabe Szenario'!$D$41 -> 0 | G46: =F9*'Eingabe Szenario'!$D$39+'Analyse Szenario'!F10*'Eingabe Szenario'!$D$40+'Analyse Szenario'!F12*'Eingabe Szenario'!$D$42+'Analyse Szenario'!F13*'Eingabe Szenario'!$D$43+F11*'Eingabe Szenario'!$D$41 -> 2,317 | H46: =G9*'Eingabe Szenario'!$D$39+'Analyse Szenario'!G10*'Eingabe Szenario'!$D$40+'Analyse Szenario'!G12*'Eingabe Szenario'!$D$42+'Analyse Szenario'!G13*'Eingabe Szenario'!$D$43+G11*'Eingabe Szenario'!$D$41 -> 7,513 | I46: =H9*'Eingabe Szenario'!$D$39+'Analyse Szenario'!H10*'Eingabe Szenario'!$D$40+'Analyse Szenario'!H12*'Eingabe Szenario'!$D$42+'Analyse Szenario'!H13*'Eingabe Szenario'!$D$43+H11*'Eingabe Szenario'!$D$41 -> 7,770 | J46: =I9*'Eingabe Szenario'!$D$39+'Analyse Szenario'!I10*'Eingabe Szenario'!$D$40+'Analyse Szenario'!I12*'Eingabe Szenario'!$D$42+'Analyse Szenario'!I13*'Eingabe Szenario'!$D$43+I11*'Eingabe Szenario'!$D$41 -> 8,064 | K46: =J9*'Eingabe Szenario'!$D$39+'Analyse Szenario'!J10*'Eingabe Szenario'!$D$40+'Analyse Szenario'!J12*'Eingabe Szenario'!$D$42+'Analyse Szenario'!J13*'Eingabe Szenario'!$D$43+J11*'Eingabe Szenario'!$D$41 -> 8,370 | L46: =K9*'Eingabe Szenario'!$D$39+'Analyse Szenario'!K10*'Eingabe Szenario'!$D$40+'Analyse Szenario'!K12*'Eingabe Szenario'!$D$42+'Analyse Szenario'!K13*'Eingabe Szenario'!$D$43+K11*'Eingabe Szenario'!$D$41 -> 8,687 | M46: =L9*'Eingabe Szenario'!$D$39+'Analyse Szenario'!L10*'Eingabe Szenario'!$D$40+'Analyse Szenario'!L12*'Eingabe Szenario'!$D$42+'Analyse Szenario'!L13*'Eingabe Szenario'!$D$43+L11*'Eingabe Szenario'!$D$41 -> 9,017 | N46: =M9*'Eingabe Szenario'!$D$39+'Analyse Szenario'!M10*'Eingabe Szenario'!$D$40+'Analyse Szenario'!M12*'Eingabe Szenario'!$D$42+'Analyse Szenario'!M13*'Eingabe Szenario'!$D$43+M11*'Eingabe Szenario'!$D$41 -> 9,359
A47: Zinsen und ähnliche Erträge | B47: ='Eingabe Szenario'!D41 -> 0.3% | C47: =IF('Eingabe Szenario'!$F$14=1,'Eingabe Szenario'!$D$14,'Eingabe Szenario'!$D$15) -> EUR | D47: 0 | E47: =E14*'Eingabe Szenario'!$D$41 -> 0 | F47: =F14*'Eingabe Szenario'!$D$41 -> 0 | G47: =G14*'Eingabe Szenario'!$D$41 -> 0 | H47: =H14*'Eingabe Szenario'!$D$41 -> 0 | I47: =I14*'Eingabe Szenario'!$D$41 -> 0 | J47: =J14*'Eingabe Szenario'!$D$41 -> 0 | K47: =K14*'Eingabe Szenario'!$D$41 -> 0 | L47: =L14*'Eingabe Szenario'!$D$41 -> 0 | M47: =M14*'Eingabe Szenario'!$D$41 -> 0 | N47: =N14*'Eingabe Szenario'!$D$41 -> 0
A48: Erträge aus sonstigem Vermögen | B48: ='Eingabe Szenario'!D70 -> 0.0% | C48: =IF('Eingabe Szenario'!$F$14=1,'Eingabe Szenario'!$D$14,'Eingabe Szenario'!$D$15) -> EUR | D48: 0 | E48: =E15*'Eingabe Szenario'!$D$41 -> 0 | F48: =F15*'Eingabe Szenario'!$D$41 -> 0 | G48: =G15*'Eingabe Szenario'!$D$41 -> 0 | H48: =H15*'Eingabe Szenario'!$D$41 -> 0 | I48: =I15*'Eingabe Szenario'!$D$41 -> 0 | J48: =J15*'Eingabe Szenario'!$D$41 -> 0 | K48: =K15*'Eingabe Szenario'!$D$41 -> 0 | L48: =L15*'Eingabe Szenario'!$D$41 -> 0 | M48: =M15*'Eingabe Szenario'!$D$41 -> 0 | N48: =N15*'Eingabe Szenario'!$D$41 -> 0
A49: Ausgaben | C49: =IF('Eingabe Szenario'!$F$14=1,'Eingabe Szenario'!$D$14,'Eingabe Szenario'!$D$15) -> EUR | D49: 0 | E49: =SUM(E50:E52)+SUM(E56:E60) ->  | F49: =SUM(F50:F52)+SUM(F56:F60) -> 
A50: Ausgaben für den Stiftungszweck | B50: =IF('Eingabe Szenario'!F10=1,"Überschuss","Zielausschüttg.") -> Überschuss | C50: =IF('Eingabe Szenario'!$F$14=1,'Eingabe Szenario'!$D$14,'Eingabe Szenario'!$D$15) -> EUR | D50: 0 | E50: =IF('Eingabe Szenario'!$F$14=1,IF('Eingabe Szenario'!$F$10=1,E41-E51-E52-E56-E58-E59-E60,'Eingabe Szenario'!$C$11),IF('Eingabe Szenario'!$F$10=1,E41-E51-E52-E56-E58-E59-E60,'Eingabe Szenario'!$C$11/1000)) ->  | F50: =IF('Eingabe Szenario'!$F$14=1,IF('Eingabe Szenario'!$F$10=1,F41-F51-F52-F56-F58-F59-F60,'Eingabe Szenario'!$C$11),IF('Eingabe Szenario'!$F$10=1,F41-F51-F52-F56-F58-F59-F60,'Eingabe Szenario'!$C$11/1000)) ->  | G50: =IF('Eingabe Szenario'!$F$14=1,IF('Eingabe Szenario'!$F$10=1,G41-G51-G52-G56-G58-G59-G60,'Eingabe Szenario'!$C$11),IF('Eingabe Szenario'!$F$10=1,G41-G51-G52-G56-G58-G59-G60,'Eingabe Szenario'!$C$11/1000)) ->  | H50: =IF('Eingabe Szenario'!$F$14=1,IF('Eingabe Szenario'!$F$10=1,H41-H51-H52-H56-H58-H59-H60,'Eingabe Szenario'!$C$11),IF('Eingabe Szenario'!$F$10=1,H41-H51-H52-H56-H58-H59-H60,'Eingabe Szenario'!$C$11/1000)) ->  | I50: =IF('Eingabe Szenario'!$F$14=1,IF('Eingabe Szenario'!$F$10=1,I41-I51-I52-I56-I58-I59-I60,'Eingabe Szenario'!$C$11),IF('Eingabe Szenario'!$F$10=1,I41-I51-I52-I56-I58-I59-I60,'Eingabe Szenario'!$C$11/1000)) ->  | J50: =IF('Eingabe Szenario'!$F$14=1,IF('Eingabe Szenario'!$F$10=1,J41-J51-J52-J56-J58-J59-J60,'Eingabe Szenario'!$C$11),IF('Eingabe Szenario'!$F$10=1,J41-J51-J52-J56-J58-J59-J60,'Eingabe Szenario'!$C$11/1000)) ->  | K50: =IF('Eingabe Szenario'!$F$14=1,IF('Eingabe Szenario'!$F$10=1,K41-K51-K52-K56-K58-K59-K60,'Eingabe Szenario'!$C$11),IF('Eingabe Szenario'!$F$10=1,K41-K51-K52-K56-K58-K59-K60,'Eingabe Szenario'!$C$11/1000)) ->  | L50: =IF('Eingabe Szenario'!$F$14=1,IF('Eingabe Szenario'!$F$10=1,L41-L51-L52-L56-L58-L59-L60,'Eingabe Szenario'!$C$11),IF('Eingabe Szenario'!$F$10=1,L41-L51-L52-L56-L58-L59-L60,'Eingabe Szenario'!$C$11/1000)) ->  | M50: =IF('Eingabe Szenario'!$F$14=1,IF('Eingabe Szenario'!$F$10=1,M41-M51-M52-M56-M58-M59-M60,'Eingabe Szenario'!$C$11),IF('Eingabe Szenario'!$F$10=1,M41-M51-M52-M56-M58-M59-M60,'Eingabe Szenario'!$C$11/1000)) ->  | N50: =IF('Eingabe Szenario'!$F$14=1,IF('Eingabe Szenario'!$F$10=1,N41-N51-N52-N56-N58-N59-N60,'Eingabe Szenario'!$C$11),IF('Eingabe Szenario'!$F$10=1,N41-N51-N52-N56-N58-N59-N60,'Eingabe Szenario'!$C$11/1000)) -> 
A51: Allg. Verwaltungskosten | C51: =IF('Eingabe Szenario'!$F$14=1,'Eingabe Szenario'!$D$14,'Eingabe Szenario'!$D$15) -> EUR | D51: 0 | E51: =IF('Eingabe Szenario'!$F$14=1,'Eingabe Szenario'!K18,'Eingabe Szenario'!K18/1000) -> 10,000 | F51: =E51+E51*'Eingabe Szenario'!$C$9 -> 10,150 | G51: =F51+F51*'Eingabe Szenario'!$C$9 -> 10,302 | H51: =G51+G51*'Eingabe Szenario'!$C$9 -> 10,457 | I51: =H51+H51*'Eingabe Szenario'!$C$9 -> 10,614 | J51: =I51+I51*'Eingabe Szenario'!$C$9 -> 10,773 | K51: =J51+J51*'Eingabe Szenario'!$C$9 -> 10,934 | L51: =K51+K51*'Eingabe Szenario'!$C$9 -> 11,098 | M51: =L51+L51*'Eingabe Szenario'!$C$9 -> 11,265 | N51: =M51+M51*'Eingabe Szenario'!$C$9 -> 11,434
A52: Kosten Vermögensverwaltung | C52: =IF('Eingabe Szenario'!$F$14=1,'Eingabe Szenario'!$D$14,'Eingabe Szenario'!$D$15) -> EUR | D52: 0 | E52: =SUM(E53:E55) -> 15,000 | F52: =SUM(F53:F55) -> 15,632 | G52: 18,087 | H52: 18,182 | I52: 18,294 | J52: 18,411 | K52: 18,531 | L52: 18,657 | M52: 18,787 | N52: 18,922
A53: davon Immobilien | C53: =IF('Eingabe Szenario'!$F$14=1,'Eingabe Szenario'!$D$14,'Eingabe Szenario'!$D$15) -> EUR | D53: 0 | E53: =IF('Eingabe Szenario'!$F$14=1,'Eingabe Szenario'!$D$51,'Eingabe Szenario'!$D$51/1000) -> 5,000 | F53: =IF('Eingabe Szenario'!$F$14=1,'Eingabe Szenario'!$D$51,'Eingabe Szenario'!$D$51/1000) -> 5,000 | G53: =IF('Eingabe Szenario'!$F$14=1,'Eingabe Szenario'!$D$51,'Eingabe Szenario'!$D$51/1000) -> 5,000 | H53: =IF('Eingabe Szenario'!$F$14=1,'Eingabe Szenario'!$D$51,'Eingabe Szenario'!$D$51/1000) -> 5,000 | I53: =IF('Eingabe Szenario'!$F$14=1,'Eingabe Szenario'!$D$51,'Eingabe Szenario'!$D$51/1000) -> 5,000 | J53: =IF('Eingabe Szenario'!$F$14=1,'Eingabe Szenario'!$D$51,'Eingabe Szenario'!$D$51/1000) -> 5,000 | K53: =IF('Eingabe Szenario'!$F$14=1,'Eingabe Szenario'!$D$51,'Eingabe Szenario'!$D$51/1000) -> 5,000 | L53: =IF('Eingabe Szenario'!$F$14=1,'Eingabe Szenario'!$D$51,'Eingabe Szenario'!$D$51/1000) -> 5,000 | M53: =IF('Eingabe Szenario'!$F$14=1,'Eingabe Szenario'!$D$51,'Eingabe Szenario'!$D$51/1000) -> 5,000 | N53: =IF('Eingabe Szenario'!$F$14=1,'Eingabe Szenario'!$D$51,'Eingabe Szenario'!$D$51/1000) -> 5,000
A54: davon Beteiligungen | C54: =IF('Eingabe Szenario'!$F$14=1,'Eingabe Szenario'!$D$14,'Eingabe Szenario'!$D$15) -> EUR | D54: 0 | E54: =IF('Eingabe Szenario'!$F$14=1,'Eingabe Szenario'!$D$63+'Analyse Szenario'!E7*'Eingabe Szenario'!$D$64,('Eingabe Szenario'!$D$63+E7*$B$59)/1000) -> 0 | F54: =IF('Eingabe Szenario'!$F$14=1,'Eingabe Szenario'!$D$63+'Analyse Szenario'!F7*'Eingabe Szenario'!$D$64,('Eingabe Szenario'!$D$63+F7*$B$59)/1000) -> 0 | G54: =IF('Eingabe Szenario'!$F$14=1,'Eingabe Szenario'!$D$63+'Analyse Szenario'!G7*'Eingabe Szenario'!$D$64,('Eingabe Szenario'!$D$63+G7*$B$59)/1000) -> 0 | H54: =IF('Eingabe Szenario'!$F$14=1,'Eingabe Szenario'!$D$63+'Analyse Szenario'!H7*'Eingabe Szenario'!$D$64,('Eingabe Szenario'!$D$63+H7*$B$59)/1000) -> 0 | I54: =IF('Eingabe Szenario'!$F$14=1,'Eingabe Szenario'!$D$63+'Analyse Szenario'!I7*'Eingabe Szenario'!$D$64,('Eingabe Szenario'!$D$63+I7*$B$59)/1000) -> 0 | J54: =IF('Eingabe Szenario'!$F$14=1,'Eingabe Szenario'!$D$63+'Analyse Szenario'!J7*'Eingabe Szenario'!$D$64,('Eingabe Szenario'!$D$63+J7*$B$59)/1000) -> 0 | K54: =IF('Eingabe Szenario'!$F$14=1,'Eingabe Szenario'!$D$63+'Analyse Szenario'!K7*'Eingabe Szenario'!$D$64,('Eingabe Szenario'!$D$63+K7*$B$59)/1000) -> 0 | L54: =IF('Eingabe Szenario'!$F$14=1,'Eingabe Szenario'!$D$63+'Analyse Szenario'!L7*'Eingabe Szenario'!$D$64,('Eingabe Szenario'!$D$63+L7*$B$59)/1000) -> 0 | M54: =IF('Eingabe Szenario'!$F$14=1,'Eingabe Szenario'!$D$63+'Analyse Szenario'!M7*'Eingabe Szenario'!$D$64,('Eingabe Szenario'!$D$63+M7*$B$59)/1000) -> 0 | N54: =IF('Eingabe Szenario'!$F$14=1,'Eingabe Szenario'!$D$63+'Analyse Szenario'!N7*'Eingabe Szenario'!$D$64,('Eingabe Szenario'!$D$63+N7*$B$59)/1000) -> 0
A55: davon Wertpapiere | C55: =IF('Eingabe Szenario'!$F$14=1,'Eingabe Szenario'!$D$14,'Eingabe Szenario'!$D$15) -> EUR | D55: 0 | E55: =IF('Eingabe Szenario'!$F$14=1,'Eingabe Szenario'!$K$21+'Analyse Szenario'!E8*'Eingabe Szenario'!$K$22,'Eingabe Szenario'!$K$21/1000+'Analyse Szenario'!E8*'Eingabe Szenario'!$K$22) -> 10,000 | F55: =IF('Eingabe Szenario'!$F$14=1,'Eingabe Szenario'!$K$21+'Analyse Szenario'!F8*'Eingabe Szenario'!$K$22,'Eingabe Szenario'!$K$21/1000+'Analyse Szenario'!F8*'Eingabe Szenario'!$K$22) -> 10,632 | G55: =IF('Eingabe Szenario'!$F$14=1,'Eingabe Szenario'!$K$21+'Analyse Szenario'!G8*'Eingabe Szenario'!$K$22,'Eingabe Szenario'!$K$21/1000+'Analyse Szenario'!G8*'Eingabe Szenario'!$K$22) -> 13,087 | H55: =IF('Eingabe Szenario'!$F$14=1,'Eingabe Szenario'!$K$21+'Analyse Szenario'!H8*'Eingabe Szenario'!$K$22,'Eingabe Szenario'!$K$21/1000+'Analyse Szenario'!H8*'Eingabe Szenario'!$K$22) -> 13,182 | I55: =IF('Eingabe Szenario'!$F$14=1,'Eingabe Szenario'!$K$21+'Analyse Szenario'!I8*'Eingabe Szenario'!$K$22,'Eingabe Szenario'!$K$21/1000+'Analyse Szenario'!I8*'Eingabe Szenario'!$K$22) -> 13,294 | J55: =IF('Eingabe Szenario'!$F$14=1,'Eingabe Szenario'!$K$21+'Analyse Szenario'!J8*'Eingabe Szenario'!$K$22,'Eingabe Szenario'!$K$21/1000+'Analyse Szenario'!J8*'Eingabe Szenario'!$K$22) -> 13,411 | K55: =IF('Eingabe Szenario'!$F$14=1,'Eingabe Szenario'!$K$21+'Analyse Szenario'!K8*'Eingabe Szenario'!$K$22,'Eingabe Szenario'!$K$21/1000+'Analyse Szenario'!K8*'Eingabe Szenario'!$K$22) -> 13,531 | L55: =IF('Eingabe Szenario'!$F$14=1,'Eingabe Szenario'!$K$21+'Analyse Szenario'!L8*'Eingabe Szenario'!$K$22,'Eingabe Szenario'!$K$21/1000+'Analyse Szenario'!L8*'Eingabe Szenario'!$K$22) -> 13,657 | M55: =IF('Eingabe Szenario'!$F$14=1,'Eingabe Szenario'!$K$21+'Analyse Szenario'!M8*'Eingabe Szenario'!$K$22,'Eingabe Szenario'!$K$21/1000+'Analyse Szenario'!M8*'Eingabe Szenario'!$K$22) -> 13,787 | N55: =IF('Eingabe Szenario'!$F$14=1,'Eingabe Szenario'!$K$21+'Analyse Szenario'!N8*'Eingabe Szenario'!$K$22,'Eingabe Szenario'!$K$21/1000+'Analyse Szenario'!N8*'Eingabe Szenario'!$K$22) -> 13,922
A56: Sollzinsen | C56: =IF('Eingabe Szenario'!$F$14=1,'Eingabe Szenario'!$D$14,'Eingabe Szenario'!$D$15) -> EUR | D56: 0 | E56: =IF('Eingabe Szenario'!$F$14=1,'Eingabe Szenario'!#REF!*'Eingabe Szenario'!$D$74,'Eingabe Szenario'!#REF!*'Eingabe Szenario'!$D$74/1000) ->  | F56: =IF('Eingabe Szenario'!$F$14=1,'Eingabe Szenario'!#REF!*'Eingabe Szenario'!$D$74,'Eingabe Szenario'!#REF!*'Eingabe Szenario'!$D$74/1000) ->  | G56: =IF('Eingabe Szenario'!$F$14=1,'Eingabe Szenario'!#REF!*'Eingabe Szenario'!$D$74,'Eingabe Szenario'!#REF!*'Eingabe Szenario'!$D$74/1000) ->  | H56: =IF('Eingabe Szenario'!$F$14=1,'Eingabe Szenario'!#REF!*'Eingabe Szenario'!$D$74,'Eingabe Szenario'!#REF!*'Eingabe Szenario'!$D$74/1000) ->  | I56: =IF('Eingabe Szenario'!$F$14=1,'Eingabe Szenario'!#REF!*'Eingabe Szenario'!$D$74,'Eingabe Szenario'!#REF!*'Eingabe Szenario'!$D$74/1000) ->  | J56: =IF('Eingabe Szenario'!$F$14=1,'Eingabe Szenario'!#REF!*'Eingabe Szenario'!$D$74,'Eingabe Szenario'!#REF!*'Eingabe Szenario'!$D$74/1000) ->  | K56: =IF('Eingabe Szenario'!$F$14=1,'Eingabe Szenario'!#REF!*'Eingabe Szenario'!$D$74,'Eingabe Szenario'!#REF!*'Eingabe Szenario'!$D$74/1000) ->  | L56: =IF('Eingabe Szenario'!$F$14=1,'Eingabe Szenario'!#REF!*'Eingabe Szenario'!$D$74,'Eingabe Szenario'!#REF!*'Eingabe Szenario'!$D$74/1000) ->  | M56: =IF('Eingabe Szenario'!$F$14=1,'Eingabe Szenario'!#REF!*'Eingabe Szenario'!$D$74,'Eingabe Szenario'!#REF!*'Eingabe Szenario'!$D$74/1000) ->  | N56: =IF('Eingabe Szenario'!$F$14=1,'Eingabe Szenario'!#REF!*'Eingabe Szenario'!$D$74,'Eingabe Szenario'!#REF!*'Eingabe Szenario'!$D$74/1000) -> 
A57: Tilgung | C57: EUR | D57: 0
A58: Sonstige Aufwände | C58: =IF('Eingabe Szenario'!$F$14=1,'Eingabe Szenario'!$D$14,'Eingabe Szenario'!$D$15) -> EUR | D58: 0 | E58: =IF('Eingabe Szenario'!$F$14=1,'Eingabe Szenario'!K23,'Eingabe Szenario'!K23/1000) -> 0 | F58: =E58+E58*$B$58 -> 0 | G58: 0 | H58: 0 | I58: 0 | J58: 0 | K58: 0 | L58: 0 | M58: 0 | N58: 0
A59: Zuführung Freie Rücklage | B59: ='Eingabe Szenario'!K30 -> 33.0% | C59: =IF('Eingabe Szenario'!$F$14=1,'Eingabe Szenario'!$D$14,'Eingabe Szenario'!$D$15) -> EUR | D59: =D42*10%+(D44+D46+D47+D45-D52)*$B$59 -> 0 | E59: =E42*'Eingabe Szenario'!$K$31+(E44+E46+E47+E45-E52)*'Eingabe Szenario'!$K$30 -> 4,010 | F59: =F42*'Eingabe Szenario'!$K$31+(F44+F46+F47+F45-F52)*'Eingabe Szenario'!$K$30 -> 3,841 | G59: =G42*'Eingabe Szenario'!$K$31+(G44+G46+G47+G45-G52)*'Eingabe Szenario'!$K$30 -> 3,836 | H59: =H42*'Eingabe Szenario'!$K$31+(H44+H46+H47+H45-H52)*'Eingabe Szenario'!$K$30 -> 5,559 | I59: =I42*'Eingabe Szenario'!$K$31+(I44+I46+I47+I45-I52)*'Eingabe Szenario'!$K$30 -> 5,648 | J59: =J42*'Eingabe Szenario'!$K$31+(J44+J46+J47+J45-J52)*'Eingabe Szenario'!$K$30 -> 5,748 | K59: =K42*'Eingabe Szenario'!$K$31+(K44+K46+K47+K45-K52)*'Eingabe Szenario'!$K$30 -> 5,850 | L59: =L42*'Eingabe Szenario'!$K$31+(L44+L46+L47+L45-L52)*'Eingabe Szenario'!$K$30 -> 5,956 | M59: =M42*'Eingabe Szenario'!$K$31+(M44+M46+M47+M45-M52)*'Eingabe Szenario'!$K$30 -> 6,064 | N59: =N42*'Eingabe Szenario'!$K$31+(N44+N46+N47+N45-N52)*'Eingabe Szenario'!$K$30 -> 6,175
A60: Neuanlage | C60: =IF('Eingabe Szenario'!$F$14=1,'Eingabe Szenario'!$D$14,'Eingabe Szenario'!$D$15) -> EUR | D60: =D43 -> 0 | E60: =E43 -> 0 | F60: =F43 -> 300,000 | G60: 0 | H60: 0 | I60: 0 | J60: 0 | K60: 0 | L60: 0 | M60: 0 | N60: =N43 -> 0
A61: Kennzahlen
A62: Ausschüttungsrendite brutto | C62: % | D62: 0.0% | E62: =SUM(E44:E47)/(SUM(E6:E8)+SUM(E14:E15)) ->  | F62: =SUM(F44:F47)/(F6+F7+F8+F14) -> 15.3% | G62: 3.8% | H62: 5.0% | I62: 4.9% | J62: 4.8% | K62: 4.8% | L62: 4.7% | M62: 4.7% | N62: 4.6%
A63: Verwaltungskostenquote (Aufsicht) | C63: % | D63: 0.0% | E63: =(E51+E52)/E41 -> 40.3% | F63: =(F51+F52)/F41 -> 7.1% | G63: 44.0% | H63: 41.0% | I63: 41.1% | J63: 41.3% | K63: 41.4% | L63: 41.6% | M63: 41.7% | N63: 41.9%
A64: Verwaltungskostenquote (Finanzamt) | C64: % | D64: 0.0% | E64: =E51/(E41-E52) -> 21.3% | F64: =F51/(F41-F52) -> 2.9% | G64: 22.2% | H64: 20.2% | I64: 20.4% | J64: 20.6% | K64: 20.8% | L64: 21.0% | M64: 21.2% | N64: 21.3%
A65: Zweckeffizienz der Erträge | C65: % | D65: 0.0% | E65: =E50/E41 ->  | F65: =F50/F41 -> 
A66: Zweckeffizienz des Vermögens | C66: % | D66: =D50/D5 -> 0.0%

Sheet Verwaltungskosten (hidden)
A1: Verwaltungskosten
A3: 1. Aufsicht
A5: Beschreibung | C5: Einh. | D5: =Einstellungen!D7 -> 2019 | E5: =D5+1 -> 2020 | F5: 2021 | G5: 2022 | H5: 2023 | I5: 2024 | J5: 2025 | K5: 2026 | L5: 2027 | M5: 2028
A7: Ausgangsfall
A8: Einnahmen | C8: EUR | D8: ='Zahlen Basis'!F31 -> 63,500 | E8: ='Zahlen Basis'!G31 -> 64,249 | F8: ='Zahlen Basis'!H31 -> 65,014 | G8: ='Zahlen Basis'!I31 -> 65,796 | H8: ='Zahlen Basis'!J31 -> 66,595 | I8: ='Zahlen Basis'!#REF! ->  | J8: ='Zahlen Basis'!#REF! ->  | K8: ='Zahlen Basis'!#REF! ->  | L8: ='Zahlen Basis'!#REF! ->  | M8: ='Zahlen Basis'!#REF! -> 
A9: Verwaltungskosten | C9: EUR | D9: ='Zahlen Basis'!F41+'Zahlen Basis'!F42 -> 39,220 | E9: ='Zahlen Basis'!G41+'Zahlen Basis'!G42 -> 38,474 | F9: ='Zahlen Basis'!H41+'Zahlen Basis'!H42 -> 39,244 | G9: ='Zahlen Basis'!I41+'Zahlen Basis'!I42 -> 40,029 | H9: ='Zahlen Basis'!J41+'Zahlen Basis'!J42 -> 40,829 | I9: ='Zahlen Basis'!#REF!+'Zahlen Basis'!#REF! ->  | J9: ='Zahlen Basis'!#REF!+'Zahlen Basis'!#REF! ->  | K9: ='Zahlen Basis'!#REF!+'Zahlen Basis'!#REF! ->  | L9: ='Zahlen Basis'!#REF!+'Zahlen Basis'!#REF! ->  | M9: ='Zahlen Basis'!#REF!+'Zahlen Basis'!#REF! -> 
A10: Quote | C10: % | D10: =D9/D8 -> 61.8% | E10: =E9/E8 -> 59.9% | F10: 60.4% | G10: 60.8% | H10: 61.3%
A11: Untere Grenze | B11: =Einstellungen!#REF! ->  | C11: % | D11: =D8*$B$11 -> 
A12: Obere Grenze | B12: =Einstellungen!#REF! ->  | C12: % | D12: =D8*$B$12 -> 
A14: Szenario 1
A15: Einnahmen | C15: EUR | D15: =#REF! ->  | E15: =#REF! ->  | F15: =#REF! ->  | G15: =#REF! ->  | H15: =#REF! ->  | I15: =#REF! ->  | J15: =#REF! ->  | K15: =#REF! ->  | L15: =#REF! ->  | M15: =#REF! -> 
A16: Verwaltungskosten | C16: EUR | D16: =#REF!+#REF! ->  | E16: =#REF!+#REF! ->  | F16: =#REF!+#REF! ->  | G16: =#REF!+#REF! ->  | H16: =#REF!+#REF! ->  | I16: =#REF!+#REF! ->  | J16: =#REF!+#REF! ->  | K16: =#REF!+#REF! ->  | L16: =#REF!+#REF! ->  | M16: =#REF!+#REF! -> 
A17: Quote | C17: % | D17: =D16/D15 ->  | E17: =E16/E15 -> 
A18: Untere Grenze | B18: =Einstellungen!#REF! ->  | C18: % | D18: =D15*$B$18 -> 
A19: Obere Grenze | B19: =Einstellungen!#REF! ->  | C19: % | D19: =D15*$B$19 -> 
A41: 2. Finanzamt

Sheet Druck (hidden)
D16: Stiftungsfinanzplan
D21: für:
D23: =Einstellungen!D5 -> Paradigma-Stiftung
D28: erstellt von:
D30: =IF(Einstellungen!K6="Herr","Herrn","Frau") -> Frau | E30: =Einstellungen!L6 -> 0
D36: =IF(Einstellungen!#REF!=1,"Frau","Herrn") ->  | E36: =Einstellungen!L8 -> 0
D38: und
D40: =IF(Einstellungen!#REF!=1,"Frau","Herrn") ->  | E40: =Einstellungen!L7 -> 0
A72: 1. Vorwort
A75: =IF(Einstellungen!#REF!=1,"Sehr geehrte","Sehr geehrter") ->  | B75: =Einstellungen!L6 -> 0
A95: München, im November 2015
A99: =Einstellungen!L8 -> 0 | C99: =Einstellungen!L7 -> 0
A118: 2. Ausgangssituation
A129: Rahmendaten:
A133: Aktuelles Gesamtvermögen | D133: ='Zahlen Basis'!E6 -> 7,600,000
F134: EUR
A135: Allokationszeitpunkt
D136: Jeweils zum 01.01. des Jahres - beginnend 2016
A137: Neuallokation
D138: Entsprechend bestehender Allokation
B139: Ausgangsfall:
A140: Szenarien | D140: =Einstellungen!#REF! -> 
B141: Szenario:
D142: ='Eingabe Szenario'!B2 -> 0
A143: Ø Geldentwertung (VPI)
D144: =Einstellungen!#REF! -> 
A145: Satzungsmäßige Leistungen
D146: =IF(Einstellungen!R8=1,"Aus Überschüssen nach Kosten und Rücklagen","Fixe Zielausschüttung") -> Aus Überschüssen nach Kosten und Rücklagen
A147: Kosten Vermögensverwaltung
D148: =Einstellungen!K29 -> 0.0% | E148: inkl. USt p.a.
A149: Sonstige Kosten
D150: =Einstellungen!K25 -> 0 | E150: EUR p.a., inflationiert
A151: Rücklagenbildung | D151: Freie Rücklage p.a.: | F151: =Einstellungen!#REF! -> 
D152: =IF(Einstellungen!S30=1,"Umschichtungsrücklage","") -> 
A154: Prämissen
A156: Nach Absprache mit Ihnen haben wir für die Projektion der Vermögensentwicklung folgende Durchschnittsrenditen im Wertpapierbereich unterstellt:
D158: Durchschnittsrenditen WP
D160: Kurs | E160: Ausschüttg. | F160: Gesamt
A161: Aktien | D161: =Einstellungen!D37 -> 0.0% | E161: =Einstellungen!E37 -> 0.0% | F161: =D161+E161 -> 0.0%
A162: Renten | D162: =Einstellungen!D38 -> 0.0% | E162: =Einstellungen!E38 -> 0.0% | F162: 0.0%
A163: Liquidität | D163: =Einstellungen!D39 -> 0.0% | E163: =Einstellungen!E39 -> 0.0% | F163: 0.0%
A164: Alternative Investments | D164: =Einstellungen!D40 -> 0.0% | E164: =Einstellungen!E40 -> 0.0% | F164: 0.0%
A165: Sonstige/Gemischt | D165: =Einstellungen!D41 -> 0.0% | E165: =Einstellungen!E41 -> 0.0% | F165: 0.0%
A166: Gesamtrendite gewichtet | D166: =Einstellungen!D42 -> 0.0% | E166: =Einstellungen!E42 -> 0.0% | F166: 0.0%
A178: Grundfall
A239: Ausgangsfall
A241: Grafik Vermögenserhaltung
A267: Delta am Ende des Betrachtungszeitraums: | D267: ='Zahlen Basis'!#REF! ->  | E267: ='Zahlen Basis'!#REF! ->  | F267: EUR
A301: Ausgangsfall
A303: Einnahmen/ Ausgaben
A363: Ausgangsfall
A365: Grafik Ausgabenstruktur
A425: Analyse Historie
A427: Grafik Verwaltungskosten

Sheet Entwickler (hidden)
A1: Entwickler
B2: Version 1.53 | C2: 2019-02-19
B4: Letzte Betaversion vom 10.01.2018: | C4: V 1.50
B5: Inflationsdaten 2018 komplett (VPI)
B6: Cockpit: Historie Vermögenserhatlung separtiert, Rundinstrumente eingefügt,
B7: Disclaimer eingefügt
B12: To Do's: | C12: Prio (1-3)
B14: Anlage der Zustiftung integrieren | C14: 1
B15: Neu: Sensititvitätsanalyse | C15: 3
B16: Druckteil komplett überarbeiten | C16: 1
B17: Neu: Liquiditätsübersicht | C17: 3
B18: Neu: Textbausteine f. Anlagerichtlinien integrieren (Bespr. BVDS v. 15.02.2018) | C18: 2
B19: Vergangenheitswerte Kerninflation ergänzen | C19: 2
B20: Integration Liquidität, Alternative Investments, Sonstige | C20: 2
B21: Umschaltfunktion EUR/TEUR reaktivieren | C21: 3
B22: Versionssicheres Cockpit | C22: 2
B23: Veränderung Umschichtungsrücklage | C23: 2
B24: Neu: Attributionsanalyse | C24: 2
